Workbook

Sheet AER only (hidden)
B1: Data in these columns used for data validation and database purposes.
B2: Date last modified: | C2: 2017-01-16 | D2: added (Albury and Victora) for AGN
C3: 2016-10-17 | D3: updated TransGrid's correct legal name, corrected TasNetworks (T) to June financial year
C4: 2017-02-01 | D4: inserted Power and Water, added NRs (dms_FeederCat_1 and dms_FeederCat_2)
C5: 2017-03-03 | D5: inserted AEMO as a business | AC5: FOR ELECTRICITY BUSINESSES ONLY
AC6: Feeder Types | AG6: TasNetworks (D) | AH6: MAIFI flag | AI6: Feeder Names
AC7: CBD | AD7: Urban | AE7: Short rural | AF7: long rural | AG7: EXTRA
B8: dms_TradingName_List | C8: dms_TradingNameFull_List | D8: dms_ABN_List | E8: dms_JurisdictionList | F8: dms_Sector_List | G8: dms_Segment_List | H8: dms_FormControl_List | I8: dms_RPT_List | J8: dms_RPTMonth_List | K8: dms_CRCPlength_List | L8: dms_FRCPlength_List | M8: dms_663_List | N8: dms_DeterminationRef_List | O8: dms_Addr1_List | P8: dms_Addr2_List | Q8: dms_Suburb_List | R8: dms_State_List | S8: dms_PostCode_List | T8: dms_PAddr1_List | U8: dms_PAddr2_List | V8: dms_PSuburb_List | W8: dms_PState_List | X8: dms_PPostCode_List | Y8: dms_ContactName1_List | Z8: dms_ContactPh1_List | AA8: dms_ContactEmail_List | AB8: Column1 | AC8: dms_CBD_flag | AD8: dms_Urban_flag | AE8: dms_ShortRural_flag | AF8: dms_LongRural_flag | AG8: dms_FeederType_5_flag | AH8: dms_MAIFI_flag_List | AI8: dms_FeederName_1 | AJ8: dms_FeederName_2 | AK8: dms_FeederName_3 | AL8: dms_FeederName_4 | AM8: dms_FeederName_5
B9: ActewAGL Distribution | C9: ActewAGL Distribution | D9: 76670568688 | E9: ACT | F9: Electricity | G9: Distribution | H9: Revenue cap | I9: Financial | J9: June | K9: 5 | L9: 5 | M9: 5 | N9: 2014-19 Distribution Determination | O9: 40 Bunda Street | Q9: CANBERRA | R9: ACT | S9: 2600 | T9: GPO BOX 366 | V9: CANBERRA | W9: ACT | X9: 2601 | Y9: Robert Walker | Z9: 02 6248 3847 | AA9: robert.walker@actewagle.com.au | AC9: NO | AD9: YES | AE9: YES | AF9: NO | AG9: NO | AI9: CBD | AJ9: Urban | AK9: Short rural | AL9: Long rural | AN9: ActewAGL Distribution
B10: ActewAGL Distribution (Tx Assets) | C10: ActewAGL Distribution (Tx Assets) | D10: 76670568688 | E10: ACT | F10: Electricity | G10: Distribution | H10: Revenue cap | I10: Financial | J10: June | K10: 5 | L10: 5 | M10: 5 | N10: distribution determination | O10: 40 Bunda Street | Q10: CANBERRA | R10: ACT | S10: 2600 | T10: GPO BOX 366 | V10: CANBERRA | W10: ACT | X10: 2601 | Y10: Robert Walker | Z10: 02 6248 3847 | AA10: robert.walker@actewagle.com.au | AI10: CBD | AJ10: Urban | AK10: Short rural | AL10: Long rural | AN10: ActewAGL Distribution (Tx Assets)
B11: ActewAGL Gas | C11: ActewAGL Gas | D11: 76670568688 | E11: ACT | F11: Gas | G11: Distribution | H11: Weighted average price cap | I11: Financial | J11: June | K11: 5 | L11: 5 | M11: x | O11: 40 Bunda Street | Q11: CANBERRA | R11: ACT | S11: 2600 | T11: GPO BOX 366 | V11: CANBERRA | W11: ACT | X11: 2601 | Y11: Philip Deamer | Z11: 02 6248 3438 | AA11: GasAAReview@actewagl.com.au | AN11: ActewAGL Gas
B12: AEMO | C12: Australian Energy Market Operator Ltd | D12: 94072010327 | E12: Vic | F12: Electricity | G12: Transmission | H12: - | I12: Financial | J12: March | K12: 5 | L12: 5 | M12: x | N12: - | O12: Level 22 | P12: 530 Collins Street | Q12: MELBOURNE | R12: VIC | S12: 3000 | T12: GPO Box 2008 | V12: MELBOURNE | W12: VIC | X12: 3001 | AN12: AEMO
B13: AGN (Albury and Victoria) | C13: Australian Gas Networks Limited (reporting data for Albury and Victoria) | D13: 19078551685 | E13: Vic | F13: Gas | G13: Distribution | H13: Weighted average price cap | I13: Calendar | J13: December | K13: 5 | L13: 5 | M13: x | O13: Level 6 | P13: 400 King William Street | Q13: ADELAIDE | R13: SA | S13: 5000 | T13: PO Box 6468 | U13: Halifax Street | V13: ADELAIDE | W13: SA | X13: 5000 | Y13: Craig de Laine | Z13: 08 8418 1129 | AA13: craig.delaine@agn.com.au | AI13: CBD | AJ13: Urban | AK13: Short rural | AL13: Long rural | AN13: AGN (Albury)
B14: AGN (Albury) | C14: Australian Gas Networks Limited (reporting data for Albury) | D14: 19078551685 | E14: Vic | F14: Gas | G14: Distribution | H14: Weighted average price cap | I14: Calendar | J14: December | K14: 5 | L14: 5 | M14: x | O14: Level 6 | P14: 400 King William Street | Q14: ADELAIDE | R14: SA | S14: 5000 | T14: PO Box 6468 | U14: Halifax Street | V14: ADELAIDE | W14: SA | X14: 5000 | Y14: Craig de Laine | Z14: 08 8418 1129 | AA14: craig.delaine@agn.com.au | AI14: CBD | AJ14: Urban | AK14: Short rural | AL14: Long rural
B15: AGN (SA) | C15: Australian Gas Networks Limited (reporting data for SA) | D15: 19078551685 | E15: SA | F15: Gas | G15: Distribution | H15: Weighted average price cap | I15: Financial | J15: June | K15: 5 | L15: 5 | M15: 5 | N15: distribution determination | O15: Level 6 | P15: 400 King William Street | Q15: ADELAIDE | R15: SA | S15: 5000 | T15: PO Box 6468 | U15: Halifax Street | V15: ADELAIDE | W15: SA | X15: 5000 | Y15: Craig de Laine | Z15: 08 8418 1129 | AA15: craig.delaine@agn.com.au | AN15: AGN (SA)
B16: AGN (Victoria) | C16: Australian Gas Networks Limited (reporting data for Victoria) | D16: 19078551685 | E16: Vic | F16: Gas | G16: Distribution | H16: Weighted average price cap | I16: Calendar | J16: December | K16: 5 | L16: 5 | M16: x | AN16: AGN (Victoria)
B17: Amadeus | C17: APT Pipelines (NT) Pty Ltd | D17: 39009737393 | E17: NT | F17: Gas | G17: Transmission | H17: Weighted average price cap | I17: Financial | J17: June | K17: 5 | L17: 5 | M17: x | N17: n/a | O17: Level 19, HSBC Building | P17: 580 George Street | Q17: SYDNEY | R17: NSW | S17: 2000 | T17: Level 19, HSBC Building | U17: 580 George Street | V17: SYDNEY | W17: NSW | X17: 2000 | Y17: Alexandra Curran | Z17: 02 9275 0020 | AA17: alexandra.curran@apa.com.au | AN17: Amadeus
B18: APA GasNet | C18: APA GasNet Australia (Operations) Pty Ltd | D18: 065083009 | E18: Vic | F18: Gas | G18: Transmission | H18: Weighted average price cap | I18: Calendar | J18: December | K18: 5 | L18: 5 | M18: x | O18: Level 19, HSBC Building | P18: 580 George Street | Q18: SYDNEY | R18: NSW | S18: 2000 | T18: PO Box R41 | V18: ROYAL EXCHANGE | W18: NSW | X18: 1225 | Z18: 02 9693 0000 | AN18: APA GasNet
B19: Ausgrid | C19: Ausgrid | D19: 78508211731 | E19: NSW | F19: Electricity | G19: Distribution | H19: Revenue cap | I19: Financial | J19: June | K19: 5 | L19: 5 | M19: 5 | N19: 2014-19 Distribution Determination | O19: 570 George St | Q19: SYDNEY | R19: NSW | S19: 2000 | T19: GPO Box 4009 | V19: SYDNEY | W19: NSW | X19: 2001 | Y19: John Thomson | Z19: (02) 9269 2312 | AA19: john.thomson@ausgrid.com.au | AC19: YES | AD19: YES | AE19: YES | AF19: YES | AG19: NO | AI19: CBD | AJ19: Urban | AK19: Short rural | AL19: Long rural | AN19: Ausgrid
B20: Ausgrid (Tx Assets) | C20: Ausgrid (Tx Assets) | D20: 67505337385 | E20: NSW | F20: Electricity | G20: Distribution | H20: Revenue cap | I20: Financial | J20: June | K20: 5 | L20: 5 | M20: 5 | N20: distribution determination | R20: NSW | AI20: CBD | AJ20: Urban | AK20: Short rural | AL20: Long rural | AN20: Ausgrid (Tx Assets)
B21: AusNet (D) | C21: AusNet Electricity Services Pty Ltd | D21: 91064651118 | E21: Vic | F21: Electricity | G21: Distribution | H21: Revenue cap | I21: Calendar | J21: December | K21: 5 | L21: 5 | M21: 2 | N21: 2016-20 Distribution Determination | O21: Level 32 | P21: 2 Southbank Boulevard | Q21: SOUTHBANK | R21: Vic | S21: 3006 | T21: Locked Bag 14051 | V21: MELBOURNE CITY MAIL CENTRE | W21: VIC | X21: 8001 | Y21: Hannah Williams | Z21: 03 9683 4088 | AA21: hwilliams@powercor.com.au | AD21: YES | AE21: YES | AF21: YES | AG21: NO | AI21: CBD | AJ21: Urban | AK21: Short rural | AL21: Long rural | AN21: AusNet (D)
B22: AusNet (Gas) | C22: AusNet Gas Services | D22: 086015036 | E22: Vic | F22: Gas | G22: Distribution | H22: Weighted average price cap | I22: Calendar | J22: December | K22: 5 | L22: 5 | M22: X | AN22: AusNet (Gas)
B23: AusNet (T) | C23: Ausnet Services (Transmission) Ltd | D23: 48116124362 | E23: Vic | F23: Electricity | G23: Transmission | H23: Revenue cap | I23: Financial | J23: March | K23: 5 | L23: 5 | M23: 2 | N23: transmission determination | O23: Level 32 | P23: 2 Southbank Boulevard | Q23: SOUTHBANK | R23: Vic | S23: 3006 | T23: Locked Bag 14051 | V23: MELBOURNE CITY MAIL CENTRE | W23: Vic | X23: 8001 | Y23: Clare Thompson | Z23: 03 9695 6670 | AA23: clare.e.thompson@ausnetservices.com.au | AI23: CBD | AJ23: Urban | AK23: Short rural | AL23: Long rural | AN23: AusNet (T)
B24: Australian Distribution Co. | C24: Australian Distribution Co. | D24: 11222333444 | E24: - | F24: Electricity | G24: Distribution | H24: Revenue cap | I24: Financial | J24: June | K24: 5 | L24: 5 | M24: 2 | N24: distribution determination | O24: 123 Straight Street | Q24: SYDNEY | R24: NSW | S24: 2000 | T24: PO Box 123 | V24: SYDNEY | W24: NSW | X24: 2000 | Y24: Bob Smith | Z24: 02 1234 5678 | AA24: bob@auselec.net.au | AI24: CBD | AJ24: Urban | AK24: Short rural | AL24: Long rural | AN24: Australian Distribution Co.
B25: Australian Distribution Co. (Vic) | C25: Australian Distribution Co. (Victoria) | D25: 11222333444 | E25: Vic | F25: Electricity | G25: Distribution | H25: Revenue cap | I25: Calendar | J25: December | K25: 5 | L25: 5 | M25: 2 | N25: distribution determination | O25: 123 Straight Street | Q25: MELBOURNE | R25: Vic | S25: 3000 | T25: PO Box 123 | V25: MELBOURNE | W25: VIC | X25: 3000 | Y25: Bob Smith | Z25: 02 1234 5678 | AA25: bob@auselec.net.au | AI25: CBD | AJ25: Urban | AK25: Short rural | AL25: Long rural | AN25: Australian Distribution Co. (Vic)
B26: Australian Transmission Co. | C26: Australian Transmission Co. | D26: 11222333444 | E26: - | F26: Electricity | G26: Transmission | H26: Revenue cap | I26: Financial | J26: June | K26: 5 | L26: 5 | M26: 5 | N26: transmission determination | O26: 123 Straight Street | Q26: SYDNEY | R26: NSW | S26: 2000 | T26: PO Box 123 | V26: SYDNEY | W26: NSW | X26: 2000 | Y26: Bob Smith | Z26: 02 1234 5678 | AA26: bob@auselec.net.au | AI26: CBD | AJ26: Urban | AK26: Short rural | AL26: Long rural | AN26: Australian Transmission Co.
B27: CitiPower | C27: CitiPower | D27: 76064651056 | E27: Vic | F27: Electricity | G27: Distribution | H27: Revenue cap | I27: Calendar | J27: December | K27: 5 | L27: 5 | M27: 2 | N27: 2016-20 Distribution Determination | O27: 40 Market Street | Q27: MELBOURNE | R27: Vic | S27: 3000 | T27: Locked Bag 14090 | V27: MELBOURNE | W27: VIC | X27: 8001 | Y27: Hannah Williams | Z27: 03 9683 4088 | AA27: hwilliams@powercor.com.au | AC27: YES | AD27: YES | AE27: NO | AF27: NO | AG27: NO | AI27: CBD | AJ27: Urban | AK27: Short rural | AL27: Long rural | AN27: CitiPower
B28: Directlink | C28: Directlink | D28: 16779340889 | E28: Qld | F28: Electricity | G28: Transmission | H28: Revenue cap | I28: Financial | J28: June | K28: 9 | L28: 5 | M28: 5 | N28: transmission determination | O28: Level 19, HSBC Building | P28: 580 George Street | Q28: SYDNEY | R28: NSW | S28: 2000 | T28: PO Box R41 | V28: ROYAL EXCHANGE | W28: NSW | X28: 1225 | Y28: Scott Young | Z28: 02 9275 0031 | AA28: scott.young@apa.com.au | AI28: CBD | AJ28: Urban | AK28: Short rural | AL28: Long rural | AN28: Directlink
B29: ElectraNet | C29: ElectraNet | D29: 41094482416 | E29: SA | F29: Electricity | G29: Transmission | H29: Revenue cap | I29: Financial | J29: June | K29: 5 | L29: 5 | M29: 5 | N29: transmission determination | O29: 52-55 East Terrace | P29: Rymill Park | Q29: ADELAIDE | R29: SA | S29: 5000 | T29: PO Box 7096 | U29: Hutt Street Post Office | V29: ADELAIDE | W29: SA | X29: 5000 | Y29: Bill Jackson | Z29: 08 8404 7969 | AA29: jackson.bill@electranet.com.au | AI29: CBD | AJ29: Urban | AK29: Short rural | AL29: Long rural | AN29: ElectraNet
B30: Endeavour Energy | C30: Endeavour Energy | D30: 59253130878 | E30: NSW | F30: Electricity | G30: Distribution | H30: Revenue cap | I30: Financial | J30: June | K30: 5 | L30: 5 | M30: 5 | N30: 2014-19 Distribution Determination | O30: 51 Huntingwood Drive | Q30: HUNTINGWOOD | R30: NSW | S30: 2148 | T30: PO Box 811 | V30: SEVEN HILLS | W30: NSW | X30: 1730 | Y30: Jon Hocking | Z30: 02 9853 4386 / 0407 348 156 | AA30: Jon.Hocking@Endeavourenergy.com.au | AC30: NO | AD30: YES | AE30: YES | AF30: YES | AG30: NO | AI30: CBD | AJ30: Urban | AK30: Short rural | AL30: Long rural | AN30: Endeavour Energy
B31: Energex | C31: Energex | D31: 40078849055 | E31: Qld | F31: Electricity | G31: Distribution | H31: Revenue cap | I31: Financial | J31: June | K31: 5 | L31: 5 | M31: 5 | N31: 2015-20 Distribution Determination | O31: 26 Reddacliff Street | Q31: NEWSTEAD | R31: Qld | S31: 4006 | T31: 26 Reddacliff Street | V31: NEWSTEAD | W31: QLD | X31: 4006 | Y31: Nicola Roscoe | Z31: 07 3664 5891 | AA31: nicolaroscoe@energex.com.au | AC31: YES | AD31: YES | AE31: YES | AF31: NO | AG31: NO | AI31: CBD | AJ31: Urban | AK31: Short rural | AL31: Long rural | AN31: Energex
B32: Ergon Energy | C32: Ergon Energy | D32: 50087646062 | E32: Qld | F32: Electricity | G32: Distribution | H32: Revenue cap | I32: Financial | J32: June | K32: 5 | L32: 5 | M32: 5 | N32: 2015-20 Distribution Determination | O32: 22 Walker Street | Q32: TOWNSVILLE | R32: Qld | S32: 4810 | T32: Po Box 264 | V32: FORTITUDE VALLEY | W32: QLD | X32: 4006 | Y32: Jenny Doyle, Group Manager Regulatory Affairs | Z32: (07) 3851 6416 | AA32: jenny.doyle@ergon.com.au | AC32: NO | AD32: YES | AE32: YES | AF32: YES | AG32: NO | AI32: CBD | AJ32: Urban | AK32: Short rural | AL32: Long rural | AN32: Ergon Energy
B33: Essential Energy | C33: Essential Energy | D33: 37428185226 | E33: NSW | F33: Electricity | G33: Distribution | H33: Revenue cap | I33: Financial | J33: June | K33: 5 | L33: 5 | M33: 5 | N33: 2014-19 Distribution Determination | O33: 8 Buller Street | Q33: PORT MACQUARIE | R33: NSW | S33: 2444 | T33: PO Box 5730 | V33: PORT MACQUARIE | W33: NSW | X33: 2444 | Y33: Catherine Waddell | Z33: 02 6338 3553 | AA33: catherine.waddell@essentialenergy.com.au | AE33: YES | AF33: YES | AG33: NO | AI33: CBD | AJ33: Urban | AK33: Short rural | AL33: Long rural | AN33: Essential Energy
B34: Jemena Electricity | C34: Jemena Electricity | D34: 82064651083 | E34: Vic | F34: Electricity | G34: Distribution | H34: Revenue cap | I34: Calendar | J34: December | K34: 5 | L34: 5 | M34: 2 | N34: 2016-20 Distribution Determination | O34: Level 16 | P34: 567 Collins Street | Q34: MELBOURNE | R34: VIC | S34: 3000 | T34: PO Box 16182 | V34: MELBOURNE | W34: VIC | X34: 8001 | Y34: Matthew Serpell | Z34: 03 9173 8231 | AA34: matthew.serpell@jemena.com.au | AE34: YES | AF34: NO | AG34: NO | AI34: CBD | AJ34: Urban | AK34: Short rural | AL34: Long rural | AN34: Jemena Electricity
B35: JGN | C35: Jemena Gas Networks (NSW) Ltd | D35: 003 004 322 | E35: NSW | F35: Gas | G35: Distribution | H35: Weighted average price cap | I35: Financial | J35: June | K35: 5 | L35: 5 | AN35: JGN
B36: Multinet Gas | C36: Multinet Gas (DB No.1) Pty Ltd (ACN 086 026 986), Multinet Gas (DB No.2) Pty Ltd (ACN 086 230 122) | D36: 086026986 | E36: Vic | F36: Gas | G36: Distribution | H36: Weighted average price cap | I36: Calendar | J36: December | K36: 5 | L36: 5 | M36: x | O36: 6 Nexus Court | Q36: MULGRAVE | R36: Vic | S36: 3149 | Y36: Stephanie McDougall | Z36: 03 8846 9538 | AA36: Stephanie.McDougall@ue.com.au | AN36: Multinet Gas
B37: Murraylink | C37: Murraylink | D37: 79181207909 | E37: SA | F37: Electricity | G37: Transmission | H37: Revenue cap | I37: Financial | J37: June | K37: 5 | L37: 5 | M37: 5 | N37: transmission determination | AI37: CBD | AJ37: Urban | AK37: Short rural | AL37: Long rural | AN37: Murraylink
B38: Power and Water | C38: Power and Water Corporation | D38: 15947352360 | E38: NT | F38: Electricity | G38: Distribution | H38: Revenue cap | I38: Financial | J38: June | K38: 5 | L38: 5 | M38: x | N38: distribution determination | O38: GPO Box 1921 | Q38: DARWIN | R38: NT | S38: 0801 | T38: GPO Box 1921 | V38: DARWIN | W38: NT | X38: 0801 | Y38: Lucy Moon | Z38: 08 8924 5822 | AA38: Lucy.Moon@powerwater.com.au | AC38: YES | AD38: YES | AE38: YES | AF38: YES | AG38: NO
B39: Powercor Australia | C39: Powercor Australia | D39: 89064651109 | E39: Vic | F39: Electricity | G39: Distribution | H39: Revenue cap | I39: Calendar | J39: December | K39: 5 | L39: 5 | M39: 2 | N39: 2016-20 Distribution Determination | O39: 40 Market Street | Q39: MELBOURNE | R39: Vic | S39: 3000 | T39: Locked bag 14090 | V39: MELBOURNE | W39: VIC | X39: 8001 | Y39: Hannah Williams | Z39: 03 9683 4088 | AA39: hwilliams@powercor.com.au | AE39: YES | AF39: YES | AG39: NO | AI39: CBD | AJ39: Urban | AK39: Short rural | AL39: Long rural | AN39: Powercor Australia
B40: Powerlink | C40: Queensland Electricity Transmission Corporation Limited trading as Powerlink Queensland | D40: 82078849233 | E40: Qld | F40: Electricity | G40: Transmission | H40: Revenue cap | I40: Financial | J40: June | K40: 5 | L40: 5 | M40: 5 | N40: transmission determination | O40: 33 Harold St | Q40: VIRGINIA | R40: Qld | S40: 4014 | T40: PO Box 1193 | V40: VIRGINIA | W40: QLD | X40: 4014 | Y40: Jennifer Harris | Z40: 07 3860 2667 | AA40: jharris@powerlink.com.au | AI40: CBD | AJ40: Urban | AK40: Short rural | AL40: Long rural | AN40: Powerlink
B41: Roma to Brisbane Pipeline | C41: APT Petroleum Pipelines Limited t/a Roma to Brisbane Pipeline | D41: 009 737 393 | E41: Qld | F41: Gas | G41: Transmission | H41: Weighted average price cap | I41: Financial | J41: June | K41: 5 | L41: 5 | M41: x | N41: n/a | O41: 580 George Street | Q41: SYDNEY | R41: NSW | S41: 2000 | T41: PO Box R41 | V41: ROYAL EXCHANGE | W41: NSW | X41: 1225 | Y41: Mark Allen | Z41: 02 9275 0010 | AA41: mark.allen@apa.com.au | AI41: CBD | AJ41: Urban | AK41: Short rural | AL41: Long rural | AN41: Roma to Brisbane Pipeline
B42: SA Power Networks | C42: SA Power Networks | D42: 13332330749 | E42: SA | F42: Electricity | G42: Distribution | H42: Revenue cap | I42: Financial | J42: June | K42: 5 | L42: 5 | M42: 5 | N42: 2015-20 Distribution Determination | O42: 1 Anzac Highway | Q42: KESWICK | R42: SA | S42: 5035 | T42: GPO Box 77 | V42: ADELAIDE | W42: SA | X42: 5000 | Y42: Richard Sibly | Z42: 08 8404 5613 | AA42: richard.sibly@sapowernetworks.com.au | AE42: YES | AF42: YES | AG42: NO | AI42: CBD | AJ42: Urban | AK42: Short rural | AL42: Long rural | AN42: SA Power Networks
B43: TasNetworks (D) | C43: TasNetworks (D) | D43: 24167357299 | E43: Tas | F43: Electricity | G43: Distribution | H43: Revenue cap | I43: Financial | J43: June | K43: 5 | L43: 5 | M43: 5 | N43: distribution determination | O43: 1-7 Maria Street | Q43: LENAH VALLEY | R43: Tas | S43: 7008 | T43: PO Box 606 | V43: MOONAH | W43: Tas | X43: 7009 | Y43: John Sayers | Z43: 03 6271 6469 | AA43: john.sayers@tasnetworks.com.au | AE43: YES | AF43: YES | AG43: YES | AI43: Critical Infrastructure | AJ43: High density commercial | AK43: Urban | AL43: High density rural | AM43: Low density rural | AN43: TasNetworks (D)
B44: TasNetworks (T) | C44: TasNetworks (T) | D44: 24167357299 | E44: Tas | F44: Electricity | G44: Transmission | H44: Revenue cap | I44: Financial | J44: June | K44: 5 | L44: 5 | M44: 5 | N44: transmission determination | O44: 1-7 Maria Street | Q44: LENAH VALLEY | R44: Tas | S44: 7008 | T44: PO Box 606 | V44: MOONAH | W44: Tas | X44: 7009 | Y44: John Sayers | Z44: 03 6271 6469 | AA44: john.sayers@tasnetworks.com.au | AI44: CBD | AJ44: Urban | AK44: Short rural | AL44: Long rural | AN44: TasNetworks (T)
B45: TransGrid | C45: NSW Electricity Networks Operations Pty Ltd trading as TransGrid | D45: 609169959 | E45: NSW | F45: Electricity | G45: Transmission | H45: Revenue cap | I45: Financial | J45: June | K45: 5 | L45: 4 | M45: 5 | N45: transmission determination | O45: 180 Thomas Street | Q45: SYDNEY | R45: NSW | S45: 2000 | T45: PO Box A1000 | V45: SYDNEY SOUTH | W45: NSW | X45: 1235 | Y45: Garrie Chubb | Z45: 0408 210 221 | AA45: garrie.chubb@transgrid.com.au | AI45: CBD | AJ45: Urban | AK45: Short rural | AL45: Long rural | AN45: TransGrid
B46: United Energy | C46: United Energy | D46: 70064651029 | E46: Vic | F46: Electricity | G46: Distribution | H46: Revenue cap | I46: Calendar | J46: December | K46: 5 | L46: 5 | M46: 2 | N46: 2016-20 Distribution Determination | O46: Level 3 | P46: 6 Nexus Court | Q46: MULGRAVE | R46: Vic | S46: 3149 | T46: PO Box 449 | V46: MOUNT WAVERLEY | W46: VIC | X46: 3170 | Y46: Mathew Abraham | Z46: 03 8846 9758 | AA46: mathew.abraham@ue.com.au | AE46: YES | AF46: NO | AG46: NO | AI46: CBD | AJ46: Urban | AK46: Short rural | AL46: Long rural | AN46: United Energy
B47: Western Power (D) | C47: Western Power (D) | D47: 18540492861 | E47: WA | F47: Electricity | G47: Distribution | H47: Revenue cap | I47: Financial | J47: June | K47: 12 | L47: 4 | M47: x | N47: distribution determination | O47: 363 Wellington Street | Q47: PERTH | R47: WA | S47: 6000 | T47: GPO Box L921 | V47: PERTH | W47: WA | X47: 6842 | Y47: Judy Hunter | Z47: 08 9326 6239 | AA47: judy.hunter@westernpower.com.au | AE47: YES | AF47: YES | AG47: NO | AH47: NO | AI47: CBD | AJ47: Urban | AK47: Short rural | AL47: Long rural | AN47: Western Power (D)
B48: Western Power (T) | C48: Western Power (T) | D48: 18540492861 | E48: WA | F48: Electricity | G48: Transmission | H48: Revenue cap | I48: Financial | J48: June | K48: 12 | L48: 4 | M48: x | N48: transmission determination | O48: 363 Wellington Street | Q48: PERTH | R48: WA | S48: 6000 | T48: GPO Box L921 | V48: PERTH | W48: WA | X48: 6842 | Y48: Judy Hunter | Z48: 08 9326 6239 | AA48: judy.hunter@westernpower.com.au | AE48: YES | AF48: YES | AG48: NO | AI48: CBD | AJ48: Urban | AK48: Short rural | AL48: Long rural | AN48: Western Power (T)
W51: For EB & Reset RINs only | AC51: For AARs only
B52: The Reg Year Ending (dms_RYE) must be set to the last year of the regulatory period. For forecast data is is usually (FRCP_y5) for actual it is a single year (CRY). For historical actual data the RYE will need to be set manually in the business details sheet by setting the dms_Multiyear_flag to 1 and putting the correct value in 'dms_Specified_FinalYear. See cells C67:C68 | G52: =IF(dms_RPT="financial",VALUE(LEFT(CRCP_y1,4)-1)&"-"&TEXT(VALUE(RIGHT(CRCP_y1,2)-1),"00"),VALUE(LEFT(CRCP_y1,4)-1)) -> 2011-12 | N52: Drop down selector box for CA & Reset RINs. | O52: For CA & Reset RINs only | W52: for DNSP only | AC52: For DNSPs only | AI52: Reason for interruption | AJ52: dms_Reason_Interruption_Detailed | AK52: dms_Reason_Interruption
B53: dms_Model_List | C53: DELETE NR 'CRY' IF NOT AN ANNUAL RIN (EB, CA , ARR) | E53: dms_RYE_Formula_Result | N53: dms_0203_ProjectType | O53: dms_020303_01_UOM | P53: dms_020501_01_UOM | Q53: dms_020501_02_UOM | R53: dms_020501_03_UOM | S53: dms_020501_04_UOM | T53: dms_020603_01_UOM | U53: dms_040102_01_UOM | V53: dms_040102_04_UOM | W53: dms_030601_01_UOM | X53: dms_030601_02_UOM | Y53: dms_030701_01_UOM | Z53: dms_030702_01_UOM | AA53: dms_030703_01_UOM | AC53: dms_030605_UOM | AD53: dms_03060703_UOM | AI53: Animal | AJ53: Animal impact | AK53: Animal
B54: ARR | C54: ANNUAL REPORTING STATEMENT | E54: =LEFT(dms_SingleYear_FinalYear_Result,2)&RIGHT(dms_SingleYear_FinalYear_Result,2) -> 2017 | F54: =LEFT(dms_SingleYear_FinalYear_Result,2)&RIGHT(dms_SingleYear_FinalYear_Result,2) | H54: Formula errors are OK | N54: New line on new route - single circuit | O54: Circuit line length in km | P54: 0's | Q54: 0's | R54: 0's | S54: 0's | T54: 0's | U54: 0's | V54: days | W54: minutes/customer | X54: minutes/customer | Y54: Customer / km | Z54: % | AA54: km | AC54: number | AD54: number | AJ54: Animal nesting/burrowing, etc and other | AK54: Asset failure
B55: CA | C55: CATEGORY ANALYSIS | E55: =LEFT(dms_SingleYear_FinalYear_Result,2)&RIGHT(dms_SingleYear_FinalYear_Result,2) -> 2017 | F55: =LEFT(dms_SingleYear_FinalYear_Result,2)&RIGHT(dms_SingleYear_FinalYear_Result,2) | H55: Formula errors are OK | N55: New line on new route - dual circuit | O55: Circuit line length in km | P55: 0's | Q55: 0's | R55: 0's | S55: 0's | T55: 0's | U55: 0's | V55: 0's | W55: minutes/customer | X55: minutes/customer | Y55: MWh/customer | Z55: Number of spans | AC55: number | AD55: number | AJ55: Other | AK55: Other
B56: CPI | C56: CPI | N56: New line on new route - other | O56: Circuit line length in km | P56: MVA added | Q56: MVA added | R56: MVA added | S56: MVA added | T56: 0's | U56: 0's | V56: $0s | W56: interruptions/customer | X56: interruptions/customer | Y56: kVA / customer | Z56: Number of spans | AC56: number | AD56: number | AI56: Asset failure | AJ56: LV | AK56: Overloads
B57: EB | C57: ECONOMIC BENCHMARKING | E57: =LEFT(dms_SingleYear_FinalYear_Result,2)&RIGHT(dms_SingleYear_FinalYear_Result,2) -> 2017 | F57: =LEFT(dms_SingleYear_FinalYear_Result,2)&RIGHT(dms_SingleYear_FinalYear_Result,2) | H57: Formula errors are OK | N57: Line rebuild over existing route - single circuit | O57: Circuit line length in km | P57: 0's | Q57: 0's | R57: 0's | S57: 0's | T57: 0's | U57: $0s | V57: 0's | W57: interruptions/customer | X57: interruptions/customer | Z57: Number of spans | AC57: number | AD57: number | AJ57: Distribution substation | AK57: Planned
B58: PTRM | C58: POST TAX REVENUE MODEL | E58: =LEFT(dms_MultiYear_FinalYear_Result,2)&RIGHT(dms_MultiYear_FinalYear_Result,2) -> 2022 | F58: =LEFT(dms_MultiYear_FinalYear_Result,2)&RIGHT(dms_MultiYear_FinalYear_Result,2) | N58: Line rebuild over existing route - dual circuit | O58: Number | P58: total spend $0s | Q58: total spend $0s | R58: total spend $0s | S58: total spend $0s | T58: (per cent) | Z58: Number of spans | AC58: number | AD58: (per cent) | AJ58: HV | AK58: Network business
B59: Reset | C59: REGULATORY REPORTING STATEMENT | E59: =LEFT(dms_MultiYear_FinalYear_Result,2)&RIGHT(dms_MultiYear_FinalYear_Result,2) -> 2022 | F59: =LEFT(dms_MultiYear_FinalYear_Result,2)&RIGHT(dms_MultiYear_FinalYear_Result,2) | H59: Formula errors are OK | N59: Reconductor - Single circuit | O59: Number | P59: net circuit km added | Q59: net circuit km added | R59: net circuit km added | S59: net circuit km added | Z59: Years | AC59: number | AJ59: Zone substation | AK59: Third party
B60: RFM | C60: ROLL FORWARD MODEL | E60: =LEFT(dms_CRCP_FinalYear_Result,2)&RIGHT(dms_CRCP_FinalYear_Result,2) -> 2017 | F60: =LEFT(dms_CRCP_FinalYear_Result,2)&RIGHT(dms_CRCP_FinalYear_Result,2) | N60: Reconductor - Dual circuit | O60: Number | P60: total spend $0s | Q60: total spend $0s | R60: total spend $0s | S60: total spend $0s | Z60: Years | AC60: number | AJ60: Subtransmission | AK60: Unknown
B61: WACC | C61: WEIGHTED AVERAGE COST OF CAPITAL | E61: =LEFT(dms_MultiYear_FinalYear_Result,2)&RIGHT(dms_MultiYear_FinalYear_Result,2) -> 2022 | F61: =LEFT(dms_MultiYear_FinalYear_Result,2)&RIGHT(dms_MultiYear_FinalYear_Result,2) | N61: Other | P61: net circuit km added | Q61: net circuit km added | R61: net circuit km added | S61: net circuit km added | Z61: Trees | AC61: number | AI61: Other | AJ61: insert description of 'other' | AK61: Vegetation
P62: total spend $0s | Q62: total spend $0s | R62: total spend $0s | S62: total spend $0s | Z62: Trees | AC62: number | AI62: Overloads | AJ62: - | AK62: Weather
B63: dms_DataQuality_List | P63: 0's | R63: $0s | Z63: Defects | AC63: number | AI63: Planned | AJ63: - | AK63: 2 - STPIS Exclusion (3.3)(a)
B64: Actual | P64: 0's | Z64: Defects | AC64: number | AI64: Network business | AJ64: Network error | AK64: 3 - STPIS Exclusion (3.3)(a)
B65: Estimate | P65: 0's | Z65: Spans | AC65: number | AJ65: Switching and protection error | AK65: 4 - STPIS Exclusion (3.3)(a)
B66: Consolidated | P66: $0s | Z66: km | AC66: (per cent) | AI66: Third party | AJ66: Fire | AK66: 5 - STPIS Exclusion (3.3)(a)
B67: Recast | Z67: Spans | AC67: (per cent) | AJ67: Other | AK67: 6 - STPIS Exclusion (3.3)(a)
B68: Public | AJ68: Dig-in | AK68: 7 - STPIS Exclusion (3.3)(a)
AJ69: Unauthorised access
B70: For all files either AER or business needs to be able to specify the type of submission | C70: For PTRM & RFM templates we must provide a choice in case they change their form of control - otherwise it is drawn from the business specific lookup table above. | O70: For PTRM files - this field set the text for the named range "DMS_Xfactor" which in all cases is simply the text "x factors" - this saves putting in each old gas PTRM file | W70: for TNSP only | AJ70: Vehicle impact
B71: dms_SourceList | C71: dms_FormControl_Choices | O71: DMS_Xfactor | W71: dms_030601_01_UOM | Y71: dms_030701_01_UOM | Z71: dms_030702_01_UOM | AI71: Unknown | AJ71: Unknown
B72: After appeal | C72: Revenue cap | O72: x factors | W72: % | Y72: Number of spans | Z72: km | AI72: Vegetation | AJ72: Blow-in/Fall-in - NSP responsibility
B73: Draft decision | C73: Revenue yield | W73: number | Y73: Years | Z73: % | AJ73: Grow-in - NSP responsibility
B74: Final decision | C74: Weighted average price cap | W74: number | Y74: Trees | Z74: km | AJ74: Blow-in/Fall-in - Other responsible party
B75: PTRM update 1 | W75: % | Y75: Defects | Z75: number | AJ75: Grow-in - Other responsible party
B76: PTRM update 2 | W76: number | Y76: Number of spans | AI76: Weather
B77: PTRM update 3 | W77: number | Y77: km | AI77: 2 - STPIS Exclusion (3.3)(a)
B78: PTRM update 4 | W78: % | Y78: km | AI78: 3 - STPIS Exclusion (3.3)(a)
B79: PTRM update 5 | W79: number | Y79: Number of spans | AI79: 4 - STPIS Exclusion (3.3)(a)
B80: PTRM update 6 | W80: number | AI80: 5 - STPIS Exclusion (3.3)(a)
B81: PTRM update 7 | W81: % | AI81: 6 - STPIS Exclusion (3.3)(a)
B82: Regulatory proposal | W82: number | AI82: 7 - STPIS Exclusion (3.3)(a)
B83: Reporting | W83: %
B84: Revised regulatory proposal | W84: number
W85: %
W86: number
B90: These are indeces and lookup values for various dates. All step from the value placed in FRCP_y1 on the business and other details worksheet | L90: These date tables are currently used in the Recast templates to provide column headings and conditional formatting
B91: dms_FRCPlength_Num_List | C91: dms_FinalYear_List | D91: dms_CRCPlength_Num_List | E91: dms_CFinalYear_List | F91: dms_FRCP_years | H91: dms_CRCP_years | J91: dms_CRCP_index | L91: CRY from input cell on business sheet | M91: CRY - financial | N91: dms_FinYears | O91: CRY calendar | P91: dms_CalYears
B92: 1 | C92: dms_FRCP_y1 | D92: 1 | E92: CRCP_y1 | F92: =FRCP_y1 -> 2017-18 | G92: dms_FRCP_y1 | H92: =IF(dms_RPT="financial",VALUE(LEFT(dms_FRCP_y1,4)-1)&"-"&TEXT(VALUE(MID(dms_FRCP_y1,3,2)),"00"),VALUE(LEFT(dms_FRCP_y1,4)-1)) -> 2016-17 | I92: dms_CRCP_yZ | J92: 1 | L92: =CRY -> 2016-17 | M92: =VALUE(LEFT(CRY,4))&"-"&TEXT(MID(CRY,3,2)+1,"00") -> 2016-17 | N92: dms_CRYf_y1 | O92: =VALUE(LEFT(CRY,4)+1) -> 2017 | P92: dms_CRYc_y1
B93: 2 | C93: dms_FRCP_y2 | D93: 2 | E93: CRCP_y2 | F93: =IF(dms_RPT="financial",VALUE(LEFT(dms_FRCP_y1,4)+1)&"-"&TEXT(VALUE(RIGHT(dms_FRCP_y1,2)+1),"00"),VALUE(LEFT(dms_FRCP_y1,4)+1)) -> 2018-19 | G93: dms_FRCP_y2 | H93: =IF(dms_RPT="financial",VALUE(LEFT(dms_CRCP_yZ,4)-1)&"-"&TEXT(VALUE(MID(dms_CRCP_yZ,3,2)),"00"),VALUE(LEFT(dms_CRCP_yZ,4)-1)) -> 2015-16 | I93: dms_CRCP_yY | J93: 2 | M93: =VALUE(LEFT(dms_CRYf_y1,4)+1)&"-"&TEXT(MID(dms_CRYf_y1,3,2)+2,"00") -> 2017-18 | N93: dms_CRYf_y2 | O93: =VALUE(LEFT(dms_CRYc_y1,4)+1) -> 2018 | P93: dms_CRYc_y2
B94: 3 | C94: dms_FRCP_y3 | D94: 3 | E94: CRCP_y3 | F94: =IF(dms_RPT="financial",VALUE(LEFT(dms_FRCP_y2,4)+1)&"-"&TEXT(VALUE(RIGHT(dms_FRCP_y2,2)+1),"00"),VALUE(LEFT(dms_FRCP_y2,4)+1)) -> 2019-20 | G94: dms_FRCP_y3 | H94: =IF(dms_RPT="financial",VALUE(LEFT(dms_CRCP_yY,4)-1)&"-"&TEXT(VALUE(MID(dms_CRCP_yY,3,2)),"00"),VALUE(LEFT(dms_CRCP_yY,4)-1)) -> 2014-15 | I94: dms_CRCP_yX | J94: 3 | M94: =VALUE(LEFT(dms_CRYf_y2,4)+1)&"-"&TEXT(MID(dms_CRYf_y2,3,2)+2,"00") -> 2018-19 | N94: dms_CRYf_y3 | O94: =VALUE(LEFT(dms_CRYc_y2,4)+1) -> 2019 | P94: dms_CRYc_y3
B95: 4 | C95: dms_FRCP_y4 | D95: 4 | E95: CRCP_y4 | F95: =IF(dms_RPT="financial",VALUE(LEFT(dms_FRCP_y3,4)+1)&"-"&TEXT(VALUE(RIGHT(dms_FRCP_y3,2)+1),"00"),VALUE(LEFT(dms_FRCP_y3,4)+1)) -> 2020-21 | G95: dms_FRCP_y4 | H95: =IF(dms_RPT="financial",VALUE(LEFT(dms_CRCP_yX,4)-1)&"-"&TEXT(VALUE(MID(dms_CRCP_yX,3,2)),"00"),VALUE(LEFT(dms_CRCP_yX,4)-1)) -> 2013-14 | I95: dms_CRCP_yW | J95: 4 | M95: =VALUE(LEFT(dms_CRYf_y3,4)+1)&"-"&TEXT(MID(dms_CRYf_y3,3,2)+2,"00") -> 2019-20 | N95: dms_CRYf_y4 | O95: =VALUE(LEFT(dms_CRYc_y3,4)+1) -> 2020 | P95: dms_CRYc_y4
B96: 5 | C96: dms_FRCP_y5 | D96: 5 | E96: CRCP_y5 | F96: =IF(dms_RPT="financial",VALUE(LEFT(dms_FRCP_y4,4)+1)&"-"&TEXT(VALUE(RIGHT(dms_FRCP_y4,2)+1),"00"),VALUE(LEFT(dms_FRCP_y4,4)+1)) -> 2021-22 | G96: dms_FRCP_y5 | H96: =IF(dms_RPT="financial",VALUE(LEFT(dms_CRCP_yW,4)-1)&"-"&TEXT(VALUE(MID(dms_CRCP_yW,3,2)),"00"),VALUE(LEFT(dms_CRCP_yW,4)-1)) -> 2012-13 | I96: dms_CRCP_yV | J96: 5 | M96: =VALUE(LEFT(dms_CRYf_y4,4)+1)&"-"&TEXT(MID(dms_CRYf_y4,3,2)+2,"00") -> 2020-21 | N96: dms_CRYf_y5 | O96: =VALUE(LEFT(dms_CRYc_y4,4)+1) -> 2021 | P96: dms_CRYc_y5
B97: 6 | C97: dms_FRCP_y6 | D97: 6 | E97: CRCP_y6 | F97: =IF(dms_RPT="financial",VALUE(LEFT(dms_FRCP_y5,4)+1)&"-"&TEXT(VALUE(RIGHT(dms_FRCP_y5,2)+1),"00"),VALUE(LEFT(dms_FRCP_y5,4)+1)) -> 2022-23 | G97: dms_FRCP_y6 | H97: =IF(dms_RPT="financial",VALUE(LEFT(dms_CRCP_yV,4)-1)&"-"&TEXT(VALUE(MID(dms_CRCP_yV,3,2)),"00"),VALUE(LEFT(dms_CRCP_yV,4)-1)) -> 2011-12 | I97: dms_CRCP_yU | J97: 6 | M97: =VALUE(LEFT(dms_CRYf_y5,4)+1)&"-"&TEXT(MID(dms_CRYf_y5,3,2)+2,"00") -> 2021-22 | N97: dms_CRYf_y6 | O97: =VALUE(LEFT(dms_CRYc_y5,4)+1) -> 2022 | P97: dms_CRYc_y6
B98: 7 | C98: dms_FRCP_y7 | D98: 7 | E98: CRCP_y7 | F98: =IF(dms_RPT="financial",VALUE(LEFT(dms_FRCP_y6,4)+1)&"-"&TEXT(VALUE(RIGHT(dms_FRCP_y6,2)+1),"00"),VALUE(LEFT(dms_FRCP_y6,4)+1)) -> 2023-24 | G98: dms_FRCP_y7 | H98: =IF(dms_RPT="financial",VALUE(LEFT(dms_CRCP_yU,4)-1)&"-"&TEXT(VALUE(MID(dms_CRCP_yU,3,2)),"00"),VALUE(LEFT(dms_CRCP_yU,4)-1)) -> 2010-11 | I98: dms_CRCP_yT | J98: 7 | M98: =VALUE(LEFT(dms_CRYf_y6,4)+1)&"-"&TEXT(MID(dms_CRYf_y6,3,2)+2,"00") -> 2022-23 | N98: dms_CRYf_y7 | O98: =VALUE(LEFT(dms_CRYc_y6,4)+1) -> 2023 | P98: dms_CRYc_y7
B99: 8 | C99: dms_FRCP_y8 | D99: 8 | E99: CRCP_y8 | F99: =IF(dms_RPT="financial",VALUE(LEFT(dms_FRCP_y7,4)+1)&"-"&TEXT(VALUE(RIGHT(dms_FRCP_y7,2)+1),"00"),VALUE(LEFT(dms_FRCP_y7,4)+1)) -> 2024-25 | G99: dms_FRCP_y8 | H99: =IF(dms_RPT="financial",VALUE(LEFT(dms_CRCP_yT,4)-1)&"-"&TEXT(VALUE(MID(dms_CRCP_yT,3,2)),"00"),VALUE(LEFT(dms_CRCP_yT,4)-1)) -> 2009-10 | I99: dms_CRCP_yS | J99: 8 | M99: =VALUE(LEFT(dms_CRYf_y7,4)+1)&"-"&TEXT(MID(dms_CRYf_y7,3,2)+2,"00") -> 2023-24 | N99: dms_CRYf_y8 | O99: =VALUE(LEFT(dms_CRYc_y7,4)+1) -> 2024 | P99: dms_CRYc_y8
B100: 9 | C100: dms_FRCP_y9 | D100: 9 | E100: CRCP_y9 | F100: =IF(dms_RPT="financial",VALUE(LEFT(dms_FRCP_y8,4)+1)&"-"&TEXT(VALUE(RIGHT(dms_FRCP_y8,2)+1),"00"),VALUE(LEFT(dms_FRCP_y8,4)+1)) -> 2025-26 | G100: dms_FRCP_y9 | H100: =IF(dms_RPT="financial",VALUE(LEFT(dms_CRCP_yS,4)-1)&"-"&TEXT(VALUE(MID(dms_CRCP_yS,3,2)),"00"),VALUE(LEFT(dms_CRCP_yS,4)-1)) -> 2008-09 | I100: dms_CRCP_yR | J100: 9 | M100: =VALUE(LEFT(dms_CRYf_y8,4)+1)&"-"&TEXT(MID(dms_CRYf_y8,3,2)+2,"00") -> 2024-25 | N100: dms_CRYf_y9 | O100: =VALUE(LEFT(dms_CRYc_y8,4)+1) -> 2025 | P100: dms_CRYc_y9
B101: 10 | C101: dms_FRCP_y10 | D101: 10 | E101: CRCP_y10 | F101: =IF(dms_RPT="financial",VALUE(LEFT(dms_FRCP_y9,4)+1)&"-"&TEXT(VALUE(RIGHT(dms_FRCP_y9,2)+1),"00"),VALUE(LEFT(dms_FRCP_y9,4)+1)) -> 2026-27 | G101: dms_FRCP_y10 | H101: =IF(dms_RPT="financial",VALUE(LEFT(dms_CRCP_yR,4)-1)&"-"&TEXT(VALUE(MID(dms_CRCP_yR,3,2)),"00"),VALUE(LEFT(dms_CRCP_yR,4)-1)) -> 2007-08 | I101: dms_CRCP_yQ | J101: 10 | M101: =VALUE(LEFT(dms_CRYf_y9,4)+1)&"-"&TEXT(MID(dms_CRYf_y9,3,2)+2,"00") -> 2025-26 | N101: dms_CRYf_y10 | O101: =VALUE(LEFT(dms_CRYc_y9,4)+1) -> 2026 | P101: dms_CRYc_y10
B102: 11 | C102: dms_FRCP_y11 | D102: 11 | E102: CRCP_y11 | F102: =IF(dms_RPT="financial",VALUE(LEFT(dms_FRCP_y10,4)+1)&"-"&TEXT(VALUE(RIGHT(dms_FRCP_y10,2)+1),"00"),VALUE(LEFT(dms_FRCP_y10,4)+1)) -> 2027-28 | G102: dms_FRCP_y11 | H102: =IF(dms_RPT="financial",VALUE(LEFT(dms_CRCP_yQ,4)-1)&"-"&TEXT(VALUE(MID(dms_CRCP_yQ,3,2)),"00"),VALUE(LEFT(dms_CRCP_yQ,4)-1)) -> 2006-07 | I102: dms_CRCP_yP | J102: 11 | M102: =VALUE(LEFT(dms_CRYf_y10,4)+1)&"-"&TEXT(MID(dms_CRYf_y10,3,2)+2,"00") -> 2026-27 | N102: dms_CRYf_y11 | O102: =VALUE(LEFT(dms_CRYc_y10,4)+1) -> 2027 | P102: dms_CRYc_y11
B103: 12 | C103: dms_FRCP_y12 | D103: 12 | E103: CRCP_y12 | F103: =IF(dms_RPT="financial",VALUE(LEFT(dms_FRCP_y11,4)+1)&"-"&TEXT(VALUE(RIGHT(dms_FRCP_y11,2)+1),"00"),VALUE(LEFT(dms_FRCP_y11,4)+1)) -> 2028-29 | G103: dms_FRCP_y12 | H103: =IF(dms_RPT="financial",VALUE(LEFT(dms_CRCP_yP,4)-1)&"-"&TEXT(VALUE(MID(dms_CRCP_yP,3,2)),"00"),VALUE(LEFT(dms_CRCP_yP,4)-1)) -> 2005-06 | I103: dms_CRCP_yO | J103: 12 | M103: =VALUE(LEFT(dms_CRYf_y11,4)+1)&"-"&TEXT(MID(dms_CRYf_y11,3,2)+2,"00") -> 2027-28 | N103: dms_CRYf_y12 | O103: =VALUE(LEFT(dms_CRYc_y11,4)+1) -> 2028 | P103: dms_CRYc_y12
B104: 13 | C104: dms_FRCP_y13 | D104: 13 | E104: CRCP_y13 | F104: =IF(dms_RPT="financial",VALUE(LEFT(dms_FRCP_y12,4)+1)&"-"&TEXT(VALUE(RIGHT(dms_FRCP_y12,2)+1),"00"),VALUE(LEFT(dms_FRCP_y12,4)+1)) -> 2029-30 | G104: dms_FRCP_y13 | H104: =IF(dms_RPT="financial",VALUE(LEFT(dms_CRCP_yO,4)-1)&"-"&TEXT(VALUE(MID(dms_CRCP_yO,3,2)),"00"),VALUE(LEFT(dms_CRCP_yO,4)-1)) -> 2004-05 | I104: dms_CRCP_yN | J104: 13 | M104: =VALUE(LEFT(dms_CRYf_y12,4)+1)&"-"&TEXT(MID(dms_CRYf_y12,3,2)+2,"00") -> 2028-29 | N104: dms_CRYf_y13 | O104: =VALUE(LEFT(dms_CRYc_y12,4)+1) -> 2029 | P104: dms_CRYc_y13
B105: 14 | C105: dms_FRCP_y14 | D105: 14 | E105: CRCP_y14 | F105: =IF(dms_RPT="financial",VALUE(LEFT(dms_FRCP_y13,4)+1)&"-"&TEXT(VALUE(RIGHT(dms_FRCP_y13,2)+1),"00"),VALUE(LEFT(dms_FRCP_y13,4)+1)) -> 2030-31 | G105: dms_FRCP_y14 | H105: =IF(dms_RPT="financial",VALUE(LEFT(dms_CRCP_yN,4)-1)&"-"&TEXT(VALUE(MID(dms_CRCP_yN,3,2)),"00"),VALUE(LEFT(dms_CRCP_yN,4)-1)) -> 2003-04 | I105: dms_CRCP_yM | J105: 14 | M105: =VALUE(LEFT(dms_CRYf_y13,4)+1)&"-"&TEXT(MID(dms_CRYf_y13,3,2)+2,"00") -> 2029-30 | N105: dms_CRYf_y14 | O105: =VALUE(LEFT(dms_CRYc_y13,4)+1) -> 2030 | P105: dms_CRYc_y14
B106: 15 | C106: dms_FRCP_y15 | D106: 15 | E106: CRCP_y15 | F106: =IF(dms_RPT="financial",VALUE(LEFT(dms_FRCP_y14,4)+1)&"-"&TEXT(VALUE(RIGHT(dms_FRCP_y14,2)+1),"00"),VALUE(LEFT(dms_FRCP_y14,4)+1)) -> 2031-32 | G106: dms_FRCP_y15 | H106: =IF(dms_RPT="financial",VALUE(LEFT(dms_CRCP_yM,4)-1)&"-"&TEXT(VALUE(MID(dms_CRCP_yM,3,2)),"00"),VALUE(LEFT(dms_CRCP_yM,4)-1)) -> 2002-03 | I106: dms_CRCP_yL | J106: 15 | M106: =VALUE(LEFT(dms_CRYf_y14,4)+1)&"-"&TEXT(MID(dms_CRYf_y14,3,2)+2,"00") -> 2030-31 | N106: dms_CRYf_y15 | O106: =VALUE(LEFT(dms_CRYc_y14,4)+1) -> 2031 | P106: dms_CRYc_y15
M107: =VALUE(LEFT(dms_CRYf_y15,4)+1)&"-"&TEXT(MID(dms_CRYf_y15,3,2)+2,"00") -> 2031-32 | N107: dms_CRYf_y16 | O107: =VALUE(LEFT(dms_CRYc_y15,4)+1) -> 2032 | P107: dms_CRYc_y16
B108: These are drop down lists for businesses to select the correct FRCP_y1 on the business and other details worksheet. This also populates the column headings in the worksheets | M108: =VALUE(LEFT(dms_CRYf_y16,4)+1)&"-"&TEXT(MID(dms_CRYf_y16,3,2)+2,"00") -> 2032-33 | N108: dms_CRYf_y17 | O108: =VALUE(LEFT(dms_CRYc_y16,4)+1) -> 2033 | P108: dms_CRYc_y17
B109: dms_RCP_fyear_list | C109: dms_CRY_ListF | D109: dms_CRY_ListC | E109: dms_RCP_cyear_list | F109: dms_FRCP_fyear_list | G109: dms_FRCP_ListF | H109: dms_FRCP_ListC | I109: dms_FRCP_cyear_list | M109: =VALUE(LEFT(dms_CRYf_y17,4)+1)&"-"&TEXT(MID(dms_CRYf_y17,3,2)+2,"00") -> 2033-34 | N109: dms_CRYf_y18 | O109: =VALUE(LEFT(dms_CRYc_y17,4)+1) -> 2034 | P109: dms_CRYc_y18
B110: dms_fy1 | C110: 2006-07 | D110: 2007 | E110: dms_cy1 | F110: dms_frcp_fy1 | G110: 2015-16 | H110: 2016 | I110: dms_crcp_cy1 | M110: =VALUE(LEFT(dms_CRYf_y18,4)+1)&"-"&TEXT(MID(dms_CRYf_y18,3,2)+2,"00") -> 2034-35 | N110: dms_CRYf_y19 | O110: =VALUE(LEFT(dms_CRYc_y18,4)+1) -> 2035 | P110: dms_CRYc_y19
B111: dms_fy2 | C111: 2007-08 | D111: 2008 | E111: dms_cy2 | F111: dms_frcp_fy2 | G111: 2016-17 | H111: 2017 | I111: dms_crcp_cy2 | M111: =VALUE(LEFT(dms_CRYf_y19,4)+1)&"-"&TEXT(MID(dms_CRYf_y19,3,2)+2,"00") -> 2035-36 | N111: dms_CRYf_y20 | O111: =VALUE(LEFT(dms_CRYc_y19,4)+1) -> 2036 | P111: dms_CRYc_y20
B112: dms_fy3 | C112: 2008-09 | D112: 2009 | E112: dms_cy3 | F112: dms_frcp_fy3 | G112: 2017-18 | H112: 2018 | I112: dms_crcp_cy3
B113: dms_fy4 | C113: 2009-10 | D113: 2010 | E113: dms_cy4 | F113: dms_frcp_fy4 | G113: 2018-19 | H113: 2019 | I113: dms_crcp_cy4
B114: dms_fy5 | C114: 2010-11 | D114: 2011 | E114: dms_cy5 | F114: dms_frcp_fy5 | G114: 2019-20 | H114: 2020 | I114: dms_crcp_cy5
B115: dms_fy6 | C115: 2011-12 | D115: 2012 | E115: dms_cy6 | F115: dms_frcp_fy6 | G115: 2020-21 | H115: 2021 | I115: dms_crcp_cy6
B116: dms_fy7 | C116: 2012-13 | D116: 2013 | E116: dms_cy7 | F116: dms_frcp_fy7 | G116: 2021-22 | H116: 2022 | I116: dms_crcp_cy7
B117: dms_fy8 | C117: 2013-14 | D117: 2014 | E117: dms_cy8 | F117: dms_frcp_fy8 | G117: 2022-23 | H117: 2023 | I117: dms_crcp_cy8 | L117: 2005-06 | M117: 2006
B118: dms_fy9 | C118: 2014-15 | D118: 2015 | E118: dms_cy9 | F118: dms_frcp_fy9 | G118: 2023-24 | H118: 2024 | I118: dms_crcp_cy9 | L118: 2006-07 | M118: 2007
B119: dms_fy10 | C119: 2015-16 | D119: 2016 | E119: dms_cy10 | F119: dms_frcp_fy10 | G119: 2024-25 | H119: 2025 | I119: dms_crcp_cy10 | L119: 2007-08 | M119: 2008
B120: dms_fy11 | C120: 2016-17 | D120: 2017 | E120: dms_cy11 | F120: dms_frcp_fy11 | G120: 2025-26 | H120: 2026 | I120: dms_crcp_cy11 | L120: 2008-09 | M120: 2009
B121: dms_fy12 | C121: 2017-18 | D121: 2018 | E121: dms_cy12 | F121: dms_frcp_fy12 | G121: 2026-27 | H121: 2027 | I121: dms_crcp_cy12 | L121: 2009-10 | M121: 2010
B122: dms_fy13 | C122: 2018-19 | D122: 2019 | E122: dms_cy13 | F122: dms_frcp_fy13 | G122: 2027-28 | H122: 2028 | I122: dms_crcp_cy13 | L122: 2010-11 | M122: 2011
B123: dms_fy14 | C123: 2019-20 | D123: 2020 | E123: dms_cy14 | F123: dms_frcp_fy14 | G123: 2028-29 | H123: 2029 | I123: dms_crcp_cy14 | L123: 2011-12 | M123: 2012
B124: dms_fy15 | C124: 2019-20 | D124: 2020 | E124: dms_cy15 | F124: dms_frcp_fy15 | G124: 2029-30 | H124: 2030 | I124: dms_crcp_cy15 | L124: 2012-13 | M124: 2013
B125: dms_fy16 | C125: 2020-21 | D125: 2021 | E125: dms_cy16 | L125: 2013-14 | M125: 2014
B126: dms_fy17 | C126: 2021-22 | D126: 2022 | E126: dms_cy17 | L126: 2014-15 | M126: 2015
B127: dms_fy18 | C127: 2022-23 | D127: 2023 | E127: dms_cy18 | L127: 2015-16 | M127: 2016
B128: dms_fy19 | C128: 2023-24 | D128: 2024 | E128: dms_cy19 | L128: 2016-17 | M128: 2017
B129: dms_fy20 | C129: 2024-25 | D129: 2025 | E129: dms_cy20 | L129: 2017-18 | M129: 2018
L130: 2018-19 | M130: 2019
L131: 2019-20 | M131: 2020
L132: 2020-21 | M132: 2021
L133: 2021-22 | M133: 2022
L134: 2022-23 | M134: 2023
L135: 2023-24 | M135: 2024
L136: 2024-25 | M136: 2025
L137: 2025-26 | M137: 2026
L138: 2026-27 | M138: 2027
L139: 2027-28 | M139: 2028
L140: 2028-29 | M140: 2029
L141: 2029-30 | M141: 2030
L142: 2030-31 | M142: 2031
L143: 2031-32 | M143: 2032
L144: 2032-33 | M144: 2033
L145: 2033-34 | M145: 2034
L146: 2034-35 | M146: 2035
L147: 2035-36 | M147: 2036

Sheet Instructions
B2: =CONCATENATE(dms_Segment," Network Service Provider") -> Distribution Network Service Provider
B3: Annual Reporting RIN Template
C4: =CONCATENATE("This template is to be used by ",dms_TradingName," to fulfil its reporting obligations to the AER.") -> This template is to be used by Endeavour Energy to fulfil its reporting obligations to the AER.
C5: INSTRUCTIONS
C6: Complete the Business & other details worksheet before entering data or values in any other worksheets. The Business & other details worksheet is linked to other worksheets within the workbook and automatically generates certain column headings and conditional formatting.
C8: Identifying CONFIDENTIAL INFORMATION: Please use the macro at the top of each worksheet to identify confidential information.
C9: -Do this by selecting the cell or cells that contain confidential information and then run the Mark selection as CONFIDENTIAL macro. This will format the cells a specific colour that is identified by the AER's database which in turn marks that information as confidential. -To reverse this, select the cell or cells and run the Return selection to NON-CONFIDENTIAL macro
C11: UNITS OF MEASURE All amounts are to be unrounded and reported in nominal terms on a one for one basis: that is 1000 is to be entered as '1000'.
C13: COLOUR CODING OF INPUT / NON-INPUT CELLS:
D14: Yellow = Input cell (mandatory)
D15: Darker yellow = input cell (mandatory)
D16: Orange = input cell (if data available)
D17: Grey = Not applicable/No inputs required
D18: Leave coloured cells blank if no information exists. PLEASE DO NOT ENTER TEXT into cells that are to contain numeric data.
C21: WORKSHEET NAVIGATION Many tables in the worksheets have been "grouped" to allow for easy navigation. To ungroup or group data use the outline symbols in the left margin of excel (for Row groupings) or above the columns (for column groupings).
C23: RETURNING COMPLETED RESPONSES Please return four (4) files to the AER: 1. A confidential version which must contain a complete set of all responses with confidential information marked using the Mark selected cells CONFIDENTIAL macro and which has been completed using the locked template file provided by the AER. 2. An actual and an estimate version with confidential information marked using the Mark selected cells CONFIDENTIAL macro and which has been completed using the locked template file provided by the AER. 3. A public version with confidential information either removed completely or aggregated in some form together with writtten consent to disclose the public version of the response. Use the drop down box on the Business and other details worksheet to identify the file as either confidential ('consolidated') or public.
C25: SUBMITTING AMENDED DATA TO THE AER If an NSP wishes to correct data previously submitted to the AER it should resubmit that data using the original completed submission as the starting point. Please make any necessary changes to the data. Data that is not being amended should be left unchanged. NSPs must identify the reason for the amendments in the Amendment Reason box on the Business and other details worksheet. NSPs may provide further details regarding any amendments in the Amendments worksheet. .
C26: NSP may use Amended Data macro to highlight cells that contain amended data. NB: if data is also CONFIDENTIAL, re-apply the Confidentiality macro after applying the Amended macro
C27: Please resubmit two (2) files - a confidential version and a public version of the amended submission to the AER

Sheet Contents
B1: REGULATORY REPORTING STATEMENT
B2: =INDEX(dms_TradingNameFull_List,MATCH(dms_TradingName,dms_TradingName_List)) -> Endeavour Energy
B3: =CONCATENATE((LOOKUP(dms_Model,dms_Model_List,dms_Worksheet_List))&" "&CRY) -> CATEGORY ANALYSIS 2016-17
B4: CONTENTS
E7: 1. Business details | L7: 2. Expenditure
E27: 4. Alternative control services | L27: 5. Network information | S27: 6. Service & quality

Sheet Business & other details
B1: =IF(dms_DataQuality="backcast",INDEX(dms_Worksheet_List,MATCH(dms_Model,dms_Model_List))&" BACKCAST",INDEX(dms_Worksheet_List,MATCH(dms_Model,dms_Model_List))) -> CATEGORY ANALYSIS
B2: =INDEX(dms_TradingNameFull_List,MATCH(dms_TradingName,dms_TradingName_List)) -> Endeavour Energy
B3: =CONCATENATE((LOOKUP(dms_Model,dms_Model_List,dms_Worksheet_List))&" "&CRY) -> CATEGORY ANALYSIS 2016-17
B4: BUSINESS & OTHER DETAILS
B7: Instructions
B8: Complete the following business details regulatory template before entering data or values in any other regulatory template. This regulatory template is linked to other cells within the spreadsheet and automatically generates column headings and conditional formatting to distinguish business specific input and non-input cells.
B10: SUBMISSION PARTICULARS INPUT SHEETS
B12: ENTITY DETAILS
B14: Short name | C14: Endeavour Energy | F14: Select business name from drop down list first
B15: ACN / ABN | C15: =INDEX(dms_ABN_List,MATCH(dms_TradingName,dms_TradingName_List)) -> 59253130878
B18: Business address | C18: Address 1 | E18: =INDEX(dms_Addr1_List,MATCH(dms_TradingName,dms_TradingName_List)) -> 51 Huntingwood Drive
D19: Address 2 | E19: =IF(ISBLANK(INDEX(dms_Addr2_List,MATCH(dms_TradingName,dms_TradingName_List))),"",INDEX(dms_Addr2_List,MATCH(dms_TradingName,dms_TradingName_List))) -> 
C20: Suburb | E20: =INDEX(dms_Suburb_List,MATCH(dms_TradingName,dms_TradingName_List)) -> HUNTINGWOOD
D21: State | E21: =INDEX(dms_State_List,MATCH(dms_TradingName,dms_TradingName_List)) -> NSW | F21: p/code | G21: =INDEX(dms_PostCode_List,MATCH(dms_TradingName,dms_TradingName_List)) -> 2148
B23: Postal address | C23: Address 1 | E23: =INDEX(dms_PAddr1_List,MATCH(dms_TradingName,dms_TradingName_List)) -> PO Box 811
D24: Address 2 | E24: =IF(ISBLANK(INDEX(dms_PAddr2_List,MATCH(dms_TradingName,dms_TradingName_List))),"",INDEX(dms_PAddr2_List,MATCH(dms_TradingName,dms_TradingName_List))) -> 
C25: Suburb | E25: =INDEX(dms_PSuburb_List,MATCH(dms_TradingName,dms_TradingName_List)) -> SEVEN HILLS
D26: State | E26: =INDEX(dms_PState_List,MATCH(dms_TradingName,dms_TradingName_List)) -> NSW | F26: p/code | G26: =INDEX(dms_PPostCode_List,MATCH(dms_TradingName,dms_TradingName_List)) -> 1730
B29: Contact name/s | C29: Fiona Place
B30: Contact phone/s | C30: 02 9853 6302
B31: Contact email address/s | C31: EndeavourEnergyRIN@endeavourenergy.com.au
B33: REGULATORY CONTROL PERIODS
B35: Forthcoming regulatory control period | C35: 2017-18 | D35: =dms_FRCP_y2 -> 2018-19 | E35: =dms_FRCP_y3 -> 2019-20 | F35: =dms_FRCP_y4 -> 2020-21 | G35: =dms_FRCP_y5 -> 2021-22 | H35: =dms_FRCP_y6 -> 2022-23 | I35: =dms_FRCP_y7 -> 2023-24 | J35: =dms_FRCP_y8 -> 2024-25 | K35: =dms_FRCP_y9 -> 2025-26 | L35: =dms_FRCP_y10 -> 2026-27
B38: Current regulatory control period | C38: =dms_CRCP_FirstYear_Result -> 2012-13 | D38: =IF(dms_RPT="financial",VALUE(LEFT(CRCP_y1,4)+1)&"-"&TEXT(MID(CRCP_y1,3,2)+2,"00"),VALUE(LEFT(CRCP_y1,4)+1)) -> 2013-14 | E38: =IF(dms_RPT="financial",VALUE(LEFT(CRCP_y2,4)+1)&"-"&TEXT(VALUE(MID(CRCP_y2,3,2)+2),"00"),VALUE(LEFT(CRCP_y2,4)+1)) -> 2014-15 | F38: =IF(dms_RPT="financial",VALUE(LEFT(CRCP_y3,4)+1)&"-"&TEXT(VALUE(MID(CRCP_y3,3,2)+2),"00"),VALUE(LEFT(CRCP_y3,4)+1)) -> 2015-16 | G38: =IF(dms_RPT="financial",VALUE(LEFT(CRCP_y4,4)+1)&"-"&TEXT(VALUE(MID(CRCP_y4,3,2)+2),"00"),VALUE(LEFT(CRCP_y4,4)+1)) -> 2016-17 | H38: =IF(dms_RPT="financial",VALUE(LEFT(CRCP_y5,4)+1)&"-"&TEXT(VALUE(MID(CRCP_y5,3,2)+2),"00"),VALUE(LEFT(CRCP_y5,4)+1)) -> 2017-18 | I38: =IF(dms_RPT="financial",VALUE(LEFT(CRCP_y6,4)+1)&"-"&TEXT(VALUE(MID(CRCP_y6,3,2)+2),"00"),VALUE(LEFT(CRCP_y6,4)+1)) -> 2018-19 | J38: =IF(dms_RPT="financial",VALUE(LEFT(CRCP_y7,4)+1)&"-"&TEXT(VALUE(MID(CRCP_y7,3,2)+2),"00"),VALUE(LEFT(CRCP_y7,4)+1)) -> 2019-20 | K38: =IF(dms_RPT="financial",VALUE(LEFT(CRCP_y8,4)+1)&"-"&TEXT(VALUE(MID(CRCP_y8,3,2)+2),"00"),VALUE(LEFT(CRCP_y8,4)+1)) -> 2020-21 | L38: =IF(dms_RPT="financial",VALUE(LEFT(CRCP_y9,4)+1)&"-"&TEXT(VALUE(MID(CRCP_y9,3,2)+2),"00"),VALUE(LEFT(CRCP_y9,4)+1)) -> 2021-22
B41: Previous regulatory control period | C41: =IF(dms_RPT="financial",VALUE(LEFT(PRCP_y2,4)-1)&"-"&TEXT(VALUE(MID(PRCP_y2,3,2)),"00"),VALUE(LEFT(PRCP_y2,4)-1)) -> 2007-08 | D41: =IF(dms_RPT="financial",VALUE(LEFT(PRCP_y3,4)-1)&"-"&TEXT(VALUE(MID(PRCP_y3,3,2)),"00"),VALUE(LEFT(PRCP_y3,4)-1)) -> 2008-09 | E41: =IF(dms_RPT="financial",VALUE(LEFT(PRCP_y4,4)-1)&"-"&TEXT(VALUE(MID(PRCP_y4,3,2)),"00"),VALUE(LEFT(PRCP_y4,4)-1)) -> 2009-10 | F41: =IF(dms_RPT="financial",VALUE(LEFT(PRCP_y5,4)-1)&"-"&TEXT(VALUE(RIGHT(PRCP_y5,2)-1),"00"),VALUE(LEFT(PRCP_y5,4)-1)) -> 2010-11 | G41: =IF(dms_RPT="financial",VALUE(LEFT(CRCP_y1,4)-1)&"-"&TEXT(VALUE(RIGHT(CRCP_y1,2)-1),"00"),VALUE(LEFT(CRCP_y1,4)-1)) -> 2011-12
B44: Commencing regulatory year | C44: 2016-17 | D44: CRY
B46: Last completed regulatory year | C46: 2021-22 | D46: dms_FinalYear
C49: DELETE NR 'CRY' IF NOT AN ANNUAL RIN (EB, CA , ARR)
C50: APPLY NR 'CRY' IF AN ANNUAL RIN (EB, CA , ARR) - including multi year annual RINs eg. Recast CA. EB
B52: Source | C52: Reporting | E52: Please select the correct submission type from the dropdown list.
B53: Data quality (actual, estimate, public, consolidated) | C53: Public
B54: Amended RIN submission - amendment reason
B55: Submission Date | C55: 2017-10-31 | D55: dms_SubmissionDate | E55: Please enter date this file submitted to AER (dd/mm/yyyy)
B56: EBSS - First application of scheme in forthcoming period? | C56: No
B57: Sector | C57: =INDEX(dms_Sector_List,MATCH(dms_TradingName,dms_TradingName_List)) -> Electricity | D57: dms_Sector | E57: =INDEX(dms_Sector_List,MATCH(dms_TradingName,dms_TradingName_List))
B58: Segment | C58: =INDEX(dms_Segment_List,MATCH(dms_TradingName,dms_TradingName_List)) -> Distribution | D58: dms_Segment | E58: =INDEX(dms_Segment_List,MATCH(dms_TradingName,dms_TradingName_List))
B59: Regulatory Year Ending | C59: =IF(dms_MultiYear_Flag=1,LEFT(dms_Specified_FinalYear,2)&RIGHT(dms_Specified_FinalYear,2),INDEX(dms_RYE_Formula_Result,MATCH(dms_Model,dms_Model_List))) -> 2017 | D59: dms_RYE | E59: =IF(dms_MultiYear_Flag=1,LEFT(dms_Specified_FinalYear,2)&RIGHT(dms_Specified_FinalYear,2),INDEX(dms_RYE_Formula_Result,MATCH(dms_Model,dms_Model_List)))
B60: Reporting Period Type | C60: =INDEX(dms_RPT_List,MATCH(dms_TradingName,dms_TradingName_List)) -> Financial | D60: dms_RPT | E60: =INDEX(dms_RPT_List,MATCH(dms_TradingName,dms_TradingName_List))
B61: Model or RIN Type | C61: CA | D61: dms_Model | E61: Drop down selection
B62: Security Classification | C62: Public | D62: dms_Classification | E62: Always Public
B63: Template - version no. | C63: 5 | D63: dms_TemplateNumber
B64: Dollar $ real month | C64: =INDEX(dms_RPTMonth_List,MATCH(dms_TradingName,dms_TradingName_List)) -> June | D64: dms_RPTMonth | E64: =INDEX(dms_RPTMonth_List,MATCH(dms_TradingName,dms_TradingName_List))
B65: Dollar $ real (the last month before the FRCP_y1) | C65: =CONCATENATE(dms_RPTMonth)&" "&VALUE((LEFT(dms_CRCP_FinalYear_Result,2)&RIGHT(dms_CRCP_FinalYear_Result,2))) -> June 2017 | D65: dms_DollarReal | E65: =IF(SUM(dms_SingleYear_Model)>0,CONCATENATE(dms_RPTMonth)&" "&VALUE((LEFT(CRY,2))&RIGHT(CRY,2)),CONCATENATE(dms_RPTMonth)&" "&VALUE((LEFT(dms_CRCP_FinalYear_Result,2)&RIGHT(dms_CRCP_FinalYear_Result,2))))
B66: Form of control | C66: =INDEX(dms_FormControl_List,MATCH(dms_TradingName,dms_TradingName_List)) -> Revenue cap | D66: dms_FormControl | E66: =INDEX(dms_FormControl_List,MATCH(dms_TradingName,dms_TradingName_List))
B67: RIN response - version no. | C67: 1 | D67: dms_RINversion
B68: Jurisdiction | C68: =INDEX(dms_JurisdictionList,MATCH(dms_TradingName,dms_TradingName_List)) -> NSW | D68: dms_Jurisdiction | E68: =INDEX(dms_JurisdictionList,MATCH(dms_TradingName,dms_TradingName_List))
B69: Backcast Multiyear EB, CA or ARR? | C69: 0 | D69: dms_MultiYear_Flag | E69: 1=y, 0-n
C70: 2013 | D70: dms_Specified_FinalYear | E70: The result here is returned to dms_CRCP_FinalYear_Result if dms_MultiYear_Flag is set to 1
B71: Single Year Model T/F | C71: =IF(dms_Model="EB",1,0) -> 0 | D71: dms_EB
C72: =IF(dms_Model="CA",1,0) -> 1 | D72: dms_CA | E72: =dms_SingleYear_Model
C73: =IF(dms_Model="ARR",1,0) -> 0 | D73: dms_ARR
B74: Single Year Final Year Reference | C74: CRY | D74: dms_SingleYear_FinalYear_Ref | E74: This is the reference for EB, CA & ARR RINs
B75: Single Year Final Year Result | C75: =INDIRECT(dms_SingleYear_FinalYear_Ref) -> 2016-17 | D75: dms_SingleYear_FinalYear_Result | E75: =INDIRECT(dms_SingleYear_FinalYear_Ref) | I75: Formula errors OK
B76: FRCP length in years | C76: =INDEX(dms_FRCPlength_List,MATCH(dms_TradingName,dms_TradingName_List)) -> 5 | D76: dms_FRCPlength_Num | E76: =INDEX(dms_FRCPlength_List,MATCH(dms_TradingName,dms_TradingName_List))
B77: Multi Year Final Year Reference | C77: =INDEX(dms_FinalYear_List,MATCH(dms_FRCPlength_Num,dms_FRCPlength_Num_List)) -> dms_FRCP_y5 | D77: dms_MultiYear_FinalYear_Ref | E77: =INDEX(dms_FinalYear_List,MATCH(dms_FRCPlength_Num,dms_FRCPlength_Num_List))
B78: Multi Year Final Year Result | C78: =IF(dms_MultiYear_Flag=0,INDIRECT(dms_MultiYear_FinalYear_Ref),dms_Specified_FinalYear) -> 2021-22 | D78: dms_MultiYear_FinalYear_Result | E78: =IF(dms_MultiYear_Flag=0,INDIRECT(dms_MultiYear_FinalYear_Ref),dms_Specified_FinalYear) | I78: Formula errors OK
B79: CRCP length in years | C79: =INDEX(dms_CRCPlength_List,MATCH(dms_TradingName,dms_TradingName_List)) -> 5 | D79: dms_CRCPlength_Num | E79: =INDEX(dms_CRCPlength_List,MATCH(dms_TradingName,dms_TradingName_List))
B80: CRCP Final Year Reference | C80: =INDEX(dms_CFinalYear_List,MATCH(dms_CRCPlength_Num,dms_CRCPlength_Num_List)) -> CRCP_y5 | D80: dms_CRCP_FinalYear_Ref | E80: =INDEX(dms_CFinalYear_List,MATCH(dms_CRCPlength_Num,dms_CRCPlength_Num_List))
B81: CRCP First Year Result | C81: =INDEX(dms_CRCP_years,MATCH(dms_CRCPlength_Num,dms_CRCP_index)) -> 2012-13 | D81: dms_CRCP_FirstYear_Result | E81: =INDEX(dms_CRCP_years,MATCH(dms_CRCPlength_Num,dms_CRCP_index))
B82: CRCP Final Year Result | C82: =IF(dms_MultiYear_Flag=0,(IF(SUM(dms_SingleYear_Model)>0,CRY,dms_CRCP_yZ)),dms_Specified_FinalYear) -> 2016-17 | D82: dms_CRCP_FinalYear_Result | E82: =IF(dms_MultiYear_Flag=0,(IF(SUM(dms_SingleYear_Model)>0,CRY,dms_CRCP_yZ)),dms_Specified_FinalYear)
B83: Table 6.6.3 - Public lighting repair - no. business days | C83: =INDEX(dms_663_List,MATCH(dms_TradingName,dms_TradingName_List)) -> 5 | D83: dms_663
B84: Distribution Determination Reference | C84: =INDEX(dms_DeterminationRef_List,MATCH(dms_TradingName,dms_TradingName_List)) -> 2014-19 Distribution Determination
B85: Backcast templates only - unit of measure | C85: $0s | D85: dms_Backcast_UOM | E85: If the cover sheet is for Backcast data ensure to apply dms_Backcast_UOM named range to this field. Otherwise, do not apply this named range.
B86: EB/CA Unit of Measure for Monetary Values | C86: $0s | D86: dms_dollar_nom_UOM | E86: If the cover sheet is attached to an EB files make sure this field is set
B88: discard this record? | C88: NO | D88: dms_DISCARD | E88: If record is to be discarded from DB set this flag to YES
B90: USES NAMED RANGES FLAG | C90: yes | D90: dms_Defined_Names_Used

Sheet 2.1 Expenditure summary
B1: REGULATORY REPORTING STATEMENT
B2: =INDEX(dms_TradingNameFull_List,MATCH(dms_TradingName,dms_TradingName_List)) -> Endeavour Energy
B3: =CONCATENATE((LOOKUP(dms_Model,dms_Model_List,dms_Worksheet_List))&" "&CRY) -> CATEGORY ANALYSIS 2016-17
B4: 2.1 EXPENDITURE SUMMARY & RECONCILIATION
B6: There are SIX tables on this worksheet. Each has been grouped for ease of navigation. See the Instructions sheet on how to group or ungroup tables.
B8: 2.1.1 - STANDARD CONTROL SERVICES CAPEX
C9: EXPENDITURE ($0's)
C10: =CRY -> 2016-17
B11: Replacement expenditure | C11: 83891621.14
B12: Connections | C12: 13269832
B13: Augmentation Expenditure | C13: 27897793.09
B14: Non-network | C14: 15958149.21
B15: capitalised network overheads | C15: 24749628.35
B16: capitalised corporate overheads | C16: 14512736.68
B17: Metering | C17: 0
B18: Public Lighting | C18: 0
B26: balancing item | C26: 182818502.5
B27: capcons (included in the above) | C27: 164136466.7
B28: TOTAL GROSS CAPEX (including capcons) | C28: =+SUM(C11:C26) -> 363098263
B30: 2.1.2 - STANDARD CONTROL SERVICES OPEX
C31: EXPENDITURE ($0's)
C32: =CRY -> 2016-17
B33: Vegetation management | C33: 35962984.19
B34: Maintenance | C34: 65527278
B35: Emergency response | C35: 19987720.16
B36: Non-network | C36: 71801648.1
B37: network overheads | C37: 66844195.59
B38: corporate overheads | C38: 116760924.4
B39: Metering | C39: 0
B40: Public Lighting | C40: 0
B48: balancing item | C48: -71801648.1
B49: TOTAL OPEX | C49: =+SUM(C33:C48) -> 305083102.3
B51: 2.1.3 - ALTERNATIVE CONTROL SERVICES CAPEX
C52: EXPENDITURE ($0's)
C53: =CRY -> 2016-17
B54: Connections | C54: 0
B55: capitalised network overheads | C55: 0
B56: capitalised corporate overheads | C56: 0
B57: Metering | C57: 2069551.935
B58: Public lighting | C58: 7695340.971
B59: Fee and quoted | C59: 0
B67: balancing item | C67: 2223664.105
B68: TOTAL CAPEX | C68: =+SUM(C54:C67) -> 11988557.01
B70: 2.1.4 - ALTERNATIVE CONTROL SERVICES OPEX
C71: EXPENDITURE ($0's)
C72: =CRY -> 2016-17
B73: Connections | C73: 0
B74: network overheads | C74: 12164511.66
B75: corporate overheads | C75: 24612763.06
B76: Metering | C76: 19479747
B77: Public lighting | C77: 16914374
B78: Fee and quoted | C78: 29909516
B86: balancing item | C86: -36777274.72
B87: TOTAL OPEX | C87: =+SUM(C73:C86) -> 66303637
B89: 2.1.5 - DUAL FUNCTION ASSETS CAPEX
C90: EXPENDITURE ($0's)
C91: =CRY -> 2016-17
B92: Replacement expenditure | C92: 0
B93: Connections | C93: 0
B94: Augmentation Expenditure | C94: 0
B95: Non-network | C95: 0
B96: Capitalised network overheads | C96: 0
B97: Capitalised corporate overheads | C97: 0
B105: balancing item | C105: 0
B106: capcons (included in the above) | C106: 0
B107: TOTAL GROSS CAPEX (including capcons) | C107: =SUM(C92:C105) -> 0
B109: 2.1.6 - DUAL FUNCTION ASSETS OPEX
C110: EXPENDITURE ($0's)
C111: =CRY -> 2016-17
B112: Vegetation management | C112: 0
B113: Maintenance | C113: 0
B114: Emergency response | C114: 0
B115: Non-network | C115: 0
B116: Network overheads | C116: 0
B117: Corporate overheads | C117: 0
B125: balancing item | C125: 0
B126: TOTAL OPEX | C126: =SUM(C112:C125) -> 0

Sheet 2.2 Repex
B1: REGULATORY REPORTING STATEMENT
B2: =INDEX(dms_TradingNameFull_List,MATCH(dms_TradingName,dms_TradingName_List)) -> Endeavour Energy
B3: =CONCATENATE((LOOKUP(dms_Model,dms_Model_List,dms_Worksheet_List))&" "&CRY) -> CATEGORY ANALYSIS 2016-17
B4: 2.2 REPEX
B6: There are TWO tables on this worksheet. Each has been grouped for ease of navigation. See the Instructions sheet on how to group or ungroup tables.
B8: 2.2.1 - REPLACEMENT EXPENDITURE, VOLUMES AND ASSET FAILURES BY ASSET CATEGORY
E9: EXPENDITURE ($0's) | F9: ASSET REPLACEMENTS (0's) | G9: ASSET FAILURES (0's)
B10: ASSET GROUP | C10: ASSET CATEGORY | E10: =CRY -> 2016-17 | F10: =CRY -> 2016-17 | G10: =CRY -> 2016-17
B11: POLES BY: HIGHEST OPERATING VOLTAGE ; MATERIAL TYPE; STAKING (IF WOOD) | C11: Staking of a wooden pole | E11: 297980 | F11: 374 | G11: 0
C12: ˂ = 1 kV; Wood | E12: 2007875.464 | F12: 301 | G12: 14
C13: > 1 kV & < = 11 kV; Wood | E13: 5705630.935 | F13: 749 | G13: 16
C14: ˃ 11 kV & < = 22 kV; Wood | E14: 504593.4291 | F14: 53 | G14: 2
C15: > 22 kV & < = 66 kV; Wood | E15: 2302842.495 | F15: 121 | G15: 2
C16: > 66 kV & < = 132 kV; Wood | E16: 471405.4049 | F16: 21 | G16: 1
C17: > 132 kV; Wood | E17: 0 | F17: 0 | G17: 0
C18: ˂ = 1 kV; Concrete | E18: 186936.6261 | F18: 25 | G18: 0
C19: > 1 kV & < = 11 kV; Concrete | E19: 694239.2816 | F19: 73 | G19: 0
C20: ˃ 11 kV & < = 22 kV; Concrete | E20: 44702.23667 | F20: 4 | G20: 0
C21: > 22 kV & < = 66 kV; Concrete | E21: 312915.6567 | F21: 16 | G21: 0
C22: > 66 kV & < = 132 kV; Concrete | E22: 67730.66162 | F22: 3 | G22: 0
C23: > 132 kV; Concrete | E23: 0 | F23: 0 | G23: 0
C24: ˂ = 1 kV; Steel | E24: 106675.7921 | F24: 16 | G24: 0
C25: > 1 kV & < = 11 kV; Steel | E25: 292596.4582 | F25: 34 | G25: 0
C26: ˃ 11 kV & < = 22 kV; Steel | E26: 268213.42 | F26: 26 | G26: 0
C27: > 22 kV & < = 66 kV; Steel | E27: 483596.924 | F27: 24 | G27: 0
C28: > 66 kV & < = 132 kV; Steel | E28: 16932.66541 | F28: 1 | G28: 0
C29: > 132 kV; Steel | E29: 0 | F29: 0 | G29: 0
C30: Other | E30: 0 | F30: 0 | G30: 0
B31: POLE TOP STRUCTURES BY: HIGHEST OPERATING VOLTAGE | C31: ˂ = 1 kV | E31: 0 | F31: 0 | G31: 0
C32: > 1 kV & < = 11 kV | E32: 0 | F32: 0 | G32: 0
C33: ˃ 11 kV & < = 22 kV | E33: 0 | F33: 0 | G33: 0
C34: > 22 kV & < = 66 kV | E34: 0 | F34: 0 | G34: 0
C35: > 66 kV & < = 132 kV | E35: 0 | F35: 0 | G35: 0
C36: > 132 kV | E36: 0 | F36: 0 | G36: 0
C37: Other | E37: 0 | F37: 0 | G37: 0
B38: OVERHEAD CONDUCTORS BY: HIGHEST OPERATING VOLTAGE; NUMBER OF PHASES (AT HV) | C38: ˂ = 1 kV | E38: 3470609.912 | F38: 60.77182565 | G38: 0
C39: > 1 kV & < = 11 kV | E39: 10299067.9 | F39: 144.2727761 | G39: 0
C40: ˃ 11 kV & < = 22 kV ; SWER | E40: 67631.90613 | F40: 1.776394285 | G40: 0
C41: ˃ 11 kV & < = 22 kV ; Single-Phase | E41: 0 | F41: 0 | G41: 0
C42: ˃ 11 kV & < = 22 kV ; Multiple-Phase | E42: 0 | F42: 0 | G42: 0
C43: > 22 kV & < = 66 kV | E43: 2680101.595 | F43: 11.26312695 | G43: 0
C44: > 66 kV & < = 132 kV | E44: 1874404.519 | F44: 7.877184993 | G44: 0
C45: > 132 kV | E45: 0 | F45: 0 | G45: 0
C46: Other | E46: 0 | F46: 0 | G46: 0
B47: UNDERGROUND CABLES BY: HIGHEST OPERATING VOLTAGE | C47: ˂ = 1 kV | E47: 1565780.47 | F47: 3.655662458 | G47: 0
C48: > 1 kV & < = 11 kV | E48: 1656764.451 | F48: 3.86808478 | G48: 0
C49: > 11 kV & < = 22 kV | E49: 280388.0851 | F49: 0.6546282931 | G49: 0
C50: > 22 kV & < = 33 kV | E50: 266315.5588 | F50: 0.2072576178 | G50: 0
C51: > 33 kV & < = 66 kV | E51: 77426.27933 | F51: 0.06025628498 | G51: 0
C52: > 66 kV & < = 132 kV | E52: 563492.3759 | F52: 0.3700119859 | G52: 0
C53: > 132 kV | E53: 0 | F53: 0 | G53: 0
C54: Other | E54: 0 | F54: 0 | G54: 0
B55: SERVICE LINES BY: CONNECTION VOLTAGE; CUSTOMER TYPE; CONNECTION COMPLEXITY | C55: ˂ = 11 kV ; Residential ; Simple Type | E55: 14362477.09 | F55: 15090 | G55: 0
C56: ˂ = 11 kV ; Commercial & Industrial ; Simple Type | E56: 0 | F56: 0 | G56: 0
C57: ˂ = 11 kV ; Residential ; Complex Type | E57: 0 | F57: 0 | G57: 0
C58: ˂ = 11 kV ; Commercial & Industrial ; Complex Type | E58: 0 | F58: 0 | G58: 0
C59: ˂ = 11 kV ; Subdivision ; Complex Type | E59: 0 | F59: 0 | G59: 0
C60: > 11 kV & < = 22 kV ; Commercial & Industrial | E60: 0 | F60: 0 | G60: 0
C61: > 11 kV & < = 22 kV ; Subdivision | E61: 0 | F61: 0 | G61: 0
C62: > 22 kV & < = 33 kV ; Commercial & Industrial | E62: 0 | F62: 0 | G62: 0
C63: > 22 kV & < = 33 kV ; Subdivision | E63: 0 | F63: 0 | G63: 0
C64: > 33 kV & < = 66 kV ; Commercial & Industrial | E64: 0 | F64: 0 | G64: 0
C65: > 33 kV & < = 66 kV ; Subdivision | E65: 0 | F65: 0 | G65: 0
C66: > 66 kV & < = 132 kV ; Commercial & Industrial | E66: 0 | F66: 0 | G66: 0
C67: > 66 kV & < = 132 kV ; Subdivision | E67: 0 | F67: 0 | G67: 0
C68: > 132 kV ; Commercial & Industrial | E68: 0 | F68: 0 | G68: 0
C69: > 132 kV ; Subdivision | E69: 0 | F69: 0 | G69: 0
C70: Other | E70: 0 | F70: 0 | G70: 0
B71: TRANSFORMERS BY: MOUNTING TYPE; HIGHEST OPERATING VOLTAGE ; AMPERE RATING; NUMBER OF PHASES (AT LV) | C71: Pole Mounted ; < = 22kV ; < = 60 kVA ; Single Phase | E71: 0 | F71: 0 | G71: 0
C72: Pole Mounted ; < = 22kV ; > 60 kVA and < = 600 kVA ; Single Phase | E72: 0 | F72: 0 | G72: 0
C73: Pole Mounted ; < = 22kV ; > 600 kVA ; Single Phase | E73: 0 | F73: 0 | G73: 0
C74: Pole Mounted ; < = 22kV ; < = 60 kVA ; Multiple Phase | E74: 78094.55064 | F74: 5 | G74: 0
C75: Pole Mounted ; < = 22kV ; > 60 kVA and < = 600 kVA ; Multiple Phase | E75: 421132.0953 | F75: 13 | G75: 4
C76: Pole Mounted ; < = 22kV ; > 600 kVA ; Multiple Phase | E76: 0 | F76: 0 | G76: 0
C77: Kiosk Mounted ; < = 22kV ; < = 60 kVA ; Single Phase | E77: 0 | F77: 0 | G77: 0
C78: Kiosk Mounted ; < = 22kV ; > 60 kVA and < = 600 kVA ; Single Phase | E78: 0 | F78: 0 | G78: 0
C79: Kiosk Mounted ; < = 22kV ; > 600 kVA ; Single Phase | E79: 0 | F79: 0 | G79: 0
C80: Kiosk Mounted ; < = 22kV ; < = 60 kVA ; Multiple Phase | E80: 0 | F80: 0 | G80: 0
C81: Kiosk Mounted ; < = 22kV ; > 60 kVA and < = 600 kVA ; Multiple Phase | E81: 1040682.197 | F81: 31 | G81: 0
C82: Kiosk Mounted ; < = 22kV ; > 600 kVA ; Multiple Phase | E82: 404934.707 | F82: 9 | G82: 0
C83: Ground Outdoor / Indoor Chamber Mounted; ˂ 22 kV ; < = 60 kVA ; Single Phase | E83: 0 | F83: 0 | G83: 0
C84: Ground Outdoor / Indoor Chamber Mounted; ˂ 22 kV ; > 60 kVA and < = 600 kVA ; Single Phase | E84: 0 | F84: 0 | G84: 0
C85: Ground Outdoor / Indoor Chamber Mounted; ˂ 22 kV ; > 600 kVA ; Single Phase | E85: 0 | F85: 0 | G85: 0
C86: Ground Outdoor / Indoor Chamber Mounted; ˂ 22 kV ; < = 60 kVA ; Multiple Phase | E86: 0 | F86: 0 | G86: 0
C87: Ground Outdoor / Indoor Chamber Mounted; ˂ 22 kV ; > 60 kVA and < = 600 kVA ; Multiple Phase | E87: 0 | F87: 0 | G87: 0
C88: Ground Outdoor / Indoor Chamber Mounted; ˂ 22 kV ; > 600 kVA ; Multiple Phase | E88: 0 | F88: 0 | G88: 0
C89: Ground Outdoor / Indoor Chamber Mounted; > = 22 kV & < = 33 kV ; < = 15 MVA | E89: 117571.7736 | F89: 0 | G89: 0
C90: Ground Outdoor / Indoor Chamber Mounted; > = 22 kV & < = 33 kV ; > 15 MVA and < = 40 MVA | E90: 0 | F90: 0 | G90: 0
C91: Ground Outdoor / Indoor Chamber Mounted; > = 22 kV & < = 33 kV ; > 40 MVA | E91: 0 | F91: 0 | G91: 0
C92: Ground Outdoor / Indoor Chamber Mounted; > 33 kV & < = 66 kV ; < = 15 MVA | E92: 0 | F92: 0 | G92: 0
C93: Ground Outdoor / Indoor Chamber Mounted; > 33 kV & < = 66 kV ; > 15 MVA and < = 40 MVA | E93: 0 | F93: 0 | G93: 0
C94: Ground Outdoor / Indoor Chamber Mounted; > 33 kV & < = 66 kV ; > 40 MVA | E94: 0 | G94: 0
C95: Ground Outdoor / Indoor Chamber Mounted; > 66 kV & < = 132 kV ; < = 100 MVA | E95: 231036.2364 | F95: 0 | G95: 0
C96: Ground Outdoor / Indoor Chamber Mounted; > 66 kV & < = 132 kV ; > 100 MVA | E96: 0 | F96: 0 | G96: 0
C97: Ground Outdoor / Indoor Chamber Mounted; > 132 kV ; < = 100 MVA | E97: 0 | F97: 0 | G97: 0
C98: Ground Outdoor / Indoor Chamber Mounted; > 132 kV ; > 100 MVA | E98: 0 | F98: 0 | G98: 0
C99: Other | E99: 0 | F99: 0 | G99: 0
B100: SWITCHGEAR BY: HIGHEST OPERATING VOLTAGE ; SWITCH FUNCTION | C100: ˂ = 11 kV ; FUSE | E100: 112789.3018 | F100: 39 | G100: 2
C101: ˂ = 11 kV ; Switch | E101: 2763730.175 | F101: 240 | G101: 174
C102: ˂ = 11 kV ; Circuit Breaker | E102: 1348014.075 | F102: 8 | G102: 93
C103: > 11 kV & < = 22 kV ; Switch | E103: 95554.50074 | F103: 8 | G103: 0
C104: > 11 kV & < = 22 kV ; Circuit Breaker | E104: 0 | F104: 0 | G104: 0
C105: > 22 kV & < = 33 kV ; Switch | E105: 161946.771 | F105: 8 | G105: 0
C106: > 22 kV & < = 33 kV ; Circuit Breaker | E106: 163726.4059 | F106: 1 | G106: 43
C107: > 33 kV & < = 66 kV ; Switch | E107: 0 | F107: 0 | G107: 0
C108: > 33 kV & < = 66 kV ; Circuit Breaker | E108: 0 | F108: 0 | G108: 3
C109: > 66 kV & < = 132 kV ; Switch | E109: 0 | F109: 0 | G109: 0
C110: > 66 kV & < = 132 kV ; Circuit Breaker | E110: 0 | F110: 0 | G110: 5
C111: > 132 kV ; Switch | E111: 0 | F111: 0 | G111: 0
C112: > 132 kV ; Circuit Breaker | E112: 0 | F112: 0 | G112: 0
C113: Other | E113: 824695.9703 | F113: 866 | G113: 0
B114: PUBLIC LIGHTING BY: ASSET TYPE ; LIGHTING OBLIGATION | C114: Luminaires ; Major Road | E114: 0 | F114: 0 | G114: 0
C115: Luminaires ; Minor Road | E115: 0 | F115: 0 | G115: 0
C116: Brackets ; Major Road | E116: 0 | F116: 0 | G116: 0
C117: Brackets ; Minor Road | E117: 0 | F117: 0 | G117: 0
C118: Lamps ; Major Road | E118: 0 | F118: 0 | G118: 0
C119: Lamps ; Minor Road | E119: 0 | F119: 0 | G119: 0
C120: Poles / Columns ; Major Road | E120: 0 | F120: 0 | G120: 0
C121: Poles / Columns ; Minor Road | E121: 0 | F121: 0 | G121: 0
C122: Other | E122: 2398399.5 | F122: 720 | G122: 0
B123: SCADA, NETWORK CONTROL AND PROTECTION SYSTEMS BY: FUNCTION | C123: Field Devices | E123: 0 | F123: 0 | G123: 0
C124: Local Network Wiring Assets | E124: 0 | F124: 0 | G124: 0
C125: Communications Network Assets | E125: 3280421.19 | F125: 17 | G125: 0
C126: Master Station Assets | E126: 0 | F126: 0 | G126: 0
C127: Communications Site Infrastructure | E127: 1163305.43 | F127: 2 | G127: 0
C128: Communications Linear Assets | E128: 217885 | F128: 0.005652232793 | G128: 0
C129: AFLC | E129: 0 | F129: 0 | G129: 0
C130: Other | E130: 0 | F130: 0 | G130: 0
B131: OTHER BY: DNSP DEFINED | C131: Substation Establishment: Major Indoor | E131: 99238.73118 | F131: 0 | G131: 0
C132: Substation Establishment: Major Outdoor | E132: 15547401.22 | F132: 1 | G132: 0
C133: Substation Establishment: Medium Indoor | E133: 0 | F133: 0 | G133: 0
C134: Substation Establishment: Medium Outdoor | E134: 0 | F134: 0 | G134: 0
C135: Substation Establishment: Small Indoor | E135: 0 | F135: 0 | G135: 0
C136: Substation Establishment: Small Outdoor | E136: 0 | F136: 0 | G136: 0
C137: Substation Establishment: Type A | E137: 0 | F137: 0 | G137: 0
C138: Substation Establishment: Type B | E138: 0 | F138: 0 | G138: 0
C139: Distribution Sub - Chamber Type | E139: 69716.4912 | F139: 1 | G139: 0
C140: Distribution OH Sub < 64KVA | E140: 1422498.103 | F140: 15 | G140: 0
C141: Distribution OH Sub >= 64KVA | E141: 33520.25233 | F141: 2 | G141: 0
C142: 11/22 - kiosk and pad mount <=500kVA Substn | E142: 730262.6401 | F142: 45 | G142: 0
C143: 11/22 - kiosk and pad mount >500kVA Substn | E143: 260556.5833 | F143: 5 | G143: 0
C144: 11/22 Switching Station | E144: 7042.069818 | F144: 0 | G144: 0
C145: Capacitor Banks | E145: 0 | F145: 0 | G145: 0
E146: 0 | F146: 0 | G146: 0
B149: 2.2.2 - SELECTED ASSET CHARACTERISTICS
E150: ASSET VOLUMES CURRENTLY IN COMMISSION | F150: ASSET REPLACEMENTS (0's)
B151: ASSET GROUP | C151: METRIC | D151: UNITS | E151: =CRY -> 2016-17 | F151: =CRY -> 2016-17
B152: TOTAL POLES BY: FEEDER TYPE | C152: Total CBD poles | D152: Number | E152: 0 | F152: 0
C153: Total urban poles | D153: Number | E153: 101027.3397 | F153: 519.3814283
C154: Total rural long poles | D154: Number | E154: 5849.120011 | F154: 26.67550567
C155: Total rural short poles | D155: Number | E155: 200022.5402 | F155: 920.943066
B156: OVERHEAD CONDUCTORS BY: CONDUCTOR LENGTH BY FEEDER TYPE | C156: Conductors CBD | D156: KM | E156: 0 | F156: 0
C157: Conductors urban | D157: KM | E157: 9836.240458 | F157: 74.3754832
C158: Conductors rural long | D158: KM | E158: 525.3166887 | F158: 4.306834234
C159: Conductors rural short | D159: KM | E159: 18077.71741 | F159: 147.2789906
B160: OVERHEAD CONDUCTORS BY: CONDUCTOR LENGTH MATERIAL TYPE | C160: OH conductor LV ABC | D160: KM | E160: 1968.431992 | F160: 0
C161: OH conductor steel | D161: KM | E161: 802.8318789 | F161: 74.615131
C162: OH conductor ACSR | D162: KM | E162: 6005.261113 | F162: 33.97504398
C163: OH conductor AAAC | D163: KM | E163: 1376.392333 | F163: 4.615931203
C164: OH conductor AAC | D164: KM | E164: 11728.62028 | F164: 43.04556999
C165: OH conductor HDBC | D165: KM | E165: 6557.736953 | F165: 69.70963184
C166: Other | D166: KM | E166: 0 | F166: 0
B167: UNDERGROUND CABLES BY: CABLE LENGTH BY FEEDER TYPE | C167: Cable CBD | D167: KM | E167: 0 | F167: 0
C168: Cable urban | D168: KM | E168: 16292.55489 | F168: 7.898923376
C169: Cable rural long | D169: KM | E169: 1.368991616 | F169: 0.0006250107487
C170: Cable rural short | D170: KM | E170: 1998.163625 | F170: 0.9163530343
B171: TRANSFORMERS BY: TOTAL MVA | C171: Total MVA replaced | D171: MVA | E171: 0 | F171: 20.86
C172: Total MVA disposed of | D172: MVA | E172: 0 | F172: 20.86

Sheet 2.3(a) Augex
B1: REGULATORY REPORTING STATEMENT
B2: =INDEX(dms_TradingNameFull_List,MATCH(dms_TradingName,dms_TradingName_List)) -> Endeavour Energy
B3: =CONCATENATE((LOOKUP(dms_Model,dms_Model_List,dms_Worksheet_List))&" "&CRY) -> CATEGORY ANALYSIS 2016-17
B4: 2.3 AUGEX PROJECT DATA
B7: There are TWO tables on this worksheet - each has been 'grouped' for easy navigation. Both ROWS and COLUMNS have been grouped. See the Instructions sheet on how to group or ungroup tables.
B9: 2.3.1 - AUGEX ASSET DATA - SUBTRANSMISSION SUBSTATIONS, SWITCHING STATIONS AND ZONE SUBSTATIONS
B10: NOTE: DNSP MUST PROVIDE EXPENDITURE INFORMATION ON A PROJECT CLOSE BASIS.
B11: PROJECT DESCRIPTION AND CHANGES | L11: PLANT AND EQUIPMENT EXPENDITURE AND VOLUME | X11: OTHER EXPENDITURE | Z11: TOTAL DIRECT EXPENDITURE ($0's) | AA11: YEARS INCURRED | AB11: ALL RELATED PARTY CONTRACTS | AD11: ALL NON RELATED PARTY CONTRACTS | AE11: LAND AND EASEMENTS
B12: SUBSTATION ID | C12: SUBSTATION TYPE (drop down) | D12: PROJECT ID | E12: PROJECT TYPE (drop down) | F12: PROJECT TRIGGER (drop down) | G12: VOLTAGE (KV) | H12: SUBSTATION RATING NORMAL CYCLIC (MVA) | J12: SUBSTATION RATING N-1 EMERGENCY (MVA) | L12: TRANSFORMERS | O12: SWITCHGEAR | Q12: CAPACITORS | U12: OTHER PLANT ITEM | V12: INSTALLATION (LABOUR) | X12: CIVIL WORKS | Y12: OTHER DIRECT | AB12: RELATED PARTY MARGINS | AC12: TOTAL | AE12: LAND PURCHASE | AF12: EASEMENTS
H13: PRE | I13: POST | J13: PRE | K13: POST | L13: UNITS ADDED | M13: MVA ADDED | N13: EXPENDITURE ($0's) | O13: UNITS ADDED | P13: EXPENDITURE ($0's) | Q13: MVAR ADDED | R13: EXPENDITURE ($0's) | U13: EXPENDITURE ($0's) | V13: VOLUME | W13: EXPENDITURE ($0's) | X13: EXPENDITURE ($0's) | AB13: EXPENDITURE ($0's) | AE13: EXPENDITURE ($0's)
B14: Penrith TS 4th tx and Busbar Augment | C14: Subtransmission substation | D14: PR052 | E14: Substation upgrade - capacity | F14: Demand growth | G14: 132/33/11 | H14: 180 | I14: 360 | J14: 90 | K14: 240 | L14: 3 | M14: 180 | N14: 69551.82667 | O14: 44 | P14: 32601020.37 | Q14: 0 | R14: 0 | U14: 1226067.72 | V14: 53310.59982 | W14: 4276774.609 | X14: 4656946.035 | Y14: 2098645.892 | Z14: =SUM(N14,P14,R14,U14,W14,X14,Y14) -> 44929006.46 | AA14: 2003/2004,2004/2005, 2005/2006, 2006/07, 2007/08, 2008/09, 2009/10, 2010/11, 2011/12, 2012/13, 2013/14, 2014/15, 2015/16, 2016/17, | AB14: 0 | AC14: 2425310.359 | AD14: 0 | AE14: 0 | AF14: 0
B15: East Parramatta SS & West Parramatta ZS - West Parramatta ZS | C15: Zone substation | D15: PR091 | E15: New substation establishment | F15: Other - specify | G15: 132/11 | H15: 0 | I15: 135 | J15: 0 | K15: 90 | L15: 3 | M15: 135 | N15: 4316035.213 | O15: 45 | P15: 4509634.765 | Q15: 10 | R15: 367625.7351 | U15: 28204.49917 | V15: 21509.86402 | W15: 1820576.255 | X15: 9087318.892 | Y15: 496926.7316 | Z15: 20626322.09 | AA15: 2003/2004,2005/2006, 2006/07, 2007/08, 2008/09, 2009/10, 2010/11, 2011/12, 2012/13, 2013/14, 2014/15, 2015/16, 2016/17, | AB15: 0 | AC15: 25105856.03 | AD15: 0 | AE15: 0 | AF15: 0
B16: East Parramatta SS & West Parramatta ZS - East Parramatta SS | C16: Switching station | D16: PR091 | E16: New substation establishment | F16: Other - specify | G16: 132 | H16: 0 | I16: 0 | J16: 0 | K16: 0 | L16: 0 | M16: 0 | N16: 0 | O16: 9 | P16: 3002245.39 | Q16: 0 | R16: 0 | U16: 371326.8241 | V16: 21509.86402 | W16: 621214.4165 | X16: 3100761.908 | Y16: 169560.626 | Z16: 7265109.164 | AA16: 2003/2004,2005/2006, 2006/07, 2007/08, 2008/09, 2009/10, 2010/11, 2011/12, 2012/13, 2013/14, 2014/15, 2015/16, 2016/17, | AB16: 0 | AC16: 8339559.007 | AD16: 0 | AE16: 0 | AF16: 0
B17: Gerringong ZS augment transformers | C17: Zone substation | D17: PR149 | E17: Substation upgrade - capacity | F17: Demand growth | G17: 33/11 | H17: 10 | I17: 20 | J17: 5 | K17: 10 | L17: 2 | M17: 20 | N17: 0 | O17: 13 | P17: 631568.099 | Q17: 0 | R17: 0 | U17: 1007937.689 | V17: 12577.86955 | W17: 1004021.139 | X17: 786371.5958 | Y17: 172498.8532 | Z17: 3602397.376 | AA17: 2006/07, 2007/08, 2008/09, 2009/10, 2010/11, 2011/12, 2012/13, 2013/14, 2014/15, 2015/16, 2016/17, | AB17: 0 | AC17: 1029906.017 | AD17: 0 | AE17: 38659.68707 | AF17: 0
B18: Cattai/Riverstone ZS | C18: Zone substation | D18: PR440 | E18: Other | F18: Other - specify | G18: 33/11 | H18: 40 | I18: 40 | J18: 15 | K18: 15 | L18: 0 | M18: 0 | N18: 0 | O18: 7 | P18: 0 | Q18: 0 | R18: 0 | U18: 1998485.571 | V18: 11055.25398 | W18: 1038415.754 | X18: 1317191.306 | Y18: 127712.4767 | Z18: 4481805.107 | AA18: 2010/11, 2011/12, 2012/13, 2013/14, 2014/15, 2015/16, 2016/17, | AB18: 0 | AC18: 1431371.607 | AD18: 0 | AE18: 0 | AF18: 0
B19: Marsden Park 132kV Transmission Line Inf | C19: Zone substation | D19: PR674 | E19: New substation establishment | F19: Demand growth | G19: 132/11 | H19: 0 | I19: 15 | J19: 0 | K19: 0 | L19: 1 | M19: 15 | N19: 737028.3019 | O19: 6 | P19: 334119.4969 | Q19: 0 | R19: 0 | U19: 916940.0782 | V19: 4501.108564 | W19: 477997.3623 | X19: 838589.1819 | Y19: 34842.31467 | Z19: 3339516.736 | AA19: 2013/14, 2014/15, 2015/16, 2016/17, | AB19: 0 | AC19: 1376446.397 | AD19: 0 | AE19: 0 | AF19: 0
Z20: 0
Z21: 0
Z22: 0
Z23: 0
Z24: 0
Z25: 0
Z26: 0
Z27: 0
Z28: 0
Z29: 0
Z30: 0
Z31: 0
Z32: 0
Z33: 0
Z34: 0
Z35: 0
Z36: 0
Z37: 0
Z38: 0
Z39: 0
Z40: 0
Z41: 0
Z42: 0
Z43: 0
Z44: 0
Z45: 0
Z46: =SUM(N46,P46,R46,U46,W46,X46,Y46) -> 0
Z47: 0
Z48: 0
Z49: 0
Z50: 0
Z51: 0
Z52: 0
Z53: 0
Z54: 0
Z55: 0
Z56: 0
Z57: 0
Z58: 0
Z59: 0
Z60: 0
Z61: 0
Z62: 0
Z63: 0
Z64: 0
Z65: 0
D66: Non material projects - [actual]
B69: AUG232_1 | C69: AUG232_2 | D69: AUG232_3 | E69: AUG232_4 | F69: AUG232_5 | G69: AUG232_6 | H69: ED_AUG232_00001 | I69: ED_AUG232_00002 | J69: ED_AUG232_00003 | K69: ED_AUG232_00004 | L69: ED_AUG232_00005 | M69: ED_AUG232_00006 | N69: ED_AUG232_00007 | O69: ED_AUG232_00008 | P69: ED_AUG232_00009 | Q69: ED_AUG232_00010 | R69: ED_AUG232_00011 | S69: ED_AUG232_00012 | T69: ED_AUG232_00013 | U69: ED_AUG232_00014 | V69: ED_AUG232_00015 | W69: ED_AUG232_00016 | X69: ED_AUG232_00017 | Y69: ED_AUG232_00018 | Z69: ED_AUG232_00019 | AA69: ED_AUG232_00020 | AB69: ED_AUG232_00021
B70: 2.3.2 - AUGEX ASSET DATA - SUBTRANSMISSION LINES
B71: NOTE: DNSP MUST PROVIDE EXPENDITURE INFORMATION ON A PROJECT CLOSE BASIS.
B72: PROJECT DESCRIPTION AND CHANGES | L72: PLANT AND EQUIPMENT EXPENDITURE AND VOLUME | X72: OTHER EXPENDITURE | Z72: TOTAL DIRECT EXPENDITURE ($0's) | AA72: YEARS INCURRED | AB72: ALL RELATED PARTY CONTRACTS | AD72: ALL NON RELATED PARTY CONTRACTS | AE72: LAND AND EASEMENTS
B73: LINE ID | C73: PROJECT ID | D73: PROJECT TYPE | E73: PROJECT TRIGGER | G73: VOLTAGE (KV) | H73: ROUTE LINE LENGTH ADDED | L73: POLES/TOWERS (INCLUDING STRUCTURES, AND CIVIL WORKS) | O73: OVERHEAD LINES | R73: UNDERGROUND CABLES | U73: OTHER PLANT ITEM | V73: INSTALLATION (LABOUR) | X73: CIVIL WORKS | Y73: OTHER DIRECT | AB73: RELATED PARTY MARGINS | AC73: TOTAL | AE73: LAND PURCHASE | AF73: EASEMENTS
H74: KM ADDED | L74: POLES/TOWERS ADDED | M74: POLES/TOWERS UPGRADED | N74: EXPENDITURE ($0's) | O74: CIRCUIT KM ADDED | P74: CIRCUIT KM UPGRADED | Q74: EXPENDITURE ($0's) | R74: CIRCUIT KM ADDED | S74: CIRCUIT KM UPGRADED | T74: EXPENDITURE ($0's) | U74: EXPENDITURE ($0's) | V74: VOLUME | W74: EXPENDITURE ($0's) | X74: EXPENDITURE ($0's) | AB74: EXPENDITURE ($0's) | AE74: EXPENDITURE ($0's)
B75: 225, 22G, | C75: PR091 | D75: New line on new route - single circuit | E75: Demand growth | G75: 132 | H75: 8.3 | L75: 0 | M75: 0 | N75: 0 | O75: 0 | P75: 0 | Q75: 0 | R75: 8.3 | S75: 0 | T75: 0 | U75: 3833997.206 | V75: 4721.208861 | W75: 794026.4627 | X75: 3635629.551 | Y75: 224579.968 | Z75: =SUM(N75,Q75,T75,U75,W75,X75,Y75) -> 8488233.188 | AA75: 2003/2004,2005/2006, 2006/07, 2007/08, 2008/09, 2009/10, 2010/11, 2011/12, 2012/13, 2013/14, 2014/15, 2015/16, 2016/17, | AB75: 0 | AC75: 10349021.05 | AD75: 0 | AE75: 0 | AF75: 0 | AH75: New line on new route - single circuit
B76: 7050, 7009, 7176, | C76: PR149 | D76: Line rebuild over existing route - single circuit | E76: Demand growth | G76: 33 | H76: 8.09 | L76: 6 | M76: 58 | N76: 384000 | O76: 0.353 | P76: 7.737 | Q76: 169400 | R76: 0 | S76: 0 | T76: 0 | U76: 229864.7663 | V76: 12964.6323 | W76: 755263.9061 | X76: 112678.8767 | Y76: 509575.7493 | Z76: 2160783.298 | AA76: 2006/07, 2007/08, 2008/09, 2009/10, 2010/11, 2011/12, 2012/13, 2013/14, 2014/15, 2015/16, 2016/17, | AB76: 0 | AC76: 827391.197 | AD76: 0 | AE76: 0 | AF76: 0 | AH76: New line on new route - dual circuit
B77: 443, 458/1, 420, 437, | C77: PR440 | D77: Reconductor - Single circuit | E77: Demand growth | G77: 33 | H77: 27.67 | L77: 2 | M77: 329 | N77: 1986000 | O77: 0 | P77: 27.5 | Q77: 575850 | R77: 0.17 | S77: 0 | T77: 46040 | U77: 2127805.011 | V77: 13683.82123 | W77: 1620557.834 | X77: 770162.7369 | Y77: 262801.9797 | Z77: 7389217.562 | AA77: 2010/11, 2011/12, 2012/13, 2013/14, 2014/15, 2015/16, 2016/17, | AB77: 0 | AC77: 3301079.127 | AD77: 0 | AE77: 0 | AF77: 0 | AH77: New line on new route - other
B78: 21J | C78: PR674 | D78: New line on new route - single circuit | E78: Demand growth | G78: 132 | H78: 7.9 | L78: 42 | M78: 0 | N78: 0 | O78: 2.1 | P78: 0 | Q78: 0 | R78: 5.8 | S78: 0 | T78: 0 | U78: 2182510.1 | V78: 6781.248504 | W78: 691044.9975 | X78: 3649761.971 | Y78: 30480.22755 | Z78: 6553797.296 | AA78: 2013/14, 2014/15, 2015/16, 2016/17, | AB78: 0 | AC78: 4561237.716 | AD78: 0 | AE78: 0 | AF78: 0 | AH78: Line rebuild over existing route - single circuit
Z79: 0 | AH79: Line rebuild over existing route - dual circuit
Z80: 0 | AH80: Reconductor - Single circuit
Z81: 0 | AH81: Reconductor - Dual circuit
Z82: 0 | AH82: Reconductor - Other
Z83: 0 | AH83: Line upgrade - raising/retensoring
Z84: 0 | AH84: Line upgrade - voltage upgrade
Z85: 0 | AH85: Line upgrade - capacity
Z86: 0 | AH86: String spare circuit
Z87: 0 | AH87: Other
Z88: 0
Z89: 0
Z90: 0
Z91: 0
Z92: 0
Z93: 0
Z94: 0
Z95: 0
Z96: 0
Z97: 0
Z98: 0
Z99: 0
Z100: 0
Z101: 0
Z102: 0
Z103: 0
Z104: 0
Z105: 0
Z106: 0
Z107: =SUM(N107,Q107,T107,U107,W107,X107,Y107) -> 0
Z108: 0
Z109: 0
Z110: 0
Z111: 0
Z112: 0
Z113: 0
Z114: 0
Z115: 0
Z116: 0
Z117: 0
Z118: 0
Z119: 0
Z120: 0
Z121: 0
Z122: 0
Z123: 0
Z124: 0
Z125: 0
Z126: 0
Z127: 0
Z128: 0
C129: Non material projects - [actual] | Z129: 1011729.978 | AA129: 2015/16, 2016/17 | AE129: 0 | AF129: 0

Sheet 2.3(b) Augex
B1: REGULATORY REPORTING STATEMENT
B2: =INDEX(dms_TradingNameFull_List,MATCH(dms_TradingName,dms_TradingName_List)) -> Endeavour Energy
B3: =CONCATENATE((LOOKUP(dms_Model,dms_Model_List,dms_Worksheet_List))&" "&CRY) -> CATEGORY ANALYSIS 2016-17
B4: 2.3 AUGEX DATA
B6: There are TWO tables on this worksheet. Each has been grouped for ease of navigation. See the Instructions sheet on how to group or ungroup tables.
B8: 2.3.3 - AUGEX DATA - HV/LV FEEDERS AND DISTRIBUTION SUBSTATIONS
B9: NOTE: DNSP MUST PROVIDE EXPENDITURE INFORMATION ON AN AS INCURRED BASIS.
B10: DESCRIPTOR METRICS
B11: PROJECT TYPE | D11: UNITS ADDED (0's) | E11: UNITS UPGRADED (0's)
C12: UNITS | D12: =CRY -> 2016-17 | E12: =CRY -> 2016-17
B13: HV Feeder Augmentations - Overhead Lines | C13: Circuit line length in km | D13: 1.1 | E13: 3.69
B14: HV Feeder Augmentations - Underground Cables | C14: Circuit line length in km | D14: 0.83 | E14: 0
B15: LV Feeder Augmentations - Overhead Lines | C15: Circuit line length in km | D15: 2.5 | E15: 1.6
B16: LV Feeder Augmentations - Underground Cables | C16: Circuit line length in km | D16: 1 | E16: 0.1
B17: Distribution Substation Augmentations - Pole Mounted | C17: Number | D17: 1 | E17: 12
B18: Distribution Substation Augmentations - Ground Mounted | C18: Number | D18: 1 | E18: 6
B19: Distribution Substation Augmentations - Indoor | C19: Number | D19: 0 | E19: 0
B21: COST METRICS
B22: TOTAL DIRECT EXPENDITURE - Project Type | D22: EXPENDITURE ($0's)
D23: =CRY -> 2016-17
B24: HV Feeder Augmentations - Overhead Lines | D24: 1004387.248
B25: HV Feeder Augmentations - Underground Cables | D25: 317010.412
B26: HV Feeder Non-Material Projects | D26: 0
B27: LV Feeder Augmentations - Overhead Lines | D27: 268022.153
B28: LV Feeder Augmentations - Underground Cables | D28: 356305.612
B29: LV Feeder Non-Material Projects | D29: 89076.403
B30: Distribution Substation Augmentations - Pole Mounted | D30: 228734.1515
B31: Distribution Substation Augmentations - Ground Mounted | D31: 186375.9753
B32: Distribution Substation Augmentations - Indoor | D32: 8471.63524
B35: 2.3.4 - AUGEX DATA - TOTAL EXPENDITURE
B36: AUGMENTATION CAPEX (As incurred) | D36: EXPENDITURE ($0's)
D37: =CRY -> 2016-17
B38: Subtransmission Substations, Switching Stations, Zone Substations | D38: 13888859.97
B39: Subtransmission Lines | D39: 11538549.53
B40: HV Feeders | D40: 1321397.66
B41: HV Feeders - Land Purchases and Easements | D41: 0
B42: Distribution Substations | D42: 423581.762
B43: Distribution Substations - Land Purchases And Easements | D43: 12000
B44: LV Feeders | D44: 713404.168
B45: LV Feeders - Land Purchases And Easements | D45: 0
B46: Other Assets | D46: 0

Sheet 2.5 Connections
B1: REGULATORY REPORTING STATEMENT
B2: =INDEX(dms_TradingNameFull_List,MATCH(dms_TradingName,dms_TradingName_List)) -> Endeavour Energy
B3: =CONCATENATE((LOOKUP(dms_Model,dms_Model_List,dms_Worksheet_List))&" "&CRY) -> CATEGORY ANALYSIS 2016-17
B4: 2.5 CONNECTIONS
B6: There are TWO tables on this worksheet. Each has been grouped for ease of navigation. See the Instructions sheet on how to group or ungroup tables.
B8: 2.5.1 - DESCRIPTOR METRICS
B9: <<<GROUP-ROW>>>
E11: VOLUMES AND EXPENDITURE
B12: CONNECTION SUBCATEGORY | C12: DESCRIPTOR METRIC | D12: UNITS | E12: =CRY -> 2016-17
B13: RESIDENTIAL | C13: Underground connections | D13: 0's | E13: 3831
C14: Overhead connections | D14: 0's | E14: 5291
C15: Distribution substation installed | D15: MVA added | E15: 58.25
C16: Distribution substations installed | D16: 0's | E16: 92
C17: Distribution substation installed | D17: total spend $0s | E17: 1560891
C18: Augmentation HV | D18: net circuit km added | E18: 14.8
C19: Augmentation HV | D19: total spend $0s | E19: 921828
C20: Augmentation LV | D20: net circuit km added | E20: 3.5
C21: Augmentation LV | D21: total spend $0s | E21: 226506
C22: Mean days to connect residential customer with LV single phase connection | D22: 0's | E22: 0
C23: Volume of GSL breaches for residential customers | D23: 0's | E23: 0
C24: Volume of customer complaints relating to connection services | D24: 0's | E24: 0
C25: GSL payments | D25: $0s | E25: 0
B26: COMMERCIAL/INDUSTRIAL | C26: Underground connections | D26: 0's | E26: 614
C27: Overhead connections | D27: 0's | E27: 623
C28: Distribution substation installed | D28: MVA added | E28: 116.763
C29: Distribution substations installed | D29: 0's | E29: 137
C30: Distribution substation installed | D30: total spend $0s | E30: 2621093
C31: Augmentation HV | D31: net circuit km added | E31: 7.1
C32: Augmentation HV | D32: total spend $0s | E32: 851644
C33: Augmentation LV | D33: net circuit km added | E33: 2.1
C34: Augmentation LV | D34: total spend $0s | E34: 192221
B35: SUBDIVISION | C35: Underground connections | D35: 0's | E35: 12091
C36: Overhead connections | D36: 0's | E36: 0
C37: Distribution substation installed | D37: MVA added | E37: 140.58
C38: Distribution substations installed | D38: 0's | E38: 299
C39: Distribution substation installed | D39: total spend $0s | E39: 3805589
C40: Augmentation HV | D40: net circuit km added | E40: 13
C41: Augmentation HV | D41: total spend $0s | E41: 1982494
C42: Augmentation LV | D42: net circuit km added | E42: 6.5
C43: Augmentation LV | D43: total spend $0s | E43: 1107566
C44: Cost per lot ($) | D44: $0s | E44: 570.3125465
B45: EMBEDDED GENERATION | C45: Underground connections | D45: 0's | E45: 1168
C46: Overhead connections | D46: 0's | E46: 717
C47: Distribution substation installed | D47: MVA added | E47: 0
C48: Distribution substations installed | D48: 0's | E48: 0
C49: Distribution substation installed | D49: total spend $0s | E49: 0
C50: Augmentation HV | D50: net circuit km added | E50: 0
C51: Augmentation HV | D51: total spend $0s | E51: 0
C52: Augmentation LV | D52: net circuit km added | E52: 0
C53: Augmentation LV | D53: total spend $0s | E53: 0
B57: 2.5.2 - COST METRICS BY CONNECTION CLASSIFICATION
D58: EXPENDITURE ($0's) | E58: VOLUMES (0's)
B59: CONNECTION SUBCATEGORY | C59: CONNECTION CLASSIFICATION | D59: =CRY -> 2016-17 | E59: =CRY -> 2016-17
B60: RESIDENTIAL | C60: Simple connection LV | D60: 2709225 | E60: 9122
C61: Complex connection LV | D61: 0 | E61: 0
C62: Complex connection HV | D62: 0 | E62: 0
B63: COMMERCIAL/INDUSTRIAL | C63: Simple connection LV | D63: 0 | E63: 0
C64: Complex connection HV (customer connected at LV, minor HV works) | D64: 3664958 | E64: 1237
C65: Complex connection HV (customer connected at LV, upstream asset works) | D65: 0 | E65: 0
C66: Complex connection HV (customer connected at HV) | D66: 0 | E66: 0
C67: Complex connection sub-transmission | D67: 0 | E67: 0
B68: SUBDIVISION | C68: Complex connection LV | D68: 0 | E68: 0
C69: Complex connection HV (no upstream asset works) | D69: 0 | E69: 0
C70: Complex connection HV (with upstream asset works) | D70: 6895649 | E70: 12091
B71: EMBEDDED GENERATION | C71: Simple connection LV | D71: 0 | E71: 1885
C72: Complex connection HV (small capacity) | D72: 0 | E72: 0
C73: Complex connection HV (large capacity) | D73: 0 | E73: 0

Sheet 2.6 Non-network
B1: REGULATORY REPORTING STATEMENT
B2: =INDEX(dms_TradingNameFull_List,MATCH(dms_TradingName,dms_TradingName_List)) -> Endeavour Energy
B3: =CONCATENATE((LOOKUP(dms_Model,dms_Model_List,dms_Worksheet_List))&" "&CRY) -> CATEGORY ANALYSIS 2016-17
B4: 2.6 NON NETWORK EXPENDITURE
B6: There are THREE tables on this worksheet. Each has been grouped (and sub-grouped) for ease of navigation. See the Instructions sheet on how to group or ungroup tables.
B8: 2.6.1 - NON-NETWORK EXPENDITURE
F9: EXPENDITURE ($0's)
B10: SERVICE SUBCATEGORY | C10: ASSET CATEGORY | F10: =CRY -> 2016-17
B11: OPEX
B12: IT & COMMUNICATIONS | C12: Client device expenditure | F12: 2214986.227
C13: Recurrent expenditure | F13: 39688722.43
C14: Non-recurrent expenditure | F14: 0
B15: MOTOR VEHICLES | C15: Car | F15: 1272227.785
C16: Light commercial vehicle | F16: 7647924.775
C17: Elevated work platform (LCV) | F17: 0
C18: Elevated work platform (HCV) | F18: 367482.3419
C19: Heavy commercial vehicle | F19: 5972121.658
B20: BUILDINGS AND PROPERTY | C20: Total buildings and property expenditure | F20: 14638182.88
B21: OTHER | C21: Other expenditure | F21: 0
B22: OTHER - DNSP nominated
B33: CAPEX
B34: IT & COMMUNICATIONS | C34: Client device expenditure | F34: 84333.59843
C35: Recurrent expenditure | F35: 1209148.201
C36: Non-recurrent expenditure | F36: 7135123.228
B37: MOTOR VEHICLES | C37: Car | F37: 0
C38: Light commercial vehicle | F38: 645.5338364
C39: Elevated work platform (LCV) | F39: 0
C40: Elevated work platform (HCV) | F40: 1826980.992
C41: Heavy commercial vehicle | F41: 796050.4607
B42: BUILDINGS AND PROPERTY | C42: Total buildings and property expenditure | F42: 3491596.692
B43: OTHER | C43: Other expenditure | F43: 1414270.507
B44: OTHER - DNSP nominated | C44: =IF(ISBLANK(C22),"",C22) -> 
C45: =IF(ISBLANK(C23),"",C23) -> 
B58: 2.6.2 - ANNUAL DESCRIPTOR METRICS - IT & COMMUNICATIONS EXPENDITURE
F59: VOLUMES (0's)
B61: NON-NETWORK CATEGORY | C61: DESCRIPTOR METRIC | F61: =CRY -> 2016-17
B62: IT & COMMUNICATIONS | C62: Employee numbers | F62: 1898
C63: User numbers | F63: 3422
C64: Number of devices | F64: 2859.403916
B67: 2.6.3 - ANNUAL DESCRIPTOR METRICS - MOTOR VEHICLES
F68: VOLUMES / %
B69: NON-NETWORK CATEGORY | C69: ASSET CATEGORY | D69: DESCRIPTOR METRIC | E69: UNITS | F69: =CRY -> 2016-17
B70: MOTOR VEHICLES | C70: CAR | D70: Average kilometres travelled | E70: 0's | F70: 22146.34532
D71: Number purchased | E71: 0's | F71: 0
D72: Number leased | E72: 0's | F72: 92.66666667
D73: Number in fleet | E73: 0's | F73: 92.66666667
D74: Proportion of total fleet expenditure allocated as regulatory expenditure | E74: (per cent) | F74: 0.8567599051
C75: LIGHT COMMERCIAL VEHICLE | D75: Average kilometres travelled | E75: 0's | F75: 20996.38564
D76: Number purchased | E76: 0's | F76: 0
D77: Number leased | E77: 0's | F77: 361.9166667
D78: Number in fleet | E78: 0's | F78: 362.1666667
D79: Proportion of total fleet expenditure allocated as regulatory expenditure | E79: (per cent) | F79: 0.8567476152
C80: ELEVATED WORK PLATFORM (LCV) | D80: Average kilometres travelled | E80: 0's | F80: 0
D81: Number purchased | E81: 0's | F81: 0
D82: Number leased | E82: 0's | F82: 0
D83: Number in fleet | E83: 0's | F83: 0
D84: Proportion of total fleet expenditure allocated as regulatory expenditure | E84: (per cent) | F84: 0
C85: ELEVATED WORK PLATFORM (HCV) | D85: Average kilometres travelled | E85: 0's | F85: 12220.9462
D86: Number purchased | E86: 0's | F86: 6
D87: Number leased | E87: 0's | F87: 0
D88: Number in fleet | E88: 0's | F88: 105.3333333
D89: Proportion of total fleet expenditure allocated as regulatory expenditure | E89: (per cent) | F89: 0.7630194337
C90: HEAVY COMMERCIAL VEHICLE | D90: Average kilometres travelled | E90: 0's | F90: 12569.989
D91: Number purchased | E91: 0's | F91: 0
D92: Number leased | E92: 0's | F92: 0
D93: Number in fleet | E93: 0's | F93: 227.25
D94: Proportion of total fleet expenditure allocated as regulatory expenditure | E94: (per cent) | F94: 0.8415741364

Sheet 2.7 Vegetation management
B1: REGULATORY REPORTING STATEMENT
B2: =INDEX(dms_TradingNameFull_List,MATCH(dms_TradingName,dms_TradingName_List)) -> Endeavour Energy
B3: =CONCATENATE((LOOKUP(dms_Model,dms_Model_List,dms_Worksheet_List))&" "&CRY) -> CATEGORY ANALYSIS 2016-17
B4: 2.7 VEGETATION MANAGEMENT
B6: There are THREE tables on this worksheet. Each has been grouped (and sub-grouped) for ease of navigation. See the Instructions sheet on how to group or ungroup tables.
B8: Please enter a description for each Zone in table 2.7.1 - Urban and CBD. The zone description will then autopopulate in tables 2.7.1 - Rural and 2.7.2.
A11: ` | B11: 2.7.1 - DESCRIPTOR METRICS BY ZONE
B12: URBAN AND CBD
E13: =CRY -> 2016-17
B14: ZONES | C14: ASSET | D14: UNITS
B15: Bowenfels/Kandos | C15: Route line length within zone | D15: km | E15: 168.204735
C16: Number of maintenance spans | D16: 0's | E16: 3450
C17: Total length of maintenance spans | D17: km | E17: 44.43818042
C18: Length of vegetation corridors | D18: km | E18: 72.962
C19: Average number of trees per maintenance span | D19: 0's | E19: 4.419421488
C20: Average frequency of cutting cycle | D20: years | E20: 1
B21: Katoomba | C21: Route line length within zone | D21: km | E21: 359.784701
C22: Number of maintenance spans | D22: 0's | E22: 12578
C23: Total length of maintenance spans | D23: km | E23: 401.2591784
C24: Length of vegetation corridors | D24: km | E24: 151.776
C25: Average number of trees per maintenance span | D25: 0's | E25: 3.833619948
C26: Average frequency of cutting cycle | D26: years | E26: 1
B27: Penrith | C27: Route line length within zone | D27: km | E27: 819.849022
C28: Number of maintenance spans | D28: 0's | E28: 9969
C29: Total length of maintenance spans | D29: km | E29: 1434.630128
C30: Length of vegetation corridors | D30: km | E30: 59.662
C31: Average number of trees per maintenance span | D31: 0's | E31: 2.988464239
C32: Average frequency of cutting cycle | D32: years | E32: 1
B33: Windsor | C33: Route line length within zone | D33: km | E33: 296.279735
C34: Number of maintenance spans | D34: 0's | E34: 2329
C35: Total length of maintenance spans | D35: km | E35: 38.50568157
C36: Length of vegetation corridors | D36: km | E36: 177.366
C37: Average number of trees per maintenance span | D37: 0's | E37: 2.724774581
C38: Average frequency of cutting cycle | D38: years | E38: 1
B39: Hills (Parramatta/KingsPark | C39: Route line length within zone | D39: km | E39: 1749.730767
C40: Number of maintenance spans | D40: 0's | E40: 27328
C41: Total length of maintenance spans | D41: km | E41: 3637.263517
C42: Length of vegetation corridors | D42: km | E42: 113.875
C43: Average number of trees per maintenance span | D43: 0's | E43: 3.186292447
C44: Average frequency of cutting cycle | D44: years | E44: 1
B45: Hoxton Park | C45: Route line length within zone | D45: km | E45: 1408.322251
C46: Number of maintenance spans | D46: 0's | E46: 15620
C47: Total length of maintenance spans | D47: km | E47: 2877.938687
C48: Length of vegetation corridors | D48: km | E48: 1720.083
C49: Average number of trees per maintenance span | D49: 0's | E49: 1.729641485
C50: Average frequency of cutting cycle | D50: years | E50: 1
B51: Bowral (Mossvale) | C51: Route line length within zone | D51: km | E51: 385.675061
C52: Number of maintenance spans | D52: 0's | E52: 5746
C53: Total length of maintenance spans | D53: km | E53: 372.9035729
C54: Length of vegetation corridors | D54: km | E54: 86.31
C55: Average number of trees per maintenance span | D55: 0's | E55: 2.940654368
C56: Average frequency of cutting cycle | D56: years | E56: 1
B57: Nowra/Ulladulla | C57: Route line length within zone | D57: km | E57: 573.522516
C58: Number of maintenance spans | D58: 0's | E58: 3150
C59: Total length of maintenance spans | D59: km | E59: 606.7948617
C60: Length of vegetation corridors | D60: km | E60: 46.147
C61: Average number of trees per maintenance span | D61: 0's | E61: 1.313968254
C62: Average frequency of cutting cycle | D62: years | E62: 1
B63: Narellan/Picton | C63: Route line length within zone | D63: km | E63: 600.883021
C64: Number of maintenance spans | D64: 0's | E64: 12926
C65: Total length of maintenance spans | D65: km | E65: 521.2663698
C66: Length of vegetation corridors | D66: km | E66: 204.782
C67: Average number of trees per maintenance span | D67: 0's | E67: 6.829125698
C68: Average frequency of cutting cycle | D68: years | E68: 1
B69: Springhill | C69: Route line length within zone | D69: km | E69: 740.798898
C70: Number of maintenance spans | D70: 0's | E70: 6868
C71: Total length of maintenance spans | D71: km | E71: 2150.79964
C72: Length of vegetation corridors | D72: km | E72: 220.329
C73: Average number of trees per maintenance span | D73: 0's | E73: 2.066249272
C74: Average frequency of cutting cycle | D74: years | E74: 1
B75: Shellharbour | C75: Route line length within zone | D75: km | E75: 440.649766
C76: Number of maintenance spans | D76: 0's | E76: 3725
C77: Total length of maintenance spans | D77: km | E77: 692.6571141
C78: Length of vegetation corridors | D78: km | E78: 78.205
C79: Average number of trees per maintenance span | D79: 0's | E79: 2.454228188
C80: Average frequency of cutting cycle | D80: years | E80: 1
B81: Endeavour | C81: Route line length within zone | D81: km | E81: 7543.700473
C82: Number of maintenance spans | D82: 0's | E82: 103689
C83: Total length of maintenance spans | D83: km | E83: 12778.45693
C84: Length of vegetation corridors | D84: km | E84: 2931.497
C85: Average number of trees per maintenance span | D85: 0's | E85: 2.872874668
C86: Average frequency of cutting cycle | D86: years | E86: 1
B87: ZONE 13 | C87: Route line length within zone | D87: km
C88: Number of maintenance spans | D88: 0's
C89: Total length of maintenance spans | D89: km
C90: Length of vegetation corridors | D90: km
C91: Average number of trees per maintenance span | D91: 0's
C92: Average frequency of cutting cycle | D92: years
B93: ZONE 14 | C93: Route line length within zone | D93: km
C94: Number of maintenance spans | D94: 0's
C95: Total length of maintenance spans | D95: km
C96: Length of vegetation corridors | D96: km
C97: Average number of trees per maintenance span | D97: 0's
C98: Average frequency of cutting cycle | D98: years
B99: ZONE 15 | C99: Route line length within zone | D99: km
C100: Number of maintenance spans | D100: 0's
C101: Total length of maintenance spans | D101: km
C102: Length of vegetation corridors | D102: km
C103: Average number of trees per maintenance span | D103: 0's
C104: Average frequency of cutting cycle | D104: years
B105: ZONE 16 | C105: Route line length within zone | D105: km
C106: Number of maintenance spans | D106: 0's
C107: Total length of maintenance spans | D107: km
C108: Length of vegetation corridors | D108: km
C109: Average number of trees per maintenance span | D109: 0's
C110: Average frequency of cutting cycle | D110: years
B111: ZONE 17 | C111: Route line length within zone | D111: km
C112: Number of maintenance spans | D112: 0's
C113: Total length of maintenance spans | D113: km
C114: Length of vegetation corridors | D114: km
C115: Average number of trees per maintenance span | D115: 0's
C116: Average frequency of cutting cycle | D116: years
B117: ZONE 18 | C117: Route line length within zone | D117: km
C118: Number of maintenance spans | D118: 0's
C119: Total length of maintenance spans | D119: km
C120: Length of vegetation corridors | D120: km
C121: Average number of trees per maintenance span | D121: 0's
C122: Average frequency of cutting cycle | D122: years
B124: RURAL
E125: =CRY -> 2016-17
B126: ZONES | C126: ASSET | D126: UNITS
B127: =B15 -> Bowenfels/Kandos | C127: Route line length within zone | D127: km | E127: 2140
C128: Number of maintenance spans | D128: 0's | E128: 6384
C129: Total length of maintenance spans | D129: km | E129: 2547
C130: Length of vegetation corridors | D130: km | E130: 1941
C131: Average number of trees per maintenance span | D131: 0's | E131: 1
C132: Average frequency of cutting cycle | D132: years | E132: 1
B133: =B21 -> Katoomba | C133: Route line length within zone | D133: km | E133: 191
C134: Number of maintenance spans | D134: 0's | E134: 4623
C135: Total length of maintenance spans | D135: km | E135: 912
C136: Length of vegetation corridors | D136: km | E136: 259
C137: Average number of trees per maintenance span | D137: 0's | E137: 2
C138: Average frequency of cutting cycle | D138: years | E138: 1
B139: =B27 -> Penrith | C139: Route line length within zone | D139: km | E139: 291
C140: Number of maintenance spans | D140: 0's | E140: 5014
C141: Total length of maintenance spans | D141: km | E141: 1164
C142: Length of vegetation corridors | D142: km | E142: 87
C143: Average number of trees per maintenance span | D143: 0's | E143: 4
C144: Average frequency of cutting cycle | D144: years | E144: 1
B145: =B33 -> Windsor | C145: Route line length within zone | D145: km | E145: 1177
C146: Number of maintenance spans | D146: 0's | E146: 17038
C147: Total length of maintenance spans | D147: km | E147: 2473
C148: Length of vegetation corridors | D148: km | E148: 328
C149: Average number of trees per maintenance span | D149: 0's | E149: 4
C150: Average frequency of cutting cycle | D150: years | E150: 1
B151: =B39 -> Hills (Parramatta/KingsPark | C151: Route line length within zone | D151: km | E151: 262
C152: Number of maintenance spans | D152: 0's | E152: 5978
C153: Total length of maintenance spans | D153: km | E153: 1032
C154: Length of vegetation corridors | D154: km | E154: 3
C155: Average number of trees per maintenance span | D155: 0's | E155: 4
C156: Average frequency of cutting cycle | D156: years | E156: 1
B157: =B45 -> Hoxton Park | C157: Route line length within zone | D157: km | E157: 249
C158: Number of maintenance spans | D158: 0's | E158: 1473
C159: Total length of maintenance spans | D159: km | E159: 709
C160: Length of vegetation corridors | D160: km | E160: 546
C161: Average number of trees per maintenance span | D161: 0's | E161: 2
C162: Average frequency of cutting cycle | D162: years | E162: 1
B163: =B51 -> Bowral (Mossvale) | C163: Route line length within zone | D163: km | E163: 1527
C164: Number of maintenance spans | D164: 0's | E164: 7782
C165: Total length of maintenance spans | D165: km | E165: 2150
C166: Length of vegetation corridors | D166: km | E166: 1130
C167: Average number of trees per maintenance span | D167: 0's | E167: 4
C168: Average frequency of cutting cycle | D168: years | E168: 1
B169: =B57 -> Nowra/Ulladulla | C169: Route line length within zone | D169: km | E169: 1840
C170: Number of maintenance spans | D170: 0's | E170: 15590
C171: Total length of maintenance spans | D171: km | E171: 2600
C172: Length of vegetation corridors | D172: km | E172: 429
C173: Average number of trees per maintenance span | D173: 0's | E173: 2
C174: Average frequency of cutting cycle | D174: years | E174: 1
B175: =B63 -> Narellan/Picton | C175: Route line length within zone | D175: km | E175: 1291
C176: Number of maintenance spans | D176: 0's | E176: 9008
C177: Total length of maintenance spans | D177: km | E177: 2954
C178: Length of vegetation corridors | D178: km | E178: 1286
C179: Average number of trees per maintenance span | D179: 0's | E179: 2
C180: Average frequency of cutting cycle | D180: years | E180: 1
B181: =B69 -> Springhill | C181: Route line length within zone | D181: km | E181: 200
C182: Number of maintenance spans | D182: 0's | E182: 2684
C183: Total length of maintenance spans | D183: km | E183: 979
C184: Length of vegetation corridors | D184: km | E184: 837
C185: Average number of trees per maintenance span | D185: 0's | E185: 2
C186: Average frequency of cutting cycle | D186: years | E186: 1
B187: =B75 -> Shellharbour | C187: Route line length within zone | D187: km | E187: 488
C188: Number of maintenance spans | D188: 0's | E188: 3077
C189: Total length of maintenance spans | D189: km | E189: 960
C190: Length of vegetation corridors | D190: km | E190: 171
C191: Average number of trees per maintenance span | D191: 0's | E191: 3
C192: Average frequency of cutting cycle | D192: years | E192: 1
B193: =B81 -> Endeavour | C193: Route line length within zone | D193: km | E193: 9656
C194: Number of maintenance spans | D194: 0's | E194: 78651
C195: Total length of maintenance spans | D195: km | E195: 18479
C196: Length of vegetation corridors | D196: km | E196: 7017
C197: Average number of trees per maintenance span | D197: 0's | E197: 2
C198: Average frequency of cutting cycle | D198: years | E198: 1
B199: =B87 -> ZONE 13 | C199: Route line length within zone | D199: km
C200: Number of maintenance spans | D200: 0's
C201: Total length of maintenance spans | D201: km
C202: Length of vegetation corridors | D202: km
C203: Average number of trees per maintenance span | D203: 0's
C204: Average frequency of cutting cycle | D204: years
B205: =B93 -> ZONE 14 | C205: Route line length within zone | D205: km
... 201 more rows

Sheet 2.8 Maintenance
B1: REGULATORY REPORTING STATEMENT
B2: =INDEX(dms_TradingNameFull_List,MATCH(dms_TradingName,dms_TradingName_List)) -> Endeavour Energy
B3: =CONCATENATE((LOOKUP(dms_Model,dms_Model_List,dms_Worksheet_List))&" "&CRY) -> CATEGORY ANALYSIS 2016-17
B4: 2.8 MAINTENANCE
B6: There are TWO tables on this worksheet. Each has been grouped for ease of navigation. See the Instructions sheet on how to group or ungroup tables.
B8: 2.8.1 - DESCRIPTOR METRICS FOR ROUTINE AND NON-ROUTINE MAINTENANCE
F9: ASSET QUANTITY (0's) | H9: AVERAGE AGE OF ASSET GROUP | I9: INSPECTION CYCLE (YEARS) | J9: MAINTENANCE CYCLE (YEARS)
F10: AT YEAR END | G10: INSPECTED / MAINTAINED
B11: MAINTENANCE ACTIVITY | C11: MAINTENANCE ASSET CATEGORY | D11: ASSET QUANTITY | E11: Units | F11: =CRY -> 2016-17 | G11: =CRY -> 2016-17 | H11: =CRY -> 2016-17
B12: Pole top, overhead line & service line maintenance | C12: Pole tops and overhead lines | D12: Number of poles | E12: Number | F12: 430610 | G12: 94813 | H12: 24.68049191 | I12: 4.5 | J12: 0
C13: Service lines | D13: Number of customers | E13: Number | F13: 752761 | G13: 0 | H13: 16.26794152 | I13: 0 | J13: 0
B14: Pole inspection and treatment | C14: All poles | D14: Number of poles | E14: Number | F14: 430610 | G14: 94813 | H14: 24.68049191 | I14: 4.5 | J14: 0
B15: Overhead asset inspection | C15: All overhead assets | D15: Line patrolled (route KM) | E15: KM | F15: 37568.22567 | G15: 965.5 | H15: 31.13477369 | I15: 1 to 12 | J15: 0
B16: Network underground cable maintenance: by voltage | C16: LV - 11 to 22 KV | D16: Length (KM) | E16: KM | F16: 22172.17653 | G16: 0 | H16: 20.04248959 | I16: 0 | J16: 0
C17: 33 KV and above | D17: Length (KM) | E17: KM | F17: 378.591524 | G17: 8524.396077 | H17: 17.78207595 | I17: 2 weeks to 6 years | J17: 0
B18: Network underground cable maintenance: by location | C18: Cbd | D18: Length (KM) | E18: KM | F18: 0 | G18: 0 | H18: 0 | I18: 0 | J18: 0
C19: Non-CBD | D19: Length (KM) | E19: KM | F19: 22550.76805 | G19: 8524.396077 | H19: 20.04248959 | I19: 2 weeks to 6 years | J19: 0
B20: Distribution substation equipment & property maintenance | C20: Distribution substation transformers | D20: Number of installed transformers | E20: Number | F20: 30805 | G20: 8380 | H20: 19.41233406 | I20: 1 to 4.5 | J20: 0
C21: Distribution substation switchgear (within-substations and stand-alone switchgear) | D21: Number of switches | E21: Number | F21: 73519 | G21: 1835 | H21: 0 | I21: 1 to 4.5 | J21: 5 to 10
C22: Distribution substation - other equipment | D22: Earth mat | E22: Number | F22: 0 | G22: 0 | H22: 0 | I22: 0 | J22: 0
C23: Distribution substation - property | D23: Number of distribution substation properties maintained | E23: Number | F23: 32016 | G23: 3774 | H23: 23.95472073 | I23: 1 to 3 | J23: 0
B24: Zone substation equipment maintenance | C24: Transformers - zone substation | D24: Number | E24: Number | F24: 455 | G24: 370 | H24: 23.89075081 | I24: 0.5 | J24: 7
C25: Transformers - distribution | D25: Number of distribution transformers within zone substation | E25: Number | F25: 274 | G25: 38 | H25: 0 | I25: 0.5 | J25: 6
C26: Transformers - HV | D26: Number of HV transformers | E26: Number | F26: 0 | G26: 0 | H26: 0 | I26: 0 | J26: 0
C27: Zone substation - other equipment | D27: <DNSP to nominate> | E27: =D27 -> <DNSP to nominate> | F27: 0 | G27: 0 | H27: 0 | I27: 0 | J27: 0
B28: Zone substation property maintenance | C28: All zone substation properties | D28: Number of zone substation properties maintained | E28: Number | F28: 200 | G28: 1479 | H28: 25.9369469 | I28: 0.5 to 2 | J28: 0
B29: Public lighting maintenance | C29: Minor roads | D29: Number of public lights maintained | E29: Number | F29: 208713 | G29: 62386 | H29: 22.5735754 | I29: 8 | J29: 0
C30: Major roads | D30: Number of public lights maintained | E30: Number | F30: 0 | G30: 0 | H30: 0 | I30: 0 | J30: 0
B31: SCADA & network control maintenance | C31: SCADA & network control | D31: Number of systems | E31: Number | F31: 291 | G31: 67 | H31: 18.02580096 | I31: 0.5 | J31: 4
B32: Protection systems maintenance | C32: Protection systems | D32: Number of systems | E32: Number | F32: 5654 | G32: 2040 | H32: 0 | I32: 1.5 to 6 | J32: 0
B33: Subtransmission asset maintenance | C33: Subtransmission asset maintenance - for DNSPs with dual function assets | D33: <DNSP to nominate> | E33: =D33 -> <DNSP to nominate> | F33: 0 | G33: 0 | H33: 0 | I33: 0 | J33: 0
B34: Various assets | C34: includes rates, electricity, communications equip, metering | D34: Various | E34: Number | F34: 0 | G34: 0 | I34: 0 | J34: 0
B35: Ground clearance - access tracks | C35: Access tracks | D35: Number | E35: Number | F35: 0 | G35: 0 | H35: 0 | I35: 0 | J35: 0
B36: Other | C36: < DNSP to nominate > | D36: < DNSP to nominate >
B48: 2.8.2 - COST METRICS FOR ROUTINE AND NON-ROUTINE MAINTENANCE
F49: EXPENDITURE ($0'S)
F50: ROUTINE MAINTENANCE | G50: NON-ROUTINE MAINTENANCE
B51: MAINTENANCE ACTIVITY | C51: MAINTENANCE ASSET CATEGORY | D51: ASSET QUANTITY | E51: Units | F51: =CRY -> 2016-17 | G51: =CRY -> 2016-17
B52: Pole top, overhead line & service line maintenance | C52: Pole tops and overhead lines | D52: Number of poles | E52: Number | F52: 0 | G52: 0
C53: Service lines | D53: Number of customers | E53: Number | F53: 0 | G53: 0
B54: Pole inspection and treatment | C54: All poles | D54: Number of poles | E54: Number | F54: 11697932.99 | G54: 229690.3985
B55: Overhead asset inspection | C55: All overhead assets | D55: Line patrolled (route KM) | E55: KM | F55: 2334783.78 | G55: 18265713.18
B56: Network underground cable maintenance: by voltage | C56: LV - 11 to 22 KV | D56: Length (KM) | E56: KM | F56: 47377.43575 | G56: 1548293.833
C57: 33 KV and above | D57: Length (KM) | E57: KM | F57: 448102.1652 | G57: 1724364.435
B58: Network underground cable maintenance: by location | C58: Cbd | D58: Length (KM) | E58: KM | F58: 0 | G58: 0
C59: Non-CBD | D59: Length (KM) | E59: KM | F59: 495479.6009 | G59: 3272658.268
B60: Distribution substation equipment & property maintenance | C60: Distribution substation transformers | D60: Number of installed transformers | E60: Number | F60: 348321.8924 | G60: 0
C61: Distribution substation switchgear (within-substations and stand-alone switchgear) | D61: Number of switches | E61: Number | F61: 1532919.215 | G61: 0
C62: Distribution substation - other equipment | D62: Earth mat | E62: Number | F62: 425634.208 | G62: 2551850.596
C63: Distribution substation - property | D63: Number of distribution substation properties maintained | E63: Number | F63: 0 | G63: 0
B64: Zone substation equipment maintenance | C64: Transformers - zone substation | D64: Number | E64: Number | F64: 261428.9719 | G64: 341492.2084
C65: Transformers - distribution | D65: Number of distribution transformers within zone substation | E65: Number | F65: 52285.79439 | G65: 47732.73175
C66: Transformers - HV | D66: Number of HV transformers | E66: Number | F66: 0 | G66: 0
C67: Zone substation - other equipment | D67: =IF(ISBLANK(D27),"",D27) -> <DNSP to nominate> | E67: =IF(ISBLANK(E27),"",E27) -> <DNSP to nominate> | F67: 6313795.908 | G67: 3915185.078
B68: Zone substation property maintenance | C68: All zone substation properties | D68: Number of zone substation properties maintained | E68: Number | F68: 0 | G68: 3712352.435
B69: Public lighting maintenance | C69: Minor roads | D69: Number of public lights maintained | E69: Number | F69: 0 | G69: 0
C70: Major roads | D70: Number of public lights maintained | E70: Number | F70: 0 | G70: 0
B71: SCADA & network control maintenance | C71: SCADA & network control | D71: Number of systems | E71: Number | F71: 0 | G71: 0
B72: Protection systems maintenance | C72: Protection systems | D72: Number of systems | E72: Number | F72: 546343.7741 | G72: 974594.0491
B73: Subtransmission asset maintenance | C73: Subtransmission asset maintenance - for DNSPs with dual function assets | D73: =IF(ISBLANK(D33),"",D33) -> <DNSP to nominate> | E73: =IF(ISBLANK(E33),"",E33) -> <DNSP to nominate> | F73: 0 | G73: 0
B74: Various assets | C74: includes rates, electricity, communications equip, metering | D74: Various | E74: Number | F74: 0 | G74: 0
B75: Ground clearance - access tracks | C75: Access tracks | D75: Number | E75: Number | F75: 0 | G75: 0
B76: Other | C76: =IF(ISBLANK(C36),"",C36) -> < DNSP to nominate > | D76: < DNSP to nominate > | F76: 836048.0716 | G76: 7371035.14

Sheet 2.9 Emergency Response
B1: REGULATORY REPORTING STATEMENT
B2: =INDEX(dms_TradingNameFull_List,MATCH(dms_TradingName,dms_TradingName_List)) -> Endeavour Energy
B3: =CONCATENATE((LOOKUP(dms_Model,dms_Model_List,dms_Worksheet_List))&" "&CRY) -> CATEGORY ANALYSIS 2016-17
B4: 2.9 EMERGENCY RESPONSE
B7: There is ONE table on this worksheet. It has been sub-grouped for ease of navigation. See the Instructions sheet on how to group or ungroup tables.
B9: 2.9.1 - EMERGENCY RESPONSE EXPENDITURE (OPEX)
D10: EXPENDITURE ($0's)
D11: =CRY -> 2016-17
B12: (A) TOTAL EMERGENCY RESPONSE EXPENDITURE | C12: Total Expenditure | D12: 19988459
B13: (B) MAJOR EVENTS O&M EXPENDITURE | C13: STORM DAMAGE 24TH JULY 2016 | D13: 404525
C14: STORM DAMAGE 4TH OCTOBER 2016 | D14: 274959
C15: STORM DAMAGE 22ND MARCH 2017 | D15: 703695
B56: (C) MAJOR EVENT DAYS O&M EXPENDITURE | C56: 2016-07-24 | D56: 404525
C57: 2016-10-04 | D57: 274959
C58: 2017-03-22 | D58: 703695

Sheet 2.10 Overheads
B1: REGULATORY REPORTING STATEMENT
B2: =INDEX(dms_TradingNameFull_List,MATCH(dms_TradingName,dms_TradingName_List)) -> Endeavour Energy
B3: =CONCATENATE((LOOKUP(dms_Model,dms_Model_List,dms_Worksheet_List))&" "&CRY) -> CATEGORY ANALYSIS 2016-17
B4: 2.10 OVERHEADS
B6: =CONCATENATE("Please note. This worksheet 2.10 Overheads is the original worksheet. We have also included a different version of the Overheads template (worksheet 2.10A Overheads) which collects the information in a different way. ",dms_TradingName, " is not obliged to complete worksheet 2.10A. However, the AER would prefer to collect Overheads information as presented in the revised worksheet 2.10A Overheads. If ",dms_TradingName," is prepared to complete worksheet 2.10A in lieu of the original worksheet 2.10 Overheads, please indicate that choice by selecting from the drop down list at the right. ",dms_TradingName, " is only required to complete one version of the Overheads worksheet in order to comply with the Category Analysis RIN.") -> Please note. This worksheet 2.10 Overheads is the original worksheet. We have also included a different version of the Overheads template (worksheet 2.10A Overheads) which collects the information in a different way. Endeavour Energy is not obliged to complete worksheet 2.10A. However, the AER would prefer to collect Overheads information as presented in the revised worksheet 2.10A Overheads. If Endeavour Energy is prepared to complete worksheet 2.10A in lieu of the original worksheet 2.10 Overheads, please indicate that choice by selecting from the drop down list at the right. Endeavour Energy is only required to complete one version of the Overheads worksheet in order to comply with the Category Analysis RIN. | D6: Choose Response drop down selection
D7: Worksheet 2.10
B11: There are TWO tables on this worksheet. Each has been grouped (and sub-grouped) for ease of navigation. See the Instructions sheet on how to group or ungroup tables.
B13: =CONCATENATE("Instructions Please enter a description for each expenditure category as currently reported under ",dms_TradingName,"'s annual RIN.") -> Instructions Please enter a description for each expenditure category as currently reported under Endeavour Energy's annual RIN.
B15: 2.10.1 - NETWORK OVERHEADS EXPENDITURE
D16: EXPENDITURE ($0's)
D17: =CRY -> 2016-17
B18: NETWORK OVERHEADS
B19: Standard Control Services | C19: Network management | D19: 12909097.75
C20: Network planning | D20: 192227.238
C21: Network control and operational switching | D21: 6901284.893
C22: Quality and standard functions | D22: 0
C23: Project governance and related functions | D23: 65709.08888
C24: Other | D24: 0
C25: Inspection | D25: 5234852.095
C26: Pole Replacement | D26: 0
C27: Maintenance & repair | D27: 25838056.39
C28: Vegetation management | D28: 3420520.766
C29: Emergency response | D29: 9828680.02
C30: Other NM operating costs | D30: 8957559.333
C31: Non-network alternatives (demand management) | D31: 0
C32: Meter reading | D32: 0
C33: Customer service | D33: 22501.98617
C34: Advertising, marketing and promotions | D34: 0
C35: Other operating costs | D35: 18223334.38
B47: Alternative Control Services | C47: Ancillary Network Services | D47: 6084951.9
C48: Metering 5-6 | D48: 3493573.555
C49: Public Lighting | D49: 2585986.21
B75: Negotiated Services | C75: Total | D75: 0
B76: Unregulated Services | C76: Total | D76: 4310068.544
B79: CAPITALISED NETWORK OVERHEADS
B80: Standard Control Services | C80: Network management | D80: -1831154.077
C81: Network planning | D81: -106089.7321
C82: Network control and operational switching | D82: 0
C83: Quality and standard functions | D83: 0
C84: Project governance and related functions | D84: 0
C85: Other | D85: 0
C86: Inspection | D86: -2985468.073
C87: Pole Replacement | D87: 0
C88: Maintenance & repair | D88: -8522216.19
C89: Vegetation management | D89: -1884219.038
C90: Emergency response | D90: -3942743.065
C91: Other NM operating costs | D91: -2986371.203
C92: Non-network alternatives (demand management) | D92: 0
C93: Meter reading | D93: 0
C94: Customer service | D94: -27893.99752
C95: Advertising, marketing and promotions | D95: 0
C96: Other operating costs | D96: -2463472.973
B104: 2.10.2 - CORPORATE OVERHEADS EXPENDITURE
D105: EXPENDITURE ($0's)
D106: =CRY -> 2016-17
B107: CORPORATE OVERHEADS
B108: Standard Control Services | C108: Inspection | D108: 14838774.72
C109: Pole Replacement | D109: 0
C110: Maintenance & repair | D110: 53473511.42
C111: Vegetation management | D111: 18472263.98
C112: Emergency response | D112: 25004303.66
C113: Other NM operating costs | D113: 5785071.376
C114: Non-network alternatives (demand management) | D114: 0
C115: Meter reading | D115: 0
C116: Customer service | D116: 12341.92371
C117: Advertising, marketing and promotions | D117: 0
C118: Other operating costs | D118: 13687393.98
B129: Alternative Control Services | C129: Ancillary Network Services | D129: 10042998.64
C130: Metering 5-6 | D130: 6698266.629
C131: Public Lighting | D131: 7871497.784
B150: Negotiated Services | C150: Total | D150: 0
B151: Unregulated Services | C151: Total | D151: 9029177.36
B153: CAPITALISED CORPORATE OVERHEADS
B154: Standard Control Services | C154: Network management | D154: 0
C155: Network planning | D155: 0
C156: Network control and operational switching | D156: 0
C157: Quality and standard functions | D157: 0
C158: Project governance and related functions | D158: 0
C159: Other | D159: 0
C160: Inspection | D160: -1803987.97
C161: Pole Replacement | D161: 0
C162: Maintenance & repair | D162: -4899756.682
C163: Vegetation management | D163: -3902413.016
C164: Emergency response | D164: -2168906.198
C165: Other NM operating costs | D165: -406747.1346
C166: Non-network alternatives (demand management) | D166: 0
C167: Meter reading | D167: 0
C168: Customer service | D168: -1795.830247
C169: Advertising, marketing and promotions | D169: 0
C170: Other operating costs | D170: -1329129.849

Sheet 2.10(A) Overheads
B1: REGULATORY REPORTING STATEMENT
B2: =INDEX(dms_TradingNameFull_List,MATCH(dms_TradingName,dms_TradingName_List)) -> Endeavour Energy
B3: =CONCATENATE((LOOKUP(dms_Model,dms_Model_List,dms_Worksheet_List))&" "&CRY) -> CATEGORY ANALYSIS 2016-17
B4: 2.10(A) OVERHEADS
B6: This worksheet may be completed on a voluntary basis. Please see worksheet 2.10 for an explanation of Overheads reporting options.
B9: There are TWO tables on this worksheet. Each has been grouped (and sub-grouped) for ease of navigation. See the Instructions sheet on how to group or ungroup tables.
B11: 2.10.1 - NETWORK OVERHEADS EXPENDITURE
D12: EXPENDITURE ($0's)
D13: =CRY -> 2016-17
B14: OPEX
B15: Standard Control Services | C15: Total
B16: Alternative Control Services | C16: Total
B17: CAPEX
B18: Standard Control Services | C18: Total
B19: Alternative Control Services | C19: Total
B20: OTHER DISTRIBUTION SERVICES
B21: Negotiated Services | C21: Total
B22: Unregulated Services | C22: Total
B26: 2.10.2 - CORPORATE OVERHEADS EXPENDITURE
D27: EXPENDITURE ($0's)
D28: =CRY -> 2016-17
B29: OPEX
B30: Standard Control Services | C30: Total
B31: Alternative Control Services | C31: Total
B32: CAPEX
B33: Standard Control Services | C33: Total
B34: Alternative Control Services | C34: Total
B35: OTHER DISTRIBUTION SERVICES
B36: Negotiated Services | C36: Total
B37: Unregulated Services | C37: Total

Sheet 2.11 Labour
B1: REGULATORY REPORTING STATEMENT
B2: =INDEX(dms_TradingNameFull_List,MATCH(dms_TradingName,dms_TradingName_List)) -> Endeavour Energy
B3: =CONCATENATE((LOOKUP(dms_Model,dms_Model_List,dms_Worksheet_List))&" "&CRY) -> CATEGORY ANALYSIS 2016-17
B4: 2.11 LABOUR
B6: There are TWO tables on this worksheet. Each has been grouped for ease of navigation. See the Instructions sheet on how to group or ungroup tables.
B8: 2.11.1 - COST METRICS PER ANNUM
D9: ASL (0's) | E9: TOTAL LABOUR EXPENDITURE ($0's) | F9: AVERAGE PRODUCTIVE WORK HOURS PER ASL (0's) | G9: STAND-DOWN OCCURENCES PER ASL (0's)
D11: =CRY -> 2016-17 | E11: =CRY -> 2016-17 | F11: =CRY -> 2016-17 | G11: =CRY -> 2016-17
B12: INTERNAL LABOUR EXPENDITURE
B13: CORPORATE OVERHEADS | C13: Executive manager | D13: 7.926436987 | E13: 2059085.436 | F13: 1749.197638 | G13: 0
C14: Senior manager | D14: 13.72054173 | E14: 2343067.894 | F14: 1746.714652 | G14: 0
C15: Manager | D15: 113.5604431 | E15: 17631422.39 | F15: 1693.719502 | G15: 0
C16: Professional | D16: 78.79823333 | E16: 10659232.35 | F16: 1667.685841 | G16: 0
C17: Semi professional | D17: 95.36169427 | E17: 9217377.091 | F17: 1561.769952 | G17: 0
C18: Support staff | D18: 55.74526165 | E18: 6490045.05 | F18: 1403.242698 | G18: 0
C19: Intern, junior staff, apprentice | D19: 0.7387204829 | E19: 76335.9668 | F19: 1533.8 | G19: 0
B20: NETWORK OVERHEADS | C20: Executive manager | D20: 1.233263681 | E20: 434025.1129 | F20: 1752.9 | G20: 0
C21: Senior manager | D21: 4.42293022 | E21: 1063541.911 | F21: 1752.9 | G21: 0
C22: Manager | D22: 160.1651975 | E22: 24351683.2 | F22: 1728.516791 | G22: 0.05053090731
C23: Professional | D23: 121.3691513 | E23: 17205857.94 | F23: 1648.523978 | G23: 0.01674381091
C24: Semi professional | D24: 119.1666498 | E24: 15358955.06 | F24: 1574.229178 | G24: 0.2613230414
C25: Support staff | D25: 47.94579237 | E25: 7013518.483 | F25: 1504.321939 | G25: 0
C26: Intern, junior staff, apprentice | D26: 0 | E26: 0 | F26: 0 | G26: 0
B27: TOTAL DIRECT NETWORK LABOUR | C27: Skilled electrical worker | D27: 615.9669308 | E27: 80591890.31 | F27: 1580.459033 | G27: 2.224145374
C28: Skilled non electical worker | D28: 46.5213052 | E28: 6165557.585 | F28: 1560.995438 | G28: 0.0214955276
C29: Apprentice | D29: 31 | E29: 1916491.585 | F29: 1577.6 | G29: 0.1935483871
C30: Unskilled worker | D30: 67.16708276 | E30: 8634227.242 | F30: 1578.392771 | G30: 1.622818731
B33: 2.11.2 - DESCRIPTOR METRICS
D34: ORDINARY TIME (0's) | F34: OVERTIME (0's)
D35: PER ASL | E35: HOURLY RATE PER ASL | F35: PER ASL | G35: HOURLY RATE PER ASL
D36: =CRY -> 2016-17 | E36: =CRY -> 2016-17 | F36: =CRY -> 2016-17 | G36: =CRY -> 2016-17
B37: AVERAGE PRODUCTIVE WORK HOURS PER ASL
B38: CORPORATE OVERHEADS | C38: Executive manager | D38: 1749.197638 | E38: 188.8930577 | F38: 0 | G38: 213.2013521
C39: Senior manager | D39: 1746.714652 | E39: 148.6262368 | F39: 0 | G39: 167.9944791
C40: Manager | D40: 1693.719502 | E40: 106.1645296 | F40: 2.496886726 | G40: 119.9399101
C41: Professional | D41: 1667.685841 | E41: 87.40837963 | F41: 0.309298834 | G41: 100.1350888
C42: Semi professional | D42: 1561.769952 | E42: 69.33997836 | F42: 2.834451972 | G42: 79.83700527
C43: Support staff | D43: 1403.242698 | E43: 62.89514169 | F43: 3.888033149 | G43: 73.17242467
C44: Intern, junior staff, apprentice | D44: 1533.8 | E44: 68.49012048 | F44: 0 | G44: 80.09811171
B45: NETWORK OVERHEADS | C45: Executive manager | D45: 1752.9 | E45: 250.7970397 | F45: 0 | G45: 264.6300668
C46: Senior manager | D46: 1752.9 | E46: 188.9331644 | F46: 62.12942642 | G46: 202.067683
C47: Manager | D47: 1728.516791 | E47: 110.0323386 | F47: 52.28780813 | G47: 123.2453151
C48: Professional | D48: 1648.523978 | E48: 91.59439886 | F48: 8.063986284 | G48: 105.0547619
C49: Semi professional | D49: 1574.229178 | E49: 81.27995421 | F49: 58.48564957 | G49: 93.02114945
C50: Support staff | D50: 1504.321939 | E50: 64.16451097 | F50: 69.1494773 | G50: 74.5468501
C51: Intern, junior staff, apprentice | D51: 0 | E51: 0 | F51: 0 | G51: 0
B52: TOTAL DIRECT NETWORK LABOUR | C52: Skilled electrical worker | D52: 1580.459033 | E52: 72.98556766 | F52: 151.3221664 | G52: 83.27211863
C53: Skilled non electical worker | D53: 1560.995438 | E53: 73.30703436 | F53: 78.73989776 | G53: 83.02285866
C54: Apprentice | D54: 1577.6 | E54: 48.12237914 | F54: 1.385233631 | G54: 56.36692387
C55: Unskilled worker | D55: 1578.392771 | E55: 55.10680869 | F55: 125.6049101 | G55: 63.19209733

Sheet 2.12 Input tables
B1: REGULATORY REPORTING STATEMENT
B2: =INDEX(dms_TradingNameFull_List,MATCH(dms_TradingName,dms_TradingName_List)) -> Endeavour Energy
B3: =CONCATENATE((LOOKUP(dms_Model,dms_Model_List,dms_Worksheet_List))&" "&CRY) -> CATEGORY ANALYSIS 2016-17
B4: 2.12 INPUT TABLES
B6: There is ONE table on this worksheet. It has been sub-grouped for ease of navigation. See the Instructions sheet on how to group or ungroup tables.
B8: 2.12.1 - INPUT TABLES
D9: DIRECT MATERIAL EXPENDITURE | E9: DIRECT LABOUR EXPENDITURE | F9: CONTRACT EXPENDITURE | G9: OTHER EXPENDITURE | H9: RELATED PARTY CONTRACT EXPENDITURE | I9: RELATED PARTY CONTRACT MARGIN EXPENDITURE
D10: EXPENDITURE ($0's)
D11: =CRY -> 2016-17 | E11: 2016-17 | F11: 2016-17 | G11: 2016-17 | H11: 2016-17 | I11: 2016-17
B12: VEGETATION MANAGEMENT | C12: ='2.7 Vegetation management'!B15 -> Bowenfels/Kandos | D12: 369.7594165 | E12: 194021.4066 | F12: 2081799.731 | G12: 2817.962138 | H12: 0 | I12: 0
C13: ='2.7 Vegetation management'!B21 -> Katoomba | D13: 462.3264008 | E13: 242593.4664 | F13: 2602965.425 | G13: 3523.42154 | H13: 0 | I13: 0
C14: ='2.7 Vegetation management'!B27 -> Penrith | D14: 361.7243566 | E14: 189805.2229 | F14: 2036561.165 | G14: 2756.72639 | H14: 0 | I14: 0
C15: ='2.7 Vegetation management'!B33 -> Windsor | D15: 541.8455686 | E15: 284319.032 | F15: 3050669.999 | G15: 4129.442629 | H15: 0 | I15: 0
C16: ='2.7 Vegetation management'!B39 -> Hills (Parramatta/KingsPark | D16: 665.6943228 | E16: 349305.3675 | F16: 3747956.645 | G16: 5073.302568 | H16: 0 | I16: 0
C17: ='2.7 Vegetation management'!B45 -> Hoxton Park | D17: 380.189791 | E17: 199494.4679 | F17: 2140524.269 | G17: 2897.452745 | H17: 0 | I17: 0
C18: ='2.7 Vegetation management'!B51 -> Bowral (Mossvale) | D18: 704.8437899 | E18: 369848.0077 | F18: 3968373.884 | G18: 5371.663369 | H18: 0 | I18: 0
C19: ='2.7 Vegetation management'!B57 -> Nowra/Ulladulla | D19: 931.4137152 | E19: 488734.5422 | F19: 5243995.785 | G19: 7098.368472 | H19: 0 | I19: 0
C20: ='2.7 Vegetation management'!B63 -> Narellan/Picton | D20: 552.905987 | E20: 290122.692 | F20: 3112941.776 | G20: 4213.734844 | H20: 0 | I20: 0
C21: ='2.7 Vegetation management'!B69 -> Springhill | D21: 452.9013251 | E21: 237647.9089 | F21: 2549900.866 | G21: 3451.592385 | H21: 0 | I21: 0
C22: ='2.7 Vegetation management'!B75 -> Shellharbour | D22: 411.2353265 | E22: 215784.7858 | F22: 2315315.185 | G22: 3134.052922 | H22: 0 | I22: 0
C23: ='2.7 Vegetation management'!B81 -> Endeavour
C24: ='2.7 Vegetation management'!B87 -> ZONE 13
C25: ='2.7 Vegetation management'!B93 -> ZONE 14
C26: ='2.7 Vegetation management'!B99 -> ZONE 15
C27: ='2.7 Vegetation management'!B105 -> ZONE 16
C28: ='2.7 Vegetation management'!B111 -> ZONE 17
C29: ='2.7 Vegetation management'!B117 -> ZONE 18
B30: ROUTINE MAINTENANCE | C30: Pole top, overhead line & service line maintenance | D30: 0 | E30: 0 | F30: 0 | G30: 0 | H30: 0 | I30: 0
C31: Pole inspection and treatment | D31: 854929.3925 | E31: 6841003.363 | F31: 3034672.189 | G31: 967328.0485 | H31: 0 | I31: 0
C32: Overhead asset inspection | D32: 170634.8703 | E32: 1365391.963 | F32: 605688.4929 | G32: 193068.454 | H32: 0 | I32: 0
C33: Network underground cable maintenance | D33: 36211.53194 | E33: 289758.6794 | F33: 128537.0814 | G33: 40972.30816 | H33: 0 | I33: 0
C34: Distribution substation equipment & property maintenance | D34: 168595.2136 | E34: 1349070.968 | F34: 598448.4924 | G34: 190760.6411 | H34: 0 | I34: 0
C35: Zone substation equipment maintenance | D35: 484363.6631 | E35: 3875797.787 | F35: 1719305.653 | G35: 548043.5707 | H35: 0 | I35: 0
C36: Zone substation property maintenance | D36: 0 | E36: 0 | F36: 0 | G36: 0 | H36: 0 | I36: 0
C37: Public lighting maintenance | D37: 0 | E37: 0 | F37: 0 | G37: 0 | H37: 0 | I37: 0
C38: Scada & network control maintenance | D38: 0 | E38: 0 | F38: 0 | G38: 0 | H38: 0 | I38: 0
C39: Protection systems maintenance | D39: 39928.87898 | E39: 319504.2746 | F39: 141732.2409 | G39: 45178.37955 | H39: 0 | I39: 0
C40: Subtransmission asset maintenance - for dnsps with dual function assets | D40: 0 | E40: 0 | F40: 0 | G40: 0 | H40: 0 | I40: 0
C41: Other | D41: 61101.56986 | E41: 488924.6393 | F41: 216887.1914 | G41: 69134.67106 | H41: 0 | I41: 0
B42: NON-ROUTINE MAINTENANCE | C42: Pole top, overhead line & service line maintenance | D42: 0 | E42: 0 | F42: 0 | G42: 0 | H42: 0 | I42: 0
C43: Pole inspection and treatment | D43: 16786.64709 | E43: 134323.969 | F43: 59586.17346 | G43: 18993.60896 | H43: 0 | I43: 0
C44: Overhead asset inspection | D44: 1334927.724 | E44: 10681870.49 | F44: 4738482.587 | G44: 1510432.372 | H44: 0 | I44: 0
C45: Network underground cable maintenance | D45: 239178.3015 | E45: 1913865.144 | F45: 848991.4446 | G45: 270623.3774 | H45: 0 | I45: 0
C46: Distribution substation equipment & property maintenance | D46: 186498.938 | E46: 1492333.605 | F46: 661999.8627 | G46: 211018.1909 | H46: 0 | I46: 0
C47: Zone substation equipment maintenance | D47: 314582.6398 | E47: 2517238.167 | F47: 1116647.991 | G47: 355941.2201 | H47: 0 | I47: 0
C48: Zone substation property maintenance | D48: 271312.822 | E48: 2171000.253 | F48: 963056.6954 | G48: 306982.6642 | H48: 0 | I48: 0
C49: Public lighting maintenance | D49: 0 | E49: 0 | F49: 0 | G49: 0 | H49: 0 | I49: 0
C50: SCADA & network control maintenance | D50: 0 | E50: 0 | F50: 0 | G50: 0 | H50: 0 | I50: 0
C51: Protection systems maintenance | D51: 71227.03633 | E51: 569946.9446 | F51: 252828.7227 | G51: 80591.34551 | H51: 0 | I51: 0
C52: Subtransmission asset maintenance - for DNSP with dual function assets | D52: 0 | E52: 0 | F52: 0 | G52: 0 | H52: 0 | I52: 0
C53: Other | D53: 538703.2562 | E53: 4310614.21 | F53: 1912190.415 | G53: 609527.2594 | H53: 0 | I53: 0
B54: OVERHEADS | C54: Network overheads | D54: 1542005.635 | E54: 47896787.42 | F54: 6141503.462 | G54: 27738479.28 | H54: 0 | I54: 0
C55: Corporate overheads | D55: 2783551.04 | E55: 86460872.39 | F55: 11086333.25 | G55: 50072108.1 | H55: 0 | I55: 0
B56: AUGMENTATION | C56: Subtransmission substations, switching stations, zone substations | D56: 2087733.005 | E56: 3082162.034 | F56: 8246370.386 | G56: 472594.5446 | H56: 0 | I56: 0
C57: Subtransmission lines | D57: 1734441.18 | E57: 2560590.24 | F57: 6850897.289 | G57: 392620.8178 | H57: 0 | I57: 0
C58: HV feeders | D58: 251039.5577 | E58: 302838.2812 | F58: 690592.6327 | G58: 76927.18831 | H58: 0 | I58: 0
C59: Distribution substations | D59: 135632.8243 | E59: 235843.2108 | F59: 33779.71894 | G59: 30326.00794 | H59: 0 | I59: 0
C60: LV feeders | D60: 97681.19778 | E60: 298423.9446 | F60: 240764.6571 | G60: 76534.36859 | H60: 0 | I60: 0
C61: Other assets | D61: 0 | E61: 0 | F61: 0 | G61: 0 | H61: 0 | I61: 0
B62: CONNECTIONS | C62: Simple and complex customer connections | D62: 8748011.57 | E62: 1664480.317 | F62: 2646380.962 | G62: 210959.1518 | H62: 0 | I62: 0
B63: EMERGENCY RESPONSE | C63: Major storms | D63: 178409.5333 | E63: 934493.0856 | F63: 131052.9793 | G63: 139224.0718 | H63: 0 | I63: 0
C64: Major event days | D64: 178409.5333 | E64: 934493.0856 | F64: 131052.9793 | G64: 139224.0718 | H64: 0 | I64: 0
B65: PUBLIC LIGHTING | C65: All public lighting services | D65: 5947272.934 | E65: 14603423.38 | F65: 1788186.918 | G65: 2270831.766 | H65: 0 | I65: 0
B66: METERING | C66: All metering services | D66: 4406612.978 | E66: 11145637.94 | F66: 5265797.652 | G66: 731250.5909 | H66: 0 | I66: 0
B67: FEE-BASED SERVICES | C67: All fee-based services | D67: 120225.0072 | E67: 18970316.33 | F67: 4621284.238 | G67: 307585.9791 | H67: 0 | I67: 0
B68: QUOTED SERVICES | C68: All quoted services | D68: 29481.898 | E68: 4651951.737 | F68: 1133243.688 | G68: 75427.05693 | H68: 0 | I68: 0
B69: REPLACEMENT | C69: Poles | D69: 2010966.312 | E69: 3641867.066 | F69: 7223089.895 | G69: 857081.7574 | H69: 0 | I69: 0
C70: Pole top structures | D70: 0 | E70: 0 | F70: 0 | G70: 0 | H70: 0 | I70: 0
C71: Overhead conductors | D71: 2693170.357 | E71: 4877340.99 | F71: 9673464.677 | G71: 1147839.806 | H71: 0 | I71: 0
C72: Underground cables | D72: 645794.3976 | E72: 1169535.926 | F72: 2319596.782 | G72: 275240.1141 | H72: 0 | I72: 0
C73: Service lines | D73: 2103141.849 | E73: 3808797.286 | F73: 7554170.621 | G73: 896367.3339 | H73: 0 | I73: 0
C74: Transformers | D74: 335837.1905 | E74: 608202.3333 | F74: 1206276.904 | G74: 143135.1324 | H74: 0 | I74: 0
C75: Switchgear | D75: 801055.9319 | E75: 1450715.111 | F75: 2877272.967 | G75: 341413.1911 | H75: 0 | I75: 0
C76: Public lighting | D76: 351205.0412 | E76: 636033.5651 | F76: 1261475.923 | G76: 149684.9709 | H76: 0 | I76: 0
C77: SCADA network control and protection systems | D77: 682614.1772 | E77: 1236216.676 | F77: 2451847.918 | G77: 290932.8491 | H77: 0 | I77: 0
C78: Other | D78: 7041343.159 | E78: 8314054.798 | F78: 1952941.997 | G78: 861896.1362 | H78: 0 | I78: 0
B79: NON-NETWORK EXPENDITURE | C79: IT and communications | D79: 5044.568161 | E79: 9034279.121 | F79: 695147.8623 | G79: 40597842.14 | H79: 0 | I79: 0
C80: Motor vehicles | D80: 3890171.891 | E80: 3308059.946 | F80: 488701.9176 | G80: 10196499.79 | H80: 0 | I80: 0
C81: Buildings and property | D81: 333250.5116 | E81: 3093556.391 | F81: 6797043.525 | G81: 7905929.149 | H81: 0 | I81: 0
C82: Other | D82: 1092691.295 | E82: 10733.64625 | F82: 308336.7242 | G82: 2508.842482 | H82: 0 | I82: 0

Sheet 4.1 Public lighting
B1: REGULATORY REPORTING STATEMENT
B2: =INDEX(dms_TradingNameFull_List,MATCH(dms_TradingName,dms_TradingName_List)) -> Endeavour Energy
B3: =CONCATENATE((LOOKUP(dms_Model,dms_Model_List,dms_Worksheet_List))&" "&CRY) -> CATEGORY ANALYSIS 2016-17
B4: 4.1 PUBLIC LIGHTING
B7: There are THREE tables on this worksheet. Each has been grouped for ease of navigation. See the Instructions sheet on how to group or ungroup tables.
B9: 4.1.1 - DESCRIPTOR METRICS OVER YEAR
C10: LIGHT TYPE | E10: VOLUME (0's)
E11: =CRY -> 2016-17
B12: POPULATION OF LIGHTS
C13: 2 X 14W T5 | E13: 7855
C14: 2 X 18W FL | E14: 41
C15: 2 X 24W T5 | E15: 8686
C16: 2 X 40W FL | E16: 93
C17: 3 X 40W FL | E17: 11
C18: 4 X 20W FL | E18: 1
C19: 20W FL | E19: 259
C20: 40W FL | E20: 3685
C21: 42W CFL | E21: 18694
C22: IDENTILITE | E22: 25
C23: 60W INC | E23: 1
C24: 100W MH | E24: 935
C25: 150W MH | E25: 5354
C26: 250W MH | E26: 1590
C27: 400W MH | E27: 961
C28: 2 X 250W MH | E28: 151
C29: 2 X 400W MH | E29: 37
C30: 1000W MH | E30: 14
C31: 50W SHP | E31: 6
C32: 70W SHP | E32: 1271
C33: 100W SHP | E33: 2332
C34: 120W SHP | E34: 35
C35: 150W SHP | E35: 15295
C36: 250W SHP | E36: 27341
C37: 310W SHP | E37: 320
C38: 400W SHP | E38: 3656
C39: 2 X 250W SHP | E39: 237
C40: 2 X 400W SHP | E40: 132
C41: 3 X 400W SHP | E41: 4
C42: 4 X 600W SHP | E42: 4
C43: 50W MF | E43: 5544
C44: 80W MF | E44: 70460
C45: 125W MF | E45: 2288
C46: 250W MF | E46: 1923
C47: 400W MF | E47: 693
C48: 90W SLP | E48: 25
C49: 18W LED | E49: 17749
C50: 25W LED | E50: 6848
C51: 2 X 20W FL | E51: 92
C52: 4 X 40W FL | E52: 1
C53: 4 X 400W SHP | E53: 1
B214: 4.1.2 - DESCRIPTOR METRICS ANNUALLY
E217: VOLUMES & EXPENDITURE
B218: SERVICE/SERVICE QUALITY | C218: DESCRIPTOR METRIC | D218: UNITS | E218: =CRY -> 2016-17
B219: LIGHT INSTALLATION | C219: Major road light installation | D219: 0's | E219: 510
C220: Minor road light installation | D220: 0's | E220: 1300
C221: Number of poles installed | D221: 0's | E221: 1612
C222: Total cost | D222: $0s | E222: 7695341
B223: LIGHT REPLACEMENT | C223: Major road light replacement | D223: 0's | E223: 849
C224: Minor road light replacement | D224: 0's | E224: 2644
C225: Number of poles replaced | D225: 0's | E225: 18
C226: Total cost | D226: $0s | E226: 10977428
B227: LIGHT MAINTENANCE | C227: Major road light maintenance | D227: 0's | E227: 23734
C228: Minor road light maintenance | D228: 0's | E228: 60429
C229: Number of poles installed | D229: 0's | E229: 39855
C230: Total cost | D230: $0s | E230: 5936946
B231: QUALITY OF SUPPLY | C231: Mean days to rectify/replace public lighting assets | D231: days | E231: 4.7
C232: GSO breaches | D232: 0's | E232: 266
C233: GSL payments | D233: $0s | E233: 4635
C234: Customer complaints | D234: 0's | E234: 17430
B237: 4.1.3 - COST METRICS
E238: AVERAGE UNIT COST ($)
B239: ACTIVITY TYPE | C239: LIGHT TYPE | E239: =CRY -> 2016-17
B240: LIGHT INSTALLATION
C241: Major road Luminaire and Column | E241: 15593.35
C242: Major road Luminaire only on existing column or pole | E242: 5862
C244: Minor road Luminaire and Column | E244: 14648.28
C245: Minor road Luminaire only on existing column or pole | E245: 2260.66
B340: LIGHT REPLACEMENT
C341: Major Road 250W HPS Luminaire | E341: 358.49
C342: Major Road 150W HPS Luminaire | E342: 332.95
C344: Minor Road42W CFL Luminaire | E344: 257.34
C345: Minor Road 18W LED | E345: 296.59
B440: LIGHT MAINTENANCE
C441: Major Road 250W HPS (Lamp and labour) | E441: 106.64
C442: Major Road 150W HPS (Lamp and labour) | E442: 97.41
C444: Minor Road 42W CFL (Lamp and labour) | E444: 87.34
C445: Minor Road 2X24W T5 (Lamp and labour) | E445: 85.49
C446: 18W LED Cleaning | E446: 82.09

Sheet 4.2 Metering
B1: REGULATORY REPORTING STATEMENT
B2: =INDEX(dms_TradingNameFull_List,MATCH(dms_TradingName,dms_TradingName_List)) -> Endeavour Energy
B3: =CONCATENATE((LOOKUP(dms_Model,dms_Model_List,dms_Worksheet_List))&" "&CRY) -> CATEGORY ANALYSIS 2016-17
B4: 4.2 METERING
B6: There are TWO tables on this worksheet. Each has been grouped for ease of navigation. See the Instructions sheet on how to group or ungroup tables.
B8: 4.2.1 - METERING DESCRIPTOR METRIC
D9: VOLUMES (0's)
B10: ASSET CATEGORY | C10: ASSET SUBCATEGORY | D10: =CRY -> 2016-17
B11: Meter Type 4 | C11: Single phase meter population | D11: 60
C12: Multi phase meter population | D12: 694
C13: Current transformer connected meter population | D13: 245
C14: Direct connect meter population | D14: 509
B15: Meter Type 5 | C15: Single phase meter population | D15: 0
C16: Multi phase meter population | D16: 0
C17: Current transformer connected meter population | D17: 0
C18: Direct connect meter population | D18: 0
B19: Meter Type 6 | C19: Single phase meter population | D19: 1404321
C20: Multi phase meter population | D20: 164141
C21: Current transformer connected meter population | D21: 4314
C22: Direct connect meter population | D22: 1564148
B25: 4.2.2 - COST METRICS
D26: VOLUMES (0's) | E26: EXPENDITURE ($0's)
B27: SERVICE SUBCATEGORY | C27: METER TYPE | D27: =CRY -> 2016-17 | E27: =CRY -> 2016-17
B28: Meter purchase | C28: Meter Type 4 | D28: 0 | E28: 0
C29: Meter Type 5 | D29: 0 | E29: 0
C30: Meter Type 6 | D30: 39710 | E30: 1929422.09
B31: Meter testing | C31: Meter Type 4 | D31: 9 | E31: 5814
C32: Meter Type 5 | D32: 0 | E32: 0
C33: Meter Type 6 | D33: 784 | E33: 506469
B34: Meter investigation | C34: Meter Type 4 | D34: 92 | E34: 19716
C35: Meter Type 5 | D35: 0 | E35: 0
C36: Meter Type 6 | D36: 802 | E36: 171868
B37: Scheduled meter reading | C37: Meter Type 4 | D37: 0 | E37: 0
C38: Meter Type 5 | D38: 0 | E38: 0
C39: Meter Type 6 | D39: 3816992 | E39: 10584278
B40: Special meter reading | C40: Meter Type 4 | D40: 0 | E40: 0
C41: Meter Type 5 | D41: 0 | E41: 0
C42: Meter Type 6 | D42: 0 | E42: 0
B43: New meter installation | C43: Meter Type 4 | D43: 0 | E43: 0
C44: Meter Type 5 | D44: 0 | E44: 0
C45: Meter Type 6 | D45: 31849 | E45: 109715.7747
B46: Meter replacement | C46: Meter Type 4 | D46: 2 | E46: 50.90221039
C47: Meter Type 5 | D47: 0 | E47: 0
C48: Meter Type 6 | D48: 1193 | E48: 30363.1685
B49: Meter maintenance | C49: Meter Type 4 | D49: 4 | E49: 4871
C50: Meter Type 5 | D50: 0 | E50: 0
C51: Meter Type 6 | D51: 3299 | E51: 4016963
B52: Remote meter reading | C52: Meter Type 4 | D52: 754 | E52: 363302
B53: Remote meter re-configuration | C53: Meter Type 4 | D53: 0 | E53: 0
B54: Other metering | C54: Meter Type 4 | E54: 1829
C55: Meter Type 5 | E55: 0
C56: Meter Type 6 | E56: 3804638
C57: Meter Type 7 | E57: 0
B58: IT infrastructure capex | C58: Meter Type 4 | E58: 0
B59: IT infrastructure opex | C59: Meter Type 4 | E59: 0
B60: Communications infrastructure capex | C60: Meter Type 4 | E60: 0
B61: Communications infrastructure opex | C61: Meter Type 4 | E61: 0

Sheet 4.3 Fee-based services
B1: REGULATORY REPORTING STATEMENT
B2: =INDEX(dms_TradingNameFull_List,MATCH(dms_TradingName,dms_TradingName_List)) -> Endeavour Energy
B3: =CONCATENATE((LOOKUP(dms_Model,dms_Model_List,dms_Worksheet_List))&" "&CRY) -> CATEGORY ANALYSIS 2016-17
B4: 4.3 ANCILLARY SERVICES - FEE BASED SERVICES
B6: 4.3.1 - COST METRICS FOR FEE-BASED SERVICES
D7: EXPENDITURE ($0's) | F7: VOLUMES (0's)
B8: SERVICE | C8: SERVICE SUBCATEGORY | D8: =CRY -> 2016-17 | F8: =CRY -> 2016-17
B9: Common Fee-Based Services | C9: Energisation | D9: 0 | E9: ED_FEE431_00001 | F9: 0
C10: De-energisation | D10: 0 | E10: ED_FEE431_00002 | F10: 0
C11: Re-energisation | D11: 0 | E11: ED_FEE431_00003 | F11: 0
B12: Miscellaneous Fee-Based Services | C12: Administration Fee - Subdivision - URD - Underground - 1-5 lots | D12: 63275.11897 | E12: ED_FEE431_00004 | F12: 88
C13: Administration Fee - Subdivision - URD - Underground - 6-10 lots | D13: 44186.60317 | E13: ED_FEE431_00005 | F13: 50
C14: Administration Fee - Subdivision - URD - Underground - 11-40 lots | D14: 209404.6381 | E14: ED_FEE431_00006 | F14: 168
C15: Administration Fee - Subdivision - URD - Underground - 41+ lots | D15: 192656.668 | E15: ED_FEE431_00007 | F15: 135
C16: Administration Fee - Subdivision - Non Urban - Underground - 1-5 lots | D16: 2162.461337 | E16: ED_FEE431_00008 | F16: 4
C17: Administration Fee - Subdivision - Non Urban - Underground - 6-10 lots | D17: 4464.033832 | E17: ED_FEE431_00009 | F17: 6
C18: Administration Fee - Subdivision - Non Urban - Underground - 11-40 lots | D18: 6261.487909 | E18: ED_FEE431_00010 | F18: 7
C19: Administration Fee - Subdivision - Non Urban - Underground - 41+ lots | D19: 0 | E19: ED_FEE431_00011 | F19: 0
C20: Administration Fee - Subdivision - Non Urban - Overhead - 1-5 poles | D20: 14416.28192 | E20: ED_FEE431_00012 | F20: 20
C21: Administration Fee - Subdivision - Non Urban - Overhead - 6-10 poles | D21: 4318.941446 | E21: ED_FEE431_00013 | F21: 5
C22: Administration Fee - Subdivision - Non Urban - Overhead - 11+ poles | D22: 6446.277358 | E22: ED_FEE431_00014 | F22: 4
C23: Administration Fee - Subdivision - Industrial & Commercial - Per Hour | D23: 0 | E23: ED_FEE431_00015 | F23: 0
C24: Administration Fee - Connection of Load - URD - Per Hour | D24: 0 | E24: ED_FEE431_00016 | F24: 0
C25: Administration Fee - Connection of Load - Industrial & Commercial - Per Hour | D25: 0 | E25: ED_FEE431_00017 | F25: 0
C26: Administration Fee - Connection of Load - Non Urban - Underground - Per Hour | D26: 0 | E26: ED_FEE431_00018 | F26: 0
C27: Administration Fee - Connection of Load - Non Urban - Overhead - 1-5 poles | D27: 3200.451921 | E27: ED_FEE431_00019 | F27: 4
C28: Administration Fee - Connection of Load - Non Urban - Overhead - 6-10 poles | D28: 0 | E28: ED_FEE431_00020 | F28: 0
C29: Administration Fee - Connection of Load - Non Urban - Overhead - 11+ poles | D29: 0 | E29: ED_FEE431_00021 | F29: 0
C30: Administration Fee - Other - Asset Relocation - Per Hour | D30: 0 | E30: ED_FEE431_00022 | F30: 0
C31: Administration Fee - Other - Public Lighting - Per Hour | D31: 0 | E31: ED_FEE431_00023 | F31: 0
C32: Administration Fee - Other - Generator - Per Hour | D32: 0 | E32: ED_FEE431_00024 | F32: 0
C33: Design Information Fee - Subdivision - URD - Underground - 1-5 lots | D33: 49219.48164 | E33: ED_FEE431_00025 | F33: 86
C34: Design Information Fee - Subdivision - URD - Underground - 6-10 lots | D34: 38958.43665 | E34: ED_FEE431_00026 | F34: 50
C35: Design Information Fee - Subdivision - URD - Underground - 11-40 lots | D35: 224350.6293 | E35: ED_FEE431_00027 | F35: 166
C36: Design Information Fee - Subdivision - URD - Underground - 41+ lots | D36: 234121.343 | E36: ED_FEE431_00028 | F36: 136
C37: Design Information Fee - Subdivision - Non Urban - Per Hour | D37: 0 | E37: ED_FEE431_00029 | F37: 0
C38: Design Information Fee - Subdivision - Industrial & Commercial - Per Hour | D38: 0 | E38: ED_FEE431_00030 | F38: 0
C39: Design Information Fee - Connection of Load - Industrial & Commercial - <= 200A/Phase (LV) | D39: 0 | E39: ED_FEE431_00031 | F39: 0
C40: Design Information Fee - Connection of Load - Industrial & Commercial - <= 700A/Phase (LV) | D40: 0 | E40: ED_FEE431_00032 | F40: 0
C41: Design Information Fee - Connection of Load - Industrial & Commercial - > 700A/Phase (LV) | D41: 0 | E41: ED_FEE431_00033 | F41: 0
C42: Design Information Fee - Connection of Load - Industrial & Commercial - HV Customer | D42: 0 | E42: ED_FEE431_00034 | F42: 0
C43: Design Information Fee - Connection of Load - Industrial & Commercial - Transmission | D43: 0 | E43: ED_FEE431_00035 | F43: 0
C44: Design Information Fee - Connection of Load - Multi-Dwelling - <= 5 units | D44: 0 | E44: ED_FEE431_00036 | F44: 0
C45: Design Information Fee - Connection of Load - Multi-Dwelling - <= 20 units | D45: 0 | E45: ED_FEE431_00037 | F45: 0
C46: Design Information Fee - Connection of Load - Multi-Dwelling - <= 40 units | D46: 0 | E46: ED_FEE431_00038 | F46: 0
C47: Design Information Fee - Connection of Load - Multi-Dwelling - > 40 units | D47: 0 | E47: ED_FEE431_00039 | F47: 0
C48: Design Information Fee - Connection of Load - Non Urban - <= 200A/Phase (LV) | D48: 0 | E48: ED_FEE431_00040 | F48: 0
C49: Design Information Fee - Connection of Load - Non Urban - <= 700A/Phase (LV) | D49: 0 | E49: ED_FEE431_00041 | F49: 0
C50: Design Information Fee - Connection of Load - Non Urban - > 700A/Phase (LV) | D50: 0 | E50: ED_FEE431_00042 | F50: 0
C51: Design Information Fee - Connection of Load - Non Urban - HV Customer | D51: 0 | E51: ED_FEE431_00043 | F51: 0
C52: Design Information Fee - Connection of Load - Non Urban - Transmission | D52: 0 | E52: ED_FEE431_00044 | F52: 0
C53: Design Information Fee - Connection of Load - Non Urban - Multi-Dwelling - <= 5 units | D53: 0 | E53: ED_FEE431_00045 | F53: 0
C54: Design Information Fee - Connection of Load - Non Urban - Multi-Dwelling - <= 20 units | D54: 0 | E54: ED_FEE431_00046 | F54: 0
C55: Design Information Fee - Connection of Load - Non Urban - Multi-Dwelling - <= 40 units | D55: 0 | E55: ED_FEE431_00047 | F55: 0
C56: Design Information Fee - Connection of Load - Non Urban - Multi-Dwelling - > 40 units | D56: 0 | E56: ED_FEE431_00048 | F56: 0
C57: Design Information Fee - Connection of Load - Non Urban - Single Residential - Per Hour | D57: 0 | E57: ED_FEE431_00049 | F57: 0
C58: Design Information Fee - Asset Relocation | D58: 0 | E58: ED_FEE431_00050 | F58: 0
C59: Design Information Fee - Public Lighting | D59: 0 | E59: ED_FEE431_00051 | F59: 0
C60: Design Information Fee - Generator | D60: 0 | E60: ED_FEE431_00052 | F60: 0
C61: Design Certification Fee - Subdivision - URD - Underground - 1-5 lots | D61: 51350.55811 | E61: ED_FEE431_00053 | F61: 86
C62: Design Certification Fee - Subdivision - URD - Underground - 6-10 lots | D62: 44674.09049 | E62: ED_FEE431_00054 | F62: 49
C63: Design Certification Fee - Subdivision - URD - Underground - 11-40 lots | D63: 249086.8739 | E63: ED_FEE431_00055 | F63: 166
C64: Design Certification Fee - Subdivision - URD - Underground - 41+ lots | D64: 245859.5962 | E64: ED_FEE431_00056 | F64: 137
C65: Design Certification Fee - Subdivision - Non Urban - Underground - 1-5 lots | D65: 1197.370918 | E65: ED_FEE431_00057 | F65: 4
C66: Design Certification Fee - Subdivision - Non Urban - Underground - 6-10 lots | D66: 5365.437237 | E66: ED_FEE431_00058 | F66: 6
C67: Design Certification Fee - Subdivision - Non Urban - Underground - 11-40 lots | D67: 8320.780718 | E67: ED_FEE431_00059 | F67: 7
C68: Design Certification Fee - Subdivision - Non Urban - Underground - 41+ lots | D68: 0 | E68: ED_FEE431_00060 | F68: 0
C69: Design Certification Fee - Subdivision - Non Urban - Overhead - 1-5 poles | D69: 13455.26823 | E69: ED_FEE431_00061 | F69: 22
C70: Design Certification Fee - Subdivision - Non Urban - Overhead - 6-10 poles | D70: 1773.324483 | E70: ED_FEE431_00062 | F70: 2
C71: Design Certification Fee - Subdivision - Non Urban - Overhead - 11+ poles | D71: 7407.479538 | E71: ED_FEE431_00063 | F71: 5
C72: Design Certification Fee - Subdivision - Industrial & Commercial - Underground - 1-10 lots | D72: 12504.19896 | E72: ED_FEE431_00064 | F72: 14
C73: Design Certification Fee - Subdivision - Industrial & Commercial - Underground - 11-40 lots | D73: 5388.169131 | E73: ED_FEE431_00065 | F73: 1
C74: Design Certification Fee - Subdivision - Industrial & Commercial - Underground - 41 + lots | D74: 0 | E74: ED_FEE431_00066 | F74: 0
C75: Design Certification Fee - Subdivision - Industrial & Commercial - Overhead - 1-5 poles | D75: 1796.056377 | E75: ED_FEE431_00067 | F75: 3
C76: Design Certification Fee - Subdivision - Industrial & Commercial - Overhead - 6-10 poles | D76: 0 | E76: ED_FEE431_00068 | F76: 0
C77: Design Certification Fee - Subdivision - Industrial & Commercial - Overhead - 11+ poles | D77: 0 | E77: ED_FEE431_00069 | F77: 0
C78: Design Certification Fee - Connection of Load - Industrial & Commercial - <= 200A/Phase (LV) | D78: 0 | E78: ED_FEE431_00070 | F78: 0
C79: Design Certification Fee - Connection of Load - Industrial & Commercial - <= 700A/Phase (LV) | D79: 0 | E79: ED_FEE431_00071 | F79: 0
C80: Design Certification Fee - Connection of Load - Industrial & Commercial - > 700A/Phase (LV) | D80: 0 | E80: ED_FEE431_00072 | F80: 0
C81: Design Certification Fee - Connection of Load - Industrial & Commercial - HV Customer | D81: 0 | E81: ED_FEE431_00073 | F81: 0
C82: Design Certification Fee - Connection of Load - Industrial & Commercial - Transmission | D82: 0 | E82: ED_FEE431_00074 | F82: 0
C83: Design Certification Fee - Connection of Load - Multi-Dwelling - <= 5 units | D83: 0 | E83: ED_FEE431_00075 | F83: 0
C84: Design Certification Fee - Connection of Load - Multi-Dwelling - <= 20 units | D84: 0 | E84: ED_FEE431_00076 | F84: 0
C85: Design Certification Fee - Connection of Load - Multi-Dwelling - <= 40 units | D85: 0 | E85: ED_FEE431_00077 | F85: 0
C86: Design Certification Fee - Connection of Load - Multi-Dwelling - > 40 units | D86: 0 | E86: ED_FEE431_00078 | F86: 0
C87: Design Certification Fee - Connection of Load - Non Urban - Underground - Per Hour | D87: 0 | E87: ED_FEE431_00079 | F87: 0
C88: Design Certification Fee - Connection of Load - Non Urban - Overhead - 1-5 poles | D88: 3388.788595 | E88: ED_FEE431_00080 | F88: 5
C89: Design Certification Fee - Connection of Load - Non Urban - Overhead - 6-10 poles | D89: 0 | E89: ED_FEE431_00081 | F89: 0
C90: Design Certification Fee - Connection of Load - Non Urban - Overhead - 11+ poles | D90: 0 | E90: ED_FEE431_00082 | F90: 0
C91: Design Certification Fee - Connection of Load - Indoor Substation - Per Hour | D91: 0 | E91: ED_FEE431_00083 | F91: 0
C92: Design Certification Fee - Asset Relocation | D92: 0 | E92: ED_FEE431_00084 | F92: 0
C93: Design Certification Fee - Public Lighting | D93: 0 | E93: ED_FEE431_00085 | F93: 0
C94: Design Certification Fee - Generator | D94: 0 | E94: ED_FEE431_00086 | F94: 0
C95: Design Re-certification Fee - Subdivision - Industrial & Commercial - Per Hour | D95: 0 | E95: ED_FEE431_00087 | F95: 0
C96: Design Re-certification Fee - Subdivision - Non Urban - Per Hour | D96: 0 | E96: ED_FEE431_00088 | F96: 0
C97: Design Re-certification Fee - Subdivision - URD - Per Hour | D97: 0 | E97: ED_FEE431_00089 | F97: 0
C98: Design Re-certification Fee - Connection of Load - Industrial & Commercial - Per Hour | D98: 0 | E98: ED_FEE431_00090 | F98: 0
C99: Design Re-certification Fee - Connection of Load - Non Urban - Per Hour | D99: 0 | E99: ED_FEE431_00091 | F99: 0
C100: Design Re-certification Fee - Connection of Load - URD - Per Hour | D100: 0 | E100: ED_FEE431_00092 | F100: 0
C101: Design Re-certification Fee - Asset Relocation | D101: 0 | E101: ED_FEE431_00093 | F101: 0
C102: Design Re-certification Fee - Public Lighting | D102: 0 | E102: ED_FEE431_00094 | F102: 0
C103: Notification of Arrangement - Subdivision - Industrial & Commercial - Per NOA | D103: 7338.406613 | E103: ED_FEE431_00095 | F103: 43
C104: Notification of Arrangement - Subdivision - Non Urban - Per NOA | D104: 17589.49734 | E104: ED_FEE431_00096 | F104: 103
C105: Notification of Arrangement - Subdivision - URD - Per NOA | D105: 218210.409 | E105: ED_FEE431_00097 | F105: 1279
C106: Early NOA Fee - Subdivision - Industrial & Commercial - Per hour for early notification | D106: 0 | E106: ED_FEE431_00098 | F106: 0
C107: Early NOA Fee - Subdivision - Non Urban - Per hour for early notification | D107: 0 | E107: ED_FEE431_00099 | F107: 0
C108: Early NOA Fee - Subdivision - URD - Per hour for early notification | D108: 0 | E108: ED_FEE431_00100 | F108: 0
C109: Compliance Certificate - Connection of Load - Industrial & Commercial - Per Compliance Cert | D109: 2052.948756 | E109: ED_FEE431_00101 | F109: 12
C110: Compliance Certificate - Connection of Load - Non Urban - Per Compliance Cert | D110: 0 | E110: ED_FEE431_00102 | F110: 0
C111: Compliance Certificate - Connection of Load - URD - Per Compliance Cert | D111: 24942.09047 | E111: ED_FEE431_00103 | F111: 145.9994715
C112: Early Compliance Certificate - Connection of Load - Industrial & Commercial - Per hour for early compliance | D112: 0 | E112: ED_FEE431_00104 | F112: 0
C113: Early Compliance Certificate - Connection of Load - Non Urban - Per hour for early compliance | D113: 0 | E113: ED_FEE431_00105 | F113: 0
C114: Early Compliance Certificate - Connection of Load - URD - Per hour for early compliance | D114: 0 | E114: ED_FEE431_00106 | F114: 0
C115: Inspection of Service Work (Level 1) - Subdivision - URD - Underground - Per Lot (1 - 10) - Grade A | D115: 17430.95874 | E115: ED_FEE431_00107 | F115: 49
C116: Inspection of Service Work (Level 1) - Subdivision - URD - Underground - Per Lot (11 - 50) - Grade A | D116: 121367.3044 | E116: ED_FEE431_00108 | F116: 95
C117: Inspection of Service Work (Level 1) - Subdivision - URD - Underground - Per Lot (51 +) - Grade A | D117: 188922.2734 | E117: ED_FEE431_00109 | F117: 73
C118: Inspection of Service Work (Level 1) - Subdivision - URD - Underground - Per Lot (1 - 10) - Grade B | D118: 44633.07515 | E118: ED_FEE431_00110 | F118: 76
C119: Inspection of Service Work (Level 1) - Subdivision - URD - Underground - Per Lot (11 - 50) - Grade B | D119: 224334.9535 | E119: ED_FEE431_00111 | F119: 77
C120: Inspection of Service Work (Level 1) - Subdivision - URD - Underground - Per Lot (51 +) - Grade B | D120: 193075.5392 | E120: ED_FEE431_00112 | F120: 30
C121: Inspection of Service Work (Level 1) - Subdivision - URD - Underground - Per Lot (1 - 10) - Grade C | D121: 8211.244905 | E121: ED_FEE431_00113 | F121: 5
C122: Inspection of Service Work (Level 1) - Subdivision - URD - Underground - Per Lot (11 - 50) - Grade C | D122: 20572.52769 | E122: ED_FEE431_00114 | F122: 4
C123: Inspection of Service Work (Level 1) - Subdivision - URD - Underground - Per Lot (51 +) - Grade C | D123: 0 | E123: ED_FEE431_00115 | F123: 0
C124: Inspection of Service Work (Level 1) - Subdivision - URD - Underground - Per Hour + travel time | D124: 0 | E124: ED_FEE431_00116 | F124: 0
C125: Inspection of Service Work (Level 1) - Subdivision - Non Urban - Underground - Per Lot (1 - 10) - Grade A | D125: 246.0629796 | E125: ED_FEE431_00117 | F125: 1
C126: Inspection of Service Work (Level 1) - Subdivision - Non Urban - Underground - Per Lot (11 - 50) - Grade A | D126: 887.3433311 | E126: ED_FEE431_00118 | F126: 1
C127: Inspection of Service Work (Level 1) - Subdivision - Non Urban - Underground - Per Lot (51+) - Grade A | D127: 0 | E127: ED_FEE431_00119 | F127: 0
C128: Inspection of Service Work (Level 1) - Subdivision - Non Urban - Underground - Per Lot (1 - 10) - Grade B | D128: 11754.23551 | E128: ED_FEE431_00120 | F128: 14
C129: Inspection of Service Work (Level 1) - Subdivision - Non Urban - Underground - Per Lot (11 - 50) - Grade B | D129: 15852.48176 | E129: ED_FEE431_00121 | F129: 6
C130: Inspection of Service Work (Level 1) - Subdivision - Non Urban - Underground - Per Lot (51+) - Grade B | D130: 0 | E130: ED_FEE431_00122 | F130: 0
C131: Inspection of Service Work (Level 1) - Subdivision - Non Urban - Underground - Per Lot (1 - 10) - Grade C | D131: 2196.083708 | E131: ED_FEE431_00123 | F131: 1
C132: Inspection of Service Work (Level 1) - Subdivision - Non Urban - Underground - Per Lot (11 - 50) - Grade C | D132: 7914.290522 | E132: ED_FEE431_00124 | F132: 1
C133: Inspection of Service Work (Level 1) - Subdivision - Non Urban - Underground - Per Lot (51+) - Grade C | D133: 0 | E133: ED_FEE431_00125 | F133: 0
C134: Inspection of Service Work (Level 1) - Subdivision - Non Urban - Overhead - Per Pole (1 - 5) - Grade A | D134: 0 | E134: ED_FEE431_00126 | F134: 0
C135: Inspection of Service Work (Level 1) - Subdivision - Non Urban - Overhead - Per Pole (6 - 10) - Grade A | D135: 0 | E135: ED_FEE431_00127 | F135: 0
C136: Inspection of Service Work (Level 1) - Subdivision - Non Urban - Overhead - Per Pole (11 +) - Grade A | D136: 2029.93848 | E136: ED_FEE431_00128 | F136: 1
C137: Inspection of Service Work (Level 1) - Subdivision - Non Urban - Overhead - Per Pole Sub - Grade A | D137: 0 | E137: ED_FEE431_00129 | F137: 3
C138: Inspection of Service Work (Level 1) - Subdivision - Non Urban - Overhead - Per Pole (1 - 5) - Grade B | D138: 7608.439266 | E138: ED_FEE431_00130 | F138: 10
C139: Inspection of Service Work (Level 1) - Subdivision - Non Urban - Overhead - Per Pole (6 - 10) - Grade B | D139: 2312.708152 | E139: ED_FEE431_00131 | F139: 2
C140: Inspection of Service Work (Level 1) - Subdivision - Non Urban - Overhead - Per Pole (11 +) - Grade B | D140: 0 | E140: ED_FEE431_00132 | F140: 0
C141: Inspection of Service Work (Level 1) - Subdivision - Non Urban - Overhead - Per Pole Sub - Grade B | D141: 0 | E141: ED_FEE431_00133 | F141: 5
C142: Inspection of Service Work (Level 1) - Subdivision - Non Urban - Overhead - Per Pole (1 - 5) - Grade C | D142: 479.6687168 | E142: ED_FEE431_00134 | F142: 2
C143: Inspection of Service Work (Level 1) - Subdivision - Non Urban - Overhead - Per Pole (6 - 10) - Grade C | D143: 0 | E143: ED_FEE431_00135 | F143: 0
C144: Inspection of Service Work (Level 1) - Subdivision - Non Urban - Overhead - Per Pole (11 +) - Grade C | D144: 0 | E144: ED_FEE431_00136 | F144: 0
C145: Inspection of Service Work (Level 1) - Subdivision - Non Urban - Overhead - Per Pole Sub - Grade C | D145: 0 | E145: ED_FEE431_00137 | F145: 0
C146: Inspection of Service Work (Level 1) - Subdivision - Industrial & Commercial - Overhead - Per Pole (1 - 5) - Grade A | D146: 73.81889389 | E146: ED_FEE431_00138 | F146: 1
C147: Inspection of Service Work (Level 1) - Subdivision - Industrial & Commercial - Overhead - Per Pole (6 - 10) - Grade A | D147: 0 | E147: ED_FEE431_00139 | F147: 0
C148: Inspection of Service Work (Level 1) - Subdivision - Industrial & Commercial - Overhead - Per Pole (11 +) - Grade A | D148: 0 | E148: ED_FEE431_00140 | F148: 0
C149: Inspection of Service Work (Level 1) - Subdivision - Industrial & Commercial - Overhead - Per Pole Sub - Grade A | D149: 0 | E149: ED_FEE431_00141 | F149: 0
C150: Inspection of Service Work (Level 1) - Subdivision - Industrial & Commercial - Overhead - Per Pole (1 - 5) - Grade B | D150: 0 | E150: ED_FEE431_00142 | F150: 0
C151: Inspection of Service Work (Level 1) - Subdivision - Industrial & Commercial - Overhead - Per Pole (6 - 10) - Grade B | D151: 0 | E151: ED_FEE431_00143 | F151: 0
C152: Inspection of Service Work (Level 1) - Subdivision - Industrial & Commercial - Overhead - Per Pole (11 +) - Grade B | D152: 0 | E152: ED_FEE431_00144 | F152: 0
C153: Inspection of Service Work (Level 1) - Subdivision - Industrial & Commercial - Overhead - Per Pole Sub - Grade B | D153: 0 | E153: ED_FEE431_00145 | F153: 0
C154: Inspection of Service Work (Level 1) - Subdivision - Industrial & Commercial - Overhead - Per Pole (1 - 5) - Grade C | D154: 541.330445 | E154: ED_FEE431_00146 | F154: 1
C155: Inspection of Service Work (Level 1) - Subdivision - Industrial & Commercial - Overhead - Per Pole (6 - 10) - Grade C | D155: 0 | E155: ED_FEE431_00147 | F155: 0
C156: Inspection of Service Work (Level 1) - Subdivision - Industrial & Commercial - Overhead - Per Pole (11 +) - Grade C | D156: 0 | E156: ED_FEE431_00148 | F156: 0
C157: Inspection of Service Work (Level 1) - Subdivision - Industrial & Commercial - Overhead - Per Pole Sub - Grade C | D157: 0 | E157: ED_FEE431_00149 | F157: 0
C158: Inspection of Service Work (Level 1) - Subdivision - Industrial & Commercial - Underground - Per Lot (1 - 10) - Grade A | D158: 553.6173736 | E158: ED_FEE431_00150 | F158: 3
C159: Inspection of Service Work (Level 1) - Subdivision - Industrial & Commercial - Underground - Per Lot (11 - 50) - Grade A | D159: 1906.988092 | E159: ED_FEE431_00151 | F159: 1
C160: Inspection of Service Work (Level 1) - Subdivision - Industrial & Commercial - Underground - Per Lot (51+) - Grade A | D160: 0 | E160: ED_FEE431_00152 | F160: 0
C161: Inspection of Service Work (Level 1) - Subdivision - Industrial & Commercial - Underground - Per Lot (1 - 10) - Grade B | D161: 4577.58244 | E161: ED_FEE431_00153 | F161: 9
C162: Inspection of Service Work (Level 1) - Subdivision - Industrial & Commercial - Underground - Per Lot (11 - 50) - Grade B | D162: 0 | E162: ED_FEE431_00154 | F162: 0
C163: Inspection of Service Work (Level 1) - Subdivision - Industrial & Commercial - Underground - Per Lot (51+) - Grade B | D163: 0 | E163: ED_FEE431_00155 | F163: 0
C164: Inspection of Service Work (Level 1) - Subdivision - Industrial & Commercial - Underground - Per Lot (1 - 10) - Grade C | D164: 0 | E164: ED_FEE431_00156 | F164: 0
C165: Inspection of Service Work (Level 1) - Subdivision - Industrial & Commercial - Underground - Per Lot (11 - 50) - Grade C | D165: 5096.544997 | E165: ED_FEE431_00157 | F165: 1
C166: Inspection of Service Work (Level 1) - Subdivision - Industrial & Commercial - Underground - Per Lot (51+) - Grade C | D166: 0 | E166: ED_FEE431_00158 | F166: 0
C167: Inspection of Service Work (Level 1) - Connection of Load - URD - Underground - Per hour + travel time | D167: 0 | E167: ED_FEE431_00159 | F167: 0
C168: Inspection of Service Work (Level 1) - Connection of Load - Non Urban - Underground - Per hour + travel time | D168: 0 | E168: ED_FEE431_00160 | F168: 0
C169: Inspection of Service Work (Level 1) - Connection of Load - Non Urban - Overhead - Per Pole (1 - 5) - Grade A | D169: 2808.053854 | E169: ED_FEE431_00161 | F169: 10
C170: Inspection of Service Work (Level 1) - Connection of Load - Non Urban - Overhead - Per Pole (1 - 5) - Grade B | D170: 28620.80655 | E170: ED_FEE431_00162 | F170: 39
C171: Inspection of Service Work (Level 1) - Connection of Load - Non Urban - Overhead - Per Pole (1 - 5) - Grade C | D171: 4213.086444 | E171: ED_FEE431_00163 | F171: 5
C172: Inspection of Service Work (Level 1) - Connection of Load - Non Urban - Overhead - Per Pole (6 - 10) - Grade A | D172: 430.6102144 | E172: ED_FEE431_00164 | F172: 1
C173: Inspection of Service Work (Level 1) - Connection of Load - Non Urban - Overhead - Per Pole (6 - 10) - Grade B | D173: 0 | E173: ED_FEE431_00165 | F173: 0
C174: Inspection of Service Work (Level 1) - Connection of Load - Non Urban - Overhead - Per Pole (6 - 10) - Grade C | D174: 0 | E174: ED_FEE431_00166 | F174: 0
C175: Inspection of Service Work (Level 1) - Connection of Load - Non Urban - Overhead - Per Pole (11 +) - Grade A | D175: 824.3028716 | E175: ED_FEE431_00167 | F175: 1
C176: Inspection of Service Work (Level 1) - Connection of Load - Non Urban - Overhead - Per Pole (11 +) - Grade B | D176: 0 | E176: ED_FEE431_00168 | F176: 0
C177: Inspection of Service Work (Level 1) - Connection of Load - Non Urban - Overhead - Per Pole (11 +) - Grade C | D177: 0 | E177: ED_FEE431_00169 | F177: 0
C178: Inspection of Service Work (Level 1) - Connection of Load - Non Urban - Overhead - Per Pole Sub - Grade A | D178: 0 | E178: ED_FEE431_00170 | F178: 2
C179: Inspection of Service Work (Level 1) - Connection of Load - Non Urban - Overhead - Per Pole Sub - Grade B | D179: 0 | E179: ED_FEE431_00171 | F179: 22
C180: Inspection of Service Work (Level 1) - Connection of Load - Non Urban - Overhead - Per Pole Sub - Grade C | D180: 0 | E180: ED_FEE431_00172 | F180: 3
C181: Inspection of Service Work (Level 1) - Connection of Load - Industrial & Commercial - Underground - Per Hour + travel time | D181: 0 | E181: ED_FEE431_00173 | F181: 0
C182: Inspection of Service Work (Level 1) - Connection of Load - Industrial & Commercial - Overhead - Per Pole (1 - 5) - Grade A | D182: 0 | E182: ED_FEE431_00174 | F182: 0
C183: Inspection of Service Work (Level 1) - Connection of Load - Industrial & Commercial - Overhead - Per Pole (1 - 5) - Grade B | D183: 2429.802987 | E183: ED_FEE431_00175 | F183: 3
C184: Inspection of Service Work (Level 1) - Connection of Load - Industrial & Commercial - Overhead - Per Pole (1 - 5) - Grade C | D184: 0 | E184: ED_FEE431_00176 | F184: 0
C185: Inspection of Service Work (Level 1) - Connection of Load - Industrial & Commercial - Overhead - Per Pole (6 - 10) - Grade A | D185: 0 | E185: ED_FEE431_00177 | F185: 0
C186: Inspection of Service Work (Level 1) - Connection of Load - Industrial & Commercial - Overhead - Per Pole (6 - 10) - Grade B | D186: 0 | E186: ED_FEE431_00178 | F186: 0
C187: Inspection of Service Work (Level 1) - Connection of Load - Industrial & Commercial - Overhead - Per Pole (6 - 10) - Grade C | D187: 0 | E187: ED_FEE431_00179 | F187: 0
C188: Inspection of Service Work (Level 1) - Connection of Load - Industrial & Commercial - Overhead - Per Pole (11+) - Grade A | D188: 0 | E188: ED_FEE431_00180 | F188: 0
C189: Inspection of Service Work (Level 1) - Connection of Load - Industrial & Commercial - Overhead - Per Pole (11+) - Grade B | D189: 2296.406682 | E189: ED_FEE431_00181 | F189: 1
C190: Inspection of Service Work (Level 1) - Connection of Load - Industrial & Commercial - Overhead - Per Pole (11+) - Grade C | D190: 0 | E190: ED_FEE431_00182 | F190: 0
C191: Inspection of Service Work (Level 1) - Connection of Load - Industrial & Commercial - Overhead - Per Pole Sub - Grade A | D191: 0 | E191: ED_FEE431_00183 | F191: 0
C192: Inspection of Service Work (Level 1) - Connection of Load - Industrial & Commercial - Overhead - Per Pole Sub - Grade B | D192: 0 | E192: ED_FEE431_00184 | F192: 3
C193: Inspection of Service Work (Level 1) - Connection of Load - Industrial & Commercial - Overhead - Per Pole Sub - Grade C | D193: 0 | E193: ED_FEE431_00185 | F193: 0
C194: Inspection of Service Work (Level 1) - Other - Asset Relocation - Underground - Per Hour + travel time | D194: 0 | E194: ED_FEE431_00186 | F194: 0
C195: Inspection of Service Work (Level 1) - Other - Public Lighting - Underground - Per Hour + travel time | D195: 0 | E195: ED_FEE431_00187 | F195: 0
C196: Access Permits - Subdivision - URD - Per Lot | D196: 1051964.332 | E196: ED_FEE431_00188 | F196: 242
C197: Access Permits - All Other - Industrial & Commercial | D197: 860886.378 | E197: ED_FEE431_00189 | F197: 218.9995962
C198: Access Permits - All Other - Non Urban | D198: 366903.2649 | E198: ED_FEE431_00190 | F198: 103.9996674
C199: Access Permits - All Other - URD | D199: 406682.1108 | E199: ED_FEE431_00191 | F199: 115.9996753
C200: Access Permits - All Other - Asset Relocation | D200: 509977.712 | E200: ED_FEE431_00192 | F200: 147.9997427
C201: Access Permits - All Other - Public Lighting | D201: 21170.94234 | E201: ED_FEE431_00193 | F201: 5.999980204
... 278 more rows

Sheet 4.4 Quoted services
B1: REGULATORY REPORTING STATEMENT
B2: =INDEX(dms_TradingNameFull_List,MATCH(dms_TradingName,dms_TradingName_List)) -> Endeavour Energy
B3: =CONCATENATE((LOOKUP(dms_Model,dms_Model_List,dms_Worksheet_List))&" "&CRY) -> CATEGORY ANALYSIS 2016-17
B4: 4.4 ANCILLARY SERVICES - QUOTED SERVICES
B6: 4.4.1 - COST METRICS FOR QUOTED SERVICES
D7: EXPENDITURE ($0's) | F7: VOLUMES (0's)
B8: SERVICE | C8: SERVICE SUBCATEGORY | D8: =CRY -> 2016-17 | F8: =CRY -> 2016-17
B9: Quoted Services | C9: Administration Fee - Subdivision - URD - Underground - 1-5 lots | D9: 0 | E9: ED_QUO441_00002 | F9: 0
C10: Administration Fee - Subdivision - URD - Underground - 6-10 lots | D10: 0 | E10: ED_QUO441_00003 | F10: 0
C11: Administration Fee - Subdivision - URD - Underground - 11-40 lots | D11: 0 | E11: ED_QUO441_00004 | F11: 0
C12: Administration Fee - Subdivision - URD - Underground - 41+ lots | D12: 0 | E12: ED_QUO441_00005 | F12: 0
C13: Administration Fee - Subdivision - Non Urban - Underground - 1-5 lots | D13: 0 | E13: ED_QUO441_00006 | F13: 0
C14: Administration Fee - Subdivision - Non Urban - Underground - 6-10 lots | D14: 0 | E14: ED_QUO441_00007 | F14: 0
C15: Administration Fee - Subdivision - Non Urban - Underground - 11-40 lots | D15: 0 | E15: ED_QUO441_00008 | F15: 0
C16: Administration Fee - Subdivision - Non Urban - Underground - 41+ lots | D16: 0 | E16: ED_QUO441_00009 | F16: 0
C17: Administration Fee - Subdivision - Non Urban - Overhead - 1-5 poles | D17: 0 | E17: ED_QUO441_00010 | F17: 0
C18: Administration Fee - Subdivision - Non Urban - Overhead - 6-10 poles | D18: 0 | E18: ED_QUO441_00011 | F18: 0
C19: Administration Fee - Subdivision - Non Urban - Overhead - 11+ poles | D19: 0 | E19: ED_QUO441_00012 | F19: 0
C20: Administration Fee - Subdivision - Industrial & Commercial - Per Hour | D20: 10795.66 | E20: ED_QUO441_00013 | F20: 18
C21: Administration Fee - Connection of Load - URD - Per Hour | D21: 81495.88 | E21: ED_QUO441_00014 | F21: 149
C22: Administration Fee - Connection of Load - Industrial & Commercial - Per Hour | D22: 134230.78 | E22: ED_QUO441_00015 | F22: 242
C23: Administration Fee - Connection of Load - Non Urban - Underground - Per Hour | D23: 61738.95 | E23: ED_QUO441_00016 | F23: 87
C24: Administration Fee - Connection of Load - Non Urban - Overhead - 1-5 poles | D24: 0 | E24: ED_QUO441_00017 | F24: 0
C25: Administration Fee - Connection of Load - Non Urban - Overhead - 6-10 poles | D25: 0 | E25: ED_QUO441_00018 | F25: 0
C26: Administration Fee - Connection of Load - Non Urban - Overhead - 11+ poles | D26: 0 | E26: ED_QUO441_00019 | F26: 0
C27: Administration Fee - Other - Asset Relocation - Per Hour | D27: 83368.33 | E27: ED_QUO441_00020 | F27: 152
C28: Administration Fee - Other - Public Lighting - Per Hour | D28: 26808.64 | E28: ED_QUO441_00021 | F28: 49
C29: Administration Fee - Other - Generator - Per Hour | D29: 0 | E29: ED_QUO441_00022 | F29: 0
C30: Design Information Fee - Subdivision - URD - Underground - 1-5 lots | D30: 0 | E30: ED_QUO441_00023 | F30: 0
C31: Design Information Fee - Subdivision - URD - Underground - 6-10 lots | D31: 0 | E31: ED_QUO441_00024 | F31: 0
C32: Design Information Fee - Subdivision - URD - Underground - 11-40 lots | D32: 0 | E32: ED_QUO441_00025 | F32: 0
C33: Design Information Fee - Subdivision - URD - Underground - 41+ lots | D33: 0 | E33: ED_QUO441_00026 | F33: 0
C34: Design Information Fee - Subdivision - Non Urban - Per Hour | D34: 34798.23 | E34: ED_QUO441_00027 | F34: 46
C35: Design Information Fee - Subdivision - Industrial & Commercial - Per Hour | D35: 23891.56 | E35: ED_QUO441_00028 | F35: 18
C36: Design Information Fee - Connection of Load - Industrial & Commercial - <= 200A/Phase (LV) | D36: 88191.73 | E36: ED_QUO441_00029 | F36: 76
C37: Design Information Fee - Connection of Load - Industrial & Commercial - <= 700A/Phase (LV) | D37: -107476.85 | E37: ED_QUO441_00030 | F37: 64
C38: Design Information Fee - Connection of Load - Industrial & Commercial - > 700A/Phase (LV) | D38: 333618.58 | E38: ED_QUO441_00031 | F38: 88
C39: Design Information Fee - Connection of Load - Industrial & Commercial - HV Customer | D39: 91596.48 | E39: ED_QUO441_00032 | F39: 4
C40: Design Information Fee - Connection of Load - Industrial & Commercial - Transmission | D40: 22460.4 | E40: ED_QUO441_00033 | F40: 1
C41: Design Information Fee - Connection of Load - Multi-Dwelling - <= 5 units | D41: 0 | E41: ED_QUO441_00034 | F41: 0
C42: Design Information Fee - Connection of Load - Multi-Dwelling - <= 20 units | D42: 48875 | E42: ED_QUO441_00035 | F42: 44
C43: Design Information Fee - Connection of Load - Multi-Dwelling - <= 40 units | D43: 87039.34 | E43: ED_QUO441_00036 | F43: 45
C44: Design Information Fee - Connection of Load - Multi-Dwelling - > 40 units | D44: 211515.26 | E44: ED_QUO441_00037 | F44: 59
C45: Design Information Fee - Connection of Load - Non Urban - <= 200A/Phase (LV) | D45: 0 | E45: ED_QUO441_00038 | F45: 0
C46: Design Information Fee - Connection of Load - Non Urban - <= 700A/Phase (LV) | D46: 0 | E46: ED_QUO441_00039 | F46: 0
C47: Design Information Fee - Connection of Load - Non Urban - > 700A/Phase (LV) | D47: 0 | E47: ED_QUO441_00040 | F47: 0
C48: Design Information Fee - Connection of Load - Non Urban - HV Customer | D48: 0 | E48: ED_QUO441_00041 | F48: 0
C49: Design Information Fee - Connection of Load - Non Urban - Transmission | D49: 0 | E49: ED_QUO441_00042 | F49: 0
C50: Design Information Fee - Connection of Load - Non Urban - Multi-Dwelling - <= 5 units | D50: 0 | E50: ED_QUO441_00043 | F50: 0
C51: Design Information Fee - Connection of Load - Non Urban - Multi-Dwelling - <= 20 units | D51: 0 | E51: ED_QUO441_00044 | F51: 0
C52: Design Information Fee - Connection of Load - Non Urban - Multi-Dwelling - <= 40 units | D52: 0 | E52: ED_QUO441_00045 | F52: 0
C53: Design Information Fee - Connection of Load - Non Urban - Multi-Dwelling - > 40 units | D53: 0 | E53: ED_QUO441_00046 | F53: 0
C54: Design Information Fee - Connection of Load - Non Urban - Single Residential - Per Hour | D54: 114317.56 | E54: ED_QUO441_00047 | F54: 93
C55: Design Information Fee - Asset Relocation | D55: 224006.65 | E55: ED_QUO441_00048 | F55: 157
C56: Design Information Fee - Public Lighting | D56: 29749.64 | E56: ED_QUO441_00049 | F56: 50
C57: Design Information Fee - Generator | D57: 0 | E57: ED_QUO441_00050 | F57: 0
C58: Design Certification Fee - Subdivision - URD - Underground - 1-5 lots | D58: 0 | E58: ED_QUO441_00051 | F58: 0
C59: Design Certification Fee - Subdivision - URD - Underground - 6-10 lots | D59: 0 | E59: ED_QUO441_00052 | F59: 0
C60: Design Certification Fee - Subdivision - URD - Underground - 11-40 lots | D60: 0 | E60: ED_QUO441_00053 | F60: 0
C61: Design Certification Fee - Subdivision - URD - Underground - 41+ lots | D61: 0 | E61: ED_QUO441_00054 | F61: 0
C62: Design Certification Fee - Subdivision - Non Urban - Underground - 1-5 lots | D62: 0 | E62: ED_QUO441_00055 | F62: 0
C63: Design Certification Fee - Subdivision - Non Urban - Underground - 6-10 lots | D63: 0 | E63: ED_QUO441_00056 | F63: 0
C64: Design Certification Fee - Subdivision - Non Urban - Underground - 11-40 lots | D64: 0 | E64: ED_QUO441_00057 | F64: 0
C65: Design Certification Fee - Subdivision - Non Urban - Underground - 41+ lots | D65: 0 | E65: ED_QUO441_00058 | F65: 0
C66: Design Certification Fee - Subdivision - Non Urban - Overhead - 1-5 poles | D66: 0 | E66: ED_QUO441_00059 | F66: 0
C67: Design Certification Fee - Subdivision - Non Urban - Overhead - 6-10 poles | D67: 0 | E67: ED_QUO441_00060 | F67: 0
C68: Design Certification Fee - Subdivision - Non Urban - Overhead - 11+ poles | D68: 0 | E68: ED_QUO441_00061 | F68: 0
C69: Design Certification Fee - Subdivision - Industrial & Commercial - Underground - 1-10 lots | D69: 0 | E69: ED_QUO441_00062 | F69: 0
C70: Design Certification Fee - Subdivision - Industrial & Commercial - Underground - 11-40 lots | D70: 0 | E70: ED_QUO441_00063 | F70: 0
C71: Design Certification Fee - Subdivision - Industrial & Commercial - Underground - 41 + lots | D71: 0 | E71: ED_QUO441_00064 | F71: 0
C72: Design Certification Fee - Subdivision - Industrial & Commercial - Overhead - 1-5 poles | D72: 0 | E72: ED_QUO441_00065 | F72: 0
C73: Design Certification Fee - Subdivision - Industrial & Commercial - Overhead - 6-10 poles | D73: 0 | E73: ED_QUO441_00066 | F73: 0
C74: Design Certification Fee - Subdivision - Industrial & Commercial - Overhead - 11+ poles | D74: 0 | E74: ED_QUO441_00067 | F74: 0
C75: Design Certification Fee - Connection of Load - Industrial & Commercial - <= 200A/Phase (LV) | D75: 114795.83 | E75: ED_QUO441_00068 | F75: 74
C76: Design Certification Fee - Connection of Load - Industrial & Commercial - <= 700A/Phase (LV) | D76: 193997.02 | E76: ED_QUO441_00069 | F76: 66
C77: Design Certification Fee - Connection of Load - Industrial & Commercial - > 700A/Phase (LV) | D77: 388433.87 | E77: ED_QUO441_00070 | F77: 87
C78: Design Certification Fee - Connection of Load - Industrial & Commercial - HV Customer | D78: 11973.71 | E78: ED_QUO441_00071 | F78: 2
C79: Design Certification Fee - Connection of Load - Industrial & Commercial - Transmission | D79: 0 | E79: ED_QUO441_00072 | F79: 0
C80: Design Certification Fee - Connection of Load - Multi-Dwelling - <= 5 units | D80: 0 | E80: ED_QUO441_00073 | F80: 0
C81: Design Certification Fee - Connection of Load - Multi-Dwelling - <= 20 units | D81: 62689.23 | E81: ED_QUO441_00074 | F81: 41
C82: Design Certification Fee - Connection of Load - Multi-Dwelling - <= 40 units | D82: 143968.38 | E82: ED_QUO441_00075 | F82: 51
C83: Design Certification Fee - Connection of Load - Multi-Dwelling - > 40 units | D83: 316588.8 | E83: ED_QUO441_00076 | F83: 54
C84: Design Certification Fee - Connection of Load - Non Urban - Underground - Per Hour | D84: 94168.15 | E84: ED_QUO441_00077 | F84: 86
C85: Design Certification Fee - Connection of Load - Non Urban - Overhead - 1-5 poles | D85: 0 | E85: ED_QUO441_00078 | F85: 0
C86: Design Certification Fee - Connection of Load - Non Urban - Overhead - 6-10 poles | D86: 0 | E86: ED_QUO441_00079 | F86: 0
C87: Design Certification Fee - Connection of Load - Non Urban - Overhead - 11+ poles | D87: 0 | E87: ED_QUO441_00080 | F87: 0
C88: Design Certification Fee - Connection of Load - Indoor Substation - Per Hour | D88: 0 | E88: ED_QUO441_00081 | F88: 0
C89: Design Certification Fee - Asset Relocation | D89: 227730.42 | E89: ED_QUO441_00082 | F89: 150
C90: Design Certification Fee - Public Lighting | D90: 56314.3 | E90: ED_QUO441_00083 | F90: 49
C91: Design Certification Fee - Generator | D91: 0 | E91: ED_QUO441_00084 | F91: 0
C92: Design Re-certification Fee - Subdivision - Industrial & Commercial - Per Hour | D92: 9279.62 | E92: ED_QUO441_00085 | F92: 11
C93: Design Re-certification Fee - Subdivision - Non Urban - Per Hour | D93: 13118.1 | E93: ED_QUO441_00086 | F93: 13
C94: Design Re-certification Fee - Subdivision - URD - Per Hour | D94: 148815.13 | E94: ED_QUO441_00087 | F94: 184
C95: Design Re-certification Fee - Connection of Load - Industrial & Commercial - Per Hour | D95: 54022.05 | E95: ED_QUO441_00088 | F95: 58
C96: Design Re-certification Fee - Connection of Load - Non Urban - Per Hour | D96: 14053.97 | E96: ED_QUO441_00089 | F96: 14
C97: Design Re-certification Fee - Connection of Load - URD - Per Hour | D97: 47489.51 | E97: ED_QUO441_00090 | F97: 59
C98: Design Re-certification Fee - Asset Relocation | D98: 57815.12 | E98: ED_QUO441_00091 | F98: 60
C99: Design Re-certification Fee - Public Lighting | D99: 23549.69 | E99: ED_QUO441_00092 | F99: 32
C100: Notification of Arrangement - Subdivision - Industrial & Commercial - Per NOA | D100: 0 | E100: ED_QUO441_00093 | F100: 0
C101: Notification of Arrangement - Subdivision - Non Urban - Per NOA | D101: 0 | E101: ED_QUO441_00094 | F101: 0
C102: Notification of Arrangement - Subdivision - URD - Per NOA | D102: 0 | E102: ED_QUO441_00095 | F102: 0
C103: Early NOA Fee - Subdivision - Industrial & Commercial - Per hour for early notification | D103: 1026.42 | E103: ED_QUO441_00096 | F103: 2
C104: Early NOA Fee - Subdivision - Non Urban - Per hour for early notification | D104: 1881.77 | E104: ED_QUO441_00097 | F104: 6
C105: Early NOA Fee - Subdivision - URD - Per hour for early notification | D105: 55600.25 | E105: ED_QUO441_00098 | F105: 154
C106: Compliance Certificate - Connection of Load - Industrial & Commercial - Per Compliance Cert | D106: 0 | E106: ED_QUO441_00099 | F106: 0
C107: Compliance Certificate - Connection of Load - Non Urban - Per Compliance Cert | D107: 0 | E107: ED_QUO441_00100 | F107: 0
C108: Compliance Certificate - Connection of Load - URD - Per Compliance Cert | D108: 0 | E108: ED_QUO441_00101 | F108: 0
C109: Early Compliance Certificate - Connection of Load - Industrial & Commercial - Per hour for early compliance | D109: 0 | E109: ED_QUO441_00102 | F109: 0
C110: Early Compliance Certificate - Connection of Load - Non Urban - Per hour for early compliance | D110: 0 | E110: ED_QUO441_00103 | F110: 0
C111: Early Compliance Certificate - Connection of Load - URD - Per hour for early compliance | D111: 598.75 | E111: ED_QUO441_00104 | F111: 2
C112: Inspection of Service Work (Level 1) - Subdivision - URD - Underground - Per Lot (1 - 10) - Grade A | D112: 0 | E112: ED_QUO441_00105 | F112: 0
C113: Inspection of Service Work (Level 1) - Subdivision - URD - Underground - Per Lot (11 - 50) - Grade A | D113: 0 | E113: ED_QUO441_00106 | F113: 0
C114: Inspection of Service Work (Level 1) - Subdivision - URD - Underground - Per Lot (51 +) - Grade A | D114: 0 | E114: ED_QUO441_00107 | F114: 0
C115: Inspection of Service Work (Level 1) - Subdivision - URD - Underground - Per Lot (1 - 10) - Grade B | D115: 0 | E115: ED_QUO441_00108 | F115: 0
C116: Inspection of Service Work (Level 1) - Subdivision - URD - Underground - Per Lot (11 - 50) - Grade B | D116: 0 | E116: ED_QUO441_00109 | F116: 0
C117: Inspection of Service Work (Level 1) - Subdivision - URD - Underground - Per Lot (51 +) - Grade B | D117: 0 | E117: ED_QUO441_00110 | F117: 0
C118: Inspection of Service Work (Level 1) - Subdivision - URD - Underground - Per Lot (1 - 10) - Grade C | D118: 0 | E118: ED_QUO441_00111 | F118: 0
C119: Inspection of Service Work (Level 1) - Subdivision - URD - Underground - Per Lot (11 - 50) - Grade C | D119: 0 | E119: ED_QUO441_00112 | F119: 0
C120: Inspection of Service Work (Level 1) - Subdivision - URD - Underground - Per Lot (51 +) - Grade C | D120: 0 | E120: ED_QUO441_00113 | F120: 0
C121: Inspection of Service Work (Level 1) - Subdivision - URD - Underground - Per Hour + travel time | D121: 1230.31 | E121: ED_QUO441_00114 | F121: 1
C122: Inspection of Service Work (Level 1) - Subdivision - Non Urban - Underground - Per Lot (1 - 10) - Grade A | D122: 0 | E122: ED_QUO441_00115 | F122: 0
C123: Inspection of Service Work (Level 1) - Subdivision - Non Urban - Underground - Per Lot (11 - 50) - Grade A | D123: 0 | E123: ED_QUO441_00116 | F123: 0
C124: Inspection of Service Work (Level 1) - Subdivision - Non Urban - Underground - Per Lot (51+) - Grade A | D124: 0 | E124: ED_QUO441_00117 | F124: 0
C125: Inspection of Service Work (Level 1) - Subdivision - Non Urban - Underground - Per Lot (1 - 10) - Grade B | D125: 0 | E125: ED_QUO441_00118 | F125: 0
C126: Inspection of Service Work (Level 1) - Subdivision - Non Urban - Underground - Per Lot (11 - 50) - Grade B | D126: 0 | E126: ED_QUO441_00119 | F126: 0
C127: Inspection of Service Work (Level 1) - Subdivision - Non Urban - Underground - Per Lot (51+) - Grade B | D127: 0 | E127: ED_QUO441_00120 | F127: 0
C128: Inspection of Service Work (Level 1) - Subdivision - Non Urban - Underground - Per Lot (1 - 10) - Grade C | D128: 0 | E128: ED_QUO441_00121 | F128: 0
C129: Inspection of Service Work (Level 1) - Subdivision - Non Urban - Underground - Per Lot (11 - 50) - Grade C | D129: 0 | E129: ED_QUO441_00122 | F129: 0
C130: Inspection of Service Work (Level 1) - Subdivision - Non Urban - Underground - Per Lot (51+) - Grade C | D130: 0 | E130: ED_QUO441_00123 | F130: 0
C131: Inspection of Service Work (Level 1) - Subdivision - Non Urban - Overhead - Per Pole (1 - 5) - Grade A | D131: 0 | E131: ED_QUO441_00124 | F131: 0
C132: Inspection of Service Work (Level 1) - Subdivision - Non Urban - Overhead - Per Pole (6 - 10) - Grade A | D132: 0 | E132: ED_QUO441_00125 | F132: 0
C133: Inspection of Service Work (Level 1) - Subdivision - Non Urban - Overhead - Per Pole (11 +) - Grade A | D133: 0 | E133: ED_QUO441_00126 | F133: 0
C134: Inspection of Service Work (Level 1) - Subdivision - Non Urban - Overhead - Per Pole Sub - Grade A | D134: 0 | E134: ED_QUO441_00127 | F134: 0
C135: Inspection of Service Work (Level 1) - Subdivision - Non Urban - Overhead - Per Pole (1 - 5) - Grade B | D135: 0 | E135: ED_QUO441_00128 | F135: 0
C136: Inspection of Service Work (Level 1) - Subdivision - Non Urban - Overhead - Per Pole (6 - 10) - Grade B | D136: 0 | E136: ED_QUO441_00129 | F136: 0
C137: Inspection of Service Work (Level 1) - Subdivision - Non Urban - Overhead - Per Pole (11 +) - Grade B | D137: 0 | E137: ED_QUO441_00130 | F137: 0
C138: Inspection of Service Work (Level 1) - Subdivision - Non Urban - Overhead - Per Pole Sub - Grade B | D138: 0 | E138: ED_QUO441_00131 | F138: 0
C139: Inspection of Service Work (Level 1) - Subdivision - Non Urban - Overhead - Per Pole (1 - 5) - Grade C | D139: 0 | E139: ED_QUO441_00132 | F139: 0
C140: Inspection of Service Work (Level 1) - Subdivision - Non Urban - Overhead - Per Pole (6 - 10) - Grade C | D140: 0 | E140: ED_QUO441_00133 | F140: 0
C141: Inspection of Service Work (Level 1) - Subdivision - Non Urban - Overhead - Per Pole (11 +) - Grade C | D141: 0 | E141: ED_QUO441_00134 | F141: 0
C142: Inspection of Service Work (Level 1) - Subdivision - Non Urban - Overhead - Per Pole Sub - Grade C | D142: 0 | E142: ED_QUO441_00135 | F142: 0
C143: Inspection of Service Work (Level 1) - Subdivision - Industrial & Commercial - Overhead - Per Pole (1 - 5) - Grade A | D143: 0 | E143: ED_QUO441_00136 | F143: 0
C144: Inspection of Service Work (Level 1) - Subdivision - Industrial & Commercial - Overhead - Per Pole (6 - 10) - Grade A | D144: 0 | E144: ED_QUO441_00137 | F144: 0
C145: Inspection of Service Work (Level 1) - Subdivision - Industrial & Commercial - Overhead - Per Pole (11 +) - Grade A | D145: 0 | E145: ED_QUO441_00138 | F145: 0
C146: Inspection of Service Work (Level 1) - Subdivision - Industrial & Commercial - Overhead - Per Pole Sub - Grade A | D146: 0 | E146: ED_QUO441_00139 | F146: 0
C147: Inspection of Service Work (Level 1) - Subdivision - Industrial & Commercial - Overhead - Per Pole (1 - 5) - Grade B | D147: 0 | E147: ED_QUO441_00140 | F147: 0
C148: Inspection of Service Work (Level 1) - Subdivision - Industrial & Commercial - Overhead - Per Pole (6 - 10) - Grade B | D148: 0 | E148: ED_QUO441_00141 | F148: 0
C149: Inspection of Service Work (Level 1) - Subdivision - Industrial & Commercial - Overhead - Per Pole (11 +) - Grade B | D149: 0 | E149: ED_QUO441_00142 | F149: 0
C150: Inspection of Service Work (Level 1) - Subdivision - Industrial & Commercial - Overhead - Per Pole Sub - Grade B | D150: 0 | E150: ED_QUO441_00143 | F150: 0
C151: Inspection of Service Work (Level 1) - Subdivision - Industrial & Commercial - Overhead - Per Pole (1 - 5) - Grade C | D151: 0 | E151: ED_QUO441_00144 | F151: 0
C152: Inspection of Service Work (Level 1) - Subdivision - Industrial & Commercial - Overhead - Per Pole (6 - 10) - Grade C | D152: 0 | E152: ED_QUO441_00145 | F152: 0
C153: Inspection of Service Work (Level 1) - Subdivision - Industrial & Commercial - Overhead - Per Pole (11 +) - Grade C | D153: 0 | E153: ED_QUO441_00146 | F153: 0
C154: Inspection of Service Work (Level 1) - Subdivision - Industrial & Commercial - Overhead - Per Pole Sub - Grade C | D154: 0 | E154: ED_QUO441_00147 | F154: 0
C155: Inspection of Service Work (Level 1) - Subdivision - Industrial & Commercial - Underground - Per Lot (1 - 10) - Grade A | D155: 0 | E155: ED_QUO441_00148 | F155: 0
C156: Inspection of Service Work (Level 1) - Subdivision - Industrial & Commercial - Underground - Per Lot (11 - 50) - Grade A | D156: 0 | E156: ED_QUO441_00149 | F156: 0
C157: Inspection of Service Work (Level 1) - Subdivision - Industrial & Commercial - Underground - Per Lot (51+) - Grade A | D157: 0 | E157: ED_QUO441_00150 | F157: 0
C158: Inspection of Service Work (Level 1) - Subdivision - Industrial & Commercial - Underground - Per Lot (1 - 10) - Grade B | D158: 0 | E158: ED_QUO441_00151 | F158: 0
C159: Inspection of Service Work (Level 1) - Subdivision - Industrial & Commercial - Underground - Per Lot (11 - 50) - Grade B | D159: 0 | E159: ED_QUO441_00152 | F159: 0
C160: Inspection of Service Work (Level 1) - Subdivision - Industrial & Commercial - Underground - Per Lot (51+) - Grade B | D160: 0 | E160: ED_QUO441_00153 | F160: 0
C161: Inspection of Service Work (Level 1) - Subdivision - Industrial & Commercial - Underground - Per Lot (1 - 10) - Grade C | D161: 0 | E161: ED_QUO441_00154 | F161: 0
C162: Inspection of Service Work (Level 1) - Subdivision - Industrial & Commercial - Underground - Per Lot (11 - 50) - Grade C | D162: 0 | E162: ED_QUO441_00155 | F162: 0
C163: Inspection of Service Work (Level 1) - Subdivision - Industrial & Commercial - Underground - Per Lot (51+) - Grade C | D163: 0 | E163: ED_QUO441_00156 | F163: 0
C164: Inspection of Service Work (Level 1) - Connection of Load - URD - Underground - Per hour + travel time | D164: 239087.86 | E164: ED_QUO441_00157 | F164: 141
C165: Inspection of Service Work (Level 1) - Connection of Load - Non Urban - Underground - Per hour + travel time | D165: 19225.9 | E165: ED_QUO441_00158 | F165: 16
C166: Inspection of Service Work (Level 1) - Connection of Load - Non Urban - Overhead - Per Pole (1 - 5) - Grade A | D166: 0 | E166: ED_QUO441_00159 | F166: 0
C167: Inspection of Service Work (Level 1) - Connection of Load - Non Urban - Overhead - Per Pole (1 - 5) - Grade B | D167: 0 | E167: ED_QUO441_00160 | F167: 0
C168: Inspection of Service Work (Level 1) - Connection of Load - Non Urban - Overhead - Per Pole (1 - 5) - Grade C | D168: 0 | E168: ED_QUO441_00161 | F168: 0
C169: Inspection of Service Work (Level 1) - Connection of Load - Non Urban - Overhead - Per Pole (6 - 10) - Grade A | D169: 0 | E169: ED_QUO441_00162 | F169: 0
C170: Inspection of Service Work (Level 1) - Connection of Load - Non Urban - Overhead - Per Pole (6 - 10) - Grade B | D170: 0 | E170: ED_QUO441_00163 | F170: 0
C171: Inspection of Service Work (Level 1) - Connection of Load - Non Urban - Overhead - Per Pole (6 - 10) - Grade C | D171: 0 | E171: ED_QUO441_00164 | F171: 0
C172: Inspection of Service Work (Level 1) - Connection of Load - Non Urban - Overhead - Per Pole (11 +) - Grade A | D172: 0 | E172: ED_QUO441_00165 | F172: 0
C173: Inspection of Service Work (Level 1) - Connection of Load - Non Urban - Overhead - Per Pole (11 +) - Grade B | D173: 0 | E173: ED_QUO441_00166 | F173: 0
C174: Inspection of Service Work (Level 1) - Connection of Load - Non Urban - Overhead - Per Pole (11 +) - Grade C | D174: 0 | E174: ED_QUO441_00167 | F174: 0
C175: Inspection of Service Work (Level 1) - Connection of Load - Non Urban - Overhead - Per Pole Sub - Grade A | D175: 0 | E175: ED_QUO441_00168 | F175: 0
C176: Inspection of Service Work (Level 1) - Connection of Load - Non Urban - Overhead - Per Pole Sub - Grade B | D176: 0 | E176: ED_QUO441_00169 | F176: 0
C177: Inspection of Service Work (Level 1) - Connection of Load - Non Urban - Overhead - Per Pole Sub - Grade C | D177: 0 | E177: ED_QUO441_00170 | F177: 0
C178: Inspection of Service Work (Level 1) - Connection of Load - Industrial & Commercial - Underground - Per Hour + travel time | D178: 279311.57 | E178: ED_QUO441_00171 | F178: 183
C179: Inspection of Service Work (Level 1) - Connection of Load - Industrial & Commercial - Overhead - Per Pole (1 - 5) - Grade A | D179: 0 | E179: ED_QUO441_00172 | F179: 0
C180: Inspection of Service Work (Level 1) - Connection of Load - Industrial & Commercial - Overhead - Per Pole (1 - 5) - Grade B | D180: 0 | E180: ED_QUO441_00173 | F180: 0
C181: Inspection of Service Work (Level 1) - Connection of Load - Industrial & Commercial - Overhead - Per Pole (1 - 5) - Grade C | D181: 0 | E181: ED_QUO441_00174 | F181: 0
C182: Inspection of Service Work (Level 1) - Connection of Load - Industrial & Commercial - Overhead - Per Pole (6 - 10) - Grade A | D182: 0 | E182: ED_QUO441_00175 | F182: 0
C183: Inspection of Service Work (Level 1) - Connection of Load - Industrial & Commercial - Overhead - Per Pole (6 - 10) - Grade B | D183: 0 | E183: ED_QUO441_00176 | F183: 0
C184: Inspection of Service Work (Level 1) - Connection of Load - Industrial & Commercial - Overhead - Per Pole (6 - 10) - Grade C | D184: 0 | E184: ED_QUO441_00177 | F184: 0
C185: Inspection of Service Work (Level 1) - Connection of Load - Industrial & Commercial - Overhead - Per Pole (11+) - Grade A | D185: 0 | E185: ED_QUO441_00178 | F185: 0
C186: Inspection of Service Work (Level 1) - Connection of Load - Industrial & Commercial - Overhead - Per Pole (11+) - Grade B | D186: 0 | E186: ED_QUO441_00179 | F186: 0
C187: Inspection of Service Work (Level 1) - Connection of Load - Industrial & Commercial - Overhead - Per Pole (11+) - Grade C | D187: 0 | E187: ED_QUO441_00180 | F187: 0
C188: Inspection of Service Work (Level 1) - Connection of Load - Industrial & Commercial - Overhead - Per Pole Sub - Grade A | D188: 0 | E188: ED_QUO441_00181 | F188: 0
C189: Inspection of Service Work (Level 1) - Connection of Load - Industrial & Commercial - Overhead - Per Pole Sub - Grade B | D189: 0 | E189: ED_QUO441_00182 | F189: 0
C190: Inspection of Service Work (Level 1) - Connection of Load - Industrial & Commercial - Overhead - Per Pole Sub - Grade C | D190: 0 | E190: ED_QUO441_00183 | F190: 0
C191: Inspection of Service Work (Level 1) - Other - Asset Relocation - Underground - Per Hour + travel time | D191: 302059.29 | E191: ED_QUO441_00184 | F191: 144
C192: Inspection of Service Work (Level 1) - Other - Public Lighting - Underground - Per Hour + travel time | D192: 66968.59 | E192: ED_QUO441_00185 | F192: 50
C193: Access Permits - Subdivision - URD - Per Lot | D193: 0 | E193: ED_QUO441_00186 | F193: 0
C194: Access Permits - All Other - Industrial & Commercial | D194: 0 | E194: ED_QUO441_00187 | F194: 0
C195: Access Permits - All Other - Non Urban | D195: 0 | E195: ED_QUO441_00188 | F195: 0
C196: Access Permits - All Other - URD | D196: 0 | E196: ED_QUO441_00189 | F196: 0
C197: Access Permits - All Other - Asset Relocation | D197: 0 | E197: ED_QUO441_00190 | F197: 0
C198: Access Permits - All Other - Public Lighting | D198: 0 | E198: ED_QUO441_00191 | F198: 0
C199: Substation Commissioning Fee - Subdivision - URD - Per Lot | D199: 0 | E199: ED_QUO441_00192 | F199: 0
C200: Substation Commissioning Fee - All Other - Industrial & Commercial | D200: 0 | E200: ED_QUO441_00193 | F200: 0
C201: Substation Commissioning Fee - All Other - Non Urban | D201: 0 | E201: ED_QUO441_00194 | F201: 0
... 280 more rows

Sheet 5.2 Asset Age Profile
B1: REGULATORY REPORTING STATEMENT
B2: =INDEX(dms_TradingNameFull_List,MATCH(dms_TradingName,dms_TradingName_List)) -> Endeavour Energy
B3: =CONCATENATE((LOOKUP(dms_Model,dms_Model_List,dms_Worksheet_List))&" "&CRY) -> CATEGORY ANALYSIS 2016-17
B4: 5.2 ASSET AGE PROFILE
B6: There is ONE table on this worksheet. Both the ROWS and COLUMNS have been 'grouped' for easy navigation. See the Instructions sheet on how to group or ungroup data.
B8: 5.2.1 - ASSET AGE PROFILE
D9: ECONOMIC LIFE (YEARS) | F9: INSTALLED ASSETS -˃ QUANTITY CURRENTLY IN COMMISSION BY YEAR
B10: ASSET GROUP | C10: ASSET CATEGORY | D10: MEAN | E10: STANDARD DEVIATION | F10: =CRY -> 2016-17 | G10: =IF(dms_RPT="financial",(VALUE(LEFT(F10,4)-1)&"-"&MID(F10,3,2)),VALUE(LEFT(F10,4)-1)) -> 2015-16 | H10: =IF(dms_RPT="financial",(VALUE(LEFT(G10,4)-1)&"-"&MID(G10,3,2)),VALUE(LEFT(G10,4)-1)) -> 2014-15 | I10: 2013-14 | J10: 2012-13 | K10: 2011-12 | L10: 2010-11 | M10: 2009-10 | N10: 2008-09 | O10: 2007-08 | P10: 2006-07 | Q10: 2005-06 | R10: 2004-05 | S10: 2003-04 | T10: 2002-03 | U10: 2001-02 | V10: 2000-01 | W10: 1999-00 | X10: 1998-99 | Y10: 1997-98 | Z10: 1996-97 | AA10: 1995-96 | AB10: 1994-95 | AC10: 1993-94 | AD10: 1992-93 | AE10: 1991-92 | AF10: 1990-91 | AG10: 1989-90 | AH10: 1988-89 | AI10: 1987-88 | AJ10: 1986-87 | AK10: 1985-86 | AL10: 1984-85 | AM10: =IF(dms_RPT="financial",(VALUE(LEFT(AL10,4)-1)&"-"&MID(AL10,3,2)),VALUE(LEFT(AL10,4)-1)) -> 1983-84 | AN10: 1982-83 | AO10: 1981-82 | AP10: 1980-81 | AQ10: 1979-80 | AR10: 1978-79 | AS10: 1977-78 | AT10: 1976-77 | AU10: 1975-76 | AV10: 1974-75 | AW10: 1973-74 | AX10: 1972-73 | AY10: 1971-72 | AZ10: 1970-71 | BA10: 1969-70 | BB10: 1968-69 | BC10: 1967-68 | BD10: 1966-67 | BE10: 1965-66 | BF10: 1964-65 | BG10: 1963-64 | BH10: 1962-63 | BI10: 1961-62 | BJ10: 1960-61 | BK10: 1959-60 | BL10: 1958-59 | BM10: 1957-58 | BN10: 1956-57 | BO10: 1955-56 | BP10: 1954-55 | BQ10: 1953-54 | BR10: 1952-53 | BS10: =IF(dms_RPT="financial",(VALUE(LEFT(BR10,4)-1)&"-"&MID(BR10,3,2)),VALUE(LEFT(BR10,4)-1)) -> 1951-52 | BT10: 1950-51 | BU10: 1949-50 | BV10: 1948-49 | BW10: 1947-48 | BX10: 1946-47 | BY10: 1945-46 | BZ10: 1944-45 | CA10: 1943-44 | CB10: 1942-43 | CC10: 1941-42 | CD10: 1940-41 | CE10: 1939-40 | CF10: 1938-39 | CG10: 1937-38 | CH10: 1936-37 | CI10: 1935-36 | CJ10: 1934-35 | CK10: 1933-34 | CL10: 1932-33 | CM10: 1931-32 | CN10: 1930-31 | CO10: 1929-30 | CP10: 1928-29 | CQ10: 1927-28 | CR10: 1926-27 | CS10: 1925-26 | CT10: 1924-25 | CU10: 1923-24 | CV10: 1922-23 | CW10: 1921-22 | CX10: 1920-21 | CY10: =IF(dms_RPT="financial",(VALUE(LEFT(CX10,4)-1)&"-"&MID(CX10,3,2)),VALUE(LEFT(CX10,4)-1)) -> 1919-20 | CZ10: 1918-19 | DA10: 1917-18 | DB10: 1916-17 | DC10: 1915-16 | DD10: 1914-15 | DE10: 1913-14 | DF10: 1912-13 | DG10: 1911-12 | DH10: 1910-11
B11: POLES BY: HIGHEST OPERATING VOLTAGE ; MATERIAL TYPE; STAKING (IF WOOD) | C11: Staking of a wooden pole | D11: 0 | E11: 0 | F11: 374 | G11: 303 | H11: 296 | I11: 190 | J11: 258 | K11: 333 | L11: 424 | M11: 243 | N11: 348 | O11: 174 | P11: 218 | Q11: 197 | R11: 339 | S11: 474 | T11: 589 | U11: 770 | V11: 1502 | W11: 414 | X11: 64 | Y11: 69 | Z11: 1 | AF11: 0 | AP11: 0 | AZ11: 0 | BJ11: 0 | BT11: 0 | CD11: 0 | CN11: 0 | CX11: 0 | DH11: 0
C12: ˂ = 1 kV; Wood | D12: 55 | E12: 7.416198487 | F12: 847 | G12: 1168 | H12: 1214 | I12: 835 | J12: 1132 | K12: 857 | L12: 688 | M12: 669 | N12: 726 | O12: 2857 | P12: 2362 | Q12: 2802 | R12: 2543 | S12: 3130 | T12: 2836 | U12: 3023 | V12: 3232 | W12: 3512 | X12: 3398 | Y12: 3540 | Z12: 2839 | AA12: 2931 | AB12: 2765 | AC12: 2691 | AD12: 2877 | AE12: 2359 | AF12: 2765 | AG12: 3910 | AH12: 3835 | AI12: 4068 | AJ12: 4349 | AK12: 4180 | AL12: 3512 | AM12: 3398 | AN12: 3289 | AO12: 3232 | AP12: 3374 | AQ12: 3212 | AR12: 3626 | AS12: 3249 | AT12: 2720 | AU12: 2472 | AV12: 2248 | AW12: 2044 | AX12: 1859 | AY12: 1689 | AZ12: 1536 | BA12: 1396 | BB12: 1269 | BC12: 1154 | BD12: 1049 | BE12: 954 | BF12: 866 | BG12: 787 | BH12: 716 | BI12: 651 | BJ12: 591 | BK12: 537 | BL12: 488 | BM12: 443 | BN12: 369 | BO12: 308 | BP12: 257 | BQ12: 214 | BR12: 179 | BS12: 149 | BT12: 124 | CD12: 0 | CN12: 0 | CX12: 0 | DH12: 0
C13: > 1 kV & < = 11 kV; Wood | D13: 55 | E13: 7.416198487 | F13: 2106 | G13: 2464 | H13: 2281 | I13: 3024 | J13: 2267 | K13: 1920 | L13: 1885 | M13: 1468 | N13: 1372 | O13: 2433 | P13: 2806 | Q13: 2386 | R13: 2057 | S13: 2666 | T13: 2296 | U13: 2445 | V13: 2753 | W13: 2991 | X13: 2895 | Y13: 3016 | Z13: 2297 | AA13: 2371 | AB13: 2238 | AC13: 2178 | AD13: 2327 | AE13: 1909 | AF13: 2238 | AG13: 3164 | AH13: 3102 | AI13: 3466 | AJ13: 3704 | AK13: 3561 | AL13: 2991 | AM13: 2895 | AN13: 2801 | AO13: 2753 | AP13: 2874 | AQ13: 2736 | AR13: 2934 | AS13: 2629 | AT13: 2201 | AU13: 2002 | AV13: 1819 | AW13: 1654 | AX13: 1503 | AY13: 1366 | AZ13: 1241 | BA13: 1128 | BB13: 1025 | BC13: 932 | BD13: 848 | BE13: 771 | BF13: 701 | BG13: 637 | BH13: 579 | BI13: 526 | BJ13: 479 | BK13: 435 | BL13: 396 | BM13: 359 | BN13: 299 | BO13: 249 | BP13: 207 | BQ13: 173 | BR13: 144 | BS13: 121 | BT13: 101 | CD13: 0 | CN13: 0 | CX13: 0 | DH13: 0
C14: ˃ 11 kV & < = 22 kV; Wood | D14: 55 | E14: 7.416198487 | F14: 149 | G14: 233 | H14: 112 | I14: 159 | J14: 56 | K14: 21 | L14: 35 | M14: 37 | N14: 75 | O14: 32 | P14: 36 | Q14: 31 | R14: 49 | S14: 35 | T14: 54 | U14: 58 | V14: 36 | W14: 39 | X14: 37 | Y14: 39 | Z14: 56 | AA14: 56 | AB14: 54 | AC14: 51 | AD14: 56 | AE14: 47 | AF14: 54 | AG14: 75 | AH14: 75 | AI14: 44 | AJ14: 47 | AK14: 45 | AL14: 39 | AM14: 37 | AN14: 36 | AO14: 36 | AP14: 37 | AQ14: 35 | AR14: 70 | AS14: 63 | AT14: 51 | AU14: 47 | AV14: 42 | AW14: 37 | AX14: 35 | AY14: 33 | AZ14: 30 | BA14: 28 | BB14: 26 | BC14: 23 | BD14: 21 | BE14: 19 | BF14: 16 | BG14: 14 | BH14: 12 | BI14: 12 | BJ14: 12 | BK14: 12 | BL14: 12 | BM14: 12 | BN14: 9 | BO14: 7 | BP14: 7 | BQ14: 7 | BR14: 7 | BS14: 7 | BT14: 7 | CD14: 0 | CN14: 0 | CX14: 0 | DH14: 0
C15: > 22 kV & < = 66 kV; Wood | D15: 55 | E15: 7.416198487 | F15: 340 | G15: 287 | H15: 208 | I15: 159 | J15: 145 | K15: 96 | L15: 250 | M15: 108 | N15: 180 | O15: 393 | P15: 454 | Q15: 385 | R15: 278 | S15: 432 | T15: 308 | U15: 328 | V15: 442 | W15: 479 | X15: 464 | Y15: 483 | Z15: 309 | AA15: 318 | AB15: 300 | AC15: 293 | AD15: 313 | AE15: 257 | AF15: 300 | AG15: 425 | AH15: 416 | AI15: 555 | AJ15: 594 | AK15: 569 | AL15: 479 | AM15: 464 | AN15: 449 | AO15: 442 | AP15: 460 | AQ15: 439 | AR15: 393 | AS15: 352 | AT15: 297 | AU15: 270 | AV15: 246 | AW15: 223 | AX15: 203 | AY15: 184 | AZ15: 168 | BA15: 153 | BB15: 139 | BC15: 127 | BD15: 115 | BE15: 104 | BF15: 95 | BG15: 86 | BH15: 79 | BI15: 72 | BJ15: 65 | BK15: 59 | BL15: 54 | BM15: 48 | BN15: 40 | BO15: 34 | BP15: 28 | BQ15: 24 | BR15: 20 | BS15: 17 | BT15: 14 | CD15: 0 | CN15: 0 | CX15: 0 | DH15: 0
C16: > 66 kV & < = 132 kV; Wood | D16: 55 | E16: 7.416198487 | F16: 58 | G16: 57 | H16: 44 | I16: 46 | J16: 3 | K16: 42 | L16: 35 | M16: 16 | N16: 6 | O16: 60 | P16: 70 | Q16: 59 | R16: 48 | S16: 66 | T16: 55 | U16: 58 | V16: 71 | W16: 77 | X16: 74 | Y16: 77 | Z16: 55 | AA16: 57 | AB16: 53 | AC16: 52 | AD16: 56 | AE16: 45 | AF16: 53 | AG16: 76 | AH16: 73 | AI16: 89 | AJ16: 95 | AK16: 92 | AL16: 77 | AM16: 74 | AN16: 72 | AO16: 71 | AP16: 73 | AQ16: 71 | AR16: 70 | AS16: 62 | AT16: 52 | AU16: 48 | AV16: 43 | AW16: 40 | AX16: 36 | AY16: 33 | AZ16: 29 | BA16: 27 | BB16: 24 | BC16: 22 | BD16: 20 | BE16: 17 | BF16: 16 | BG16: 15 | BH16: 14 | BI16: 13 | BJ16: 12 | BK16: 10 | BL16: 9 | BM16: 8 | BN16: 7 | BO16: 6 | BP16: 5 | BQ16: 3 | BR16: 3 | BS16: 3 | BT16: 3 | CD16: 0 | CN16: 0 | CX16: 0 | DH16: 0
C17: > 132 kV; Wood | D17: 0 | E17: 0 | F17: 0 | G17: 0 | H17: 0 | I17: 0 | J17: 0 | K17: 0 | L17: 0 | M17: 0 | N17: 0 | O17: 0 | P17: 0 | Q17: 0 | R17: 0 | S17: 0 | T17: 0 | U17: 0 | V17: 0 | W17: 0 | X17: 0 | Y17: 0 | Z17: 0 | AA17: 0 | AB17: 0 | AC17: 0 | AD17: 0 | AE17: 0 | AF17: 0 | AG17: 0 | AH17: 0 | AI17: 0 | AJ17: 0 | AK17: 0 | AL17: 0 | AM17: 0 | AN17: 0 | AO17: 0 | AP17: 0 | AQ17: 0 | AR17: 0 | AS17: 0 | AT17: 0 | AU17: 0 | AV17: 0 | AW17: 0 | AX17: 0 | AY17: 0 | AZ17: 0 | BA17: 0 | BB17: 0 | BC17: 0 | BD17: 0 | BE17: 0 | BF17: 0 | BG17: 0 | BH17: 0 | BI17: 0 | BJ17: 0 | BK17: 0 | BL17: 0 | BM17: 0 | BN17: 0 | BO17: 0 | BP17: 0 | BQ17: 0 | BR17: 0 | BS17: 0 | BT17: 0 | CD17: 0 | CN17: 0 | CX17: 0 | DH17: 0
C18: ˂ = 1 kV; Concrete | D18: 55 | E18: 7.416198487 | F18: 69 | G18: 138 | H18: 121 | I18: 161 | J18: 306 | K18: 291 | L18: 344 | M18: 460 | N18: 443 | O18: 260 | P18: 172 | Q18: 122 | R18: 425 | S18: 43 | T18: 0 | U18: 0 | V18: 0 | W18: 4 | X18: 8 | Y18: 0 | Z18: 112 | AA18: 156 | AB18: 286 | AC18: 192 | AD18: 143 | AE18: 0 | AF18: 2 | AG18: 0 | AH18: 0 | AI18: 0 | AJ18: 0 | AK18: 0 | AL18: 0 | AM18: 0 | AN18: 0 | AO18: 0 | AP18: 0 | AQ18: 0 | AR18: 0 | AS18: 0 | AT18: 0 | AU18: 0 | AV18: 0 | AW18: 0 | AX18: 0 | AY18: 0 | AZ18: 0 | BA18: 0 | BB18: 0 | BC18: 0 | BD18: 0 | BE18: 0 | BF18: 0 | BG18: 0 | BH18: 0 | BI18: 0 | BJ18: 0 | BK18: 0 | BL18: 0 | BM18: 0 | BN18: 0 | BO18: 0 | BP18: 0 | BQ18: 0 | BR18: 0 | BS18: 0 | BT18: 0 | CD18: 0 | CN18: 0 | CX18: 0 | DH18: 0
C19: > 1 kV & < = 11 kV; Concrete | D19: 55 | E19: 7.416198487 | F19: 205 | G19: 238 | H19: 290 | I19: 575 | J19: 726 | K19: 533 | L19: 585 | M19: 808 | N19: 1238 | O19: 2063 | P19: 1450 | Q19: 945 | R19: 881 | S19: 154 | T19: 21 | U19: 0 | V19: 0 | W19: 4 | X19: 7 | Y19: 0 | Z19: 46 | AA19: 70 | AB19: 70 | AC19: 160 | AD19: 82 | AE19: 0 | AF19: 1 | AG19: 0 | AH19: 1 | AI19: 0 | AJ19: 0 | AK19: 0 | AL19: 0 | AM19: 1 | AN19: 1 | AO19: 0 | AP19: 1 | AQ19: 1 | AR19: 0 | AS19: 0 | AT19: 0 | AU19: 0 | AV19: 0 | AW19: 0 | AX19: 0 | AY19: 0 | AZ19: 0 | BA19: 0 | BB19: 0 | BC19: 0 | BD19: 0 | BE19: 0 | BF19: 0 | BG19: 0 | BH19: 0 | BI19: 0 | BJ19: 0 | BK19: 0 | BL19: 0 | BM19: 0 | BN19: 0 | BO19: 0 | BP19: 0 | BQ19: 0 | BR19: 0 | BS19: 0 | BT19: 0 | CD19: 0 | CN19: 0 | CX19: 0 | DH19: 0
C20: ˃ 11 kV & < = 22 kV; Concrete | D20: 55 | E20: 7.416198487 | F20: 11 | G20: 17 | H20: 0 | I20: 6 | J20: 248 | K20: 73 | L20: 0 | M20: 251 | N20: 58 | O20: 218 | P20: 28 | Q20: 14 | R20: 9 | S20: 11 | T20: 0 | U20: 0 | V20: 0 | W20: 0 | X20: 25 | Y20: 0 | Z20: 0 | AA20: 17 | AB20: 32 | AC20: 26 | AD20: 15 | AE20: 0 | AF20: 0 | AG20: 0 | AH20: 0 | AI20: 0 | AJ20: 0 | AK20: 0 | AL20: 0 | AM20: 0 | AN20: 0 | AO20: 0 | AP20: 0 | AQ20: 0 | AR20: 0 | AS20: 0 | AT20: 0 | AU20: 0 | AV20: 0 | AW20: 0 | AX20: 0 | AY20: 0 | AZ20: 0 | BA20: 0 | BB20: 0 | BC20: 0 | BD20: 0 | BE20: 0 | BF20: 0 | BG20: 0 | BH20: 0 | BI20: 0 | BJ20: 0 | BK20: 0 | BL20: 0 | BM20: 0 | BN20: 0 | BO20: 0 | BP20: 0 | BQ20: 0 | BR20: 0 | BS20: 0 | BT20: 0 | CD20: 0 | CN20: 0 | CX20: 0 | DH20: 0
C21: > 22 kV & < = 66 kV; Concrete | D21: 55 | E21: 7.416198487 | F21: 44 | G21: 30 | H21: 0 | I21: 25 | J21: 13 | K21: 130 | L21: 680 | M21: 74 | N21: 101 | O21: 144 | P21: 289 | Q21: 216 | R21: 173 | S21: 36 | T21: 0 | U21: 0 | V21: 5 | W21: 8 | X21: 0 | Y21: 0 | Z21: 0 | AA21: 999 | AB21: 62 | AC21: 0 | AD21: 0 | AE21: 0 | AF21: 0 | AG21: 0 | AH21: 3 | AI21: 3 | AJ21: 0 | AK21: 0 | AL21: 0 | AM21: 0 | AN21: 3 | AO21: 5 | AP21: 0 | AQ21: 2 | AR21: 0 | AS21: 3 | AT21: 0 | AU21: 0 | AV21: 0 | AW21: 1 | AX21: 0 | AY21: 3 | AZ21: 7 | BA21: 1 | BB21: 3 | BC21: 0 | BD21: 0 | BE21: 3 | BF21: 0 | BG21: 0 | BH21: 0 | BI21: 0 | BJ21: 0 | BK21: 0 | BL21: 0 | BM21: 0 | BN21: 0 | BO21: 0 | BP21: 0 | BQ21: 0 | BR21: 0 | BS21: 0 | BT21: 0 | CD21: 0 | CN21: 0 | CX21: 0 | DH21: 0
C22: > 66 kV & < = 132 kV; Concrete | D22: 55 | E22: 7.416198487 | F22: 8 | G22: 9 | H22: 2 | I22: 48 | J22: 2 | K22: 0 | L22: 213 | M22: 76 | N22: 48 | O22: 116 | P22: 808 | Q22: 190 | R22: 140 | S22: 33 | T22: 2 | U22: 0 | V22: 0 | W22: 11 | X22: 0 | Y22: 0 | Z22: 9 | AA22: 430 | AB22: 1 | AC22: 0 | AD22: 0 | AE22: 0 | AF22: 1 | AG22: 0 | AH22: 2 | AI22: 0 | AJ22: 0 | AK22: 0 | AL22: 0 | AM22: 0 | AN22: 2 | AO22: 0 | AP22: 0 | AQ22: 0 | AR22: 0 | AS22: 0 | AT22: 0 | AU22: 0 | AV22: 0 | AW22: 0 | AX22: 0 | AY22: 7 | AZ22: 0 | BA22: 0 | BB22: 0 | BC22: 0 | BD22: 0 | BE22: 0 | BF22: 2 | BG22: 0 | BH22: 0 | BI22: 0 | BJ22: 0 | BK22: 0 | BL22: 0 | BM22: 0 | BN22: 0 | BO22: 0 | BP22: 0 | BQ22: 0 | BR22: 0 | BS22: 0 | BT22: 0 | CD22: 0 | CN22: 0 | CX22: 0 | DH22: 0
C23: > 132 kV; Concrete | D23: 0 | E23: 0 | F23: 0 | G23: 0 | H23: 0 | I23: 0 | J23: 0 | K23: 0 | L23: 0 | M23: 0 | N23: 0 | O23: 0 | P23: 0 | Q23: 0 | R23: 0 | S23: 0 | T23: 0 | U23: 0 | V23: 0 | W23: 0 | X23: 0 | Y23: 0 | Z23: 0 | AA23: 0 | AB23: 0 | AC23: 0 | AD23: 0 | AE23: 0 | AF23: 0 | AG23: 0 | AH23: 0 | AI23: 0 | AJ23: 0 | AK23: 0 | AL23: 0 | AM23: 0 | AN23: 0 | AO23: 0 | AP23: 0 | AQ23: 0 | AR23: 0 | AS23: 0 | AT23: 0 | AU23: 0 | AV23: 0 | AW23: 0 | AX23: 0 | AY23: 0 | AZ23: 0 | BA23: 0 | BB23: 0 | BC23: 0 | BD23: 0 | BE23: 0 | BF23: 0 | BG23: 0 | BH23: 0 | BI23: 0 | BJ23: 0 | BK23: 0 | BL23: 0 | BM23: 0 | BN23: 0 | BO23: 0 | BP23: 0 | BQ23: 0 | BR23: 0 | BS23: 0 | BT23: 0 | CD23: 0 | CN23: 0 | CX23: 0 | DH23: 0
C24: ˂ = 1 kV; Steel | D24: 55 | E24: 7.416198487 | F24: 45 | G24: 108 | H24: 0 | I24: 14 | J24: 178 | K24: 117 | L24: 14 | M24: 42 | N24: 89 | O24: 19 | P24: 9 | Q24: 19 | R24: 150 | S24: 459 | T24: 28 | U24: 0 | V24: 0 | W24: 0 | X24: 0 | Y24: 0 | Z24: 9 | AA24: 0 | AB24: 9 | AC24: 28 | AD24: 14 | AE24: 5 | AF24: 0 | AG24: 5 | AH24: 0 | AI24: 1 | AJ24: 0 | AK24: 0 | AL24: 0 | AM24: 0 | AN24: 0 | AO24: 0 | AP24: 0 | AQ24: 0 | AR24: 0 | AS24: 0 | AT24: 0 | AU24: 0 | AV24: 0 | AW24: 0 | AX24: 0 | AY24: 0 | AZ24: 0 | BA24: 0 | BB24: 0 | BC24: 0 | BD24: 0 | BE24: 0 | BF24: 0 | BG24: 0 | BH24: 0 | BI24: 0 | BJ24: 0 | BK24: 0 | BL24: 0 | BM24: 0 | BN24: 0 | BO24: 0 | BP24: 0 | BQ24: 0 | BR24: 0 | BS24: 0 | BT24: 0 | CD24: 0 | CN24: 0 | CX24: 0 | DH24: 0
C25: > 1 kV & < = 11 kV; Steel | D25: 55 | E25: 7.416198487 | F25: 96 | G25: 32 | H25: 0 | I25: 0 | J25: 15 | K25: 3 | L25: 6 | M25: 15 | N25: 51 | O25: 14 | P25: 58 | Q25: 29 | R25: 6 | S25: 39 | T25: 10 | U25: 1 | V25: 0 | W25: 2 | X25: 0 | Y25: 0 | Z25: 0 | AA25: 0 | AB25: 0 | AC25: 0 | AD25: 4 | AE25: 0 | AF25: 0 | AG25: 0 | AH25: 0 | AI25: 0 | AJ25: 0 | AK25: 0 | AL25: 0 | AM25: 0 | AN25: 0 | AO25: 0 | AP25: 0 | AQ25: 0 | AR25: 0 | AS25: 0 | AT25: 0 | AU25: 0 | AV25: 0 | AW25: 0 | AX25: 0 | AY25: 0 | AZ25: 0 | BA25: 1 | BB25: 0 | BC25: 0 | BD25: 0 | BE25: 0 | BF25: 0 | BG25: 0 | BH25: 0 | BI25: 0 | BJ25: 0 | BK25: 0 | BL25: 0 | BM25: 0 | BN25: 0 | BO25: 0 | BP25: 0 | BQ25: 0 | BR25: 0 | BS25: 0 | BT25: 0 | CD25: 0 | CN25: 0 | CX25: 0 | DH25: 0
C26: ˃ 11 kV & < = 22 kV; Steel | D26: 55 | E26: 7.416198487 | F26: 72 | G26: 94 | H26: 25 | I26: 0 | J26: 0 | K26: 0 | L26: 0 | M26: 98 | N26: 0 | O26: 0 | P26: 0 | Q26: 0 | R26: 0 | S26: 0 | T26: 0 | U26: 0 | V26: 0 | W26: 0 | X26: 0 | Y26: 0 | Z26: 0 | AA26: 0 | AB26: 0 | AC26: 0 | AD26: 0 | AE26: 0 | AF26: 0 | AG26: 0 | AH26: 0 | AI26: 0 | AJ26: 0 | AK26: 0 | AL26: 0 | AM26: 0 | AN26: 0 | AO26: 0 | AP26: 0 | AQ26: 0 | AR26: 0 | AS26: 0 | AT26: 0 | AU26: 0 | AV26: 0 | AW26: 0 | AX26: 0 | AY26: 0 | AZ26: 0 | BA26: 0 | BB26: 0 | BC26: 0 | BD26: 0 | BE26: 0 | BF26: 0 | BG26: 0 | BH26: 0 | BI26: 0 | BJ26: 0 | BK26: 0 | BL26: 0 | BM26: 0 | BN26: 0 | BO26: 0 | BP26: 0 | BQ26: 0 | BR26: 0 | BS26: 0 | BT26: 0 | CD26: 0 | CN26: 0 | CX26: 0 | DH26: 0
C27: > 22 kV & < = 66 kV; Steel | D27: 55 | E27: 7.416198487 | F27: 68 | G27: 50 | H27: 0 | I27: 4 | J27: 60 | K27: 48 | L27: 67 | M27: 0 | N27: 0 | O27: 41 | P27: 0 | Q27: 14 | R27: 44 | S27: 8 | T27: 7 | U27: 0 | V27: 0 | W27: 0 | X27: 0 | Y27: 0 | Z27: 0 | AA27: 0 | AB27: 0 | AC27: 0 | AD27: 0 | AE27: 0 | AF27: 0 | AG27: 0 | AH27: 0 | AI27: 0 | AJ27: 0 | AK27: 0 | AL27: 0 | AM27: 0 | AN27: 0 | AO27: 0 | AP27: 0 | AQ27: 0 | AR27: 0 | AS27: 0 | AT27: 0 | AU27: 0 | AV27: 0 | AW27: 0 | AX27: 0 | AY27: 0 | AZ27: 0 | BA27: 0 | BB27: 0 | BC27: 0 | BD27: 0 | BE27: 0 | BF27: 0 | BG27: 0 | BH27: 0 | BI27: 0 | BJ27: 0 | BK27: 0 | BL27: 0 | BM27: 0 | BN27: 0 | BO27: 0 | BP27: 0 | BQ27: 0 | BR27: 0 | BS27: 0 | BT27: 0 | CD27: 0 | CN27: 0 | CX27: 0 | DH27: 0
C28: > 66 kV & < = 132 kV; Steel | D28: 55 | E28: 7.416198487 | F28: 2 | G28: 0 | H28: 0 | I28: 0 | J28: 0 | K28: 0 | L28: 0 | M28: 0 | N28: 0 | O28: 97 | P28: 51 | Q28: 0 | R28: 0 | S28: 12 | T28: 0 | U28: 0 | V28: 0 | W28: 0 | X28: 0 | Y28: 0 | Z28: 0 | AA28: 0 | AB28: 0 | AC28: 0 | AD28: 0 | AE28: 0 | AF28: 0 | AG28: 0 | AH28: 0 | AI28: 0 | AJ28: 0 | AK28: 0 | AL28: 0 | AM28: 0 | AN28: 0 | AO28: 0 | AP28: 0 | AQ28: 0 | AR28: 0 | AS28: 0 | AT28: 0 | AU28: 0 | AV28: 0 | AW28: 0 | AX28: 0 | AY28: 0 | AZ28: 0 | BA28: 0 | BB28: 0 | BC28: 0 | BD28: 0 | BE28: 0 | BF28: 0 | BG28: 0 | BH28: 0 | BI28: 0 | BJ28: 0 | BK28: 0 | BL28: 0 | BM28: 0 | BN28: 0 | BO28: 0 | BP28: 0 | BQ28: 0 | BR28: 0 | BS28: 0 | BT28: 0 | CD28: 0 | CN28: 0 | CX28: 0 | DH28: 0
C29: > 132 kV; Steel | D29: 0 | E29: 0 | F29: 0 | G29: 0 | H29: 0 | I29: 0 | J29: 0 | K29: 0 | L29: 0 | M29: 0 | N29: 0 | O29: 0 | P29: 0 | Q29: 0 | R29: 0 | S29: 0 | T29: 0 | U29: 0 | V29: 0 | W29: 0 | X29: 0 | Y29: 0 | Z29: 0 | AA29: 0 | AB29: 0 | AC29: 0 | AD29: 0 | AE29: 0 | AF29: 0 | AG29: 0 | AH29: 0 | AI29: 0 | AJ29: 0 | AK29: 0 | AL29: 0 | AM29: 0 | AN29: 0 | AO29: 0 | AP29: 0 | AQ29: 0 | AR29: 0 | AS29: 0 | AT29: 0 | AU29: 0 | AV29: 0 | AW29: 0 | AX29: 0 | AY29: 0 | AZ29: 0 | BA29: 0 | BB29: 0 | BC29: 0 | BD29: 0 | BE29: 0 | BF29: 0 | BG29: 0 | BH29: 0 | BI29: 0 | BJ29: 0 | BK29: 0 | BL29: 0 | BM29: 0 | BN29: 0 | BO29: 0 | BP29: 0 | BQ29: 0 | BR29: 0 | BS29: 0 | BT29: 0 | CD29: 0 | CN29: 0 | CX29: 0 | DH29: 0
C30: Other | D30: 60 | E30: 7.745966692 | F30: 0 | G30: 0 | H30: 0 | I30: 0 | J30: 0 | K30: 0 | L30: 0 | M30: 0 | N30: 0 | O30: 0 | P30: 0 | Q30: 0 | R30: 0 | S30: 0 | T30: 0 | U30: 0 | V30: 0 | W30: 0 | X30: 0 | Y30: 21 | Z30: 0 | AA30: 1 | AB30: 0 | AC30: 0 | AD30: 0 | AE30: 0 | AF30: 0 | AG30: 0 | AH30: 0 | AI30: 0 | AJ30: 0 | AK30: 0 | AL30: 0 | AM30: 0 | AN30: 0 | AO30: 0 | AP30: 4 | AQ30: 0 | AR30: 3 | AS30: 5 | AT30: 0 | AU30: 0 | AV30: 0 | AW30: 0 | AX30: 0 | AY30: 36 | AZ30: 37 | BA30: 71 | BB30: 3 | BC30: 18 | BD30: 0 | BE30: 73 | BF30: 107 | BG30: 1 | BH30: 0 | BI30: 0 | BJ30: 23 | BK30: 56 | BL30: 0 | BM30: 0 | BN30: 0 | BO30: 0 | BP30: 105 | BQ30: 81 | BR30: 0 | BS30: 0 | BT30: 166 | BU30: 0 | BV30: 0 | BW30: 0 | BX30: 0 | BY30: 0 | BZ30: 0 | CA30: 0 | CB30: 0 | CC30: 0 | CD30: 0 | CN30: 0 | CX30: 0 | DH30: 0
B31: OVERHEAD CONDUCTORS BY: HIGHEST OPERATING VOLTAGE; NUMBER OF PHASES (AT HV) | C31: ˂ = 1 kV | D31: 50 | E31: 7.071067812 | F31: 65.000473 | G31: 23.34886031 | H31: 99.39904192 | I31: 72.25351677 | J31: 105.4538059 | K31: 82.24387733 | L31: 69.32704751 | M31: 73.96903323 | N31: 78.51010621 | O31: 320.1961015 | P31: 355.0109944 | Q31: 300.5181186 | R31: 219.1824559 | S31: 371.0561189 | T31: 219.5861068 | U31: 233.4111512 | V31: 330.0855494 | W31: 359.0475037 | X31: 347.8461904 | Y31: 361.570322 | Z31: 448.9607488 | AA31: 467.0241279 | AB31: 453.6027345 | AC31: 434.4293152 | AD31: 457.941982 | AE31: 364.2949658 | AF31: 427.0626857 | AG31: 185.2661425 | AH31: 181.6140535 | AI31: 254.9034329 | AJ31: 272.4210802 | AK31: 261.8362121 | AL31: 219.991938 | AM31: 212.8734594 | AN31: 206.0644799 | AO31: 202.4742907 | AP31: 211.3878639 | AQ31: 201.2362944 | AR31: 171.7100833 | AS31: 153.8829369 | AT31: 124.8664081 | AU31: 108.4855674 | AV31: 172.6222079 | AW31: 145.8417749 | AX31: 123.6363325 | AY31: 111.0272119 | AZ31: 85.47421542 | BA31: 149.8599862 | BB31: 173.0437712 | BC31: 197.5258481 | BD31: 222.0079251 | BE31: 244.4498289 | BF31: 260.400273 | BG31: 266.5207922 | BH31: 258.1746296 | BI31: 240.1840125 | BJ31: 227.0156226 | BK31: 217.1856978 | BL31: 192.3326803 | BM31: 164.6976086 | BN31: 127.0471417 | BO31: 96.25907527 | BP31: 71.77699833 | BQ31: 53.41544061 | BR31: 39.31969934 | BS31: 28.37695283 | BT31: 20.58720107 | BU31: 0 | CD31: 0 | CN31: 0 | CX31: 0 | DH31: 0
C32: > 1 kV & < = 11 kV | D32: 50 | E32: 7.071067812 | F32: 154.3116171 | G32: 117.9793482 | H32: 142.6406405 | I32: 202.3148626 | J32: 177.9318471 | K32: 140.0098415 | L32: 141.0364948 | M32: 144.9506104 | N32: 168.2428068 | O32: 258.4820264 | P32: 246.6840916 | Q32: 221.051285 | R32: 203.7825105 | S32: 188.583375 | T32: 166.243627 | U32: 139.4301387 | V32: 181.0759728 | W32: 197.1174304 | X32: 192.4333248 | Y32: 198.3365811 | Z32: 247.1026121 | AA32: 259.1016223 | AB32: 245.6909638 | AC32: 252.2358785 | AD32: 256.7274866 | AE32: 199.8123952 | AF32: 234.2694461 | AG32: 122.9875177 | AH32: 120.6993778 | AI32: 169.3700195 | AJ32: 181.0013972 | AK32: 173.9939688 | AL32: 146.1549338 | AM32: 141.4833149 | AN32: 136.9070352 | AO32: 134.5235562 | AP32: 140.4822537 | AQ32: 137.5732811 | AR32: 134.7846335 | AS32: 123.6300432 | AT32: 123.8269227 | AU32: 132.6717029 | AV32: 160.1327217 | AW32: 170.8733311 | AX32: 161.1091408 | AY32: 147.4392743 | AZ32: 126.9344745 | BA32: 119.440507 | BB32: 137.3565831 | BC32: 156.8083228 | BD32: 176.2600625 | BE32: 194.3467678 | BF32: 206.8027064 | BG32: 211.5803267 | BH32: 205.0964135 | BI32: 190.5929233 | BJ32: 180.1845363 | BK32: 172.3355887 | BL32: 152.7132197 | BM32: 130.5314112 | BN32: 101.0125431 | BO32: 76.44192449 | BP32: 56.99018478 | BQ32: 42.31606534 | BR32: 31.22516112 | BS32: 22.52306704 | BT32: 16.38041239 | BU32: 0 | CD32: 0 | CN32: 0 | CX32: 0 | DH32: 0
C33: ˃ 11 kV & < = 22 kV ; SWER | D33: 50 | E33: 7.071067812 | F33: 1.9 | G33: 1.346203183 | H33: 0 | I33: 0 | J33: 0 | K33: 0 | L33: 0 | M33: 0 | N33: 0 | O33: 0.9889319853 | P33: 1.977863971 | Q33: 1.977863971 | R33: 1.970859604 | S33: 16.41101091 | T33: 0.4234657926 | U33: 1.009201135 | V33: 5.046005675 | W33: 4.03680454 | X33: 1.009201135 | Y33: 105.1587583 | Z33: 0 | AA33: 0 | AB33: 6.05520681 | AC33: 28.45947201 | AD33: 12.31225385 | AE33: 4.642325221 | AF33: 4.238644767 | AG33: 13.92697566 | AH33: 51.87293834 | AI33: 30.47787428 | AJ33: 26.84475019 | AK33: 14.73433657 | AL33: 27.04659042 | AM33: 15.74353771 | AN33: 4.642325221 | AO33: 23.21162611 | AP33: 2.01840227 | AQ33: 23.21162611 | AR33: 1.148601053 | AS33: 4.59440421 | AT33: 0 | AU33: 12.63461158 | AV33: 0 | AW33: 6.891606315 | AX33: 0 | AY33: 9.18880842 | AZ33: 0 | BA33: 0 | BB33: 0 | BC33: 4.673109207 | BD33: 0 | BE33: 0 | BF33: 0 | BG33: 11.48601053 | BH33: 0 | BI33: 0 | BJ33: 0 | BK33: 0 | BL33: 0 | BM33: 0 | BN33: 0 | BO33: 0 | BP33: 0 | BQ33: 0 | BR33: 0 | BS33: 0 | BT33: 0 | BU33: 0 | CD33: 0 | CN33: 0 | CX33: 0 | DH33: 0
C34: ˃ 11 kV & < = 22 kV ; Single-Phase | D34: 0 | E34: 0 | F34: 0 | G34: 0 | H34: 0 | I34: 0 | J34: 0 | K34: 0 | L34: 0 | M34: 0 | N34: 0 | O34: 0 | P34: 0 | Q34: 0 | R34: 0 | S34: 0 | T34: 0 | U34: 0 | V34: 0 | W34: 0 | X34: 0 | Y34: 0 | Z34: 0 | AA34: 0 | AB34: 0 | AC34: 0 | AD34: 0 | AE34: 0 | AF34: 0 | AG34: 0 | AH34: 0 | AI34: 0 | AJ34: 0 | AK34: 0 | AL34: 0 | AM34: 0 | AN34: 0 | AO34: 0 | AP34: 0 | AQ34: 0 | AR34: 0 | AS34: 0 | AT34: 0 | AU34: 0 | AV34: 0 | AW34: 0 | AX34: 0 | AY34: 0 | AZ34: 0 | BA34: 0 | BB34: 0 | BC34: 0 | BD34: 0 | BE34: 0 | BF34: 0 | BG34: 0 | BH34: 0 | BI34: 0 | BJ34: 0 | BK34: 0 | BL34: 0 | BM34: 0 | BN34: 0 | BO34: 0 | BP34: 0 | BQ34: 0 | BR34: 0 | BS34: 0 | BT34: 0 | BU34: 0 | CD34: 0 | CN34: 0 | CX34: 0 | DH34: 0
C35: ˃ 11 kV & < = 22 kV ; Multiple-Phase | D35: 0 | E35: 0 | F35: 0 | G35: 0 | H35: 0 | I35: 0 | J35: 0 | K35: 0 | L35: 0 | M35: 0 | N35: 0 | O35: 0 | P35: 0 | Q35: 0 | R35: 0 | S35: 0 | T35: 0 | U35: 0 | V35: 0 | W35: 0 | X35: 0 | Y35: 0 | Z35: 0 | AA35: 0 | AB35: 0 | AC35: 0 | AD35: 0 | AE35: 0 | AF35: 0 | AG35: 0 | AH35: 0 | AI35: 0 | AJ35: 0 | AK35: 0 | AL35: 0 | AM35: 0 | AN35: 0 | AO35: 0 | AP35: 0 | AQ35: 0 | AR35: 0 | AS35: 0 | AT35: 0 | AU35: 0 | AV35: 0 | AW35: 0 | AX35: 0 | AY35: 0 | AZ35: 0 | BA35: 0 | BB35: 0 | BC35: 0 | BD35: 0 | BE35: 0 | BF35: 0 | BG35: 0 | BH35: 0 | BI35: 0 | BJ35: 0 | BK35: 0 | BL35: 0 | BM35: 0 | BN35: 0 | BO35: 0 | BP35: 0 | BQ35: 0 | BR35: 0 | BS35: 0 | BT35: 0 | BU35: 0 | CD35: 0 | CN35: 0 | CX35: 0 | DH35: 0
C36: > 22 kV & < = 66 kV | D36: 55 | E36: 7.416198487 | F36: 12.04684196 | G36: 9.710138035 | H36: 17.56846596 | I36: 8.861921895 | J36: 17.75576139 | K36: 33.62416528 | L36: 46.92534796 | M36: 18.85782703 | N36: 34.3587939 | O36: 21.27167826 | P36: 17.22799443 | Q36: 20.25826682 | R36: 18.26484876 | S36: 6.088282919 | T36: 9.859424182 | U36: 2.082526363 | V36: 52.57221656 | W36: 31.90562547 | X36: 15.24541457 | Y36: 15.83380833 | Z36: 14.57768454 | AA36: 74.89161279 | AB36: 14.49834827 | AC36: 31.23789544 | AD36: 0 | AE36: 4.165052726 | AF36: 47.66009753 | AG36: 32.49401923 | AH36: 34.49720932 | AI36: 8.330105451 | AJ36: 16.6602109 | AK36: 57.83472053 | AL36: 68.16801607 | AM36: 90.56674858 | AN36: 119.0543876 | AO36: 112.648136 | AP36: 106.050172 | AQ36: 20.82526363 | AR36: 32.61592188 | AS36: 28.53893164 | AT36: 22.78492481 | AU36: 96.94383419 | AV36: 29.55223518 | AW36: 19.70149012 | AX36: 28.13872901 | AY36: 86.68655654 | AZ36: 59.10447037 | BA36: 41.37312926 | BB36: 108.3581957 | BC36: 55.7958703 | BD36: 25.61193716 | BE36: 17.27924044 | BF36: 0 | BG36: 59.84248042 | BH36: 0 | BI36: 0 | BJ36: 0 | BK36: 2.601846975 | BL36: 0 | BM36: 0 | BN36: 0 | BO36: 13.1516444 | BP36: 0 | BQ36: 0 | BR36: 0 | BS36: 0 | BT36: 0 | BU36: 0 | CD36: 0 | CN36: 0 | CX36: 0 | DH36: 0
C37: > 66 kV & < = 132 kV | D37: 55 | E37: 7.416198487 | F37: 8.425298154 | G37: 6.615300429 | H37: 8.870506306 | I37: 9.790087727 | J37: 3.93351739 | K37: 15.99630405 | L37: 39.5974084 | M37: 3.080088835 | N37: 4.840139598 | O37: 34.48732391 | P37: 46.6226323 | Q37: 44.0549781 | R37: 41.17447525 | S37: 32.1148556 | T37: 0 | U37: 0 | V37: 0 | W37: 0 | X37: 0 | Y37: 1.376350954 | Z37: 6.884224756 | AA37: 4.931924252 | AB37: 4.931924252 | AC37: 83.26923273 | AD37: 0 | AE37: 0 | AF37: 1.835134606 | AG37: 12.61655041 | AH37: 0 | AI37: 153.3484355 | AJ37: 0 | AK37: 1.032263216 | AL37: 1.51857899 | AM37: 2.064526431 | AN37: 0.1146959128 | AO37: 0 | AP37: 52.82802397 | AQ37: 2.429726384 | AR37: 0 | AS37: 0 | AT37: 1.458627547 | AU37: 2.423693216 | AV37: 0 | AW37: 0 | AX37: 0 | AY37: 0 | AZ37: 19.53291837 | BA37: 39.86915296 | BB37: 43.07137398 | BC37: 82.46107734 | BD37: 0 | BE37: 0 | BF37: 125.6797307 | BG37: 132.101128 | BH37: 0 | BI37: 11.96074589 | BJ37: 0 | BK37: 0 | BL37: 9.140732629 | BM37: 0 | BN37: 0 | BO37: 0 | BP37: 0 | BQ37: 28.7835836 | BR37: 26.83874687 | BS37: 0 | BT37: 0 | BU37: 68.06928554 | CD37: 0 | CN37: 0 | CX37: 0 | DH37: 0
C38: > 132 kV | D38: 0 | E38: 0 | F38: 0 | G38: 0 | H38: 0 | I38: 0 | J38: 0 | K38: 0 | L38: 0 | M38: 0 | N38: 0 | O38: 0 | P38: 0 | Q38: 0 | R38: 0 | S38: 0 | T38: 0 | U38: 0 | V38: 0 | W38: 0 | X38: 0 | Y38: 0 | Z38: 0 | AA38: 0 | AB38: 0 | AC38: 0 | AD38: 0 | AE38: 0 | AF38: 0 | AG38: 0 | AH38: 0 | AI38: 0 | AJ38: 0 | AK38: 0 | AL38: 0 | AM38: 0 | AN38: 0 | AO38: 0 | AP38: 0 | AQ38: 0 | AR38: 0 | AS38: 0 | AT38: 0 | AU38: 0 | AV38: 0 | AW38: 0 | AX38: 0 | AY38: 0 | AZ38: 0 | BA38: 0 | BB38: 0 | BC38: 0 | BD38: 0 | BE38: 0 | BF38: 0 | BG38: 0 | BH38: 0 | BI38: 0 | BJ38: 0 | BK38: 0 | BL38: 0 | BM38: 0 | BN38: 0 | BO38: 0 | BP38: 0 | BQ38: 0 | BR38: 0 | BS38: 0 | BT38: 0 | BU38: 0 | CD38: 0 | CN38: 0 | CX38: 0 | DH38: 0
C39: Other | D39: 0 | E39: 0 | F39: 0 | G39: 0 | H39: 0 | I39: 0 | J39: 0 | K39: 0 | L39: 0 | M39: 0 | N39: 0 | O39: 0 | P39: 0 | Q39: 0 | R39: 0 | S39: 0 | T39: 0 | U39: 0 | V39: 0 | W39: 0 | X39: 0 | Y39: 0 | Z39: 0 | AA39: 0 | AB39: 0 | AC39: 0 | AD39: 0 | AE39: 0 | AF39: 0 | AG39: 0 | AH39: 0 | AI39: 0 | AJ39: 0 | AK39: 0 | AL39: 0 | AM39: 0 | AN39: 0 | AO39: 0 | AP39: 0 | AQ39: 0 | AR39: 0 | AS39: 0 | AT39: 0 | AU39: 0 | AV39: 0 | AW39: 0 | AX39: 0 | AY39: 0 | AZ39: 0 | BA39: 0 | BB39: 0 | BC39: 0 | BD39: 0 | BE39: 0 | BF39: 0 | BG39: 0 | BH39: 0 | BI39: 0 | BJ39: 0 | BK39: 0 | BL39: 0 | BM39: 0 | BN39: 0 | BO39: 0 | BP39: 0 | BQ39: 0 | BR39: 0 | BS39: 0 | BT39: 0 | BU39: 0 | CD39: 0 | CN39: 0 | CX39: 0 | DH39: 0
B40: UNDERGROUND CABLES BY: HIGHEST OPERATING VOLTAGE | C40: ˂ = 1 kV | D40: 60 | E40: 7.745966692 | F40: 457.218103 | G40: 318.4656051 | H40: 428.2500292 | I40: 305.9700165 | J40: 360.1872896 | K40: 251.4820155 | L40: 246.4386747 | M40: 155.7291871 | N40: 157.3552742 | O40: 370.9202741 | P40: 297.734211 | Q40: 444.1063371 | R40: 511.8777788 | S40: 241.5740594 | T40: 54.49465099 | U40: 186.9623332 | V40: 602.3032653 | W40: 422.5801484 | X40: 195.9527107 | Y40: 435.9598622 | Z40: 171.7762313 | AA40: 207.3540562 | AB40: 270.0875929 | AC40: 318.5955385 | AD40: 229.7197704 | AE40: 109.7626015 | AF40: 220.9872478 | AG40: 228.4517656 | AH40: 348.9261462 | AI40: 309.4274175 | AJ40: 296.1761062 | AK40: 348.8697883 | AL40: 232.1845166 | AM40: 170.3066334 | AN40: 400.7635979 | AO40: 529.7903826 | AP40: 465.1968285 | AQ40: 323.8817057 | AR40: 285.5952324 | AS40: 152.8374904 | AT40: 79.33616803 | AU40: 151.6154446 | AV40: 197.4713433 | AW40: 152.3806127 | AX40: 167.4413285 | AY40: 70.51403212 | AZ40: 25.55332309 | BA40: 29.94508179 | BB40: 44.97265081 | BC40: 22.92789941 | BD40: 15.89023609 | BE40: 13.2675475 | BF40: 2.653395086 | BG40: 8.164104764 | BH40: 20.11163332 | BI40: 6.684459001 | BJ40: 10.41332313 | CD40: 0 | CN40: 0 | CX40: 0 | DH40: 0
C41: > 1 kV & < = 11 kV | D41: 60 | E41: 7.745966692 | F41: 156.028363 | G41: 169.1601923 | H41: 189.490787 | I41: 193.9791855 | J41: 162.7370965 | K41: 150.66182 | L41: 148.9320724 | M41: 119.5389458 | N41: 105.0005765 | O41: 171.4409363 | P41: 156.8294928 | Q41: 147.0885306 | R41: 147.0885306 | S41: 116.8201452 | T41: 98.39273632 | U41: 48.73289251 | V41: 156.9940842 | W41: 110.1481384 | X41: 51.07629022 | Y41: 113.6356438 | Z41: 44.77454079 | AA41: 54.04812166 | AB41: 70.40000737 | AC41: 83.04390443 | AD41: 59.8778839 | AE41: 28.61030331 | AF41: 57.60169767 | AG41: 58.20520624 | AH41: 88.89980889 | AI41: 73.9090096 | AJ41: 70.74383665 | AK41: 83.33010934 | AL41: 55.45897583 | AM41: 40.67898929 | AN41: 95.72532663 | AO41: 126.5443211 | AP41: 118.5233884 | AQ41: 82.51895726 | AR41: 72.7642851 | AS41: 38.94011336 | AT41: 20.21336106 | AU41: 38.62875911 | AV41: 63.13223747 | AW41: 48.7165827 | AX41: 53.53154302 | AY41: 22.54356782 | AZ41: 8.169481377 | BA41: 9.573541065 | BB41: 14.37790427 | BC41: 7.330124796 | BD41: 5.080160703 | BE41: 4.241678542 | BF41: 9.740962289 | BG41: 0 | BH41: 0 | BI41: 0 | BJ41: 0 | CD41: 0 | CN41: 0 | CX41: 0 | DH41: 0
C42: > 11 kV & < = 22 kV | D42: 60 | E42: 7.745966692 | F42: 26.405983 | G42: 14.46645146 | H42: 9.493616385 | I42: 17.18535518 | J42: 14.42861097 | K42: 8.574235455 | L42: 22.65043933 | M42: 13.48373826 | N42: 8.118716646 | O42: 28.86842382 | P42: 27.49373697 | Q42: 20.62030273 | R42: 42.6152923 | S42: 21.99498958 | T42: 20.62030273 | U42: 31.61779752 | V42: 35.74185806 | W42: 21.99498958 | X42: 17.87092903 | Y42: 0 | Z42: 0 | AA42: 0 | AB42: 0 | AC42: 0 | AD42: 0 | AE42: 0 | AF42: 0 | AG42: 0 | AH42: 0 | AI42: 0 | AJ42: 0 | AK42: 0 | AL42: 0 | AM42: 0 | AN42: 0 | AO42: 0 | AP42: 0 | AQ42: 0 | AR42: 0 | AS42: 0 | AT42: 0 | AU42: 0 | AV42: 0 | AW42: 0 | AX42: 0 | AY42: 0 | AZ42: 0 | BA42: 0 | BB42: 0 | BC42: 0 | BD42: 0 | BE42: 0 | BF42: 0 | BG42: 0 | BH42: 0 | BI42: 0 | BJ42: 0 | CD42: 0 | CN42: 0 | CX42: 0 | DH42: 0
C43: > 22 kV & < = 33 kV | D43: 45 | E43: 6.708203932 | F43: 8.360227 | G43: 8.234657622 | H43: 8.492819488 | I43: 21.15497875 | J43: 6.801764269 | K43: 0.3486388409 | L43: 4.375086765 | M43: 6.057056588 | N43: 1.433293012 | O43: 5.880931724 | P43: 4.900776437 | Q43: 1.960310575 | R43: 6.861087011 | S43: 2.081769458 | T43: 0.6295262967 | U43: 0 | V43: 7.01971543 | W43: 0 | X43: 0 | Y43: 1.106955126 | Z43: 2.375903684 | AA43: 3.304666033 | AB43: 0.3131873038 | AC43: 9.102950979 | AD43: 0.8963636627 | AE43: 4.438620065 | AF43: 2.386703246 | AG43: 0.647973732 | AH43: 1.587535644 | AI43: 4.330624443 | AJ43: 6.32854345 | AK43: 8.186068148 | AL43: 3.088674789 | AM43: 3.088674789 | AN43: 6.587732942 | AO43: 4.039036263 | AP43: 12.2575031 | AQ43: 7.970076904 | AR43: 9.158028746 | AS43: 0.647973732 | AT43: 3.563855526 | AU43: 0.07289704486 | AV43: 0 | AW43: 0.6074753738 | AX43: 0 | AY43: 0 | AZ43: 0.8099671651 | BA43: 0 | BB43: 0.2186911346 | BC43: 0.1214950748 | BD43: 0 | BE43: 0.5588773439 | BF43: 0.6884720903 | BG43: 2.859184093 | BH43: 0 | BI43: 0 | BJ43: 2.883483108 | CD43: 0 | CN43: 0 | CX43: 0 | DH43: 0
C44: > 33 kV & < = 66 kV | D44: 45 | E44: 6.708203932 | F44: 2.43058 | G44: 3.015280217 | H44: 0.5346498929 | I44: 0.9362223108 | J44: 12.20548244 | K44: 0.6970612041 | L44: 0.702985237 | M44: 0.2242246451 | N44: 0.1595539527 | O44: 0 | P44: 0 | Q44: 0 | R44: 0 | S44: 0.0174159574 | T44: 0.05442938159 | U44: 0 | V44: 1.031934432 | W44: 0 | X44: 0 | Y44: 0 | Z44: 0 | AA44: 0 | AB44: 1.021615087 | AC44: 0 | AD44: 0 | AE44: 0 | AF44: 0 | AG44: 2.301213782 | AH44: 0 | AI44: 2.889416408 | AJ44: 2.063868863 | AK44: 0.6346396754 | AL44: 2.363129848 | AM44: 0.1754288534 | AN44: 0.06191606589 | AO44: 0.5985219703 | AP44: 0 | AQ44: 0 | AR44: 0 | AS44: 0 | AT44: 0.4127737726 | AU44: 0 | AV44: 0 | AW44: 0 | AX44: 0 | AY44: 0 | AZ44: 0 | BA44: 0 | BB44: 0 | BC44: 0 | BD44: 0 | BE44: 0 | BF44: 0 | BG44: 0 | BH44: 0 | BI44: 0 | BJ44: 0 | CD44: 0 | CN44: 0 | CX44: 0 | DH44: 0
C45: > 66 kV & < = 132 kV | D45: 45 | E45: 6.708203932 | F45: 14.92531 | G45: 9.917867444 | H45: 1.533860848 | I45: 14.05042501 | J45: 14.52159972 | K45: 15.08322409 | L45: 4.400227549 | M45: 0 | N45: 6.607759172 | O45: 6.34207154 | P45: 3.62404088 | Q45: 4.5300511 | R45: 0 | S45: 0.498305621 | T45: 0 | U45: 0.4675012735 | V45: 3.854167476 | W45: 0.362404088 | X45: 0 | Y45: 0 | Z45: 0.8425895046 | AA45: 0 | AB45: 0 | AC45: 1.404315841 | AD45: 4.5300511 | AE45: 0 | AF45: 0.2536828616 | AG45: 0 | AH45: 0 | AI45: 0.679507665 | AJ45: 0 | AK45: 0.0724808176 | AL45: 0 | AM45: 0 | AN45: 0 | AO45: 0 | AP45: 0 | AQ45: 0 | AR45: 0 | AS45: 20.95148634 | AT45: 0 | AU45: 0 | AV45: 0 | AW45: 0 | AX45: 0 | AY45: 0 | AZ45: 0 | BA45: 0 | BB45: 0 | BC45: 0 | BD45: 0 | BE45: 0 | BF45: 15.78541606 | BG45: 0 | BH45: 0 | BI45: 0 | BJ45: 0 | CD45: 0 | CN45: 0 | CX45: 0 | DH45: 0
C46: > 132 kV | D46: 0 | E46: 0 | F46: 0 | G46: 0 | H46: 0 | I46: 0 | J46: 0 | K46: 0 | L46: 0 | V46: 0 | AF46: 0 | AP46: 0 | AZ46: 0 | BJ46: 0 | CD46: 0 | CN46: 0 | CX46: 0 | DH46: 0
C47: Other | D47: 0 | E47: 0 | F47: 0 | G47: 0 | H47: 0 | I47: 0 | J47: 0 | K47: 0 | L47: 0 | V47: 0 | AF47: 0 | AP47: 0 | AZ47: 0 | BJ47: 0 | CD47: 0 | CN47: 0 | CX47: 0 | DH47: 0
B48: SERVICE LINES BY: CONNECTION VOLTAGE; CUSTOMER TYPE; CONNECTION COMPLEXITY | C48: ˂ = 11 kV ; Residential ; Simple Type | D48: 35 | E48: 5.916079783 | F48: 24622 | G48: 22754 | H48: 22740 | I48: 19684 | J48: 10273 | K48: 9549 | L48: 8825 | M48: 9983 | N48: 11527 | O48: 13070 | P48: 13070 | Q48: 12346 | R48: 12346 | S48: 15682 | T48: 15449 | U48: 9528 | V48: 14036 | W48: 13660 | X48: 17622 | Y48: 14573 | Z48: 6624 | AA48: 10733 | AB48: 10866 | AC48: 11684 | AD48: 10081 | AE48: 9959 | AF48: 11393 | AG48: 14958 | AH48: 14626 | AI48: 13630 | AJ48: 12150 | AK48: 9651 | AL48: 10897 | AM48: 8564 | AN48: 12137 | AO48: 17392 | AP48: 14458 | AQ48: 11525 | AR48: 8756 | AS48: 6203 | AT48: 4972 | AU48: 4398 | AV48: 4742 | AW48: 1923 | AX48: 838 | AY48: 830 | AZ48: 417 | BA48: 691 | BB48: 924 | BC48: 759 | BD48: 771 | BE48: 632 | BF48: 564 | BG48: 659 | BH48: 546 | BI48: 296 | BJ48: 328 | BK48: 17 | BL48: 149 | BM48: 54 | BN48: 54 | BO48: 95 | BP48: 27 | BQ48: 81 | BR48: 68 | BS48: 122 | BT48: 14 | BU48: 14 | CD48: 0 | CN48: 0 | CX48: 0 | DH48: 0
C49: ˂ = 11 kV ; Commercial & Industrial ; Simple Type | D49: 0 | E49: 0 | F49: 0 | G49: 0 | H49: 0 | I49: 0 | J49: 0 | K49: 0 | L49: 0 | V49: 0 | AF49: 0 | AP49: 0 | AZ49: 0 | BJ49: 0 | BT49: 0 | CD49: 0 | CN49: 0 | CX49: 0 | DH49: 0
C50: ˂ = 11 kV ; Residential ; Complex Type | D50: 60 | E50: 7.745966692 | F50: 8790 | G50: 9320 | H50: 8065 | I50: 6129 | J50: 7807 | K50: 7381 | L50: 8180 | M50: 8194 | N50: 6884 | O50: 8365 | P50: 8164 | Q50: 7829 | R50: 7628 | S50: 8046 | T50: 7802 | U50: 6500 | V50: 7137 | W50: 6865 | X50: 7401 | Y50: 6633 | Z50: 4954 | AA50: 5516 | AB50: 5340 | AC50: 5291 | AD50: 4792 | AE50: 4568 | AF50: 4633 | AG50: 5095 | AH50: 4832 | AI50: 4446 | AJ50: 3969 | AK50: 3318.5 | AL50: 3016.5 | AM50: 2931 | AN50: 3549.5 | AO50: 3564 | AP50: 1871.071447 | AQ50: 551.142893 | AR50: 419.4459151 | AS50: 297.0221575 | AT50: 237.4743136 | AU50: 210.1741817 | AV50: 226.5352363 | AW50: 92.46019812 | AX50: 39.85629018 | AY50: 39.47580054 | AZ50: 19.83302268 | BA50: 32.86479298 | BB50: 43.94655385 | BC50: 36.09895495 | BD50: 36.66968942 | BE50: 0 | BF50: 0 | BG50: 0 | BH50: 0 | BI50: 0 | BJ50: 0 | BK50: 0 | BL50: 0 | BM50: 0 | BN50: 0 | BO50: 0 | BP50: 0 | BQ50: 0 | BR50: 0 | BS50: 0 | BT50: 0 | BU50: 0 | CD50: 0 | CN50: 0 | CX50: 0 | DH50: 0
C51: ˂ = 11 kV ; Commercial & Industrial ; Complex Type | D51: 0 | E51: 0 | F51: 0 | G51: 0 | H51: 0 | I51: 0 | J51: 0 | K51: 0 | L51: 0 | V51: 0 | AF51: 0 | AP51: 0 | AZ51: 0 | BJ51: 0 | BT51: 0 | CD51: 0 | CN51: 0 | CX51: 0 | DH51: 0
C52: ˂ = 11 kV ; Subdivision ; Complex Type | D52: 0 | E52: 0 | F52: 0 | G52: 0 | H52: 0 | I52: 0 | J52: 0 | K52: 0 | L52: 0 | V52: 0 | AF52: 0 | AP52: 0 | AZ52: 0 | BJ52: 0 | BT52: 0 | CD52: 0 | CN52: 0 | CX52: 0 | DH52: 0
C53: > 11 kV & < = 22 kV ; Commercial & Industrial | D53: 0 | E53: 0 | F53: 0 | G53: 0 | H53: 0 | I53: 0 | J53: 0 | K53: 0 | L53: 0 | V53: 0 | AF53: 0 | AP53: 0 | AZ53: 0 | BJ53: 0 | BT53: 0 | CD53: 0 | CN53: 0 | CX53: 0 | DH53: 0
C54: > 11 kV & < = 22 kV ; Subdivision | D54: 0 | E54: 0 | F54: 0 | G54: 0 | H54: 0 | I54: 0 | J54: 0 | K54: 0 | L54: 0 | V54: 0 | AF54: 0 | AP54: 0 | AZ54: 0 | BJ54: 0 | BT54: 0 | CD54: 0 | CN54: 0 | CX54: 0 | DH54: 0
C55: > 22 kV & < = 33 kV ; Commercial & Industrial | D55: 0 | E55: 0 | F55: 0 | G55: 0 | H55: 0 | I55: 0 | J55: 0 | K55: 0 | L55: 0 | V55: 0 | AF55: 0 | AP55: 0 | AZ55: 0 | BJ55: 0 | BT55: 0 | CD55: 0 | CN55: 0 | CX55: 0 | DH55: 0
C56: > 22 kV & < = 33 kV ; Subdivision | D56: 0 | E56: 0 | F56: 0 | G56: 0 | H56: 0 | I56: 0 | J56: 0 | K56: 0 | L56: 0 | V56: 0 | AF56: 0 | AP56: 0 | AZ56: 0 | BJ56: 0 | BT56: 0 | CD56: 0 | CN56: 0 | CX56: 0 | DH56: 0
C57: > 33 kV & < = 66 kV ; Commercial & Industrial | D57: 0 | E57: 0 | F57: 0 | G57: 0 | H57: 0 | I57: 0 | J57: 0 | K57: 0 | L57: 0 | V57: 0 | AF57: 0 | AP57: 0 | AZ57: 0 | BJ57: 0 | BT57: 0 | CD57: 0 | CN57: 0 | CX57: 0 | DH57: 0
C58: > 33 kV & < = 66 kV ; Subdivision | D58: 0 | E58: 0 | F58: 0 | G58: 0 | H58: 0 | I58: 0 | J58: 0 | K58: 0 | L58: 0 | V58: 0 | AF58: 0 | AP58: 0 | AZ58: 0 | BJ58: 0 | BT58: 0 | CD58: 0 | CN58: 0 | CX58: 0 | DH58: 0
C59: > 66 kV & < = 132 kV ; Commercial & Industrial | D59: 0 | E59: 0 | F59: 0 | G59: 0 | H59: 0 | I59: 0 | J59: 0 | K59: 0 | L59: 0 | V59: 0 | AF59: 0 | AP59: 0 | AZ59: 0 | BJ59: 0 | BT59: 0 | CD59: 0 | CN59: 0 | CX59: 0 | DH59: 0
C60: > 66 kV & < = 132 kV ; Subdivision | D60: 0 | E60: 0 | F60: 0 | G60: 0 | H60: 0 | I60: 0 | J60: 0 | K60: 0 | L60: 0 | V60: 0 | AF60: 0 | AP60: 0 | AZ60: 0 | BJ60: 0 | BT60: 0 | CD60: 0 | CN60: 0 | CX60: 0 | DH60: 0
C61: > 132 kV ; Commercial & Industrial | D61: 0 | E61: 0 | F61: 0 | G61: 0 | H61: 0 | I61: 0 | J61: 0 | K61: 0 | L61: 0 | V61: 0 | AF61: 0 | AP61: 0 | AZ61: 0 | BJ61: 0 | BT61: 0 | CD61: 0 | CN61: 0 | CX61: 0 | DH61: 0
C62: > 132 kV ; Subdivision | D62: 0 | E62: 0 | F62: 0 | G62: 0 | H62: 0 | I62: 0 | J62: 0 | K62: 0 | L62: 0 | V62: 0 | AF62: 0 | AP62: 0 | AZ62: 0 | BJ62: 0 | BT62: 0 | CD62: 0 | CN62: 0 | CX62: 0 | DH62: 0
C63: Other | D63: 0 | E63: 0 | F63: 0 | G63: 0 | H63: 0 | I63: 0 | J63: 0 | K63: 0 | L63: 0 | V63: 0 | AF63: 0 | AP63: 0 | AZ63: 0 | BJ63: 0 | BT63: 0 | CD63: 0 | CN63: 0 | CX63: 0 | DH63: 0
B64: TRANSFORMERS BY: MOUNTING TYPE; HIGHEST OPERATING VOLTAGE ; AMPERE RATING; NUMBER OF PHASES (AT LV) | C64: Pole Mounted ; < = 22kV ; < = 60 kVA ; Single Phase | D64: 45 | E64: 6.708203932 | F64: 0 | G64: 8 | H64: 59 | I64: 57 | J64: 66 | K64: 27 | L64: 60 | M64: 67 | N64: 91 | O64: 103 | P64: 115 | Q64: 92 | R64: 72 | S64: 40 | T64: 43 | U64: 119 | V64: 32 | W64: 105 | X64: 35 | Y64: 69 | Z64: 29 | AA64: 85 | AB64: 80 | AC64: 75 | AD64: 97 | AE64: 90 | AF64: 79 | AG64: 115 | AH64: 189 | AI64: 153 | AJ64: 99 | AK64: 90 | AL64: 96 | AM64: 100 | AN64: 62 | AO64: 61 | AP64: 42 | AQ64: 61 | AR64: 25 | AS64: 22 | AT64: 7 | AU64: 25 | AV64: 19 | AW64: 11 | AX64: 10 | AY64: 18 | AZ64: 7 | BA64: 7 | BB64: 3 | BC64: 15 | BD64: 4 | BE64: 5 | BF64: 12 | BG64: 9 | BH64: 3 | BI64: 11 | BJ64: 1 | BK64: 1 | BL64: 5 | BM64: 0 | BN64: 5 | BO64: 2 | BP64: 4 | BQ64: 1 | BR64: 2 | BS64: 0 | BT64: 0 | BU64: 0 | BV64: 0 | BW64: 0 | BX64: 0 | BY64: 0 | BZ64: 0 | CD64: 0 | CN64: 0 | CX64: 0 | DH64: 0
C65: Pole Mounted ; < = 22kV ; > 60 kVA and < = 600 kVA ; Single Phase | D65: 45 | E65: 6.708203932 | F65: 0 | G65: 0 | H65: 0 | I65: 0 | J65: 0 | K65: 0 | L65: 0 | M65: 0 | N65: 0 | O65: 0 | P65: 0 | Q65: 0 | R65: 1 | S65: 0 | T65: 2 | U65: 2 | V65: 3 | W65: 2 | X65: 0 | Y65: 5 | Z65: 5 | AA65: 1 | AB65: 0 | AC65: 1 | AD65: 0 | AE65: 0 | AF65: 0 | AG65: 0 | AH65: 0 | AI65: 0 | AJ65: 0 | AK65: 0 | AL65: 0 | AM65: 0 | AN65: 0 | AO65: 0 | AP65: 1 | AQ65: 0 | AR65: 0 | AS65: 0 | AT65: 0 | AU65: 0 | AV65: 1 | AW65: 0 | AX65: 0 | AY65: 0 | AZ65: 0 | BA65: 0 | BB65: 0 | BC65: 0 | BD65: 0 | BE65: 0 | BF65: 0 | BG65: 0 | BH65: 0 | BI65: 0 | BJ65: 0 | BK65: 0 | BL65: 0 | BM65: 0 | BN65: 0 | BO65: 0 | BP65: 0 | BQ65: 0 | BR65: 0 | BS65: 0 | BT65: 0 | BU65: 0 | BV65: 0 | BW65: 0 | BX65: 0 | BY65: 0 | BZ65: 0 | CD65: 0 | CN65: 0 | CX65: 0 | DH65: 0
C66: Pole Mounted ; < = 22kV ; > 600 kVA ; Single Phase | D66: 0 | E66: 0 | F66: 0 | G66: 0 | H66: 0 | I66: 0 | J66: 0 | K66: 0 | L66: 0 | V66: 0 | AF66: 0 | AP66: 0 | AZ66: 0 | BJ66: 0 | BT66: 0 | CD66: 0 | CN66: 0 | CX66: 0 | DH66: 0
C67: Pole Mounted ; < = 22kV ; < = 60 kVA ; Multiple Phase | D67: 45 | E67: 6.708203932 | F67: 45 | G67: 32 | H67: 39 | I67: 19 | J67: 49 | K67: 95 | L67: 43 | M67: 62 | N67: 30 | O67: 42 | P67: 14 | Q67: 72 | R67: 85 | S67: 107 | T67: 53 | U67: 106 | V67: 27 | W67: 71 | X67: 46 | Y67: 111 | Z67: 34 | AA67: 79 | AB67: 60 | AC67: 76 | AD67: 88 | AE67: 99 | AF67: 104 | AG67: 105 | AH67: 126 | AI67: 111 | AJ67: 92 | AK67: 90 | AL67: 78 | AM67: 72 | AN67: 66 | AO67: 100 | AP67: 66 | AQ67: 65 | AR67: 35 | AS67: 21 | AT67: 31 | AU67: 33 | AV67: 26 | AW67: 19 | AX67: 19 | AY67: 20 | AZ67: 16 | BA67: 20 | BB67: 27 | BC67: 33 | BD67: 20 | BE67: 18 | BF67: 17 | BG67: 16 | BH67: 13 | BI67: 7 | BJ67: 5 | BK67: 7 | BL67: 4 | BM67: 7 | BN67: 9 | BO67: 4 | BP67: 2 | BQ67: 7 | BR67: 9 | BS67: 2 | BT67: 0 | BU67: 0 | BV67: 0 | BW67: 0 | BX67: 0 | BY67: 0 | BZ67: 0 | CD67: 0 | CN67: 0 | CX67: 0 | DH67: 0
C68: Pole Mounted ; < = 22kV ; > 60 kVA and < = 600 kVA ; Multiple Phase | D68: 45 | E68: 6.708203932 | F68: 104 | G68: 94 | H68: 150 | I68: 175 | J68: 243 | K68: 186 | L68: 260 | M68: 355 | N68: 444 | O68: 426 | P68: 443 | Q68: 444 | R68: 432 | S68: 601 | T68: 200 | U68: 600 | V68: 440 | W68: 368 | X68: 88 | Y68: 240 | Z68: 133 | AA68: 322 | AB68: 254 | AC68: 241 | AD68: 292 | AE68: 282 | AF68: 231 | AG68: 252 | AH68: 347 | AI68: 390 | AJ68: 323 | AK68: 290 | AL68: 248 | AM68: 319 | AN68: 303 | AO68: 410 | AP68: 221 | AQ68: 214 | AR68: 129 | AS68: 112 | AT68: 103 | AU68: 137 | AV68: 69 | AW68: 62 | AX68: 58 | AY68: 95 | AZ68: 75 | BA68: 107 | BB68: 120 | BC68: 104 | BD68: 87 | BE68: 74 | BF68: 53 | BG68: 49 | BH68: 27 | BI68: 14 | BJ68: 16 | BK68: 15 | BL68: 10 | BM68: 4 | BN68: 4 | BO68: 0 | BP68: 2 | BQ68: 2 | BR68: 3 | BS68: 3 | BT68: 0 | BU68: 0 | BV68: 0 | BW68: 0 | BX68: 0 | BY68: 0 | BZ68: 0 | CD68: 0 | CN68: 0 | CX68: 0 | DH68: 0
C69: Pole Mounted ; < = 22kV ; > 600 kVA ; Multiple Phase | D69: 45 | E69: 6.708203932 | F69: 0 | G69: 0 | H69: 0 | I69: 0 | J69: 0 | K69: 0 | L69: 1 | M69: 0 | N69: 0 | O69: 0 | P69: 0 | Q69: 0 | R69: 0 | S69: 1 | T69: 1 | U69: 2 | V69: 0 | W69: 0 | X69: 0 | Y69: 0 | Z69: 0 | AA69: 0 | AB69: 0 | AC69: 0 | AD69: 0 | AE69: 0 | AF69: 0 | AG69: 0 | AH69: 0 | AI69: 1 | AJ69: 0 | AK69: 0 | AL69: 0 | AM69: 0 | AN69: 0 | AO69: 0 | AP69: 2 | AQ69: 0 | AR69: 0 | AS69: 0 | AT69: 0 | AU69: 0 | AV69: 0 | AW69: 1 | AX69: 0 | AY69: 0 | AZ69: 0 | BA69: 0 | BB69: 0 | BC69: 0 | BD69: 0 | BE69: 0 | BF69: 0 | BG69: 0 | BH69: 0 | BI69: 0 | BJ69: 0 | BK69: 0 | BL69: 0 | BM69: 0 | BN69: 0 | BO69: 0 | BP69: 0 | BQ69: 0 | BR69: 0 | BS69: 0 | BT69: 0 | BU69: 0 | BV69: 0 | BW69: 0 | BX69: 0 | BY69: 0 | BZ69: 0 | CD69: 0 | CN69: 0 | CX69: 0 | DH69: 0
C70: Kiosk Mounted ; < = 22kV ; < = 60 kVA ; Single Phase | D70: 0 | E70: 0 | F70: 0 | G70: 0 | H70: 0 | I70: 0 | J70: 0 | K70: 0 | L70: 0 | V70: 0 | AF70: 0 | AP70: 0 | AZ70: 0 | BJ70: 0 | BT70: 0 | CD70: 0 | CN70: 0 | CX70: 0 | DH70: 0
C71: Kiosk Mounted ; < = 22kV ; > 60 kVA and < = 600 kVA ; Single Phase | D71: 0 | E71: 0 | F71: 0 | G71: 0 | H71: 0 | I71: 0 | J71: 0 | K71: 0 | L71: 0 | M71: 0 | N71: 0 | O71: 0 | P71: 0 | Q71: 0 | R71: 0 | S71: 0 | T71: 0 | U71: 0 | V71: 0 | W71: 0 | X71: 0 | Y71: 0 | Z71: 0 | AA71: 0 | AB71: 0 | AC71: 0 | AD71: 0 | AE71: 0 | AF71: 0 | AG71: 0 | AH71: 0 | AI71: 0 | AJ71: 0 | AK71: 0 | AL71: 0 | AM71: 0 | AN71: 0 | AO71: 0 | AP71: 0 | AQ71: 0 | AR71: 0 | AS71: 0 | AT71: 0 | AU71: 0 | AV71: 0 | AW71: 0 | AX71: 0 | AY71: 0 | AZ71: 0 | BA71: 0 | BB71: 0 | BC71: 0 | BD71: 0 | BE71: 0 | BF71: 0 | BG71: 0 | BH71: 0 | BI71: 0 | BJ71: 0 | BK71: 0 | BL71: 0 | BM71: 0 | BN71: 0 | BO71: 0 | BP71: 0 | BQ71: 0 | BR71: 0 | BS71: 0 | BT71: 0 | CD71: 0 | CN71: 0 | CX71: 0 | DH71: 0
C72: Kiosk Mounted ; < = 22kV ; > 600 kVA ; Single Phase | D72: 0 | E72: 0 | F72: 0 | G72: 0 | H72: 0 | I72: 0 | J72: 0 | K72: 0 | L72: 0 | M72: 0 | N72: 0 | O72: 0 | P72: 0 | Q72: 0 | R72: 0 | S72: 0 | T72: 0 | U72: 0 | V72: 0 | W72: 0 | X72: 0 | Y72: 0 | Z72: 0 | AA72: 0 | AB72: 0 | AC72: 0 | AD72: 0 | AE72: 0 | AF72: 0 | AG72: 0 | AH72: 0 | AI72: 0 | AJ72: 0 | AK72: 0 | AL72: 0 | AM72: 0 | AN72: 0 | AO72: 0 | AP72: 0 | AQ72: 0 | AR72: 0 | AS72: 0 | AT72: 0 | AU72: 0 | AV72: 0 | AW72: 0 | AX72: 0 | AY72: 0 | AZ72: 0 | BA72: 0 | BB72: 0 | BC72: 0 | BD72: 0 | BE72: 0 | BF72: 0 | BG72: 0 | BH72: 0 | BI72: 0 | BJ72: 0 | BK72: 0 | BL72: 0 | BM72: 0 | BN72: 0 | BO72: 0 | BP72: 0 | BQ72: 0 | BR72: 0 | BS72: 0 | BT72: 0 | CD72: 0 | CN72: 0 | CX72: 0 | DH72: 0
C73: Kiosk Mounted ; < = 22kV ; < = 60 kVA ; Multiple Phase | D73: 45 | E73: 6.708203932 | F73: 1 | G73: 0 | H73: 0 | I73: 0 | J73: 0 | K73: 1 | L73: 1 | M73: 0 | N73: 3 | O73: 0 | P73: 0 | Q73: 0 | R73: 0 | S73: 1 | T73: 0 | U73: 1 | V73: 0 | W73: 1 | X73: 0 | Y73: 0 | Z73: 0 | AA73: 0 | AB73: 0 | AC73: 0 | AD73: 0 | AE73: 1 | AF73: 0 | AG73: 1 | AH73: 0 | AI73: 0 | AJ73: 0 | AK73: 1 | AL73: 0 | AM73: 0 | AN73: 0 | AO73: 0 | AP73: 0 | AQ73: 0 | AR73: 0 | AS73: 0 | AT73: 0 | AU73: 0 | AV73: 0 | AW73: 0 | AX73: 0 | AY73: 0 | AZ73: 0 | BA73: 0 | BB73: 0 | BC73: 0 | BD73: 0 | BE73: 0 | BF73: 0 | BG73: 0 | BH73: 0 | BI73: 0 | BJ73: 0 | BK73: 0 | BL73: 0 | BM73: 0 | BN73: 0 | BO73: 0 | BP73: 0 | BQ73: 0 | BR73: 0 | BS73: 0 | BT73: 0 | BU73: 0 | BV73: 0 | BW73: 0 | BX73: 0 | BY73: 0 | BZ73: 0 | CD73: 0 | CN73: 0 | CX73: 0 | DH73: 0
C74: Kiosk Mounted ; < = 22kV ; > 60 kVA and < = 600 kVA ; Multiple Phase | D74: 45 | E74: 6.708203932 | F74: 257 | G74: 182 | H74: 180 | I74: 239 | J74: 270 | K74: 276 | L74: 342 | M74: 351 | N74: 288 | O74: 356 | P74: 395 | Q74: 377 | R74: 419 | S74: 557 | T74: 144 | U74: 472 | V74: 130 | W74: 333 | X74: 65 | Y74: 199 | Z74: 117 | AA74: 142 | AB74: 135 | AC74: 113 | AD74: 98 | AE74: 91 | AF74: 136 | AG74: 146 | AH74: 166 | AI74: 152 | AJ74: 122 | AK74: 160 | AL74: 116 | AM74: 123 | AN74: 206 | AO74: 248 | AP74: 127 | AQ74: 82 | AR74: 61 | AS74: 51 | AT74: 28 | AU74: 46 | AV74: 34 | AW74: 18 | AX74: 20 | AY74: 11 | AZ74: 4 | BA74: 6 | BB74: 5 | BC74: 4 | BD74: 2 | BE74: 2 | BF74: 0 | BG74: 3 | BH74: 1 | BI74: 3 | BJ74: 0 | BK74: 2 | BL74: 1 | BM74: 0 | BN74: 0 | BO74: 0 | BP74: 0 | BQ74: 1 | BR74: 0 | BS74: 0 | BT74: 0 | BU74: 0 | BV74: 0 | BW74: 0 | BX74: 0 | BY74: 0 | BZ74: 0 | CD74: 0 | CN74: 0 | CX74: 0 | DH74: 0
C75: Kiosk Mounted ; < = 22kV ; > 600 kVA ; Multiple Phase | D75: 45 | E75: 6.708203932 | F75: 70 | G75: 44 | H75: 41 | I75: 57 | J75: 67 | K75: 52 | L75: 74 | M75: 63 | N75: 118 | O75: 154 | P75: 86 | Q75: 144 | R75: 78 | S75: 127 | T75: 103 | U75: 78 | V75: 66 | W75: 101 | X75: 94 | Y75: 69 | Z75: 55 | AA75: 38 | AB75: 50 | AC75: 36 | AD75: 23 | AE75: 18 | AF75: 25 | AG75: 23 | AH75: 18 | AI75: 20 | AJ75: 17 | AK75: 10 | AL75: 21 | AM75: 8 | AN75: 9 | AO75: 5 | AP75: 5 | AQ75: 3 | AR75: 1 | AS75: 2 | AT75: 0 | AU75: 1 | AV75: 2 | AW75: 0 | AX75: 1 | AY75: 3 | AZ75: 0 | BA75: 0 | BB75: 0 | BC75: 0 | BD75: 0 | BE75: 0 | BF75: 0 | BG75: 0 | BH75: 0 | BI75: 0 | BJ75: 0 | BK75: 0 | BL75: 0 | BM75: 0 | BN75: 0 | BO75: 0 | BP75: 0 | BQ75: 0 | BR75: 1 | BS75: 0 | BT75: 0 | BU75: 0 | BV75: 0 | BW75: 0 | BX75: 0 | BY75: 0 | BZ75: 0 | CD75: 0 | CN75: 0 | CX75: 0 | DH75: 0
C76: Ground Outdoor / Indoor Chamber Mounted; ˂ 22 kV ; < = 60 kVA ; Single Phase | D76: 0 | E76: 0 | F76: 0 | G76: 0 | H76: 0 | I76: 0 | J76: 0 | K76: 0 | L76: 0 | M76: 0 | N76: 0 | O76: 0 | P76: 0 | Q76: 0 | R76: 0 | S76: 0 | T76: 0 | U76: 0 | V76: 0 | W76: 0 | X76: 0 | Y76: 0 | Z76: 0 | AA76: 0 | AB76: 0 | AC76: 0 | AD76: 0 | AE76: 0 | AF76: 0 | AG76: 0 | AH76: 0 | AI76: 0 | AJ76: 0 | AK76: 0 | AL76: 0 | AM76: 0 | AN76: 0 | AO76: 0 | AP76: 0 | AQ76: 0 | AR76: 0 | AS76: 0 | AT76: 0 | AU76: 0 | AV76: 0 | AW76: 0 | AX76: 0 | AY76: 0 | AZ76: 0 | BA76: 0 | BB76: 0 | BC76: 0 | BD76: 0 | BE76: 0 | BF76: 0 | BG76: 0 | BH76: 0 | BI76: 0 | BJ76: 0 | BK76: 0 | BL76: 0 | BM76: 0 | BN76: 0 | BO76: 0 | BP76: 0 | BQ76: 0 | BR76: 0 | BS76: 0 | BT76: 0 | CD76: 0 | CN76: 0 | CX76: 0 | DH76: 0
C77: Ground Outdoor / Indoor Chamber Mounted; ˂ 22 kV ; > 60 kVA and < = 600 kVA ; Single Phase | D77: 0 | E77: 0 | F77: 0 | G77: 0 | H77: 0 | I77: 0 | J77: 0 | K77: 0 | L77: 0 | M77: 0 | N77: 0 | O77: 0 | P77: 0 | Q77: 0 | R77: 0 | S77: 0 | T77: 0 | U77: 0 | V77: 0 | W77: 0 | X77: 0 | Y77: 0 | Z77: 0 | AA77: 0 | AB77: 0 | AC77: 0 | AD77: 0 | AE77: 0 | AF77: 0 | AG77: 0 | AH77: 0 | AI77: 0 | AJ77: 0 | AK77: 0 | AL77: 0 | AM77: 0 | AN77: 0 | AO77: 0 | AP77: 0 | AQ77: 0 | AR77: 0 | AS77: 0 | AT77: 0 | AU77: 0 | AV77: 0 | AW77: 0 | AX77: 0 | AY77: 0 | AZ77: 0 | BA77: 0 | BB77: 0 | BC77: 0 | BD77: 0 | BE77: 0 | BF77: 0 | BG77: 0 | BH77: 0 | BI77: 0 | BJ77: 0 | BK77: 0 | BL77: 0 | BM77: 0 | BN77: 0 | BO77: 0 | BP77: 0 | BQ77: 0 | BR77: 0 | BS77: 0 | BT77: 0 | CD77: 0 | CN77: 0 | CX77: 0 | DH77: 0
C78: Ground Outdoor / Indoor Chamber Mounted; ˂ 22 kV ; > 600 kVA ; Single Phase | D78: 0 | E78: 0 | F78: 0 | G78: 0 | H78: 0 | I78: 0 | J78: 0 | K78: 0 | L78: 0 | M78: 0 | N78: 0 | O78: 0 | P78: 0 | Q78: 0 | R78: 0 | S78: 0 | T78: 0 | U78: 0 | V78: 0 | W78: 0 | X78: 0 | Y78: 0 | Z78: 0 | AA78: 0 | AB78: 0 | AC78: 0 | AD78: 0 | AE78: 0 | AF78: 0 | AG78: 0 | AH78: 0 | AI78: 0 | AJ78: 0 | AK78: 0 | AL78: 0 | AM78: 0 | AN78: 0 | AO78: 0 | AP78: 0 | AQ78: 0 | AR78: 0 | AS78: 0 | AT78: 0 | AU78: 0 | AV78: 0 | AW78: 0 | AX78: 0 | AY78: 0 | AZ78: 0 | BA78: 0 | BB78: 0 | BC78: 0 | BD78: 0 | BE78: 0 | BF78: 0 | BG78: 0 | BH78: 0 | BI78: 0 | BJ78: 0 | BK78: 0 | BL78: 0 | BM78: 0 | BN78: 0 | BO78: 0 | BP78: 0 | BQ78: 0 | BR78: 0 | BS78: 0 | BT78: 0 | CD78: 0 | CN78: 0 | CX78: 0 | DH78: 0
C79: Ground Outdoor / Indoor Chamber Mounted; ˂ 22 kV ; < = 60 kVA ; Multiple Phase | D79: 45 | E79: 6.708203932 | F79: 0 | G79: 2 | H79: 8 | I79: 17 | J79: 10 | K79: 14 | L79: 21 | M79: 17 | N79: 19 | O79: 26 | P79: 32 | Q79: 40 | R79: 26 | S79: 30 | T79: 14 | U79: 27 | V79: 9 | W79: 23 | X79: 17 | Y79: 17 | Z79: 7 | AA79: 26 | AB79: 29 | AC79: 24 | AD79: 21 | AE79: 13 | AF79: 14 | AG79: 13 | AH79: 16 | AI79: 40 | AJ79: 14 | AK79: 9 | AL79: 12 | AM79: 10 | AN79: 13 | AO79: 6 | AP79: 4 | AQ79: 7 | AR79: 4 | AS79: 6 | AT79: 1 | AU79: 7 | AV79: 3 | AW79: 4 | AX79: 3 | AY79: 2 | AZ79: 1 | BA79: 1 | BB79: 0 | BC79: 0 | BD79: 0 | BE79: 0 | BF79: 0 | BG79: 3 | BH79: 1 | BI79: 0 | BJ79: 0 | BK79: 0 | BL79: 0 | BM79: 0 | BN79: 0 | BO79: 0 | BP79: 0 | BQ79: 0 | BR79: 0 | BS79: 0 | BT79: 0 | BU79: 0 | BV79: 0 | BW79: 0 | BX79: 0 | BY79: 0 | BZ79: 0 | CD79: 0 | CN79: 0 | CX79: 0 | DH79: 0
C80: Ground Outdoor / Indoor Chamber Mounted; ˂ 22 kV ; > 60 kVA and < = 600 kVA ; Multiple Phase | D80: 45 | E80: 6.708203932 | F80: 1 | G80: 3 | H80: 5 | I80: 2 | J80: 4 | K80: 9 | L80: 8 | M80: 10 | N80: 12 | O80: 7 | P80: 9 | Q80: 4 | R80: 10 | S80: 6 | T80: 0 | U80: 1 | V80: 1 | W80: 1 | X80: 1 | Y80: 3 | Z80: 3 | AA80: 2 | AB80: 5 | AC80: 4 | AD80: 3 | AE80: 4 | AF80: 27 | AG80: 3 | AH80: 7 | AI80: 11 | AJ80: 14 | AK80: 11 | AL80: 7 | AM80: 14 | AN80: 17 | AO80: 6 | AP80: 5 | AQ80: 3 | AR80: 2 | AS80: 1 | AT80: 3 | AU80: 5 | AV80: 3 | AW80: 1 | AX80: 1 | AY80: 3 | AZ80: 2 | BA80: 2 | BB80: 3 | BC80: 0 | BD80: 1 | BE80: 2 | BF80: 0 | BG80: 4 | BH80: 2 | BI80: 0 | BJ80: 0 | BK80: 0 | BL80: 1 | BM80: 0 | BN80: 0 | BO80: 0 | BP80: 0 | BQ80: 0 | BR80: 0 | BS80: 0 | BT80: 0 | BU80: 0 | BV80: 0 | BW80: 0 | BX80: 0 | BY80: 0 | BZ80: 0 | CD80: 0 | CN80: 0 | CX80: 0 | DH80: 0
C81: Ground Outdoor / Indoor Chamber Mounted; ˂ 22 kV ; > 600 kVA ; Multiple Phase | D81: 45 | E81: 6.708203932 | F81: 0 | G81: 0 | H81: 0 | I81: 0 | J81: 0 | K81: 0 | L81: 0 | M81: 0 | N81: 7 | O81: 2 | P81: 6 | Q81: 0 | R81: 0 | S81: 3 | T81: 1 | U81: 1 | V81: 0 | W81: 1 | X81: 0 | Y81: 5 | Z81: 0 | AA81: 0 | AB81: 0 | AC81: 0 | AD81: 0 | AE81: 0 | AF81: 0 | AG81: 0 | AH81: 0 | AI81: 0 | AJ81: 1 | AK81: 0 | AL81: 2 | AM81: 0 | AN81: 8 | AO81: 0 | AP81: 0 | AQ81: 0 | AR81: 0 | AS81: 1 | AT81: 0 | AU81: 0 | AV81: 0 | AW81: 0 | AX81: 0 | AY81: 0 | AZ81: 1 | BA81: 0 | BB81: 1 | BC81: 3 | BD81: 0 | BE81: 0 | BF81: 0 | BG81: 0 | BH81: 1 | BI81: 0 | BJ81: 0 | BK81: 0 | BL81: 0 | BM81: 0 | BN81: 0 | BO81: 0 | BP81: 0 | BQ81: 0 | BR81: 0 | BS81: 0 | BT81: 0 | BU81: 0 | BV81: 0 | BW81: 0 | BX81: 0 | BY81: 0 | BZ81: 0 | CD81: 0 | CN81: 0 | CX81: 0 | DH81: 0
C82: Ground Outdoor / Indoor Chamber Mounted; > = 22 kV & < = 33 kV ; < = 15 MVA | D82: 50 | E82: 7.071067812 | F82: 1 | G82: 0 | H82: 0 | I82: 3 | J82: 2 | K82: 2 | L82: 1 | M82: 3 | N82: 1 | O82: 3 | P82: 2 | Q82: 0 | R82: 2 | S82: 2 | T82: 0 | U82: 4 | V82: 0 | W82: 1 | X82: 0 | Y82: 0 | Z82: 0 | AA82: 0 | AB82: 0 | AC82: 0 | AD82: 0 | AE82: 4 | AF82: 3 | AG82: 1 | AH82: 1 | AI82: 0 | AJ82: 1 | AK82: 0 | AL82: 0 | AM82: 1 | AN82: 0 | AO82: 3 | AP82: 3 | AQ82: 1 | AR82: 0 | AS82: 0 | AT82: 0 | AU82: 0 | AV82: 0 | AW82: 3 | AX82: 0 | AY82: 0 | AZ82: 4 | BA82: 1 | BB82: 1 | BC82: 3 | BD82: 0 | BE82: 0 | BF82: 4 | BG82: 1 | BH82: 8 | BI82: 3 | BJ82: 1 | BK82: 0 | BL82: 2 | BM82: 0 | BN82: 0 | BO82: 0 | BP82: 0 | BQ82: 0 | BR82: 0 | BS82: 0 | BT82: 0 | CD82: 0 | CN82: 0 | CX82: 0 | DH82: 0
C83: Ground Outdoor / Indoor Chamber Mounted; > = 22 kV & < = 33 kV ; > 15 MVA and < = 40 MVA | D83: 50 | E83: 7.071067812 | F83: 0 | G83: 0 | H83: 4 | I83: 6 | J83: 8 | K83: 5 | L83: 8 | M83: 2 | N83: 18 | O83: 6 | P83: 1 | Q83: 5 | R83: 8 | S83: 11 | T83: 5 | U83: 5 | V83: 6 | W83: 1 | X83: 0 | Y83: 0 | Z83: 0 | AA83: 0 | AB83: 1 | AC83: 2 | AD83: 2 | AE83: 0 | AF83: 0 | AG83: 1 | AH83: 0 | AI83: 2 | AJ83: 2 | AK83: 0 | AL83: 0 | AM83: 4 | AN83: 1 | AO83: 6 | AP83: 4 | AQ83: 2 | AR83: 3 | AS83: 6 | AT83: 3 | AU83: 0 | AV83: 2 | AW83: 4 | AX83: 5 | AY83: 2 | AZ83: 7 | BA83: 7 | BB83: 5 | BC83: 1 | BD83: 5 | BE83: 1 | BF83: 1 | BG83: 1 | BH83: 0 | BI83: 0 | BJ83: 0 | BK83: 0 | BL83: 0 | BM83: 0 | BN83: 0 | BO83: 0 | BP83: 0 | BQ83: 0 | BR83: 0 | BS83: 0 | BT83: 0 | CD83: 0 | CN83: 0 | CX83: 0 | DH83: 0
C84: Ground Outdoor / Indoor Chamber Mounted; > = 22 kV & < = 33 kV ; > 40 MVA | D84: 0 | E84: 0 | F84: 0 | G84: 0 | H84: 0 | I84: 0 | J84: 0 | K84: 0 | L84: 0 | M84: 0 | N84: 0 | O84: 0 | P84: 0 | Q84: 0 | R84: 0 | S84: 0 | T84: 0 | U84: 0 | V84: 0 | W84: 0 | X84: 0 | Y84: 0 | Z84: 0 | AA84: 0 | AB84: 0 | AC84: 0 | AD84: 0 | AE84: 0 | AF84: 0 | AG84: 0 | AH84: 0 | AI84: 0 | AJ84: 0 | AK84: 0 | AL84: 0 | AM84: 0 | AN84: 0 | AO84: 0 | AP84: 0 | AQ84: 0 | AR84: 0 | AS84: 0 | AT84: 0 | AU84: 0 | AV84: 0 | AW84: 0 | AX84: 0 | AY84: 0 | AZ84: 0 | BA84: 0 | BB84: 0 | BC84: 0 | BD84: 0 | BE84: 0 | BF84: 0 | BG84: 0 | BH84: 0 | BI84: 0 | BJ84: 0 | BK84: 0 | BL84: 0 | BM84: 0 | BN84: 0 | BO84: 0 | BP84: 0 | BQ84: 0 | BR84: 0 | BS84: 0 | BT84: 0 | CD84: 0 | CN84: 0 | CX84: 0 | DH84: 0
C85: Ground Outdoor / Indoor Chamber Mounted; > 33 kV & < = 66 kV ; < = 15 MVA | D85: 50 | E85: 7.071067812 | F85: 0 | G85: 0 | H85: 0 | I85: 0 | J85: 0 | K85: 0 | L85: 1 | M85: 0 | N85: 0 | O85: 0 | P85: 0 | Q85: 0 | R85: 0 | S85: 0 | T85: 0 | U85: 0 | V85: 0 | W85: 0 | X85: 0 | Y85: 0 | Z85: 0 | AA85: 0 | AB85: 0 | AC85: 0 | AD85: 0 | AE85: 0 | AF85: 0 | AG85: 0 | AH85: 0 | AI85: 0 | AJ85: 0 | AK85: 0 | AL85: 0 | AM85: 0 | AN85: 3 | AO85: 0 | AP85: 0 | AQ85: 0 | AR85: 0 | AS85: 0 | AT85: 0 | AU85: 0 | AV85: 0 | AW85: 0 | AX85: 0 | AY85: 0 | AZ85: 2 | BA85: 0 | BB85: 0 | BC85: 0 | BD85: 1 | BE85: 0 | BF85: 2 | BG85: 0 | BH85: 0 | BI85: 0 | BJ85: 0 | BK85: 0 | BL85: 0 | BM85: 0 | BN85: 0 | BO85: 0 | BP85: 0 | BQ85: 0 | BR85: 4 | BS85: 1 | BT85: 1 | CD85: 0 | CN85: 0 | CX85: 0 | DH85: 0
C86: Ground Outdoor / Indoor Chamber Mounted; > 33 kV & < = 66 kV ; > 15 MVA and < = 40 MVA | D86: 50 | E86: 7.071067812 | F86: 0 | G86: 0 | H86: 0 | I86: 0 | J86: 0 | K86: 1 | L86: 0 | M86: 4 | N86: 0 | O86: 0 | P86: 2 | Q86: 4 | R86: 2 | S86: 4 | T86: 1 | U86: 0 | V86: 0 | W86: 0 | X86: 0 | Y86: 0 | Z86: 0 | AA86: 0 | AB86: 2 | AC86: 2 | AD86: 0 | AE86: 0 | AF86: 0 | AG86: 1 | AH86: 1 | AI86: 3 | AJ86: 0 | AK86: 5 | AL86: 0 | AM86: 2 | AN86: 3 | AO86: 2 | AP86: 0 | AQ86: 0 | AR86: 2 | AS86: 0 | AT86: 0 | AU86: 6 | AV86: 0 | AW86: 0 | AX86: 0 | AY86: 0 | AZ86: 0 | BA86: 0 | BB86: 0 | BC86: 0 | BD86: 4 | BE86: 0 | BF86: 0 | BG86: 0 | BH86: 0 | BI86: 0 | BJ86: 1 | BK86: 0 | BL86: 0 | BM86: 0 | BN86: 0 | BO86: 0 | BP86: 0 | BQ86: 0 | BR86: 0 | BS86: 0 | BT86: 0 | CD86: 0 | CN86: 0 | CX86: 0 | DH86: 0
C87: Ground Outdoor / Indoor Chamber Mounted; > 33 kV & < = 66 kV ; > 40 MVA | D87: 0 | E87: 0 | F87: 0 | G87: 0 | H87: 0 | I87: 0 | J87: 0 | K87: 0 | L87: 0 | M87: 0 | N87: 0 | O87: 0 | P87: 0 | Q87: 0 | R87: 0 | S87: 0 | T87: 0 | U87: 0 | V87: 0 | W87: 0 | X87: 0 | Y87: 0 | Z87: 0 | AA87: 0 | AB87: 0 | AC87: 0 | AD87: 0 | AE87: 0 | AF87: 0 | AG87: 0 | AH87: 0 | AI87: 0 | AJ87: 0 | AK87: 0 | AL87: 0 | AM87: 0 | AN87: 0 | AO87: 0 | AP87: 0 | AQ87: 0 | AR87: 0 | AS87: 0 | AT87: 0 | AU87: 0 | AV87: 0 | AW87: 0 | AX87: 0 | AY87: 0 | AZ87: 0 | BA87: 0 | BB87: 0 | BC87: 0 | BD87: 0 | BE87: 0 | BF87: 0 | BG87: 0 | BH87: 0 | BI87: 0 | BJ87: 0 | BK87: 0 | BL87: 0 | BM87: 0 | BN87: 0 | BO87: 0 | BP87: 0 | BQ87: 0 | BR87: 0 | BS87: 0 | BT87: 0 | CD87: 0 | CN87: 0 | CX87: 0 | DH87: 0
C88: Ground Outdoor / Indoor Chamber Mounted; > 66 kV & < = 132 kV ; < = 100 MVA | D88: 50 | E88: 7.071067812 | F88: 1 | G88: 0 | H88: 0 | I88: 1 | J88: 3 | K88: 4 | L88: 4 | M88: 1 | N88: 10 | O88: 9 | P88: 0 | Q88: 7 | R88: 10 | S88: 1 | T88: 8 | U88: 1 | V88: 3 | W88: 2 | X88: 0 | Y88: 0 | Z88: 2 | AA88: 2 | AB88: 1 | AC88: 0 | AD88: 2 | AE88: 2 | AF88: 1 | AG88: 0 | AH88: 0 | AI88: 5 | AJ88: 0 | AK88: 3 | AL88: 2 | AM88: 0 | AN88: 0 | AO88: 0 | AP88: 3 | AQ88: 0 | AR88: 0 | AS88: 0 | AT88: 0 | AU88: 0 | AV88: 0 | AW88: 0 | AX88: 0 | AY88: 0 | AZ88: 2 | BA88: 0 | BB88: 2 | BC88: 0 | BD88: 1 | BE88: 1 | BF88: 0 | BG88: 0 | BH88: 2 | BI88: 0 | BJ88: 0 | BK88: 0 | BL88: 0 | BM88: 0 | BN88: 0 | BO88: 0 | BP88: 0 | BQ88: 0 | BR88: 0 | BS88: 0 | BT88: 0 | CD88: 0 | CN88: 0 | CX88: 0 | DH88: 0
C89: Ground Outdoor / Indoor Chamber Mounted; > 66 kV & < = 132 kV ; > 100 MVA | D89: 50 | E89: 7.071067812 | F89: 0 | G89: 0 | H89: 0 | I89: 1 | J89: 1 | K89: 0 | L89: 3 | M89: 0 | N89: 0 | O89: 3 | P89: 0 | Q89: 10 | R89: 1 | S89: 1 | T89: 0 | U89: 0 | V89: 0 | W89: 0 | X89: 0 | Y89: 0 | Z89: 0 | AA89: 0 | AB89: 0 | AC89: 0 | AD89: 0 | AE89: 0 | AF89: 0 | AG89: 0 | AH89: 0 | AI89: 0 | AJ89: 0 | AK89: 0 | AL89: 0 | AM89: 0 | AN89: 1 | AO89: 0 | AP89: 0 | AQ89: 0 | AR89: 0 | AS89: 1 | AT89: 0 | AU89: 2 | AV89: 0 | AW89: 1 | AX89: 2 | AY89: 0 | AZ89: 0 | BA89: 0 | BB89: 4 | BC89: 1 | BD89: 0 | BE89: 2 | BF89: 0 | BG89: 2 | BH89: 1 | BI89: 0 | BJ89: 0 | BK89: 0 | BL89: 0 | BM89: 0 | BN89: 0 | BO89: 0 | BP89: 0 | BQ89: 0 | BR89: 0 | BS89: 0 | BT89: 0 | CD89: 0 | CN89: 0 | CX89: 0 | DH89: 0
C90: Ground Outdoor / Indoor Chamber Mounted; > 132 kV ; < = 100 MVA | D90: 0 | E90: 0 | F90: 0 | G90: 0 | H90: 0 | I90: 0 | J90: 0 | K90: 0 | L90: 0 | M90: 0 | N90: 0 | O90: 0 | P90: 0 | Q90: 0 | R90: 0 | S90: 0 | T90: 0 | U90: 0 | V90: 0 | W90: 0 | X90: 0 | Y90: 0 | Z90: 0 | AA90: 0 | AB90: 0 | AC90: 0 | AD90: 0 | AE90: 0 | AF90: 0 | AG90: 0 | AH90: 0 | AI90: 0 | AJ90: 0 | AK90: 0 | AL90: 0 | AM90: 0 | AN90: 0 | AO90: 0 | AP90: 0 | AQ90: 0 | AR90: 0 | AS90: 0 | AT90: 0 | AU90: 0 | AV90: 0 | AW90: 0 | AX90: 0 | AY90: 0 | AZ90: 0 | BA90: 0 | BB90: 0 | BC90: 0 | BD90: 0 | BE90: 0 | BF90: 0 | BG90: 0 | BH90: 0 | BI90: 0 | BJ90: 0 | BK90: 0 | BL90: 0 | BM90: 0 | BN90: 0 | BO90: 0 | BP90: 0 | BQ90: 0 | BR90: 0 | BS90: 0 | BT90: 0 | CD90: 0 | CN90: 0 | CX90: 0 | DH90: 0
C91: Ground Outdoor / Indoor Chamber Mounted; > 132 kV ; > 100 MVA | D91: 0 | E91: 0 | F91: 0 | G91: 0 | H91: 0 | I91: 0 | J91: 0 | K91: 0 | L91: 0 | M91: 0 | N91: 0 | O91: 0 | P91: 0 | Q91: 0 | R91: 0 | S91: 0 | T91: 0 | U91: 0 | V91: 0 | W91: 0 | X91: 0 | Y91: 0 | Z91: 0 | AA91: 0 | AB91: 0 | AC91: 0 | AD91: 0 | AE91: 0 | AF91: 0 | AG91: 0 | AH91: 0 | AI91: 0 | AJ91: 0 | AK91: 0 | AL91: 0 | AM91: 0 | AN91: 0 | AO91: 0 | AP91: 0 | AQ91: 0 | AR91: 0 | AS91: 0 | AT91: 0 | AU91: 0 | AV91: 0 | AW91: 0 | AX91: 0 | AY91: 0 | AZ91: 0 | BA91: 0 | BB91: 0 | BC91: 0 | BD91: 0 | BE91: 0 | BF91: 0 | BG91: 0 | BH91: 0 | BI91: 0 | BJ91: 0 | BK91: 0 | BL91: 0 | BM91: 0 | BN91: 0 | BO91: 0 | BP91: 0 | BQ91: 0 | BR91: 0 | BS91: 0 | BT91: 0 | CD91: 0 | CN91: 0 | CX91: 0 | DH91: 0
C92: Other | D92: 0 | E92: 0 | F92: 0 | G92: 0 | H92: 0 | I92: 0 | J92: 0 | K92: 0 | L92: 0 | V92: 0 | AF92: 0 | AP92: 0 | AZ92: 0 | BJ92: 0 | BT92: 0 | CD92: 0 | CN92: 0 | CX92: 0 | DH92: 0
B93: SWITCHGEAR BY: HIGHEST OPERATING VOLTAGE ; SWITCH FUNCTION | C93: ˂ = 11 kV ; Fuse | D93: 35 | E93: 5.916079783 | F93: 62 | G93: 94 | H93: 94 | I93: 160 | J93: 182 | K93: 96 | L93: 67 | M93: 50 | N93: 45 | O93: 41 | P93: 39 | Q93: 24 | R93: 27 | S93: 31 | T93: 29 | U93: 33 | V93: 102 | W93: 53 | X93: 51 | Y93: 21 | Z93: 21 | AA93: 21 | AB93: 21 | AC93: 21 | AD93: 21 | AE93: 21 | AF93: 21 | AG93: 22 | AH93: 21 | AI93: 21 | AJ93: 21 | AK93: 21 | AL93: 21 | AM93: 21 | AN93: 21 | AO93: 21 | AP93: 21 | AQ93: 21 | AR93: 21 | AS93: 21 | AT93: 21 | AU93: 21 | AV93: 21 | AW93: 21 | AX93: 2 | AY93: 0 | AZ93: 0 | BA93: 0 | BB93: 0 | BC93: 0 | BD93: 0 | BE93: 0 | BF93: 0 | BG93: 0 | BH93: 0 | BI93: 0 | BJ93: 0 | BK93: 0 | BL93: 0 | BM93: 0 | BN93: 0 | BO93: 0 | BT93: 0 | CD93: 0 | CN93: 0 | CX93: 0 | DH93: 0
C94: ˂ = 11 kV ; Switch | D94: 35 | E94: 5.916079783 | F94: 376 | G94: 491 | H94: 670 | I94: 860 | J94: 1161 | K94: 900 | L94: 723 | M94: 757 | N94: 835 | O94: 971 | P94: 923 | Q94: 808 | R94: 799 | S94: 717 | T94: 651 | U94: 603 | V94: 496 | W94: 423 | X94: 385 | Y94: 185 | Z94: 229 | AA94: 218 | AB94: 224 | AC94: 251 | AD94: 229 | AE94: 264 | AF94: 301 | AG94: 320 | AH94: 297 | AI94: 299 | AJ94: 295 | AK94: 273 | AL94: 305 | AM94: 326 | AN94: 258 | AO94: 241 | AP94: 232 | AQ94: 299 | AR94: 285 | AS94: 265 | AT94: 243 | AU94: 259 | AV94: 194 | AW94: 182 | AX94: 167 | AY94: 191 | AZ94: 176 | BA94: 190 | BB94: 167 | BC94: 150 | BD94: 148 | BE94: 158 | BF94: 36 | BG94: 15 | BH94: 5 | BI94: 8 | BJ94: 5 | BK94: 3 | BL94: 0 | BM94: 0 | BN94: 0 | BO94: 0 | BT94: 0 | CD94: 0 | CN94: 0 | CX94: 0 | DH94: 0
C95: ˂ = 11 kV ; Circuit Breaker | D95: 45 | E95: 6.708203932 | F95: 13 | G95: 26 | H95: 62 | I95: 155 | J95: 288 | K95: 256 | L95: 124 | M95: 81 | N95: 53 | O95: 97 | P95: 123 | Q95: 97 | R95: 88 | S95: 42 | T95: 96 | U95: 19 | V95: 51 | W95: 8 | X95: 0 | Y95: 42 | Z95: 5 | AA95: 5 | AB95: 1 | AC95: 19 | AD95: 12 | AE95: 6 | AF95: 14 | AG95: 37 | AH95: 37 | AI95: 36 | AJ95: 13 | AK95: 35 | AL95: 28 | AM95: 115 | AN95: 29 | AO95: 40 | AP95: 21 | AQ95: 17 | AR95: 32 | AS95: 4 | AT95: 12 | AU95: 30 | AV95: 31 | AW95: 8 | AX95: 0 | AY95: 48 | AZ95: 54 | BA95: 55 | BB95: 14 | BC95: 56 | BD95: 23 | BE95: 28 | BF95: 48 | BG95: 16 | BH95: 27 | BI95: 0 | BJ95: 0 | BK95: 5 | BL95: 1 | BM95: 0 | BN95: 0 | BO95: 0 | BP95: 0 | BQ95: 0 | BR95: 0 | BS95: 0 | BT95: 0 | CD95: 0 | CN95: 0 | CX95: 0 | DH95: 0
C96: > 11 kV & < = 22 kV ; Switch | D96: 35 | E96: 5.916079783 | F96: 13 | G96: 12 | H96: 16 | I96: 9 | J96: 7 | K96: 8 | L96: 13 | M96: 8 | N96: 34 | O96: 18 | P96: 6 | Q96: 15 | R96: 11 | S96: 13 | T96: 7 | U96: 7 | V96: 8 | W96: 23 | X96: 9 | Y96: 2 | Z96: 2 | AA96: 2 | AB96: 8 | AC96: 11 | AD96: 5 | AE96: 2 | AF96: 2 | AG96: 2 | AH96: 11 | AI96: 3 | AJ96: 5 | AK96: 5 | AL96: 2 | AM96: 2 | AN96: 2 | AO96: 2 | AP96: 2 | AQ96: 2 | AR96: 2 | AS96: 2 | AT96: 2 | AU96: 2 | AV96: 2 | AW96: 2 | AX96: 2 | AY96: 2 | AZ96: 2 | BA96: 2 | BB96: 2 | BC96: 2 | BD96: 2 | BE96: 2 | BF96: 0 | BG96: 0 | BH96: 0 | BI96: 0 | BJ96: 0 | BK96: 0 | BL96: 0 | BM96: 0 | BN96: 0 | BO96: 0 | BT96: 0 | CD96: 0 | CN96: 0 | CX96: 0 | DH96: 0
C97: > 11 kV & < = 22 kV ; Circuit Breaker | D97: 45 | E97: 6.708203932 | F97: 0 | G97: 0 | H97: 0 | I97: 0 | J97: 0 | K97: 0 | L97: 2 | M97: 21 | N97: 4 | O97: 0 | P97: 0 | Q97: 0 | R97: 7 | S97: 0 | T97: 0 | U97: 0 | V97: 0 | W97: 16 | X97: 0 | Y97: 0 | Z97: 0 | AA97: 0 | AB97: 0 | AC97: 0 | AD97: 0 | AE97: 0 | AF97: 0 | AG97: 0 | AH97: 0 | AI97: 0 | AJ97: 0 | AK97: 0 | AL97: 0 | AM97: 0 | AN97: 0 | AO97: 0 | AP97: 0 | AQ97: 0 | AR97: 0 | AS97: 0 | AT97: 0 | AU97: 0 | AV97: 0 | AW97: 0 | AX97: 0 | AY97: 0 | AZ97: 0 | BA97: 0 | BB97: 0 | BC97: 0 | BD97: 0 | BE97: 0 | BF97: 0 | BG97: 0 | BH97: 0 | BI97: 0 | BJ97: 0 | BK97: 0 | BL97: 0 | BM97: 0 | BN97: 0 | BO97: 0 | BP97: 0 | BQ97: 0 | BR97: 0 | BS97: 0 | BT97: 0 | CD97: 0 | CN97: 0 | CX97: 0 | DH97: 0
C98: > 22 kV & < = 33 kV ; Switch | D98: 35 | E98: 5.916079783 | F98: 12 | G98: 4 | H98: 0 | I98: 7 | J98: 3 | K98: 7 | L98: 4 | M98: 7 | N98: 2 | O98: 9 | P98: 13 | Q98: 6 | R98: 18 | S98: 18 | T98: 11 | U98: 0 | V98: 0 | W98: 16 | X98: 3 | Y98: 0 | Z98: 0 | AA98: 0 | AB98: 0 | AC98: 2 | AD98: 2 | AE98: 0 | AF98: 0 | AG98: 0 | AH98: 0 | AI98: 0 | AJ98: 0 | AK98: 0 | AL98: 0 | AM98: 0 | AN98: 2 | AO98: 1 | AP98: 0 | AQ98: 0 | AR98: 0 | AS98: 0 | AT98: 0 | AU98: 0 | AV98: 0 | AW98: 0 | AX98: 0 | AY98: 0 | AZ98: 0 | BA98: 0 | BB98: 0 | BJ98: 0 | BT98: 0 | CD98: 0 | CN98: 0 | CX98: 0 | DH98: 0
C99: > 22 kV & < = 33 kV ; Circuit Breaker | D99: 45 | E99: 6.708203932 | F99: 1 | G99: 2 | H99: 2 | I99: 23 | J99: 62 | K99: 149 | L99: 61 | M99: 68 | N99: 61 | O99: 48 | P99: 40 | Q99: 25 | R99: 16 | S99: 29 | T99: 18 | U99: 7 | V99: 9 | W99: 5 | X99: 5 | Y99: 0 | Z99: 3 | AA99: 7 | AB99: 1 | AC99: 13 | AD99: 0 | AE99: 0 | AF99: 7 | AG99: 6 | AH99: 2 | AI99: 1 | AJ99: 1 | AK99: 0 | AL99: 9 | AM99: 12 | AN99: 6 | AO99: 12 | AP99: 7 | AQ99: 6 | AR99: 5 | AS99: 11 | AT99: 1 | AU99: 3 | AV99: 13 | AW99: 5 | AX99: 4 | AY99: 4 | AZ99: 37 | BA99: 7 | BB99: 33 | BC99: 20 | BD99: 7 | BE99: 32 | BF99: 8 | BG99: 16 | BH99: 7 | BI99: 0 | BJ99: 3 | BK99: 3 | BL99: 2 | BM99: 0 | BN99: 0 | BO99: 0 | BP99: 0 | BQ99: 0 | BR99: 0 | BS99: 0 | BT99: 0 | CD99: 0 | CN99: 0 | CX99: 0 | DH99: 0
C100: > 33 kV & < = 66 kV ; Switch | D100: 35 | E100: 5.916079783 | F100: 0 | G100: 4 | H100: 7 | I100: 0 | J100: 3 | K100: 0 | L100: 3 | M100: 4 | N100: 3 | O100: 3 | P100: 3 | Q100: 3 | R100: 0 | S100: 2 | T100: 0 | U100: 2 | V100: 0 | W100: 0 | X100: 0 | Y100: 0 | Z100: 0 | AA100: 0 | AB100: 0 | AC100: 0 | AD100: 0 | AE100: 0 | AF100: 0 | AG100: 0 | AH100: 0 | AI100: 0 | AJ100: 0 | AK100: 0 | AL100: 0 | AM100: 0 | AN100: 0 | AO100: 0 | AP100: 0 | AQ100: 0 | AR100: 0 | AS100: 0 | AT100: 0 | AU100: 0 | AV100: 0 | AW100: 0 | AX100: 0 | AY100: 0 | AZ100: 0 | BA100: 0 | BB100: 0 | BJ100: 0 | BT100: 0 | CD100: 0 | CN100: 0 | CX100: 0 | DH100: 0
C101: > 33 kV & < = 66 kV ; Circuit Breaker | D101: 45 | E101: 6.708203932 | F101: 0 | G101: 0 | H101: 8 | I101: 1 | J101: 6 | K101: 7 | L101: 32 | M101: 8 | N101: 12 | O101: 7 | P101: 21 | Q101: 21 | R101: 5 | S101: 0 | T101: 0 | U101: 15 | V101: 5 | W101: 1 | X101: 0 | Y101: 0 | Z101: 0 | AA101: 2 | AB101: 1 | AC101: 2 | AD101: 0 | AE101: 0 | AF101: 1 | AG101: 0 | AH101: 3 | AI101: 5 | AJ101: 0 | AK101: 5 | AL101: 0 | AM101: 1 | AN101: 1 | AO101: 1 | AP101: 7 | AQ101: 1 | AR101: 0 | AS101: 0 | AT101: 0 | AU101: 2 | AV101: 0 | AW101: 0 | AX101: 0 | AY101: 0 | AZ101: 0 | BA101: 8 | BB101: 0 | BC101: 0 | BD101: 0 | BE101: 0 | BF101: 2 | BG101: 0 | BH101: 0 | BI101: 0 | BJ101: 0 | BK101: 0 | BL101: 0 | BM101: 0 | BN101: 0 | BO101: 0 | BP101: 0 | BQ101: 0 | BR101: 0 | BS101: 0 | BT101: 0 | CD101: 0 | CN101: 0 | CX101: 0 | DH101: 0
C102: > 66 kV & < = 132 kV ; Switch | D102: 0 | E102: 0 | F102: 0 | G102: 0 | H102: 0 | I102: 0 | J102: 0 | K102: 0 | L102: 0 | M102: 0 | N102: 0 | O102: 0 | P102: 0 | Q102: 0 | R102: 0 | S102: 0 | T102: 0 | U102: 0 | V102: 0 | W102: 0 | X102: 0 | Y102: 0 | Z102: 0 | AA102: 0 | AB102: 0 | AC102: 0 | AD102: 0 | AE102: 0 | AF102: 0 | AG102: 0 | AH102: 0 | AI102: 0 | AJ102: 0 | AK102: 0 | AL102: 0 | AM102: 0 | AN102: 0 | AO102: 0 | AP102: 0 | AQ102: 0 | AR102: 0 | AS102: 0 | AT102: 0 | AU102: 0 | AV102: 0 | AW102: 0 | AX102: 0 | AY102: 0 | AZ102: 0 | BA102: 0 | BB102: 0 | BC102: 0 | BD102: 0 | BE102: 0 | BF102: 0 | BG102: 0 | BH102: 0 | BI102: 0 | BJ102: 0 | BK102: 0 | BL102: 0 | BM102: 0 | BN102: 0 | BO102: 0 | BP102: 0 | BQ102: 0 | BR102: 0 | BS102: 0 | BT102: 0 | CD102: 0 | CN102: 0 | CX102: 0 | DH102: 0
C103: > 66 kV & < = 132 kV ; Circuit Breaker | D103: 45 | E103: 6.708203932 | F103: 3 | G103: 5 | H103: 1 | I103: 0 | J103: 17 | K103: 50 | L103: 1 | M103: 8 | N103: 48 | O103: 35 | P103: 59 | Q103: 20 | R103: 25 | S103: 23 | T103: 7 | U103: 7 | V103: 5 | W103: 15 | X103: 11 | Y103: 0 | Z103: 0 | AA103: 5 | AB103: 8 | AC103: 1 | AD103: 2 | AE103: 0 | AF103: 0 | AG103: 11 | AH103: 3 | AI103: 3 | AJ103: 0 | AK103: 4 | AL103: 0 | AM103: 1 | AN103: 3 | AO103: 1 | AP103: 4 | AQ103: 0 | AR103: 0 | AS103: 0 | AT103: 0 | AU103: 4 | AV103: 0 | AW103: 0 | AX103: 0 | AY103: 0 | AZ103: 0 | BA103: 0 | BB103: 0 | BC103: 0 | BD103: 0 | BE103: 0 | BF103: 0 | BG103: 0 | BH103: 0 | BI103: 0 | BJ103: 0 | BK103: 0 | BL103: 0 | BM103: 0 | BN103: 0 | BO103: 0 | BP103: 0 | BQ103: 0 | BR103: 0 | BS103: 0 | BT103: 0 | CD103: 0 | CN103: 0 | CX103: 0 | DH103: 0
C104: > 132 kV ; Switch | D104: 0 | E104: 0 | F104: 0 | G104: 0 | H104: 0 | I104: 0 | J104: 0 | K104: 0 | L104: 0 | M104: 0 | N104: 0 | O104: 0 | P104: 0 | Q104: 0 | R104: 0 | S104: 0 | T104: 0 | U104: 0 | V104: 0 | W104: 0 | X104: 0 | Y104: 0 | Z104: 0 | AA104: 0 | AB104: 0 | AC104: 0 | AD104: 0 | AE104: 0 | AF104: 0 | AG104: 0 | AH104: 0 | AI104: 0 | AJ104: 0 | AK104: 0 | AL104: 0 | AM104: 0 | AN104: 0 | AO104: 0 | AP104: 0 | AQ104: 0 | AR104: 0 | AS104: 0 | AT104: 0 | AU104: 0 | AV104: 0 | AW104: 0 | AX104: 0 | AY104: 0 | AZ104: 0 | BA104: 0 | BB104: 0 | BC104: 0 | BD104: 0 | BE104: 0 | BF104: 0 | BG104: 0 | BH104: 0 | BI104: 0 | BJ104: 0 | BK104: 0 | BL104: 0 | BM104: 0 | BN104: 0 | BO104: 0 | BP104: 0 | BQ104: 0 | BR104: 0 | BS104: 0 | BT104: 0 | CD104: 0 | CN104: 0 | CX104: 0 | DH104: 0
C105: > 132 kV ; Circuit Breaker | D105: 0 | E105: 0 | F105: 0 | G105: 0 | H105: 0 | I105: 0 | J105: 0 | K105: 0 | L105: 0 | M105: 0 | N105: 0 | O105: 0 | P105: 0 | Q105: 0 | R105: 0 | S105: 0 | T105: 0 | U105: 0 | V105: 0 | W105: 0 | X105: 0 | Y105: 0 | Z105: 0 | AA105: 0 | AB105: 0 | AC105: 0 | AD105: 0 | AE105: 0 | AF105: 0 | AG105: 0 | AH105: 0 | AI105: 0 | AJ105: 0 | AK105: 0 | AL105: 0 | AM105: 0 | AN105: 0 | AO105: 0 | AP105: 0 | AQ105: 0 | AR105: 0 | AS105: 0 | AT105: 0 | AU105: 0 | AV105: 0 | AW105: 0 | AX105: 0 | AY105: 0 | AZ105: 0 | BA105: 0 | BB105: 0 | BC105: 0 | BD105: 0 | BE105: 0 | BF105: 0 | BG105: 0 | BH105: 0 | BI105: 0 | BJ105: 0 | BK105: 0 | BL105: 0 | BM105: 0 | BN105: 0 | BO105: 0 | BP105: 0 | BQ105: 0 | BR105: 0 | BS105: 0 | BT105: 0 | CD105: 0 | CN105: 0 | CX105: 0 | DH105: 0
C106: Other | D106: 35 | E106: 5.916079783 | F106: 1360 | G106: 1255 | H106: 2155 | I106: 1527 | J106: 1035 | K106: 829 | L106: 730 | M106: 726 | N106: 721 | O106: 800 | P106: 931 | Q106: 853 | R106: 847 | S106: 847 | T106: 791 | U106: 316 | V106: 654 | W106: 609 | X106: 557 | Y106: 483 | Z106: 391 | AA106: 519 | AB106: 577 | AC106: 664 | AD106: 734 | AE106: 736 | AF106: 791 | AG106: 1011 | AH106: 860 | AI106: 814 | AJ106: 835 | AK106: 645 | AL106: 1069 | AM106: 1421 | AN106: 1660 | AO106: 2535 | AP106: 2535 | AQ106: 2498 | AR106: 1428 | AS106: 1176 | AT106: 1046 | AU106: 928 | AV106: 1029 | AW106: 470 | AX106: 377 | AY106: 201 | AZ106: 286 | BA106: 672 | BB106: 813 | BC106: 818 | BD106: 755 | BE106: 680 | BF106: 510 | BG106: 609 | BH106: 437 | BI106: 227 | BJ106: 274 | BK106: 81 | BL106: 189 | BM106: 66 | BN106: 73 | BO106: 66 | BP106: 16 | BQ106: 48 | BR106: 47 | BS106: 74 | BT106: 14 | BU106: 9 | CD106: 0 | CN106: 0 | CX106: 0 | DH106: 0
B107: PUBLIC LIGHTING BY: ASSET TYPE ; LIGHTING OBLIGATION | C107: Luminaires ; Major Road | D107: 0 | E107: 0 | F107: 0 | G107: 0 | H107: 0 | I107: 0 | J107: 0 | K107: 0 | L107: 0 | M107: 0 | N107: 0 | O107: 0 | P107: 0 | Q107: 0 | R107: 0 | S107: 0 | T107: 0 | U107: 0 | V107: 0 | W107: 0 | X107: 0 | Y107: 0 | Z107: 0 | AA107: 0 | AB107: 0 | AC107: 0 | AD107: 0 | AE107: 0 | AF107: 0 | AG107: 0 | AH107: 0 | AI107: 0 | AJ107: 0 | AK107: 0 | AL107: 0 | AM107: 0 | AN107: 0 | AO107: 0 | AP107: 0 | AQ107: 0 | AR107: 0 | AS107: 0 | AT107: 0 | AU107: 0 | AV107: 0 | AW107: 0 | AX107: 0 | AY107: 0 | AZ107: 0 | BA107: 0 | BB107: 0 | BC107: 0 | BD107: 0 | BE107: 0 | BF107: 0 | BG107: 0 | BH107: 0 | BI107: 0 | BJ107: 0 | BK107: 0 | BL107: 0 | BM107: 0 | BN107: 0 | BO107: 0 | BP107: 0 | BQ107: 0 | BR107: 0 | BS107: 0 | BT107: 0 | CD107: 0 | CN107: 0 | CX107: 0 | DH107: 0
C108: Luminaires ; Minor Road | D108: 0 | E108: 0 | F108: 0 | G108: 0 | H108: 0 | I108: 0 | J108: 0 | K108: 0 | L108: 0 | M108: 0 | N108: 0 | O108: 0 | P108: 0 | Q108: 0 | R108: 0 | S108: 0 | T108: 0 | U108: 0 | V108: 0 | W108: 0 | X108: 0 | Y108: 0 | Z108: 0 | AA108: 0 | AB108: 0 | AC108: 0 | AD108: 0 | AE108: 0 | AF108: 0 | AG108: 0 | AH108: 0 | AI108: 0 | AJ108: 0 | AK108: 0 | AL108: 0 | AM108: 0 | AN108: 0 | AO108: 0 | AP108: 0 | AQ108: 0 | AR108: 0 | AS108: 0 | AT108: 0 | AU108: 0 | AV108: 0 | AW108: 0 | AX108: 0 | AY108: 0 | AZ108: 0 | BA108: 0 | BB108: 0 | BC108: 0 | BD108: 0 | BE108: 0 | BF108: 0 | BG108: 0 | BH108: 0 | BI108: 0 | BJ108: 0 | BK108: 0 | BL108: 0 | BM108: 0 | BN108: 0 | BO108: 0 | BP108: 0 | BQ108: 0 | BR108: 0 | BS108: 0 | BT108: 0 | CD108: 0 | CN108: 0 | CX108: 0 | DH108: 0
C109: Brackets ; Major Road | D109: 0 | E109: 0 | F109: 0 | G109: 0 | H109: 0 | I109: 0 | J109: 0 | K109: 0 | L109: 0 | M109: 0 | N109: 0 | O109: 0 | P109: 0 | Q109: 0 | R109: 0 | S109: 0 | T109: 0 | U109: 0 | V109: 0 | W109: 0 | X109: 0 | Y109: 0 | Z109: 0 | AA109: 0 | AB109: 0 | AC109: 0 | AD109: 0 | AE109: 0 | AF109: 0 | AG109: 0 | AH109: 0 | AI109: 0 | AJ109: 0 | AK109: 0 | AL109: 0 | AM109: 0 | AN109: 0 | AO109: 0 | AP109: 0 | AQ109: 0 | AR109: 0 | AS109: 0 | AT109: 0 | AU109: 0 | AV109: 0 | AW109: 0 | AX109: 0 | AY109: 0 | AZ109: 0 | BA109: 0 | BB109: 0 | BC109: 0 | BD109: 0 | BE109: 0 | BF109: 0 | BG109: 0 | BH109: 0 | BI109: 0 | BJ109: 0 | BK109: 0 | BL109: 0 | BM109: 0 | BN109: 0 | BO109: 0 | BP109: 0 | BQ109: 0 | BR109: 0 | BS109: 0 | BT109: 0 | CD109: 0 | CN109: 0 | CX109: 0 | DH109: 0
C110: Brackets ; Minor Road | D110: 0 | E110: 0 | F110: 0 | G110: 0 | H110: 0 | I110: 0 | J110: 0 | K110: 0 | L110: 0 | M110: 0 | N110: 0 | O110: 0 | P110: 0 | Q110: 0 | R110: 0 | S110: 0 | T110: 0 | U110: 0 | V110: 0 | W110: 0 | X110: 0 | Y110: 0 | Z110: 0 | AA110: 0 | AB110: 0 | AC110: 0 | AD110: 0 | AE110: 0 | AF110: 0 | AG110: 0 | AH110: 0 | AI110: 0 | AJ110: 0 | AK110: 0 | AL110: 0 | AM110: 0 | AN110: 0 | AO110: 0 | AP110: 0 | AQ110: 0 | AR110: 0 | AS110: 0 | AT110: 0 | AU110: 0 | AV110: 0 | AW110: 0 | AX110: 0 | AY110: 0 | AZ110: 0 | BA110: 0 | BB110: 0 | BC110: 0 | BD110: 0 | BE110: 0 | BF110: 0 | BG110: 0 | BH110: 0 | BI110: 0 | BJ110: 0 | BK110: 0 | BL110: 0 | BM110: 0 | BN110: 0 | BO110: 0 | BP110: 0 | BQ110: 0 | BR110: 0 | BS110: 0 | BT110: 0 | CD110: 0 | CN110: 0 | CX110: 0 | DH110: 0
C111: Lamps ; Major Road | D111: 0 | E111: 0 | F111: 0 | G111: 0 | H111: 0 | I111: 0 | J111: 0 | K111: 0 | L111: 0 | M111: 0 | N111: 0 | O111: 0 | P111: 0 | Q111: 0 | R111: 0 | S111: 0 | T111: 0 | U111: 0 | V111: 0 | W111: 0 | X111: 0 | Y111: 0 | Z111: 0 | AA111: 0 | AB111: 0 | AC111: 0 | AD111: 0 | AE111: 0 | AF111: 0 | AG111: 0 | AH111: 0 | AI111: 0 | AJ111: 0 | AK111: 0 | AL111: 0 | AM111: 0 | AN111: 0 | AO111: 0 | AP111: 0 | AQ111: 0 | AR111: 0 | AS111: 0 | AT111: 0 | AU111: 0 | AV111: 0 | AW111: 0 | AX111: 0 | AY111: 0 | AZ111: 0 | BA111: 0 | BB111: 0 | BC111: 0 | BD111: 0 | BE111: 0 | BF111: 0 | BG111: 0 | BH111: 0 | BI111: 0 | BJ111: 0 | BK111: 0 | BL111: 0 | BM111: 0 | BN111: 0 | BO111: 0 | BP111: 0 | BQ111: 0 | BR111: 0 | BS111: 0 | BT111: 0 | CD111: 0 | CN111: 0 | CX111: 0 | DH111: 0
C112: Lamps ; Minor Road | D112: 0 | E112: 0 | F112: 0 | G112: 0 | H112: 0 | I112: 0 | J112: 0 | K112: 0 | L112: 0 | M112: 0 | N112: 0 | O112: 0 | P112: 0 | Q112: 0 | R112: 0 | S112: 0 | T112: 0 | U112: 0 | V112: 0 | W112: 0 | X112: 0 | Y112: 0 | Z112: 0 | AA112: 0 | AB112: 0 | AC112: 0 | AD112: 0 | AE112: 0 | AF112: 0 | AG112: 0 | AH112: 0 | AI112: 0 | AJ112: 0 | AK112: 0 | AL112: 0 | AM112: 0 | AN112: 0 | AO112: 0 | AP112: 0 | AQ112: 0 | AR112: 0 | AS112: 0 | AT112: 0 | AU112: 0 | AV112: 0 | AW112: 0 | AX112: 0 | AY112: 0 | AZ112: 0 | BA112: 0 | BB112: 0 | BC112: 0 | BD112: 0 | BE112: 0 | BF112: 0 | BG112: 0 | BH112: 0 | BI112: 0 | BJ112: 0 | BK112: 0 | BL112: 0 | BM112: 0 | BN112: 0 | BO112: 0 | BP112: 0 | BQ112: 0 | BR112: 0 | BS112: 0 | BT112: 0 | CD112: 0 | CN112: 0 | CX112: 0 | DH112: 0
C113: Poles / Columns ; Major Road | D113: 0 | E113: 0 | F113: 0 | G113: 0 | H113: 0 | I113: 0 | J113: 0 | K113: 0 | L113: 0 | M113: 0 | N113: 0 | O113: 0 | P113: 0 | Q113: 0 | R113: 0 | S113: 0 | T113: 0 | U113: 0 | V113: 0 | W113: 0 | X113: 0 | Y113: 0 | Z113: 0 | AA113: 0 | AB113: 0 | AC113: 0 | AD113: 0 | AE113: 0 | AF113: 0 | AG113: 0 | AH113: 0 | AI113: 0 | AJ113: 0 | AK113: 0 | AL113: 0 | AM113: 0 | AN113: 0 | AO113: 0 | AP113: 0 | AQ113: 0 | AR113: 0 | AS113: 0 | AT113: 0 | AU113: 0 | AV113: 0 | AW113: 0 | AX113: 0 | AY113: 0 | AZ113: 0 | BA113: 0 | BB113: 0 | BC113: 0 | BD113: 0 | BE113: 0 | BF113: 0 | BG113: 0 | BH113: 0 | BI113: 0 | BJ113: 0 | BK113: 0 | BL113: 0 | BM113: 0 | BN113: 0 | BO113: 0 | BP113: 0 | BQ113: 0 | BR113: 0 | BS113: 0 | BT113: 0 | CD113: 0 | CN113: 0 | CX113: 0 | DH113: 0
C114: Poles / Columns ; Minor Road | D114: 0 | E114: 0 | F114: 0 | G114: 0 | H114: 0 | I114: 0 | J114: 0 | K114: 0 | L114: 0 | M114: 0 | N114: 0 | O114: 0 | P114: 0 | Q114: 0 | R114: 0 | S114: 0 | T114: 0 | U114: 0 | V114: 0 | W114: 0 | X114: 0 | Y114: 0 | Z114: 0 | AA114: 0 | AB114: 0 | AC114: 0 | AD114: 0 | AE114: 0 | AF114: 0 | AG114: 0 | AH114: 0 | AI114: 0 | AJ114: 0 | AK114: 0 | AL114: 0 | AM114: 0 | AN114: 0 | AO114: 0 | AP114: 0 | AQ114: 0 | AR114: 0 | AS114: 0 | AT114: 0 | AU114: 0 | AV114: 0 | AW114: 0 | AX114: 0 | AY114: 0 | AZ114: 0 | BA114: 0 | BB114: 0 | BC114: 0 | BD114: 0 | BE114: 0 | BF114: 0 | BG114: 0 | BH114: 0 | BI114: 0 | BJ114: 0 | BK114: 0 | BL114: 0 | BM114: 0 | BN114: 0 | BO114: 0 | BP114: 0 | BQ114: 0 | BR114: 0 | BS114: 0 | BT114: 0 | CD114: 0 | CN114: 0 | CX114: 0 | DH114: 0
C115: Other | D115: 20 | E115: 4.472135955 | F115: 1143 | G115: 3363 | H115: 3510 | I115: 3031 | J115: 2583 | K115: 1476 | L115: 2502 | M115: 1444 | N115: 2661 | O115: 2844 | P115: 3829 | Q115: 4397 | R115: 5253 | S115: 8317 | T115: 8817 | U115: 8846 | V115: 9892 | W115: 9280 | X115: 8055 | Y115: 7944 | Z115: 7830 | AA115: 4688 | AB115: 4896 | AC115: 4346 | AD115: 3784 | AE115: 3797 | AF115: 4428 | AG115: 4097 | AH115: 4130 | AI115: 4415 | AJ115: 4872 | AK115: 4697 | AL115: 3317 | AM115: 3871 | AN115: 4231 | AO115: 4084 | AP115: 5128 | AQ115: 4951 | AR115: 4774 | AS115: 3378 | AT115: 3615 | AU115: 2884 | AV115: 2552 | AW115: 2267 | AX115: 1474 | AY115: 1337 | AZ115: 1768 | BA115: 1444 | BB115: 1160 | BC115: 876 | BD115: 329 | BE115: 206 | BJ115: 0 | BT115: 0 | CD115: 0 | CN115: 0 | CX115: 0 | DH115: 0
B116: SCADA, NETWORK CONTROL AND PROTECTION SYSTEMS BY: FUNCTION | C116: Field Devices | D116: 10 | E116: 3.16227766 | F116: 135 | G116: 100 | H116: 114 | I116: 114 | J116: 25 | K116: 40 | L116: 44 | M116: 3 | N116: 32 | O116: 38 | P116: 25 | Q116: 47 | R116: 65 | S116: 7 | T116: 0 | U116: 0 | V116: 0 | W116: 0 | X116: 0 | Y116: 0 | Z116: 0 | AA116: 0 | AB116: 0 | AC116: 0 | AD116: 0 | AE116: 0 | AF116: 0 | AG116: 0 | AH116: 0 | AI116: 0 | AJ116: 0 | AK116: 0 | AL116: 0 | AM116: 0 | AN116: 0 | AO116: 0 | AP116: 0 | AQ116: 0 | AR116: 0 | AS116: 0 | AT116: 0 | AU116: 0 | AV116: 0 | AW116: 0 | AX116: 0 | AY116: 0 | AZ116: 0 | BA116: 0 | BB116: 0 | BC116: 0 | BD116: 0 | BE116: 0 | BF116: 0 | BG116: 0 | BH116: 0 | BI116: 0 | BJ116: 0 | BK116: 0 | BL116: 0 | BM116: 0 | BN116: 0 | BO116: 0 | BP116: 0 | BQ116: 0 | BR116: 0 | BS116: 0 | BT116: 0 | BU116: 0 | BV116: 0 | BW116: 0 | BX116: 0 | BY116: 0 | BZ116: 0 | CA116: 0 | CB116: 0 | CC116: 0 | CD116: 0 | CN116: 0 | CX116: 0 | DH116: 0
C117: Local Network Wiring Assets | D117: 0 | E117: 0 | F117: 0 | G117: 0 | H117: 0 | I117: 0 | J117: 0 | K117: 0 | L117: 0 | V117: 0 | AF117: 0 | AP117: 0 | AZ117: 0 | BJ117: 0 | BT117: 0 | CD117: 0 | CN117: 0 | CX117: 0 | DH117: 0
C118: Communications Network Assets | D118: 10 | E118: 3.16227766 | F118: 17 | G118: 14 | H118: 17 | I118: 14 | J118: 14 | K118: 4 | L118: 8 | M118: 13 | N118: 15 | O118: 12 | P118: 10 | Q118: 23 | R118: 29 | S118: 18 | T118: 43 | U118: 12 | V118: 2 | W118: 5 | X118: 2 | Y118: 7 | Z118: 1 | AA118: 4 | AB118: 1 | AC118: 1 | AD118: 5 | AE118: 0 | AF118: 0 | AG118: 0 | AH118: 0 | AI118: 0 | AJ118: 0 | AK118: 0 | AL118: 0 | AM118: 0 | AN118: 0 | AO118: 0 | AP118: 0 | AQ118: 0 | AR118: 0 | AS118: 0 | AT118: 0 | AU118: 0 | AV118: 0 | AW118: 0 | AX118: 0 | AY118: 0 | AZ118: 0 | BA118: 0 | BB118: 0 | BC118: 0 | BD118: 0 | BE118: 0 | BF118: 0 | BG118: 0 | BH118: 0 | BI118: 0 | BJ118: 0 | BK118: 0 | BL118: 0 | BM118: 0 | BN118: 0 | BO118: 0 | BP118: 0 | BQ118: 0 | BR118: 0 | BS118: 0 | BT118: 0 | BU118: 0 | BV118: 0 | BW118: 0 | BX118: 0 | BY118: 0 | BZ118: 0 | CA118: 0 | CB118: 0 | CC118: 0 | CD118: 0 | CN118: 0 | CX118: 0 | DH118: 0
C119: Master Station Assets | D119: 0 | E119: 0 | F119: 0 | G119: 0 | H119: 0 | I119: 0 | J119: 0 | K119: 0 | L119: 0 | M119: 0 | N119: 0 | O119: 0 | P119: 0 | Q119: 0 | R119: 0 | S119: 0 | T119: 0 | U119: 0 | V119: 0 | W119: 0 | X119: 0 | Y119: 0 | Z119: 0 | AA119: 0 | AB119: 0 | AC119: 0 | AD119: 0 | AE119: 0 | AF119: 0 | AG119: 0 | AH119: 0 | AI119: 0 | AJ119: 0 | AK119: 0 | AL119: 0 | AM119: 0 | AN119: 0 | AO119: 0 | AP119: 0 | AQ119: 0 | AR119: 0 | AS119: 0 | AT119: 0 | AU119: 0 | AV119: 0 | AW119: 0 | AX119: 0 | AY119: 0 | AZ119: 0 | BA119: 0 | BB119: 0 | BC119: 0 | BD119: 0 | BE119: 0 | BF119: 0 | BG119: 0 | BH119: 0 | BI119: 0 | BJ119: 0 | BK119: 0 | BL119: 0 | BM119: 0 | BN119: 0 | BO119: 0 | BP119: 0 | BQ119: 0 | BR119: 0 | BS119: 0 | BT119: 0 | CD119: 0 | CN119: 0 | CX119: 0 | DH119: 0
C120: Communications Site Infrastructure | D120: 50 | E120: 7.071067812 | F120: 3 | G120: 2 | H120: 1 | I120: 0 | J120: 0 | K120: 0 | L120: 0 | M120: 1 | N120: 2 | O120: 2 | P120: 2 | Q120: 0 | R120: 1 | S120: 2 | T120: 2 | U120: 0 | V120: 0 | W120: 0 | X120: 0 | Y120: 2 | Z120: 1 | AA120: 0 | AB120: 2 | AC120: 2 | AD120: 1 | AE120: 0 | AF120: 0 | AG120: 0 | AH120: 0 | AI120: 1 | AJ120: 0 | AK120: 0 | AL120: 2 | AM120: 0 | AN120: 0 | AO120: 0 | AP120: 0 | AQ120: 0 | AR120: 0 | AS120: 0 | AT120: 0 | AU120: 0 | AV120: 0 | AW120: 0 | AX120: 0 | AY120: 0 | AZ120: 0 | BA120: 0 | BB120: 0 | BC120: 0 | BD120: 0 | BE120: 0 | BF120: 0 | BG120: 0 | BH120: 0 | BI120: 0 | BJ120: 0 | BK120: 0 | BL120: 0 | BM120: 0 | BN120: 0 | BO120: 0 | BP120: 0 | BQ120: 0 | BR120: 0 | BS120: 0 | BT120: 0 | BU120: 0 | BV120: 0 | BW120: 0 | BX120: 0 | BY120: 0 | BZ120: 0 | CA120: 0 | CB120: 0 | CC120: 0 | CD120: 0 | CN120: 0 | CX120: 0 | DH120: 0
C121: Communications Linear Assets | D121: 50 | E121: 7.071067812 | F121: 156.23823 | G121: 83.86697243 | H121: 98.0695473 | I121: 36.62234836 | J121: 78.9657999 | K121: 156.3191233 | L121: 37.89775353 | M121: 11.58796694 | N121: 1.822007381 | O121: 0 | P121: 66.22996831 | Q121: 0 | R121: 28.96991736 | S121: 0 | T121: 0 | U121: 0 | V121: 0 | W121: 10.57844878 | X121: 0 | Y121: 0 | Z121: 0 | AA121: 0 | AB121: 0 | AC121: 7.427071711 | AD121: 0 | AE121: 0 | AF121: 15.92556874 | AG121: 0.1379486902 | AH121: 0 | AI121: 0 | AJ121: 3.851841926 | AK121: 0.9677851118 | AL121: 2.766121405 | AM121: 2.378721456 | AN121: 0 | AO121: 14.2587483 | AP121: 9.98519794 | AQ121: 0 | AR121: 14.76336889 | AS121: 19.75596786 | AT121: 16.04278939 | AU121: 18.0484061 | AV121: 3.941901692 | AW121: 7.260532618 | AX121: 6.057591449 | AY121: 22.0796528 | AZ121: 38.3297226 | BA121: 34.1948357 | BB121: 31.91975445 | BC121: 24.04381342 | BD121: 0.6911729712 | BE121: 33.31639559 | BF121: 58.67393799 | BG121: 59.82899024 | BH121: 59.06777078 | BI121: 0 | BJ121: 24.90795833 | BK121: 16.5131015 | BL121: 0 | BM121: 6.915303513 | BN121: 7.896669065 | BO121: 11.52765013 | BP121: 2.883342054 | BQ121: 0 | BR121: 0 | BS121: 0 | BT121: 0 | BU121: 0 | BV121: 0 | BW121: 0 | BX121: 0 | BY121: 0 | BZ121: 0 | CA121: 0 | CB121: 0 | CC121: 0 | CD121: 0 | CN121: 0 | CX121: 0 | DH121: 0
C122: AFLC | D122: 50 | E122: 7.071067812 | F122: 0 | G122: 3 | H122: 16 | I122: 16 | J122: 15 | K122: 10 | L122: 14 | M122: 6 | N122: 17 | O122: 6 | P122: 10 | Q122: 16 | R122: 8 | S122: 6 | T122: 0 | U122: 1 | V122: 3 | W122: 0 | X122: 11 | Y122: 4 | Z122: 0 | AA122: 0 | AB122: 0 | AC122: 0 | AD122: 0 | AE122: 0 | AF122: 0 | AG122: 2 | AH122: 2 | AI122: 3 | AJ122: 1 | AK122: 3 | AL122: 6 | AM122: 8 | AN122: 8 | AO122: 7 | AP122: 0 | AQ122: 0 | AR122: 2 | AS122: 2 | AT122: 0 | AU122: 1 | AV122: 0 | AW122: 0 | AX122: 1 | AY122: 3 | AZ122: 0 | BA122: 0 | BB122: 0 | BC122: 1 | BD122: 0 | BE122: 0 | BF122: 0 | BG122: 5 | BH122: 4 | BI122: 0 | BJ122: 0 | BK122: 0 | BL122: 0 | BM122: 0 | BN122: 0 | BO122: 0 | BP122: 0 | BQ122: 0 | BR122: 0 | BS122: 0 | BT122: 0 | BU122: 0 | BV122: 0 | BW122: 0 | BX122: 0 | BY122: 0 | BZ122: 0 | CA122: 0 | CB122: 0 | CC122: 0 | CD122: 0 | CN122: 0 | CX122: 0 | DH122: 0
C123: Other | D123: 10 | E123: 3.16227766 | F123: 28 | G123: 20 | H123: 7 | I123: 7 | J123: 0 | K123: 32 | L123: 76 | M123: 23 | N123: 48 | O123: 0 | P123: 273 | Q123: 0 | R123: 0 | S123: 0 | T123: 0 | U123: 0 | V123: 0 | W123: 0 | X123: 0 | Y123: 0 | Z123: 0 | AA123: 0 | AB123: 0 | AC123: 0 | AD123: 0 | AE123: 0 | AF123: 0 | AG123: 0 | AH123: 0 | AI123: 0 | AJ123: 0 | AK123: 0 | AL123: 0 | AM123: 0 | AN123: 0 | AO123: 0 | AP123: 0 | AQ123: 0 | AR123: 0 | AS123: 0 | AT123: 0 | AU123: 0 | AV123: 0 | AW123: 0 | AX123: 0 | AY123: 0 | AZ123: 0 | BA123: 0 | BB123: 0 | BC123: 0 | BD123: 0 | BE123: 0 | BF123: 0 | BG123: 0 | BH123: 0 | BI123: 0 | BJ123: 0 | BK123: 0 | BL123: 0 | BM123: 0 | BN123: 0 | BO123: 0 | BP123: 0 | BQ123: 0 | BR123: 0 | BS123: 0 | BT123: 0 | BU123: 0 | BV123: 0 | BW123: 0 | BX123: 0 | BY123: 0 | BZ123: 0 | CA123: 0 | CB123: 0 | CC123: 0 | CD123: 0 | CN123: 0 | CX123: 0 | DH123: 0
B124: OTHER BY: DNSP DEFINED | C124: Substation Establishment: Major Indoor | D124: 50 | E124: 7.071067812 | F124: 1 | G124: 2 | H124: 4 | I124: 6 | J124: 5 | K124: 0 | L124: 2 | M124: 0 | N124: 0 | O124: 3 | P124: 0 | Q124: 0 | R124: 0 | S124: 0 | T124: 0 | U124: 1 | V124: 0 | W124: 0 | X124: 1 | Y124: 0 | Z124: 0 | AA124: 0 | AB124: 0 | AC124: 1 | AD124: 0 | AE124: 0 | AF124: 0 | AG124: 0 | AH124: 2 | AI124: 0 | AJ124: 0 | AK124: 0 | AL124: 1 | AM124: 0 | AN124: 0 | AO124: 1 | AP124: 0 | AQ124: 1 | AR124: 1 | AS124: 0 | AT124: 1 | AU124: 0 | AV124: 1 | AW124: 0 | AX124: 0 | AY124: 0 | AZ124: 0 | BA124: 0 | BB124: 0 | BC124: 0 | BD124: 2 | BE124: 0 | BF124: 0 | BG124: 0 | BH124: 0 | BI124: 0 | BJ124: 0 | BK124: 0 | BL124: 0 | BM124: 0 | BN124: 0 | BO124: 0 | BT124: 0 | CD124: 0 | CN124: 0 | CX124: 0 | DH124: 0
C125: Substation Establishment: Major Outdoor | D125: 50 | E125: 7.071067812 | F125: 2 | G125: 0 | H125: 0 | I125: 1 | J125: 0 | K125: 0 | L125: 2 | M125: 2 | N125: 2 | O125: 0 | P125: 2 | Q125: 1 | R125: 0 | S125: 0 | T125: 0 | U125: 1 | V125: 1 | W125: 0 | X125: 0 | Y125: 0 | Z125: 0 | AA125: 0 | AB125: 2 | AC125: 0 | AD125: 0 | AE125: 1 | AF125: 1 | AG125: 1 | AH125: 1 | AI125: 0 | AJ125: 2 | AK125: 0 | AL125: 1 | AM125: 1 | AN125: 1 | AO125: 0 | AP125: 0 | AQ125: 1 | AR125: 0 | AS125: 0 | AT125: 2 | AU125: 0 | AV125: 3 | AW125: 0 | AX125: 3 | AY125: 2 | AZ125: 2 | BA125: 2 | BB125: 4 | BC125: 1 | BD125: 1 | BE125: 3 | BF125: 3 | BG125: 1 | BH125: 0 | BI125: 1 | BJ125: 0 | BK125: 0 | BL125: 0 | BM125: 0 | BN125: 0 | BO125: 0 | BT125: 0 | CD125: 0 | CN125: 0 | CX125: 0 | DH125: 0
C126: Substation Establishment: Medium Indoor | D126: 50 | E126: 7.071067812 | F126: 0 | G126: 1 | H126: 2 | I126: 4 | J126: 3 | K126: 0 | L126: 1 | M126: 1 | N126: 2 | O126: 0 | P126: 0 | Q126: 0 | R126: 1 | S126: 0 | T126: 0 | U126: 0 | V126: 0 | W126: 0 | X126: 0 | Y126: 0 | Z126: 0 | AA126: 0 | AB126: 0 | AC126: 0 | AD126: 0 | AE126: 0 | AF126: 0 | AG126: 0 | AH126: 1 | AI126: 0 | AJ126: 0 | AK126: 0 | AL126: 0 | AM126: 0 | AN126: 3 | AO126: 0 | AP126: 0 | AQ126: 1 | AR126: 2 | AS126: 0 | AT126: 0 | AU126: 0 | AV126: 0 | AW126: 0 | AX126: 0 | AY126: 0 | AZ126: 0 | BA126: 0 | BB126: 0 | BC126: 0 | BD126: 0 | BE126: 0 | BF126: 0 | BG126: 0 | BH126: 0 | BI126: 0 | BJ126: 0 | BK126: 0 | BL126: 0 | BM126: 0 | BN126: 0 | BO126: 0 | BT126: 0 | CD126: 0 | CN126: 0 | CX126: 0 | DH126: 0
C127: Substation Establishment: Medium Outdoor | D127: 50 | E127: 7.071067812 | F127: 0 | G127: 0 | H127: 2 | I127: 0 | J127: 2 | K127: 2 | L127: 0 | M127: 0 | N127: 0 | O127: 1 | P127: 0 | Q127: 0 | R127: 1 | S127: 0 | T127: 1 | U127: 0 | V127: 0 | W127: 1 | X127: 0 | Y127: 0 | Z127: 0 | AA127: 0 | AB127: 0 | AC127: 0 | AD127: 0 | AE127: 2 | AF127: 0 | AG127: 2 | AH127: 0 | AI127: 1 | AJ127: 0 | AK127: 2 | AL127: 0 | AM127: 3 | AN127: 1 | AO127: 1 | AP127: 0 | AQ127: 0 | AR127: 0 | AS127: 0 | AT127: 0 | AU127: 1 | AV127: 0 | AW127: 2 | AX127: 3 | AY127: 3 | AZ127: 1 | BA127: 3 | BB127: 0 | BC127: 3 | BD127: 2 | BE127: 0 | BF127: 0 | BG127: 1 | BH127: 0 | BI127: 0 | BJ127: 1 | BK127: 0 | BL127: 0 | BM127: 0 | BN127: 0 | BO127: 0 | BT127: 0 | CD127: 0 | CN127: 0 | CX127: 0 | DH127: 0
C128: Substation Establishment: Small Indoor | D128: 50 | E128: 7.071067812 | F128: 0 | G128: 0 | H128: 1 | I128: 1 | J128: 0 | K128: 0 | L128: 0 | M128: 0 | N128: 1 | O128: 0 | P128: 0 | Q128: 0 | R128: 0 | S128: 0 | T128: 0 | U128: 1 | V128: 0 | W128: 0 | X128: 0 | Y128: 0 | Z128: 0 | AA128: 0 | AB128: 0 | AC128: 0 | AD128: 0 | AE128: 0 | AF128: 0 | AG128: 0 | AH128: 0 | AI128: 0 | AJ128: 0 | AK128: 0 | AL128: 0 | AM128: 0 | AN128: 0 | AO128: 0 | AP128: 0 | AQ128: 0 | AR128: 0 | AS128: 0 | AT128: 0 | AU128: 0 | AV128: 0 | AW128: 0 | AX128: 0 | AY128: 0 | AZ128: 0 | BA128: 0 | BB128: 0 | BC128: 0 | BD128: 0 | BE128: 0 | BF128: 0 | BG128: 0 | BH128: 0 | BI128: 0 | BJ128: 0 | BK128: 0 | BL128: 0 | BM128: 0 | BN128: 0 | BO128: 0 | BT128: 0 | CD128: 0 | CN128: 0 | CX128: 0 | DH128: 0
C129: Substation Establishment: Small Outdoor | D129: 50 | E129: 7.071067812 | F129: 0 | G129: 0 | H129: 0 | I129: 0 | J129: 0 | K129: 0 | L129: 0 | M129: 1 | N129: 0 | O129: 0 | P129: 0 | Q129: 0 | R129: 0 | S129: 2 | T129: 2 | U129: 0 | V129: 0 | W129: 0 | X129: 0 | Y129: 0 | Z129: 1 | AA129: 0 | AB129: 1 | AC129: 0 | AD129: 0 | AE129: 0 | AF129: 0 | AG129: 0 | AH129: 0 | AI129: 0 | AJ129: 1 | AK129: 0 | AL129: 1 | AM129: 0 | AN129: 0 | AO129: 0 | AP129: 1 | AQ129: 0 | AR129: 0 | AS129: 0 | AT129: 0 | AU129: 0 | AV129: 2 | AW129: 0 | AX129: 2 | AY129: 0 | AZ129: 1 | BA129: 0 | BB129: 1 | BC129: 0 | BD129: 0 | BE129: 1 | BF129: 0 | BG129: 1 | BH129: 0 | BI129: 0 | BJ129: 0 | BK129: 0 | BL129: 0 | BM129: 0 | BN129: 0 | BO129: 0 | BT129: 0 | CD129: 0 | CN129: 0 | CX129: 0 | DH129: 0
C130: Substation Establishment: Type A | D130: 50 | E130: 7.071067812 | F130: 0 | G130: 0 | H130: 1 | I130: 1 | J130: 1 | K130: 0 | L130: 0 | M130: 0 | N130: 1 | O130: 0 | P130: 0 | Q130: 0 | R130: 0 | S130: 0 | T130: 0 | U130: 0 | V130: 0 | W130: 0 | X130: 0 | Y130: 0 | Z130: 1 | AA130: 0 | AB130: 0 | AC130: 0 | AD130: 0 | AE130: 0 | AF130: 0 | AG130: 0 | AH130: 0 | AI130: 0 | AJ130: 1 | AK130: 0 | AL130: 0 | AM130: 0 | AN130: 1 | AO130: 0 | AP130: 0 | AQ130: 0 | AR130: 0 | AS130: 0 | AT130: 0 | AU130: 0 | AV130: 0 | AW130: 0 | AX130: 0 | AY130: 0 | AZ130: 0 | BA130: 1 | BB130: 0 | BC130: 0 | BD130: 0 | BE130: 0 | BF130: 0 | BG130: 0 | BH130: 0 | BI130: 0 | BJ130: 0 | BK130: 0 | BL130: 0 | BM130: 0 | BN130: 0 | BO130: 0 | BT130: 0 | CD130: 0 | CN130: 0 | CX130: 0 | DH130: 0
C131: Substation Establishment: Type B | D131: 50 | E131: 7.071067812 | F131: 0 | G131: 1 | H131: 1 | I131: 0 | J131: 1 | K131: 0 | L131: 0 | M131: 0 | N131: 1 | O131: 0 | P131: 0 | Q131: 0 | R131: 0 | S131: 0 | T131: 0 | U131: 0 | V131: 0 | W131: 0 | X131: 0 | Y131: 0 | Z131: 0 | AA131: 0 | AB131: 0 | AC131: 0 | AD131: 0 | AE131: 0 | AF131: 0 | AG131: 0 | AH131: 0 | AI131: 0 | AJ131: 0 | AK131: 0 | AL131: 0 | AM131: 0 | AN131: 0 | AO131: 0 | AP131: 0 | AQ131: 0 | AR131: 0 | AS131: 0 | AT131: 1 | AU131: 0 | AV131: 0 | AW131: 0 | AX131: 1 | AY131: 0 | AZ131: 2 | BA131: 0 | BB131: 1 | BC131: 1 | BD131: 0 | BE131: 2 | BF131: 2 | BG131: 1 | BH131: 0 | BI131: 0 | BJ131: 0 | BK131: 0 | BL131: 0 | BM131: 0 | BN131: 1 | BO131: 0 | BT131: 0 | CD131: 0 | CN131: 0 | CX131: 0 | DH131: 0
C132: Distribution Sub - Chamber Type | D132: 45 | E132: 6.708203932 | F132: 9 | G132: 15 | H132: 12 | I132: 12 | J132: 14 | K132: 9 | L132: 6 | M132: 8 | N132: 10 | O132: 5 | P132: 19 | Q132: 12 | R132: 16 | S132: 14 | T132: 14 | U132: 7 | V132: 5 | W132: 9 | X132: 5 | Y132: 5 | Z132: 4 | AA132: 6 | AB132: 12 | AC132: 6 | AD132: 10 | AE132: 10 | AF132: 18 | AG132: 14 | AH132: 16 | AI132: 25 | AJ132: 20 | AK132: 14 | AL132: 11 | AM132: 16 | AN132: 15 | AO132: 8 | AP132: 10 | AQ132: 10 | AR132: 7 | AS132: 9 | AT132: 3 | AU132: 23 | AV132: 11 | AW132: 5 | AX132: 2 | AY132: 7 | AZ132: 2 | BA132: 3 | BB132: 8 | BC132: 2 | BD132: 1 | BE132: 3 | BF132: 2 | BG132: 5 | BH132: 4 | BI132: 3 | BJ132: 1 | BK132: 2 | BL132: 1 | BM132: 1 | BN132: 0 | BO132: 0 | BP132: 0 | BQ132: 1 | BR132: 0 | BS132: 0 | BT132: 0 | BU132: 0 | BV132: 0 | BW132: 0 | CD132: 0 | CN132: 0 | CX132: 0 | DH132: 0
C133: Distribution OH Sub < 64KVA | D133: 45 | E133: 6.708203932 | F133: 101 | G133: 104 | H133: 73 | I133: 72 | J133: 71 | K133: 120 | L133: 70 | M133: 79 | N133: 78 | O133: 75 | P133: 112 | Q133: 100 | R133: 115 | S133: 139 | T133: 156 | U133: 139 | V133: 131 | W133: 167 | X133: 148 | Y133: 144 | Z133: 132 | AA133: 132 | AB133: 182 | AC133: 167 | AD133: 194 | AE133: 172 | AF133: 202 | AG133: 227 | AH133: 231 | AI133: 176 | AJ133: 176 | AK133: 252 | AL133: 451 | AM133: 549 | AN133: 330 | AO133: 540 | AP133: 242 | AQ133: 200 | AR133: 127 | AS133: 89 | AT133: 82 | AU133: 95 | AV133: 73 | AW133: 47 | AX133: 68 | AY133: 50 | AZ133: 36 | BA133: 64 | BB133: 59 | BC133: 104 | BD133: 51 | BE133: 59 | BF133: 68 | BG133: 52 | BH133: 39 | BI133: 47 | BJ133: 45 | BK133: 28 | BL133: 33 | BM133: 26 | BN133: 41 | BO133: 19 | BP133: 23 | BQ133: 33 | BR133: 35 | BS133: 24 | BT133: 15 | BU133: 14 | BV133: 14 | BW133: 0 | CD133: 0 | CN133: 0 | CX133: 0 | DH133: 0
C134: Distribution OH Sub >= 64KVA | D134: 45 | E134: 6.708203932 | F134: 14 | G134: 17 | H134: 42 | I134: 50 | J134: 56 | K134: 96 | L134: 93 | M134: 117 | N134: 109 | O134: 121 | P134: 139 | Q134: 94 | R134: 163 | S134: 217 | T134: 205 | U134: 164 | V134: 149 | W134: 114 | X134: 88 | Y134: 72 | Z134: 57 | AA134: 105 | AB134: 120 | AC134: 133 | AD134: 139 | AE134: 119 | AF134: 210 | AG134: 165 | AH134: 181 | AI134: 172 | AJ134: 98 | AK134: 121 | AL134: 177 | AM134: 270 | AN134: 223 | AO134: 910 | AP134: 817 | AQ134: 540 | AR134: 401 | AS134: 368 | AT134: 334 | AU134: 331 | AV134: 204 | AW134: 96 | AX134: 93 | AY134: 134 | AZ134: 118 | BA134: 159 | BB134: 150 | BC134: 215 | BD134: 196 | BE134: 199 | BF134: 182 | BG134: 166 | BH134: 120 | BI134: 113 | BJ134: 119 | BK134: 164 | BL134: 91 | BM134: 88 | BN134: 87 | BO134: 83 | BP134: 89 | BQ134: 92 | BR134: 89 | BS134: 83 | BT134: 83 | BU134: 82 | BV134: 82 | BW134: 1 | CD134: 0 | CN134: 0 | CX134: 0 | DH134: 0
C135: 11/22 - kiosk and pad mount <=500kVA Substn | D135: 45 | E135: 6.708203932 | F135: 305 | G135: 418 | H135: 359 | I135: 288 | J135: 267 | K135: 239 | L135: 320 | M135: 236 | N135: 184 | O135: 185 | P135: 216 | Q135: 201 | R135: 291 | S135: 384 | T135: 234 | U135: 220 | V135: 185 | W135: 198 | X135: 149 | Y135: 144 | Z135: 120 | AA135: 142 | AB135: 159 | AC135: 130 | AD135: 139 | AE135: 111 | AF135: 182 | AG135: 187 | AH135: 186 | AI135: 175 | AJ135: 168 | AK135: 212 | AL135: 186 | AM135: 169 | AN135: 295 | AO135: 367 | AP135: 260 | AQ135: 189 | AR135: 139 | AS135: 109 | AT135: 87 | AU135: 119 | AV135: 102 | AW135: 48 | AX135: 36 | AY135: 14 | AZ135: 11 | BA135: 10 | BB135: 3 | BC135: 9 | BD135: 8 | BE135: 8 | BF135: 9 | BG135: 7 | BH135: 6 | BI135: 9 | BJ135: 8 | BK135: 13 | BL135: 6 | BM135: 6 | BN135: 6 | BO135: 6 | BP135: 7 | BQ135: 7 | BR135: 7 | BS135: 7 | BT135: 7 | BU135: 7 | BV135: 7 | BW135: 0 | CD135: 0 | CN135: 0 | CX135: 0 | DH135: 0
C136: 11/22 - kiosk and pad mount >500kVA Substn | D136: 45 | E136: 6.708203932 | F136: 37 | G136: 67 | H136: 71 | I136: 77 | J136: 60 | K136: 70 | L136: 81 | M136: 49 | N136: 72 | O136: 83 | P136: 89 | Q136: 82 | R136: 93 | S136: 87 | T136: 82 | U136: 55 | V136: 67 | W136: 52 | X136: 62 | Y136: 45 | Z136: 41 | AA136: 34 | AB136: 37 | AC136: 27 | AD136: 28 | AE136: 29 | AF136: 47 | AG136: 31 | AH136: 36 | AI136: 32 | AJ136: 35 | AK136: 31 | AL136: 27 | AM136: 13 | AN136: 35 | AO136: 47 | AP136: 35 | AQ136: 30 | AR136: 26 | AS136: 19 | AT136: 11 | AU136: 17 | AV136: 16 | AW136: 1 | AX136: 3 | AY136: 9 | AZ136: 2 | BA136: 1 | BB136: 2 | BC136: 4 | BD136: 1 | BE136: 2 | BF136: 2 | BG136: 3 | BH136: 2 | BI136: 2 | BJ136: 2 | BK136: 4 | BL136: 2 | BM136: 2 | BN136: 2 | BO136: 2 | BP136: 3 | BQ136: 2 | BR136: 2 | BS136: 2 | BT136: 2 | BU136: 2 | BV136: 2 | BW136: 0 | CD136: 0 | CN136: 0 | CX136: 0 | DH136: 0
